Workbook

Sheet TRM Spreadsheet
A1: Evergy MEEIA 3 Technical Resource Manual - 2022-01-01 Update
A2: Measures updated with final Cycle 3 PY1 EM&V results | AO2: Link to CDD | AP2: Link to HDD
A3: New Measures
A4: Measure Description | H4: Gross Measure Values | AA4: Efficiency Values | AI4: Algorithms | AM4: Start/End Dates | AO4: Quantities
A5: Program | B5: Measure Name | C5: Primary Key | D5: Segment | E5: End Use | F5: Notes | G5: Unit Definition | H5: Incremental Measure Cost ($/Unit) | I5: Incremental Measure Cost Source | J5: Incremental Measure Cost Source Page Number | K5: Electric Energy Savings (Annual kWh/unit) | L5: Electric Energy Savings (Annual kWh/unit) Source | M5: Electric Energy Savings (Annual kWh/unit) Source Page Number | N5: Nameplate Demand Savings (kW/unit) | O5: Peak Coincidence Factor | P5: Peak Coincident Factor Source | Q5: Peak Coincident Factor Source Page Number | R5: Coincident Peak Demand Savings (kW/unit) | S5: Coincident Peak Demand Savings (kW/unit) Source | T5: Coincident Peak Demand Savings (kW/unit) Source Page Number | U5: Annual Operating Hours | V5: Annual Operating Hours Source | W5: Annual Operating Hours Source Page Number | X5: Measure Life (Years) | Y5: Measure Life (Years) Source | Z5: Measure Life (Years) Source Page Number | AA5: Measure Definition | AB5: Measure Efficiency Value | AC5: Measure Efficiency Value Source | AD5: Measure Efficiency Value Source Page Number | AE5: Baseline Definition | AF5: Baseline Efficiency Value | AG5: Baseline Efficiency Value Source | AH5: Baseline Efficiency Value Source Page Number | AI5: Electric Energy Savings Algorithm | AJ5: Electric Demand Savings Algorithm | AK5: Savings Algorithms Source | AL5: Savings Algorithms Source Page Number | AM5: Effective Start Date | AN5: Effective End Date | AO5: Cooling Degree Days (CDD) | AP5: Heating Degree Days (HDD) | AQ5: Degree Days Source | AR5: Degree Days Source Page Number | AS5: Quantity 1 | AT5: Quantity 1 Description | AU5: Quantity 1 Source | AV5: Quantity 1 Source Page Number | AW5: Quantity 2 | AX5: Quantity 2 Description | AY5: Quantity 2 Source | AZ5: Quantity 2 Source Page Number | BA5: Quantity 3 | BB5: Quantity 3 Description | BC5: Quantity 3 Source | BD5: Quantity 3 Source Page Number | BE5: Quantity 4 | BF5: Quantity 4 Description | BG5: Quantity 4 Source | BH5: Quantity 4 Source Page Number | BI5: Quantity 5 | BJ5: Quantity 5 Description | BK5: Quantity 5 Source | BL5: Quantity 5 Source Page Number | BM5: Quantity 6 | BN5: Quantity 6 Description | BO5: Quantity 6 Source | BP5: Quantity 6 Source Page Number | BQ5: Quantity 7 | BR5: Quantity 7 Description | BS5: Quantity 7 Source | BT5: Quantity 7 Source Page Number | BU5: Quantity 8 | BV5: Quantity 8 Description | BW5: Quantity 8 Source | BX5: Quantity 8 Source Page Number | BY5: Quantity 9 | BZ5: Quantity 9 Description | CA5: Quantity 9 Source | CB5: Quantity 9 Source Page Number | CC5: Quantity 10 | CD5: Quantity 10 Description | CE5: Quantity 10 Source | CF5: Quantity 10 Source Page Number | CG5: Quantity 11 | CH5: Quantity 11 Description | CI5: Quantity 11 Source | CJ5: Quantity 11 Source Page Number | CK5: Quantity 12 | CL5: Quantity 12 Description | CM5: Quantity 12 Source | CN5: Quantity 12 Source Page Number | CO5: Quantity 13 | CP5: Quantity 13 Description | CQ5: Quantity 13 Source | CR5: Quantity 13 Source Page Number | CS5: Quantity 14 | CT5: Quantity 14 Description | CU5: Quantity 14 Source | CV5: Quantity 14 Source Page Number | CW5: Quantity 15 | CX5: Quantity 15 Description | CY5: Quantity 15 Source | CZ5: Quantity 15 Source Page Number | DA5: Quantity 16 | DB5: Quantity 16 Description | DC5: Quantity 16 Source | DD5: Quantity 16 Source Page Number | DE5: Quantity 17 | DF5: Quantity 17 Description | DG5: Quantity 17 Source | DH5: Quantity 17 Source Page Number | DI5: Quantity 18 | DJ5: Quantity 18 Description | DK5: Quantity 18 Source | DL5: Quantity 18 Source Page Number | DM5: Quantity 19 | DN5: Quantity 19 Description | DO5: Quantity 19 Source | DP5: Quantity 19 Source Page Number
A6: Energy Saving Products | B6: Screw In - LEDs | C6: 2.3 | D6: All | E6: Lighting | G6: per lamp | H6: 1.45 | I6: IL TRM v7 vol3 | J6: 269 | K6: =ROUND(($AF6-$AB6)/1000*$U6*$AS6*$BA6,4) -> 36.1182 | L6: Calculated Value | N6: =K6/U6 -> 0.03316639118 | O6: 0.128 | P6: IL TRM v7 vol3 | Q6: 274 | R6: =ROUND(($AF6-$AB6)/1000*O6*$AW6*$BA6,4) -> 0.0044 | S6: Calculated Value | U6: 1089 | V6: IL TRM v7 vol3 - Assumes interior installation for all standard bulbs. | W6: 271 | X6: 10 | Y6: IL TRM v7 vol3 | Z6: 268 | AA6: Screw In - LEDs | AB6: 9.5 | AC6: Program Tracking Data | AE6: 43 watts based on halogen equivalent to average of bulbs sold in program | AF6: 43 | AG6: Program Tracking Database | AI6: =cellformula(K6) -> =ROUND(($AF6-$AB6)/1000*$U6*$AS6*$BA6,4) | AJ6: =cellformula(R6) -> =ROUND(($AF6-$AB6)/1000*O6*$AW6*$BA6,4) | AK6: IL TRM v7 vol3 | AL6: 269, 273 | AM6: 2020-05-01 | AN6: 2021-12-31 | AS6: 1.051 | AT6: Waste Heat Factor, Energy | AU6: IL TRM v7 vol3 - blended interior/exterior value | AV6: 271 | AW6: 1.093 | AX6: Waste Heat Factor, Demand | AY6: IL TRM v7 vol3 - blended interior/exterior value | AZ6: 274 | BA6: 0.942 | BB6: ISR | BC6: Navigant MEEIA Cycle 2 Research
A7: Energy Saving Products | B7: Screw In - LEDs | C7: 2.4 | D7: All | E7: Lighting | G7: per lamp | H7: 1.45 | I7: IL TRM v7 vol3 | J7: 269 | K7: =ROUND(($AF7-$AB7)/1000*$U7*$AS7*$BA7,4) -> 36.4275 | L7: Calculated Value | N7: =K7/U7 -> 0.03345041322 | O7: 0.128 | P7: IL TRM v9 vol3, assumes interior | Q7: 278 | R7: =ROUND(($AF7-$AB7)/1000*O7*$AW7*$BA7,4) -> 0.0045 | S7: Calculated Value | U7: 1089 | V7: IL TRM v9 vol3 - Assumes interior installation for all standard bulbs. | W7: 275 | X7: 10 | Y7: IL TRM v9 vol3 | Z7: 272 | AA7: Screw In - LEDs | AB7: 9.5 | AC7: Program Tracking Data | AE7: 43 watts based on halogen equivalent to average of bulbs sold in program | AF7: 43 | AG7: Program Tracking Database | AI7: =cellformula(K7) -> =ROUND(($AF7-$AB7)/1000*$U7*$AS7*$BA7,4) | AJ7: =cellformula(R7) -> =ROUND(($AF7-$AB7)/1000*O7*$AW7*$BA7,4) | AK7: IL TRM v9 vol3 | AL7: 273, 278 | AM7: 2022-01-01 | AS7: 1.06 | AT7: Waste Heat Factor, Energy | AU7: IL TRM v9 vol3 - Assumes interior single family | AV7: 278 | AW7: 1.11 | AX7: Waste Heat Factor, Demand | AY7: IL TRM v7 vol3 - Assumes interior single family | AZ7: 274 | BA7: 0.942 | BB7: ISR | BC7: Navigant MEEIA Cycle 2 Research
A8: Energy Saving Products | B8: Screw In - Specialty LEDs | C8: 244.4 | D8: All | E8: Lighting | G8: per lamp | H8: 4 | I8: Evergy 2019/2020 historic specialty LED data analysis. | K8: =ROUND((AF8-AB8)/1000*U8*AS8*BA8,4) -> 44.701 | L8: Calculated Value | N8: =K8/U8 -> 0.04589425051 | O8: 0.128 | P8: IL TRM v7 vol3 - Weighted to program sales by bulb shape, and assumes exterior installation of all reflector bulbs over 900 lumens | Q8: 274 | R8: =ROUND(($AF8-$AB8)/1000*$O8*$AW8*$BA8,4) -> 0.0062 | S8: Calculated Value | U8: 974 | V8: IL TRM v7 vol3 - Weighted to program sales by bulb shape, and assumes exterior installation of all reflector bulbs over 900 lumens | X8: 10 | Y8: IL TRM v7 vol3 | Z8: 205 | AA8: Screw In - Specialty LEDs | AB8: 7.6 | AC8: Program Tracking Data | AE8: 54 watts weighted to program sales by bulb shape and lumens. | AF8: 54 | AG8: Program Tracking Data | AI8: =ROUND((AF8-AB8)/1000*U8*AS8*BA8,4) | AJ8: =ROUND(($AF8-$AB8)/1000*$O8*$AW8*$BA8,4) | AK8: IL TRM v7 vol3 | AL8: 250, 259 | AM8: 2021-01-01 | AN8: 2021-12-31 | AS8: 1.05 | AT8: Waste Heat Factor, Energy | AU8: Program Tracking Data | AW8: 1.1 | AX8: Waste Heat Factor, Demand | AY8: Program Tracking Data | BA8: 0.942 | BB8: ISR | BC8: Navigant MEEIA Cycle 2 Research
A9: Energy Saving Products | B9: Screw In - Specialty LEDs | C9: 244.5 | D9: All | E9: Lighting | G9: per lamp | H9: 4 | I9: Evergy 2019/2020 historic specialty LED data analysis. | K9: =ROUND((AF9-AB9)/1000*U9*AS9*BA9,4) -> 44.701 | L9: Calculated Value | N9: 0.04589425051 | O9: 0.128 | P9: IL TRM v9 vol3 - Weighted to program sales by bulb shape, and assumes exterior installation of all reflector bulbs over 900 lumens | Q9: 254 | R9: =ROUND(($AF9-$AB9)/1000*$O9*$AW9*$BA9,4) -> 0.0062 | S9: Calculated Value | U9: 974 | V9: IL TRM v9 vol3 - Weighted to program sales by bulb shape, and assumes exterior installation of all reflector bulbs over 900 lumens | X9: 10 | Y9: IL TRM v9 vol3 | Z9: 254 | AA9: Screw In - Specialty LEDs | AB9: 7.6 | AC9: Program Tracking Data | AE9: 54 watts weighted to program sales by bulb shape and lumens. | AF9: 54 | AG9: Program Tracking Data | AI9: =ROUND((AF9-AB9)/1000*U9*AS9*BA9,4) | AJ9: =ROUND(($AF9-$AB9)/1000*$O9*$AW9*$BA9,4) | AK9: IL TRM v9 vol3 | AL9: 250, 259 | AM9: 2022-01-01 | AS9: 1.05 | AT9: Waste Heat Factor, Energy | AU9: IL TRM v9 vol3 - Weighted by measure type | AW9: 1.1 | AX9: Waste Heat Factor, Demand | AY9: IL TRM v9 vol3 - Weighted by measure type | BA9: 0.942 | BB9: ISR | BC9: Navigant MEEIA Cycle 2 Research
A10: Energy Saving Products, PAYS | B10: Screw In - Specialty LEDs (Outdoor) | C10: 597 | D10: Single Family | E10: Lighting | G10: per lamp | H10: 1.65 | I10: IL TRM v9 vol2 | J10: 501 | K10: =ROUND((AF10-AB10)/1000*U10*AS10*BA10,4) -> 118.904 | L10: Calculated Value | N10: =(AF10-AB10)/1000*AW10 -> 0.051 | O10: 0.273 | P10: IL TRM v9 vol2 - Exterior bulb | Q10: 254 | R10: =ROUND(($AF10-$AB10)/1000*$O10*$AW10*$BA10,4) -> 0.0131 | S10: Calculated Value | U10: 2475 | V10: IL TRM v9 vol3 (Exterior) | W10: 260 | X10: 10 | Y10: IL TRM v9 vol3 | Z10: 254 | AA10: LED (watts) | AB10: 14 | AC10: ADM Estimate | AE10: Incandescent/Halogen Bulb | AF10: 65 | AG10: IL TRM v9 vol3 | AH10: 257 | AI10: =ROUND((AF10-AB10)/1000*U10*AS10*BA10,4) | AJ10: =ROUND(($AF10-$AB10)/1000*$O10*$AW10*$BA10,4) | AK10: IL TRM v9 vol3 | AL10: 250, 259 | AM10: 2022-01-01 | AS10: 1 | AT10: Waste Heat Factor, Energy, Exterior | AU10: IL TRM v9 vol3 - Exterior | AW10: 1 | AX10: Waste Heat Factor, Demand | AY10: IL TRM v9 vol3 - Exterior | AZ10: 260 | BA10: 0.942 | BB10: ISR | BC10: Navigant MEEIA Cycle 2 Research
A11: Energy Saving Products | B11: Screw In - LEDs for SMB | C11: 604 | D11: SMB | E11: Lighting | G11: per lamp | H11: 1.45 | I11: IL TRM v7 vol3 | J11: 269 | K11: =ROUND(($AF11-$AB11)/1000*$U11*$AS11*$BA11,4) -> 137.4017 | L11: Calculated Value | N11: =K11/U11 -> 0.04449536917 | O11: 0.62 | P11: IL TRM v6 vol2 | Q11: 337-338 (portfolio weighted average) | R11: =ROUND(($AF11-$AB11)/1000*O11*$AW11*$BA11,4) -> 0.0262 | S11: Calculated Value | U11: 3088 | V11: IL TRM v6 vol2 | W11: 338 | X11: 8 | Y11: Calculated Value based on HOU and lifetime hours | AA11: Screw In - LEDs | AB11: 9.5 | AC11: Program Tracking Data | AE11: 43 watts based on halogen equivalent to average of bulbs sold in program | AF11: 43 | AG11: Program Tracking Database | AI11: =cellformula(K11) -> =ROUND(($AF11-$AB11)/1000*$U11*$AS11*$BA11,4) | AJ11: =cellformula(R11) -> =ROUND(($AF11-$AB11)/1000*O11*$AW11*$BA11,4) | AK11: IL TRM v6 vol2 | AL11: 364368 | AM11: 2022-01-01 | AS11: 1.41 | AT11: Waste Heat Factor, Energy | AU11: IL TRM v6 vol2 | AV11: 337-338 (portfolio weighted average) | AW11: 1.34 | AX11: Waste Heat Factor, Demand | AY11: IL TRM v6 vol2 | AZ11: 337-338 (portfolio weighted average) | BA11: 0.942 | BB11: ISR | BC11: Navigant MEEIA Cycle 2 Research
A12: Energy Saving Products | B12: Screw In - Specialty LEDs for SMB | C12: 605 | D12: SMB | E12: Lighting | G12: per lamp | H12: 4 | I12: Evergy 2019/2020 historic specialty LED data analysis. | K12: =ROUND((AF12-AB12)/1000*U12*AS12*BA12,4) -> 190.3116 | L12: Calculated Value | N12: =K12/U12 -> 0.06162940415 | O12: 0.62 | P12: IL TRM v6 vol2 | Q12: 337-338 (portfolio weighted average) | R12: =ROUND(($AF12-$AB12)/1000*$O12*$AW12*$BA12,4) -> 0.0363 | S12: Calculated Value | U12: 3088 | V12: IL TRM v6 vol2 | W12: 338 | X12: 8 | Y12: Calculated Value based on HOU and lifetime hours | AA12: Screw In - Specialty LEDs | AB12: 7.6 | AC12: Program Tracking Data | AE12: 54 watts weighted to program sales by bulb shape and lumens. | AF12: 54 | AG12: Program Tracking Data | AI12: =cellformula(K12) -> =ROUND((AF12-AB12)/1000*U12*AS12*BA12,4) | AJ12: =cellformula(R12) -> =ROUND(($AF12-$AB12)/1000*$O12*$AW12*$BA12,4) | AK12: IL TRM v6 vol2 | AL12: 364368 | AM12: 2022-01-01 | AS12: 1.41 | AT12: Waste Heat Factor Energy | AU12: IL TRM v6 vol2 | AV12: 337-338 (portfolio weighted average) | AW12: 1.34 | AX12: Waste Heat Factor, Demand | AY12: IL TRM v6 vol2 | AZ12: 337-338 (portfolio weighted average) | BA12: 0.942 | BB12: ISR | BC12: Navigant MEEIA Cycle 2 Research
A13: Energy Saving Products | B13: Dehumidifiers | C13: 270 | D13: All | E13: Misc | G13: per unit | H13: 60 | I13: IL TRM v6 vol3 | J13: 14 | K13: =ROUND(140,4) -> 140 | L13: Calculated Value | O13: 0.37 | P13: IL TRM v6 vol3 | Q13: 16 | R13: =ROUND(0.032,4) -> 0.032 | S13: Calculated Value | U13: 1632 | V13: IL TRM v6 vol3 | W13: 16 | X13: 12 | Y13: IL TRM v6 vol2 | Z13: 14 | AA13: Dehumidifier that meets ENERGY STAR criteria | AE13: Non-ENERGY STAR dehumidifier | AI13: =ROUND(140,4) | AJ13: =ROUND(0.032,4) | AK13: IL TRM v6 vol3 | AL13: 15,16 | AM13: 2020-01-01 | AN13: 2021-12-31
A14: Energy Saving Products | B14: Dehumidifiers | C14: 270.1 | D14: All | E14: Misc | G14: per unit | H14: 75 | I14: IL TRM v9 vol3 (assuming ENERGY STAR Most Efficient Unit) | J14: 17 | K14: =ROUND(140,4) -> 140 | L14: Calculated Value | O14: 0.37 | P14: IL TRM v9 vol3 | Q14: 16 | R14: =ROUND(0.032,4) -> 0.032 | S14: Calculated Value | U14: 1632 | V14: IL TRM v9 vol3 | W14: 18 | X14: 12 | Y14: IL TRM v9 vol3 | Z14: 16 | AA14: Dehumidifier that meets ENERGY STAR Most Efficient criteria | AE14: Non-ENERGY STAR dehumidifier | AI14: =ROUND(140,4) | AJ14: =ROUND(0.032,4) | AK14: IL TRM v9 vol3 | AL14: 17, 18 | AM14: 2022-01-01
A15: Energy Saving Products | B15: Room AC Units | C15: 271 | D15: All | E15: HVAC | G15: per unit | H15: 40 | I15: IL TRM v6 vol3 | J15: 34 | K15: =ROUND((AS15*AW15*((1/BA15)-(1/BE15)))/1000,4) -> 14.6387 | L15: Calculated Value | N15: =K15/U15 -> 0.03420257009 | O15: 0.3 | P15: IL TRM v6 vol3 | Q15: 34 | R15: =ROUND(AW15*(((1/(BA15*1.01))-(1/(BE15*1.01))))/1000*O15,4) -> 0.0102 | S15: Calculated Value | U15: 428 | V15: IL TRM v6 vol3 | W15: 35 | X15: 12 | Y15: IL TRM v6 vol3 | Z15: 34 | AA15: Room AC unit that meets ENERGY STAR criteria | AC15: IL TRM v6 vol3 | AD15: 33 | AE15: Non-ENERGY STAR room AC | AG15: IL TRM v6 vol3 | AH15: 34 | AI15: =ROUND((AS15*AW15*((1/BA15)-(1/BE15)))/1000,4) | AJ15: =ROUND(AW15*(((1/(BA15*1.01))-(1/(BE15*1.01))))/1000*O15,4) | AK15: IL TRM v6 vol3 | AL15: 34 | AM15: 2020-01-01 | AN15: 2021-12-31 | AS15: 428 | AT15: FLH_RoomAC | AU15: IL TRM v6 vol3 | AV15: 35 | AW15: 8500 | AX15: Btu/H | AY15: IL TRM v6 vol3 | AZ15: 35 | BA15: 10.9 | BB15: CEERbase | BC15: IL TRM v6 vol3 | BD15: 33 | BE15: 11.4 | BF15: CEERee | BG15: IL TRM v6 vol3 | BH15: 33
A16: Energy Saving Products | B16: Room AC Units | C16: 271.1 | D16: All | E16: HVAC | G16: per unit | H16: 40 | I16: IL TRM v9 vol3 | J16: 35 | K16: =ROUND((AS16*AW16*((1/BA16)-(1/BE16)))/1000,4) -> 30.5948 | L16: Calculated Value | N16: 0.07148317757 | O16: 0.3 | P16: IL TRM v9 vol3 | Q16: 37 | R16: =ROUND(AW16*(((1/(BA16*1.01))-(1/(BE16*1.01))))/1000*O16,4) -> 0.0212 | S16: Calculated Value | U16: 428 | X16: 12 | Y16: IL TRM v9 vol3 | Z16: 35 | AA16: Room AC unit that meets ENERGY STAR criteria | AC16: IL TRM v9 vol3 | AD16: 33 | AE16: Non-ENERGY STAR room AC | AI16: =ROUND((AS16*AW16*((1/BA16)-(1/BE16)))/1000,4) | AJ16: =ROUND(AW16*(((1/(BA16*1.01))-(1/(BE16*1.01))))/1000*O16,4) | AK16: IL TRM v9 vol3 | AL16: 35, 37 | AM16: 2022-01-01 | AS16: 428 | AT16: FLH_RoomAC | AU16: IL TRM v9 vol3 (Belleville) | AV16: 36 | AW16: 8500 | AX16: Btu/H | AY16: IL TRM v9 vol3 | AZ16: 36 | BA16: 10.9 | BB16: CEERbase | BC16: IL TRM v9 vol3 | BD16: 34 | BE16: 12 | BF16: CEERee | BG16: IL TRM v9 vol3 | BH16: 34
A17: Energy Saving Products | B17: Room Air Purifiers - CADR 51-100 | C17: 272 | D17: All | E17: Misc | G17: per unit | H17: 70 | I17: IL TRM v6 vol3 | J17: 5 | K17: =ROUND(AS17-AW17,4) -> 293 | L17: Calculated Value | N17: 0.05013689254 | O17: 0.667 | P17: IL TRM v6 vol3 | Q17: 6 | R17: =ROUND(K17/U17*O17,4) -> 0.0334 | S17: Calculated Value | U17: 5844 | V17: IL TRM v6 vol3 | W17: 6 | X17: 9 | Y17: IL TRM v6 vol3 | Z17: 5 | AA17: Air purifier that meets ENERGY STAR criteria | AE17: Non-ENERGY STAR air purifier | AI17: =ROUND(AS17-AW17,4) | AJ17: =ROUND(K17/U17*O17,4) | AK17: IL TRM v6 vol3 | AL17: 6 | AM17: 2020-01-01 | AN17: 2021-12-31 | AS17: 441 | AT17: Baseline Unit Energy Consumption | AU17: IL TRM v6 vol3 | AV17: 6 | AW17: 148 | AX17: Energy Star Unit Energy Consumption | AY17: IL TRM v6 vol3 | AZ17: 6
A18: Energy Saving Products | B18: Room Air Purifiers - CADR 30-99 | C18: 272.1 | D18: All | E18: Misc | G18: per unit | H18: 8.44 | I18: IL TRM v9 vol3 | J18: 7 | K18: =ROUND(39,4) -> 39 | L18: Calculated Value | N18: 0.006673511294 | O18: 0.667 | P18: IL TRM v9 vol3 | Q18: 7 | R18: 0.0045 | S18: Calculated Value | U18: 5844 | V18: IL TRM v9 vol3 | W18: 8 | X18: 9 | Y18: IL TRM v9 vol3 | Z18: 6 | AA18: Air purifier that meets ENERGY STAR criteria | AE18: Non-ENERGY STAR air purifier | AI18: =ROUND(39,4) | AJ18: =ROUND(K18/U18*O18,4) | AK18: IL TRM v9 vol3 | AL18: 7 | AM18: 2022-01-01
A19: Energy Saving Products | B19: Room Air Purifiers - CADR 101-150 | C19: 412 | D19: All | E19: Misc | G19: per unit | H19: 70 | I19: IL TRM v6 vol3 | J19: 5 | K19: 488 | L19: Calculated Value | N19: 0.08350444901 | O19: 0.667 | P19: IL TRM v6 vol3 | Q19: 6 | R19: 0.0557 | S19: Calculated Value | U19: 5844 | V19: IL TRM v6 vol3 | W19: 6 | X19: 9 | Y19: IL TRM v6 vol3 | Z19: 5 | AA19: Air purifier that meets ENERGY STAR criteria | AE19: Non-ENERGY STAR air purifier | AI19: =ROUND(AS19-AW19,4) | AJ19: =ROUND(K19/U19*O19,4) | AK19: IL TRM v6 vol3 | AL19: 6 | AM19: 2020-01-01 | AN19: 2021-12-31 | AS19: 733 | AT19: Baseline Unit Energy Consumption | AU19: IL TRM v6 vol3 | AV19: 6 | AW19: 245 | AX19: Energy Star Unit Energy Consumption | AY19: IL TRM v6 vol3 | AZ19: 6
A20: Energy Saving Products | B20: Room Air Purifiers - CADR 100-149 | C20: 412.1 | D20: All | E20: Misc | G20: per unit | H20: 22.33 | I20: IL TRM v9 vol3 | J20: 7 | K20: =ROUND(95,4) -> 95 | L20: Calculated Value | N20: 0.01625598905 | O20: 0.667 | P20: IL TRM v9 vol3 | Q20: 7 | R20: 0.0108 | S20: Calculated Value | U20: 5844 | V20: IL TRM v9 vol3 | W20: 8 | X20: 9 | Y20: IL TRM v9 vol3 | Z20: 6 | AA20: Air purifier that meets ENERGY STAR criteria | AE20: Non-ENERGY STAR air purifier | AI20: =ROUND(95,4) | AJ20: =ROUND(K20/U20*O20,4) | AK20: IL TRM v9 vol3 | AL20: 7 | AM20: 2022-01-01
A21: Energy Saving Products | B21: Room Air Purifiers - CADR 151-200 | C21: 413 | D21: All | E21: Misc | G21: per unit | H21: 70 | I21: IL TRM v6 vol3 | J21: 5 | K21: 683 | L21: Calculated Value | N21: 0.1168720055 | O21: 0.667 | P21: IL TRM v6 vol3 | Q21: 6 | R21: 0.078 | S21: Calculated Value | U21: 5844 | V21: IL TRM v6 vol3 | W21: 6 | X21: 9 | Y21: IL TRM v6 vol3 | Z21: 5 | AA21: Air purifier that meets ENERGY STAR criteria | AE21: Non-ENERGY STAR air purifier | AI21: =ROUND(AS21-AW21,4) | AJ21: =ROUND(K21/U21*O21,4) | AK21: IL TRM v6 vol3 | AL21: 6 | AM21: 2020-01-01 | AN21: 2021-12-31 | AS21: 1025 | AT21: Baseline Unit Energy Consumption | AU21: IL TRM v6 vol3 | AV21: 6 | AW21: 342 | AX21: Energy Star Unit Energy Consumption | AY21: IL TRM v6 vol3 | AZ21: 6
A22: Energy Saving Products | B22: Room Air Purifiers - CADR 150-199 | C22: 413.1 | D22: All | E22: Misc | G22: per unit | H22: 92.34 | I22: IL TRM v9 vol3 | J22: 7 | K22: =ROUND(173,4) -> 173 | L22: Calculated Value | N22: 0.02960301164 | O22: 0.667 | P22: IL TRM v9 vol3 | Q22: 7 | R22: 0.0197 | S22: Calculated Value | U22: 5844 | V22: IL TRM v9 vol3 | W22: 8 | X22: 9 | Y22: IL TRM v9 vol3 | Z22: 6 | AA22: Air purifier that meets ENERGY STAR criteria | AE22: Non-ENERGY STAR air purifier | AI22: =ROUND(173,4) | AJ22: =ROUND(K22/U22*O22,4) | AK22: IL TRM v9 vol3 | AL22: 7 | AM22: 2022-01-01
A23: Energy Saving Products | B23: Room Air Purifiers - CADR 201-250 | C23: 414 | D23: All | E23: Misc | G23: per unit | H23: 70 | I23: IL TRM v6 vol3 | J23: 5 | K23: 877 | L23: Calculated Value | N23: 0.1500684463 | O23: 0.667 | P23: IL TRM v6 vol3 | Q23: 6 | R23: 0.1001 | S23: Calculated Value | U23: 5844 | V23: IL TRM v6 vol3 | W23: 6 | X23: 9 | Y23: IL TRM v6 vol3 | Z23: 5 | AA23: Air purifier that meets ENERGY STAR criteria | AE23: Non-ENERGY STAR air purifier | AI23: =ROUND(AS23-AW23,4) | AJ23: =ROUND(K23/U23*O23,4) | AK23: IL TRM v6 vol3 | AL23: 6 | AM23: 2020-01-01 | AN23: 2021-12-31 | AS23: 1317 | AT23: Baseline Unit Energy Consumption | AU23: IL TRM v6 vol3 | AV23: 6 | AW23: 440 | AX23: Energy Star Unit Energy Consumption | AY23: IL TRM v6 vol3 | AZ23: 6
A24: Energy Saving Products | B24: Room Air Purifiers - CADR 200-249 | C24: 414.1 | D24: All | E24: Misc | G24: per unit | H24: 44.5 | I24: IL TRM v9 vol3 | J24: 7 | K24: 328 | L24: Calculated Value | N24: 0.05612594114 | O24: 0.667 | P24: IL TRM v9 vol3 | Q24: 7 | R24: 0.0374 | S24: Calculated Value | U24: 5844 | V24: IL TRM v9 vol3 | W24: 8 | X24: 9 | Y24: IL TRM v9 vol3 | Z24: 6 | AA24: Air purifier that meets ENERGY STAR criteria | AE24: Non-ENERGY STAR air purifier | AI24: 328 | AJ24: =ROUND(K24/U24*O24,4) | AK24: IL TRM v9 vol3 | AL24: 7 | AM24: 2022-01-01
A25: Energy Saving Products | B25: Room Air Purifiers - CADR Over 250 | C25: 415 | D25: All | E25: Misc | G25: per unit | H25: 70 | I25: IL TRM v6 vol3 | J25: 5 | K25: 1169 | L25: Calculated Value | N25: 0.2000342231 | O25: 0.667 | P25: IL TRM v6 vol3 | Q25: 6 | R25: 0.1334 | S25: Calculated Value | U25: 5844 | V25: IL TRM v6 vol3 | W25: 6 | X25: 9 | Y25: IL TRM v6 vol3 | Z25: 5 | AA25: Air purifier that meets ENERGY STAR criteria | AE25: Non-ENERGY STAR air purifier | AI25: =ROUND(AS25-AW25,4) | AJ25: =ROUND(K25/U25*O25,4) | AK25: IL TRM v6 vol3 | AL25: 6 | AM25: 2020-01-01 | AN25: 2021-12-31 | AS25: 1755 | AT25: Baseline Unit Energy Consumption | AU25: IL TRM v6 vol3 | AV25: 6 | AW25: 586 | AX25: Energy Star Unit Energy Consumption | AY25: IL TRM v6 vol3 | AZ25: 6
A26: Energy Saving Products | B26: Room Air Purifiers - CADR Over 250 | C26: 415.1 | D26: All | E26: Misc | G26: per unit | H26: 44.5 | I26: IL TRM v9 vol3 | J26: 7 | K26: 328 | L26: Calculated Value | N26: 0.05612594114 | O26: 0.667 | P26: IL TRM v9 vol3 | Q26: 7 | R26: 0.0374 | S26: Calculated Value | U26: 5844 | V26: IL TRM v9 vol3 | W26: 8 | X26: 9 | Y26: IL TRM v9 vol3 | Z26: 6 | AA26: Air purifier that meets ENERGY STAR criteria | AE26: Non-ENERGY STAR air purifier | AI26: 328 | AJ26: =ROUND(K26/U26*O26,4) | AK26: IL TRM v9 vol3 | AL26: 7 | AM26: 2022-01-01
A27: Energy Saving Products | B27: Smart Thermostat - ASHP heating / cooling SF | C27: 273 | D27: Single Family | E27: HVAC | G27: per unit | H27: 175 | I27: IL TRM v6 vol3 | J27: 160 | K27: =ROUND((AS27*AW27*BA27*BE27*BI27)+(BM27*((BQ27*BU27*(1/BY27))/1000)*CC27*BI27),4) -> 862.7238 | L27: Calculated Value | O27: 0.34 | P27: Calculated Value | R27: =ROUND(BM27*(CC27*BU27*(1/CG27))/1000*BI27*O27,4) -> 0.093 | S27: Calculated Value | X27: 10 | Y27: IL TRM v6 vol3 | Z27: 160 | AA27: Smart thermostat | AC27: IL TRM v6 vol3 | AD27: 160 | AE27: Actual thermostat replaced by smart thermostat, or 44% programmable and 56% manual thermostats may be assumed | AG27: IL TRM v6 vol3 | AH27: 160 | AI27: =ROUND((AS27*AW27*BA27*BE27*BI27)+(BM27*((BQ27*BU27*(1/BY27))/1000)*CC27*BI27),4) | AJ27: =ROUND(BM27*(CC27*BU27*(1/CG27))/1000*BI27*O27,4) | AK27: IL TRM v6 vol3 | AL27: 161, 164 | AM27: 2020-01-01 | AN27: 2021-12-31 | AS27: 1 | AT27: %ElectricHeat | AU27: IL TRM v6 vol3 | AV27: 161 | AW27: 8072 | AX27: Elec_Heating_Consumption | AY27: IL TRM v6 vol3 | AZ27: 161 | BA27: 0.074 | BB27: Heating_Reduction | BC27: IL TRM v6 vol3 | BD27: 162 | BE27: 1 | BF27: HF | BG27: IL TRM v6 vol3 | BH27: 162 | BI27: 1 | BJ27: Eff_ISR | BK27: IL TRM v6 vol3 | BL27: 162 | BM27: 0.87 | BN27: %AC | BO27: IL TRM v6 vol3 | BP27: 163 | BQ27: 1035 | BR27: FLH | BS27: IL TRM v6 vol3 | BT27: 163 | BU27: 33600 | BV27: BTU/hr | BW27: IL TRM v6 vol3 | BX27: 163 | BY27: 9.12 | BZ27: SEER | CA27: IL TRM v6 vol3 | CB27: 163 | CC27: 0.08 | CD27: Cooling_Reduction | CE27: IL TRM v6 vol3 | CF27: 163 | CG27: 8.55 | CH27: EER | CI27: IL TRM v6 vol3 | CJ27: 164
A28: Energy Saving Products, PAYS | B28: Smart Thermostat - ASHP heating / cooling SF | C28: 273.1 | D28: Single Family | E28: HVAC | G28: per unit | H28: 125 | I28: IL TRM v9 vol3 | J28: 175 | K28: 844.0164 | L28: Calculated Value | O28: 0.34 | P28: IL TRM v9 vol3 | Q28: 175 | R28: 0.0823 | S28: Calculated Value | X28: 11 | Y28: IL TRM v9 vol3 | Z28: 175 | AA28: Smart thermostat | AC28: IL TRM v9 vol3 | AD28: 175 | AE28: Actual thermostat replaced by smart thermostat, or 44% programmable and 56% manual thermostats may be assumed | AG28: IL TRM v9 vol3 | AH28: 175 | AI28: =ROUND((AS28*AW28*BA28*BE28*BI28)+(BM28*((BQ28*BU28*(1/BY28))/1000)*CC28*BI28),4) | AJ28: =ROUND(BM28*(CC28*BU28*(1/CG28))/1000*BI28*O28,4) | AK28: IL TRM v9 vol3 | AL28: 176, 180 | AM28: 2022-01-01 | AS28: 1 | AT28: %ElectricHeat | AU28: IL TRM v9 vol3 | AV28: 176 | AW28: 8074 | AX28: Elec_Heating_Consumption (Belleview) | AY28: IL TRM v9 vol3 | AZ28: 176 | BA28: 0.086 | BB28: Heating_Reduction | BC28: IL TRM v9 vol3 | BD28: 177 | BE28: 1 | BF28: HF | BG28: IL TRM v9 vol3 | BH28: 177 | BI28: 0.9 | BJ28: Eff_ISR | BK28: IL TRM v9 vol3 (Not DI) | BL28: 177 | BM28: 1 | BN28: %AC | BO28: IL TRM v9 vol3 | BP28: 178 | BQ28: 1035 | BR28: FLH | BS28: IL TRM v9 vol3 (Belleview) | BT28: 178 | BU28: 33600 | BV28: BTU/hr | BW28: IL TRM v9 vol3 | BX28: 179 | BY28: 12 | BZ28: SEER | CA28: IL TRM v9 vol3 | CB28: 179 | CC28: 0.084 | CD28: Cooling_Reduction | CE28: IL TRM v9 vol3 | CF28: 179 | CG28: 10.5 | CH28: EER | CI28: IL TRM v9 vol3 | CJ28: 180
A29: Energy Saving Products | B29: Smart Thermostat - ASHP heating / cooling MF | C29: 416 | D29: Multi-Family | E29: HVAC | G29: per unit | H29: 175 | I29: IL TRM v6 vol3 | J29: 160 | K29: 515.7074 | L29: Calculated Value | O29: 0.34 | P29: IL TRM v6 vol3 | Q29: 164 | R29: 0.0492 | S29: Calculated Value | X29: 10 | Y29: IL TRM v6 vol3 | Z29: 160 | AA29: Smart thermostat | AC29: IL TRM v6 vol3 | AD29: 160 | AE29: Actual thermostat replaced by smart thermostat, or 44% programmable and 56% manual thermostats may be assumed | AG29: IL TRM v6 vol3 | AH29: 160 | AI29: =ROUND((AS29*AW29*BA29*BE29*BI29)+(BM29*((BQ29*BU29*(1/BY29))/1000)*CC29*BI29),4) | AJ29: =ROUND(BM29*(CC29*BU29*(1/CG29))/1000*BI29*O29,4) | AK29: IL TRM v6 vol3 | AL29: 161, 164 | AM29: 2020-01-01 | AN29: 2021-12-31 | AS29: 1 | AT29: %ElectricHeat | AU29: IL TRM v6 vol3 | AV29: 161 | AW29: 8072 | AX29: Elec_Heating_Consumption | AY29: IL TRM v6 vol3 | AZ29: 161 | BA29: 0.074 | BB29: Heating_Reduction | BC29: IL TRM v6 vol3 | BD29: 162 | BE29: 0.65 | BF29: HF | BG29: IL TRM v6 vol3 | BH29: 162 | BI29: 1 | BJ29: Eff_ISR | BK29: IL TRM v6 vol3 | BL29: 162 | BM29: 0.46 | BN29: %AC | BO29: IL TRM v6 vol3 | BP29: 163 | BQ29: 940 | BR29: FLH | BS29: IL TRM v6 vol3 | BT29: 163 | BU29: 33600 | BV29: BTU/hr | BW29: IL TRM v6 vol3 | BX29: 163 | BY29: 9.12 | BZ29: SEER | CA29: IL TRM v6 vol3 | CB29: 163 | CC29: 0.08 | CD29: Cooling_Reduction | CE29: IL TRM v6 vol3 | CF29: 163 | CG29: 8.55 | CH29: EER | CI29: IL TRM v6 vol3 | CJ29: 164
A30: Energy Saving Products, PAYS | B30: Smart Thermostat - ASHP heating / cooling MF | C30: 416.1 | D30: Multi-Family | E30: HVAC | G30: per unit | H30: 125 | I30: IL TRM v9 vol3 | J30: 175 | K30: 605.1821 | L30: Calculated Value | O30: 0.34 | P30: IL TRM v9 vol3 | Q30: 175 | R30: 0.0823 | S30: Calculated Value | X30: 11 | Y30: IL TRM v9 vol3 | Z30: 175 | AA30: Smart thermostat | AC30: IL TRM v9 vol3 | AD30: 175 | AE30: Actual thermostat replaced by smart thermostat, or 44% programmable and 56% manual thermostats may be assumed | AG30: IL TRM v9 vol3 | AH30: 175 | AI30: =ROUND((AS30*AW30*BA30*BE30*BI30)+(BM30*((BQ30*BU30*(1/BY30))/1000)*CC30*BI30),4) | AJ30: =ROUND(BM30*(CC30*BU30*(1/CG30))/1000*BI30*O30,4) | AK30: IL TRM v9 vol3 | AL30: 176, 180 | AM30: 2022-01-01 | AS30: 1 | AT30: %ElectricHeat | AU30: IL TRM v9 vol3 | AV30: 176 | AW30: 8074 | AX30: Elec_Heating_Consumption (Belleview) | AY30: IL TRM v9 vol3 | AZ30: 176 | BA30: 0.086 | BB30: Heating_Reduction | BC30: IL TRM v9 vol3 | BD30: 177 | BE30: 0.65 | BF30: HF | BG30: IL TRM v9 vol3 | BH30: 177 | BI30: 0.9 | BJ30: Eff_ISR | BK30: IL TRM v9 vol3 (Not DI) | BL30: 177 | BM30: 1 | BN30: %AC | BO30: IL TRM v9 vol3 | BP30: 178 | BQ30: 940 | BR30: FLH | BS30: IL TRM v9 vol3 (Belleview) | BT30: 178 | BU30: 33600 | BV30: BTU/hr | BW30: IL TRM v9 vol3 | BX30: 179 | BY30: 12 | BZ30: SEER | CA30: IL TRM v9 vol3 | CB30: 179 | CC30: 0.084 | CD30: Cooling_Reduction | CE30: IL TRM v9 vol3 | CF30: 179 | CG30: 10.5 | CH30: EER | CI30: IL TRM v9 vol3 | CJ30: 180
A31: Energy Saving Products | B31: Smart Thermostat - electric furnace heating / CAC SF | C31: 417 | D31: Single Family | E31: HVAC | G31: per unit | H31: 175 | I31: IL TRM v6 vol3 | J31: 160 | K31: 1296.871 | L31: Calculated Value | O31: 0.34 | P31: IL TRM v6 vol3 | Q31: 164 | R31: 0.0976 | S31: Calculated Value | X31: 10 | Y31: IL TRM v6 vol3 | Z31: 160 | AA31: Smart thermostat | AC31: IL TRM v6 vol3 | AD31: 160 | AE31: Actual thermostat replaced by smart thermostat, or 44% programmable and 56% manual thermostats may be assumed | AG31: IL TRM v6 vol3 | AH31: 160 | AI31: =ROUND((AS31*AW31*BA31*BE31*BI31)+(BM31*((BQ31*BU31*(1/BY31))/1000)*CC31*BI31),4) | AJ31: =ROUND(BM31*(CC31*BU31*(1/CG31))/1000*BI31*O31,4) | AK31: IL TRM v6 vol3 | AL31: 161, 164 | AM31: 2020-01-01 | AN31: 2021-12-31 | AS31: 1 | AT31: %ElectricHeat | AU31: IL TRM v6 vol3 | AV31: 161 | AW31: 13722 | AX31: Elec_Heating_Consumption | AY31: IL TRM v6 vol3 | AZ31: 161 | BA31: 0.074 | BB31: Heating_Reduction | BC31: IL TRM v6 vol3 | BD31: 162 | BE31: 1 | BF31: HF | BG31: IL TRM v6 vol3 | BH31: 162 | BI31: 1 | BJ31: Eff_ISR | BK31: IL TRM v6 vol3 | BL31: 162 | BM31: 0.87 | BN31: %AC | BO31: IL TRM v6 vol3 | BP31: 163 | BQ31: 1035 | BR31: FLH | BS31: IL TRM v6 vol3 | BT31: 163 | BU31: 33600 | BV31: BTU/hr | BW31: IL TRM v6 vol3 | BX31: 163 | BY31: 8.6 | BZ31: SEER | CA31: IL TRM v6 vol3 | CB31: 163 | CC31: 0.08 | CD31: Cooling_Reduction | CE31: IL TRM v6 vol3 | CF31: 163 | CG31: 8.15 | CH31: EER | CI31: IL TRM v6 vol3 | CJ31: 164
A32: Energy Saving Products, PAYS | B32: Smart Thermostat - electric furnace heating / CAC SF | C32: 417.1 | D32: Single Family | E32: HVAC | G32: per unit | H32: 125 | I32: IL TRM v9 vol3 | J32: 175 | K32: 1281.4812 | L32: Calculated Value | O32: 0.34 | P32: IL TRM v9 vol3 | Q32: 175 | R32: 0.0823 | S32: Calculated Value | X32: 11 | Y32: IL TRM v9 vol3 | Z32: 175 | AA32: Smart thermostat | AC32: IL TRM v9 vol3 | AD32: 175 | AE32: Actual thermostat replaced by smart thermostat, or 44% programmable and 56% manual thermostats may be assumed | AG32: IL TRM v9 vol3 | AH32: 175 | AI32: =ROUND((AS32*AW32*BA32*BE32*BI32)+(BM32*((BQ32*BU32*(1/BY32))/1000)*CC32*BI32),4) | AJ32: =ROUND(BM32*(CC32*BU32*(1/CG32))/1000*BI32*O32,4) | AK32: IL TRM v9 vol3 | AL32: 176, 180 | AM32: 2022-01-01 | AS32: 1 | AT32: %ElectricHeat | AU32: IL TRM v9 vol3 | AV32: 176 | AW32: 13726 | AX32: Elec_Heating_Consumption (Belleview) | AY32: IL TRM v9 vol3 | AZ32: 176 | BA32: 0.086 | BB32: Heating_Reduction | BC32: IL TRM v9 vol3 | BD32: 177 | BE32: 1 | BF32: HF | BG32: IL TRM v9 vol3 | BH32: 177 | BI32: 0.9 | BJ32: Eff_ISR | BK32: IL TRM v9 vol3 (Not DI) | BL32: 177 | BM32: 1 | BN32: %AC | BO32: IL TRM v9 vol3 | BP32: 178 | BQ32: 1035 | BR32: FLH | BS32: IL TRM v9 vol3 (Belleview) | BT32: 178 | BU32: 33600 | BV32: BTU/hr | BW32: IL TRM v9 vol3 | BX32: 179 | BY32: 12 | BZ32: SEER | CA32: IL TRM v9 vol3 | CB32: 179 | CC32: 0.084 | CD32: Cooling_Reduction | CE32: IL TRM v9 vol3 | CF32: 179 | CG32: 10.5 | CH32: EER | CI32: IL TRM v9 vol3 | CJ32: 180
A33: Energy Saving Products | B33: Smart Thermostat - electric furnace heating / CAC MF | C33: 418 | D33: Multi-Family | E33: HVAC | G33: per unit | H33: 175 | I33: IL TRM v6 vol3 | J33: 160 | K33: 795.1783 | L33: Calculated Value | O33: 0.34 | P33: IL TRM v6 vol3 | Q33: 164 | R33: 0.0516 | S33: Calculated Value | X33: 10 | Y33: IL TRM v6 vol3 | Z33: 160 | AA33: Smart thermostat | AC33: IL TRM v6 vol3 | AD33: 160 | AE33: Actual thermostat replaced by smart thermostat, or 44% programmable and 56% manual thermostats may be assumed | AG33: IL TRM v6 vol3 | AH33: 160 | AI33: =ROUND((AS33*AW33*BA33*BE33*BI33)+(BM33*((BQ33*BU33*(1/BY33))/1000)*CC33*BI33),4) | AJ33: =ROUND(BM33*(CC33*BU33*(1/CG33))/1000*BI33*O33,4) | AK33: IL TRM v6 vol3 | AL33: 161, 164 | AM33: 2020-01-01 | AN33: 2021-12-31 | AS33: 1 | AT33: %ElectricHeat | AU33: IL TRM v6 vol3 | AV33: 161 | AW33: 13722 | AX33: Elec_Heating_Consumption | AY33: IL TRM v6 vol3 | AZ33: 161 | BA33: 0.074 | BB33: Heating_Reduction | BC33: IL TRM v6 vol3 | BD33: 162 | BE33: 0.65 | BF33: HF | BG33: IL TRM v6 vol3 | BH33: 162 | BI33: 1 | BJ33: Eff_ISR | BK33: IL TRM v6 vol3 | BL33: 162 | BM33: 0.46 | BN33: %AC | BO33: IL TRM v6 vol3 | BP33: 163 | BQ33: 940 | BR33: FLH | BS33: IL TRM v6 vol3 | BT33: 163 | BU33: 33600 | BV33: BTU/hr | BW33: IL TRM v6 vol3 | BX33: 163 | BY33: 8.6 | BZ33: SEER | CA33: IL TRM v6 vol3 | CB33: 163 | CC33: 0.08 | CD33: Cooling_Reduction | CE33: IL TRM v6 vol3 | CF33: 163 | CG33: 8.15 | CH33: EER | CI33: IL TRM v6 vol3 | CJ33: 164
A34: Energy Saving Products, PAYS | B34: Smart Thermostat - electric furnace heating / CAC MF | C34: 418.1 | D34: Multi-Family | E34: HVAC | G34: per unit | H34: 125 | I34: IL TRM v9 vol3 | J34: 175 | K34: 889.5343 | L34: Calculated Value | O34: 0.34 | P34: IL TRM v9 vol3 | Q34: 175 | R34: 0.0823 | S34: Calculated Value | X34: 11 | Y34: IL TRM v9 vol3 | Z34: 175 | AA34: Smart thermostat | AC34: IL TRM v9 vol3 | AD34: 175 | AE34: Actual thermostat replaced by smart thermostat, or 44% programmable and 56% manual thermostats may be assumed | AG34: IL TRM v9 vol3 | AH34: 175 | AI34: =ROUND((AS34*AW34*BA34*BE34*BI34)+(BM34*((BQ34*BU34*(1/BY34))/1000)*CC34*BI34),4) | AJ34: =ROUND(BM34*(CC34*BU34*(1/CG34))/1000*BI34*O34,4) | AK34: IL TRM v9 vol3 | AL34: 176, 180 | AM34: 2022-01-01 | AS34: 1 | AT34: %ElectricHeat | AU34: IL TRM v9 vol3 | AV34: 176 | AW34: 13726 | AX34: Elec_Heating_Consumption (Belleview) | AY34: IL TRM v9 vol3 | AZ34: 176 | BA34: 0.086 | BB34: Heating_Reduction | BC34: IL TRM v9 vol3 | BD34: 177 | BE34: 0.65 | BF34: HF | BG34: IL TRM v9 vol3 | BH34: 177 | BI34: 0.9 | BJ34: Eff_ISR | BK34: IL TRM v9 vol3 (Not DI) | BL34: 177 | BM34: 1 | BN34: %AC | BO34: IL TRM v9 vol3 | BP34: 178 | BQ34: 940 | BR34: FLH | BS34: IL TRM v9 vol3 (Belleview) | BT34: 178 | BU34: 33600 | BV34: BTU/hr | BW34: IL TRM v9 vol3 | BX34: 179 | BY34: 12 | BZ34: SEER | CA34: IL TRM v9 vol3 | CB34: 179 | CC34: 0.084 | CD34: Cooling_Reduction | CE34: IL TRM v9 vol3 | CF34: 179 | CG34: 10.5 | CH34: EER | CI34: IL TRM v9 vol3 | CJ34: 180
A35: Energy Saving Products | B35: Smart Thermostat - Gas Heated / CAC SF | C35: 419 | D35: Single Family | E35: HVAC | G35: per unit | H35: 175 | I35: IL TRM v6 vol3 | J35: 160 | K35: =ROUND((AS35*AW35*BA35*BE35*BI35)+(CO35*CK35*29.3)+(BM35*((BQ35*BU35*(1/BY35))/1000)*CC35*BI35),4) -> 326.6491 | L35: Calculated Value | O35: 0.34 | P35: Calculated Value | R35: 0.0976 | S35: Calculated Value | X35: 10 | Y35: IL TRM v6 vol3 | Z35: 160 | AA35: Smart thermostat | AC35: IL TRM v6 vol3 | AD35: 160 | AE35: Actual thermostat replaced by smart thermostat, or 44% programmable and 56% manual thermostats may be assumed | AG35: IL TRM v6 vol3 | AH35: 160 | AI35: =ROUND((AS35*AW35*BA35*BE35*BI35)+(CO35*CK35*29.3)+(BM35*((BQ35*BU35*(1/BY35))/1000)*CC35*BI35),4) | AJ35: =ROUND(BM35*(CC35*BU35*(1/CG35))/1000*BI35*O35,4) | AK35: IL TRM v6 vol3 | AL35: 161, 164 | AM35: 2020-01-01 | AN35: 2021-12-31 | AS35: 0 | AT35: %ElectricHeat | AU35: IL TRM v6 vol3 | AV35: 161 | BA35: 0.074 | BB35: Heating_Reduction | BC35: IL TRM v6 vol3 | BD35: 162 | BE35: 1 | BF35: HF | BG35: IL TRM v6 vol3 | BH35: 162 | BI35: 1 | BJ35: Eff_ISR | BK35: IL TRM v6 vol3 | BL35: 162 | BM35: 0.87 | BN35: %AC | BO35: IL TRM v6 vol3 | BP35: 163 | BQ35: 1035 | BR35: FLH | BS35: IL TRM v6 vol3 | BT35: 163 | BU35: 33600 | BV35: BTU/hr | BW35: IL TRM v6 vol3 | BX35: 163 | BY35: 8.6 | BZ35: SEER | CA35: IL TRM v6 vol3 | CB35: 163 | CC35: 0.08 | CD35: Cooling_Reduction | CE35: IL TRM v6 vol3 | CF35: 163 | CG35: 8.15 | CH35: EER | CI35: IL TRM v6 vol3 | CJ35: 164 | CK35: 0.0314 | CL35: Fe | CM35: IL TRM v6 vol3 | CN35: 162 | CO35: =CS35*CW35*BA35*BE35*BI35 -> 49.136 | CP35: Therms difference | CQ35: IL TRM v6 vol3 | CR35: Calculated | CS35: 1 | CT35: %FossilHeat | CU35: IL TRM v6 vol3 | CV35: 165 | CW35: 664 | CX35: Gas Heating Consumption | CY35: IL TRM v6 vol3 | CZ35: 165
A36: Energy Saving Products, PAYS | B36: Smart Thermostat - Gas Heated / CAC SF | C36: 419.1 | D36: Single Family | E36: HVAC | G36: per unit | H36: 125 | I36: IL TRM v9 vol3 | J36: 175 | K36: =ROUND((AS36*AW36*BA36*BE36*BI36)+(CO36*CK36*29.3)+(BM36*((BQ36*BU36*(1/BY36))/1000)*CC36*BI36),4) -> 266.3719 | L36: Calculated Value | O36: 0.34 | P36: IL TRM v9 vol3 | Q36: 175 | R36: 0.0823 | S36: Calculated Value | X36: 11 | Y36: IL TRM v9 vol3 | Z36: 175 | AA36: Smart thermostat | AC36: IL TRM v9 vol3 | AD36: 175 | AE36: Actual thermostat replaced by smart thermostat, or 44% programmable and 56% manual thermostats may be assumed | AG36: IL TRM v9 vol3 | AH36: 175 | AI36: =ROUND((AS36*AW36*BA36*BE36*BI36)+(CO36*CK36*29.3)+(BM36*((BQ36*BU36*(1/BY36))/1000)*CC36*BI36),4) | AJ36: =ROUND(BM36*(CC36*BU36*(1/CG36))/1000*BI36*O36,4) | AK36: IL TRM v9 vol3 | AL36: 176, 180 | AM36: 2022-01-01 | AS36: 0 | AT36: %ElectricHeat | AU36: IL TRM v9 vol3 | AV36: 176 | BA36: 0.086 | BB36: Heating_Reduction | BC36: IL TRM v9 vol3 | BD36: 177 | BE36: 1 | BF36: HF | BG36: IL TRM v9 vol3 | BH36: 177 | BI36: 0.9 | BJ36: Eff_ISR | BK36: IL TRM v9 vol3 (Not DI) | BL36: 177 | BM36: 1 | BN36: %AC | BO36: IL TRM v9 vol3 | BP36: 178 | BQ36: 1035 | BR36: FLH | BS36: IL TRM v9 vol3 (Belleview) | BT36: 178 | BU36: 33600 | BV36: BTU/hr | BW36: IL TRM v9 vol3 | BX36: 179 | BY36: 12 | BZ36: SEER | CA36: IL TRM v9 vol3 | CB36: 179 | CC36: 0.084 | CD36: Cooling_Reduction | CE36: IL TRM v9 vol3 | CF36: 179 | CG36: 10.5 | CH36: EER | CI36: IL TRM v9 vol3 | CJ36: 180 | CK36: 0.0314 | CL36: Fe | CM36: IL TRM v9 vol3 | CN36: 178 | CO36: =CS36*CW36*BA36*BE36*BI36 -> 51.3936 | CP36: Therms difference | CQ36: IL TRM v9 vol3 | CR36: Calculated | CS36: 1 | CT36: %FossilHeat | CU36: IL TRM v9 vol3 | CV36: 181 | CW36: 664 | CX36: Gas Heating Consumption | CY36: IL TRM v9 vol3 (Belleview) | CZ36: 181
A37: Energy Saving Products | B37: Smart Thermostat - Gas Heated / CAC MF | C37: 420 | D37: Multi-Family | E37: HVAC | G37: per unit | H37: 175 | I37: IL TRM v6 vol3 | J37: 160 | K37: =ROUND((AS37*AW37*BA37*BE37*BI37)+(CO37*CK37*29.3)+(BM37*((BQ37*BU37*(1/BY37))/1000)*CC37*BI37),4) -> 164.5341 | L37: Calculated Value | O37: 0.34 | P37: Calculated Value | R37: 0.0516 | S37: Calculated Value | X37: 10 | Y37: IL TRM v6 vol3 | Z37: 160 | AA37: Smart thermostat | AC37: IL TRM v6 vol3 | AD37: 160 | AE37: Actual thermostat replaced by smart thermostat, or 44% programmable and 56% manual thermostats may be assumed | AG37: IL TRM v6 vol3 | AH37: 160 | AI37: =ROUND((AS37*AW37*BA37*BE37*BI37)+(CO37*CK37*29.3)+(BM37*((BQ37*BU37*(1/BY37))/1000)*CC37*BI37),4) | AJ37: =ROUND(BM37*(CC37*BU37*(1/CG37))/1000*BI37*O37,4) | AK37: IL TRM v6 vol3 | AL37: 161, 164 | AM37: 2020-01-01 | AN37: 2021-12-31 | AS37: 0 | AT37: %ElectricHeat | AU37: IL TRM v6 vol3 | AV37: 161 | BA37: 0.074 | BB37: Heating_Reduction | BC37: IL TRM v6 vol3 | BD37: 162 | BE37: 0.65 | BF37: HF | BG37: IL TRM v6 vol3 | BH37: 162 | BI37: 1 | BJ37: Eff_ISR | BK37: IL TRM v6 vol3 | BL37: 162 | BM37: 0.46 | BN37: %AC | BO37: IL TRM v6 vol3 | BP37: 163 | BQ37: 940 | BR37: FLH | BS37: IL TRM v6 vol3 | BT37: 163 | BU37: 33600 | BV37: BTU/hr | BW37: IL TRM v6 vol3 | BX37: 163 | BY37: 8.6 | BZ37: SEER | CA37: IL TRM v6 vol3 | CB37: 163 | CC37: 0.08 | CD37: Cooling_Reduction | CE37: IL TRM v6 vol3 | CF37: 163 | CG37: 8.15 | CH37: EER | CI37: IL TRM v6 vol3 | CJ37: 164 | CK37: 0.0314 | CL37: Fe | CM37: IL TRM v6 vol3 | CN37: 162 | CO37: =CS37*CW37*BA37*BE37*BI37 -> 31.9384 | CP37: Therms difference | CQ37: IL TRM v6 vol3 | CR37: Calculated | CS37: 1 | CT37: %FossilHeat | CU37: IL TRM v6 vol3 | CV37: 165 | CW37: 664 | CX37: Gas Heating Consumption | CY37: IL TRM v6 vol3 | CZ37: 165
A38: Energy Saving Products, PAYS | B38: Smart Thermostat - Gas Heated / CAC MF | C38: 420.1 | D38: Multi-Family | E38: HVAC | G38: per unit | H38: 175 | I38: IL TRM v6 vol3 | J38: 160 | K38: =ROUND((AS38*AW38*BA38*BE38*BI38)+(CO38*CK38*29.3)+(BM38*((BQ38*BU38*(1/BY38))/1000)*CC38*BI38),4) -> 229.7132 | L38: Calculated Value | O38: 0.34 | P38: IL TRM v9 vol3 | Q38: 175 | R38: 0.0823 | S38: Calculated Value | X38: 11 | Y38: IL TRM v9 vol3 | Z38: 175 | AA38: Smart thermostat | AC38: IL TRM v9 vol3 | AD38: 175 | AE38: Actual thermostat replaced by smart thermostat, or 44% programmable and 56% manual thermostats may be assumed | AG38: IL TRM v9 vol3 | AH38: 175 | AI38: =ROUND((AS38*AW38*BA38*BE38*BI38)+(CO38*CK38*29.3)+(BM38*((BQ38*BU38*(1/BY38))/1000)*CC38*BI38),4) | AJ38: =ROUND(BM38*(CC38*BU38*(1/CG38))/1000*BI38*O38,4) | AK38: IL TRM v9 vol3 | AL38: 176, 180 | AM38: 2022-01-01 | AS38: 0 | AT38: %ElectricHeat | AU38: IL TRM v9 vol3 | AV38: 176 | BA38: 0.086 | BB38: Heating_Reduction | BC38: IL TRM v9 vol3 | BD38: 177 | BE38: 0.65 | BF38: HF | BG38: IL TRM v9 vol3 | BH38: 177 | BI38: 0.9 | BJ38: Eff_ISR | BK38: IL TRM v9 vol3 (Not DI) | BL38: 177 | BM38: 1 | BN38: %AC | BO38: IL TRM v9 vol3 | BP38: 178 | BQ38: 940 | BR38: FLH | BS38: IL TRM v9 vol3 (Belleview) | BT38: 178 | BU38: 33600 | BV38: BTU/hr | BW38: IL TRM v9 vol3 | BX38: 179 | BY38: 12 | BZ38: SEER | CA38: IL TRM v9 vol3 | CB38: 179 | CC38: 0.084 | CD38: Cooling_Reduction | CE38: IL TRM v9 vol3 | CF38: 179 | CG38: 10.5 | CH38: EER | CI38: IL TRM v9 vol3 | CJ38: 180 | CK38: 0.0314 | CL38: Fe | CM38: IL TRM v9 vol3 | CN38: 178 | CO38: =CS38*CW38*BA38*BE38*BI38 -> 33.40584 | CP38: Therms difference | CQ38: IL TRM v9 vol3 | CR38: Calculated | CS38: 1 | CT38: %FossilHeat | CU38: IL TRM v9 vol3 | CV38: 181 | CW38: 664 | CX38: Gas Heating Consumption | CY38: IL TRM v9 vol3 (Belleview) | CZ38: 181 | DR38: Updated to align with IL TRM v9, new standards, and the adapting market
A39: Energy Saving Products, PAYS | B39: Smart Thermostat - ASHP heating / cooling SF - DR Enrolled | C39: 598 | D39: Single Family | E39: HVAC | F39: Demand Reductions claimed in the Residential Demand Response Program | G39: per unit | H39: 125 | I39: IL TRM v9 vol3 | J39: 175 | K39: =ROUND((AS39*AW39*BA39*BE39*BI39)+(BM39*((BQ39*BU39*(1/BY39))/1000)*CC39*BI39),4) -> 844.0164 | L39: Calculated Value | X39: 11 | Y39: IL TRM v9 vol3 | Z39: 175 | AA39: Smart thermostat | AC39: IL TRM v9 vol3 | AD39: 175 | AE39: Actual thermostat replaced by smart thermostat, or 44% programmable and 56% manual thermostats may be assumed | AG39: IL TRM v9 vol3 | AH39: 175 | AI39: =ROUND((AS39*AW39*BA39*BE39*BI39)+(BM39*((BQ39*BU39*(1/BY39))/1000)*CC39*BI39),4) | AK39: IL TRM v9 vol3 | AL39: 176 | AM39: 2022-01-01 | AS39: 1 | AT39: %ElectricHeat | AU39: IL TRM v9 vol3 | AV39: 176 | AW39: 8074 | AX39: Elec_Heating_Consumption (Belleview) | AY39: IL TRM v9 vol3 | AZ39: 176 | BA39: 0.086 | BB39: Heating_Reduction | BC39: IL TRM v9 vol3 | BD39: 177 | BE39: 1 | BF39: HF | BG39: IL TRM v9 vol3 | BH39: 177 | BI39: 0.9 | BJ39: Eff_ISR | BK39: IL TRM v9 vol3 (Not DI) | BL39: 177 | BM39: 1 | BN39: %AC | BO39: IL TRM v9 vol3 | BP39: 178 | BQ39: 1035 | BR39: FLH | BS39: IL TRM v9 vol3 (Belleview) | BT39: 178 | BU39: 33600 | BV39: BTU/hr | BW39: IL TRM v9 vol3 | BX39: 179 | BY39: 12 | BZ39: SEER | CA39: IL TRM v9 vol3 | CB39: 179 | CC39: 0.084 | CD39: Cooling_Reduction | CE39: IL TRM v9 vol3 | CF39: 179 | CG39: 10.5 | CH39: EER | CI39: IL TRM v9 vol3 | CJ39: 180
A40: Energy Saving Products, PAYS | B40: Smart Thermostat - ASHP heating / cooling MF - DR Enrolled | C40: 599 | D40: Multi-Family | E40: HVAC | F40: Demand Reductions claimed in the Residential Demand Response Program | G40: per unit | H40: 125 | I40: IL TRM v9 vol3 | J40: 175 | K40: 605.1821 | L40: Calculated Value | X40: 11 | Y40: IL TRM v9 vol3 | Z40: 175 | AA40: Smart thermostat | AC40: IL TRM v9 vol3 | AD40: 175 | AE40: Actual thermostat replaced by smart thermostat, or 44% programmable and 56% manual thermostats may be assumed | AG40: IL TRM v9 vol3 | AH40: 175 | AI40: =ROUND((AS40*AW40*BA40*BE40*BI40)+(BM40*((BQ40*BU40*(1/BY40))/1000)*CC40*BI40),4) | AK40: IL TRM v9 vol3 | AL40: 176 | AM40: 2022-01-01 | AS40: 1 | AT40: %ElectricHeat | AU40: IL TRM v9 vol3 | AV40: 176 | AW40: 8074 | AX40: Elec_Heating_Consumption (Belleview) | AY40: IL TRM v9 vol3 | AZ40: 176 | BA40: 0.086 | BB40: Heating_Reduction | BC40: IL TRM v9 vol3 | BD40: 177 | BE40: 0.65 | BF40: HF | BG40: IL TRM v9 vol3 | BH40: 177 | BI40: 0.9 | BJ40: Eff_ISR | BK40: IL TRM v9 vol3 (Not DI) | BL40: 177 | BM40: 1 | BN40: %AC | BO40: IL TRM v9 vol3 | BP40: 178 | BQ40: 940 | BR40: FLH | BS40: IL TRM v9 vol3 (Belleview) | BT40: 178 | BU40: 33600 | BV40: BTU/hr | BW40: IL TRM v9 vol3 | BX40: 179 | BY40: 12 | BZ40: SEER | CA40: IL TRM v9 vol3 | CB40: 179 | CC40: 0.084 | CD40: Cooling_Reduction | CE40: IL TRM v9 vol3 | CF40: 179 | CG40: 10.5 | CH40: EER | CI40: IL TRM v9 vol3 | CJ40: 180
A41: Energy Saving Products, PAYS | B41: Smart Thermostat - electric furnace heating / CAC SF - DR Enrolled | C41: 600 | D41: Single Family | E41: HVAC | F41: Demand Reductions claimed in the Residential Demand Response Program | G41: per unit | H41: 125 | I41: IL TRM v9 vol3 | J41: 175 | K41: 1281.4812 | L41: Calculated Value | X41: 11 | Y41: IL TRM v9 vol3 | Z41: 175 | AA41: Smart thermostat | AC41: IL TRM v9 vol3 | AD41: 175 | AE41: Actual thermostat replaced by smart thermostat, or 44% programmable and 56% manual thermostats may be assumed | AG41: IL TRM v9 vol3 | AH41: 175 | AI41: =ROUND((AS41*AW41*BA41*BE41*BI41)+(BM41*((BQ41*BU41*(1/BY41))/1000)*CC41*BI41),4) | AK41: IL TRM v9 vol3 | AL41: 176 | AM41: 2022-01-01 | AS41: 1 | AT41: %ElectricHeat | AU41: IL TRM v9 vol3 | AV41: 176 | AW41: 13726 | AX41: Elec_Heating_Consumption (Belleview) | AY41: IL TRM v9 vol3 | AZ41: 176 | BA41: 0.086 | BB41: Heating_Reduction | BC41: IL TRM v9 vol3 | BD41: 177 | BE41: 1 | BF41: HF | BG41: IL TRM v9 vol3 | BH41: 177 | BI41: 0.9 | BJ41: Eff_ISR | BK41: IL TRM v9 vol3 (Not DI) | BL41: 177 | BM41: 1 | BN41: %AC | BO41: IL TRM v9 vol3 | BP41: 178 | BQ41: 1035 | BR41: FLH | BS41: IL TRM v9 vol3 (Belleview) | BT41: 178 | BU41: 33600 | BV41: BTU/hr | BW41: IL TRM v9 vol3 | BX41: 179 | BY41: 12 | BZ41: SEER | CA41: IL TRM v9 vol3 | CB41: 179 | CC41: 0.084 | CD41: Cooling_Reduction | CE41: IL TRM v9 vol3 | CF41: 179 | CG41: 10.5 | CH41: EER | CI41: IL TRM v9 vol3 | CJ41: 180
A42: Energy Saving Products, PAYS | B42: Smart Thermostat - electric furnace heating / CAC MF - DR Enrolled | C42: 601 | D42: Multi-Family | E42: HVAC | F42: Demand Reductions claimed in the Residential Demand Response Program | G42: per unit | H42: 125 | I42: IL TRM v9 vol3 | J42: 175 | K42: 889.5343 | L42: Calculated Value | X42: 11 | Y42: IL TRM v9 vol3 | Z42: 175 | AA42: Smart thermostat | AC42: IL TRM v9 vol3 | AD42: 175 | AE42: Actual thermostat replaced by smart thermostat, or 44% programmable and 56% manual thermostats may be assumed | AG42: IL TRM v9 vol3 | AH42: 175 | AI42: =ROUND((AS42*AW42*BA42*BE42*BI42)+(BM42*((BQ42*BU42*(1/BY42))/1000)*CC42*BI42),4) | AK42: IL TRM v9 vol3 | AL42: 176 | AM42: 2022-01-01 | AS42: 1 | AT42: %ElectricHeat | AU42: IL TRM v9 vol3 | AV42: 176 | AW42: 13726 | AX42: Elec_Heating_Consumption (Belleview) | AY42: IL TRM v9 vol3 | AZ42: 176 | BA42: 0.086 | BB42: Heating_Reduction | BC42: IL TRM v9 vol3 | BD42: 177 | BE42: 0.65 | BF42: HF | BG42: IL TRM v9 vol3 | BH42: 177 | BI42: 0.9 | BJ42: Eff_ISR | BK42: IL TRM v9 vol3 (Not DI) | BL42: 177 | BM42: 1 | BN42: %AC | BO42: IL TRM v9 vol3 | BP42: 178 | BQ42: 940 | BR42: FLH | BS42: IL TRM v9 vol3 (Belleview) | BT42: 178 | BU42: 33600 | BV42: BTU/hr | BW42: IL TRM v9 vol3 | BX42: 179 | BY42: 12 | BZ42: SEER | CA42: IL TRM v9 vol3 | CB42: 179 | CC42: 0.084 | CD42: Cooling_Reduction | CE42: IL TRM v9 vol3 | CF42: 179 | CG42: 10.5 | CH42: EER | CI42: IL TRM v9 vol3 | CJ42: 180
A43: Energy Saving Products, PAYS | B43: Smart Thermostat - Gas Heated / CAC SF - DR Enrolled | C43: 602 | D43: Single Family | E43: HVAC | F43: Demand Reductions claimed in the Residential Demand Response Program | G43: per unit | H43: 125 | I43: IL TRM v9 vol3 | J43: 175 | K43: =ROUND((AS43*AW43*BA43*BE43*BI43)+(CO43*CK43*29.3)+(BM43*((BQ43*BU43*(1/BY43))/1000)*CC43*BI43),4) -> 266.3719 | L43: Calculated Value | X43: 11 | Y43: IL TRM v9 vol3 | Z43: 175 | AA43: Smart thermostat | AC43: IL TRM v9 vol3 | AD43: 175 | AE43: Actual thermostat replaced by smart thermostat, or 44% programmable and 56% manual thermostats may be assumed | AG43: IL TRM v9 vol3 | AH43: 175 | AI43: =ROUND((AS43*AW43*BA43*BE43*BI43)+(CO43*CK43*29.3)+(BM43*((BQ43*BU43*(1/BY43))/1000)*CC43*BI43),4) | AK43: IL TRM v9 vol3 | AL43: 176 | AM43: 2022-01-01 | AS43: 0 | AT43: %ElectricHeat | AU43: IL TRM v9 vol3 | AV43: 176 | BA43: 0.086 | BB43: Heating_Reduction | BC43: IL TRM v9 vol3 | BD43: 177 | BE43: 1 | BF43: HF | BG43: IL TRM v9 vol3 | BH43: 177 | BI43: 0.9 | BJ43: Eff_ISR | BK43: IL TRM v9 vol3 (Not DI) | BL43: 177 | BM43: 1 | BN43: %AC | BO43: IL TRM v9 vol3 | BP43: 178 | BQ43: 1035 | BR43: FLH | BS43: IL TRM v9 vol3 (Belleview) | BT43: 178 | BU43: 33600 | BV43: BTU/hr | BW43: IL TRM v9 vol3 | BX43: 179 | BY43: 12 | BZ43: SEER | CA43: IL TRM v9 vol3 | CB43: 179 | CC43: 0.084 | CD43: Cooling_Reduction | CE43: IL TRM v9 vol3 | CF43: 179 | CG43: 10.5 | CH43: EER | CI43: IL TRM v9 vol3 | CJ43: 180 | CK43: 0.0314 | CL43: Fe | CM43: IL TRM v9 vol3 | CN43: 178 | CO43: =CS43*CW43*BA43*BE43*BI43 -> 51.3936 | CP43: Therms difference | CQ43: IL TRM v9 vol3 | CR43: Calculated | CS43: 1 | CT43: %FossilHeat | CU43: IL TRM v9 vol3 | CV43: 181 | CW43: 664 | CX43: Gas Heating Consumption | CY43: IL TRM v9 vol3 (Belleview) | CZ43: 181
A44: Energy Saving Products, PAYS | B44: Smart Thermostat - Gas Heated / CAC MF - DR Enrolled | C44: 603 | D44: Multi-Family | E44: HVAC | F44: Demand Reductions claimed in the Residential Demand Response Program | G44: per unit | H44: 175 | I44: IL TRM v6 vol3 | J44: 175 | K44: =ROUND((AS44*AW44*BA44*BE44*BI44)+(CO44*CK44*29.3)+(BM44*((BQ44*BU44*(1/BY44))/1000)*CC44*BI44),4) -> 229.7132 | L44: Calculated Value | X44: 11 | Y44: IL TRM v9 vol3 | Z44: 175 | AA44: Smart thermostat | AC44: IL TRM v9 vol3 | AD44: 175 | AE44: Actual thermostat replaced by smart thermostat, or 44% programmable and 56% manual thermostats may be assumed | AG44: IL TRM v9 vol3 | AH44: 175 | AI44: =ROUND((AS44*AW44*BA44*BE44*BI44)+(CO44*CK44*29.3)+(BM44*((BQ44*BU44*(1/BY44))/1000)*CC44*BI44),4) | AK44: IL TRM v9 vol3 | AL44: 176 | AM44: 2022-01-01 | AS44: 0 | AT44: %ElectricHeat | AU44: IL TRM v9 vol3 | AV44: 176 | BA44: 0.086 | BB44: Heating_Reduction | BC44: IL TRM v9 vol3 | BD44: 177 | BE44: 0.65 | BF44: HF | BG44: IL TRM v9 vol3 | BH44: 177 | BI44: 0.9 | BJ44: Eff_ISR | BK44: IL TRM v9 vol3 (Not DI) | BL44: 177 | BM44: 1 | BN44: %AC | BO44: IL TRM v9 vol3 | BP44: 178 | BQ44: 940 | BR44: FLH | BS44: IL TRM v9 vol3 (Belleview) | BT44: 178 | BU44: 33600 | BV44: BTU/hr | BW44: IL TRM v9 vol3 | BX44: 179 | BY44: 12 | BZ44: SEER | CA44: IL TRM v9 vol3 | CB44: 179 | CC44: 0.084 | CD44: Cooling_Reduction | CE44: IL TRM v9 vol3 | CF44: 179 | CG44: 10.5 | CH44: EER | CI44: IL TRM v9 vol3 | CJ44: 180 | CK44: 0.0314 | CL44: Fe | CM44: IL TRM v9 vol3 | CN44: 178 | CO44: =CS44*CW44*BA44*BE44*BI44 -> 33.40584 | CP44: Therms difference | CQ44: IL TRM v9 vol3 | CR44: Calculated | CS44: 1 | CT44: %FossilHeat | CU44: IL TRM v9 vol3 | CV44: 181 | CW44: 664 | CX44: Gas Heating Consumption | CY44: IL TRM v9 vol3 (Belleview) | CZ44: 181
A45: Energy Saving Products | B45: Smart Power Strip - Wh7-Plug | C45: 312 | D45: All | E45: Electronics | G45: per unit | H45: 26 | I45: IL TRM v5 vol3 | J45: 52 | K45: =ROUND(103,4) -> 103 | L45: IL TRM v5 vol3 | M45: 53 | N45: =ROUND(K45/U45,4) -> 0.0144 | O45: 0.8 | P45: IL TRM v5 vol3 | Q45: 55 | R45: =ROUND(0.0115,4) -> 0.0115 | S45: IL TRM v5 vol3 | T45: 53 | U45: 7129 | V45: IL TRM v5 vol3 | W45: 53 | X45: 4 | Y45: IL TRM v5 vol3 | Z45: 52 | AA45: Smart strip | AC45: IL TRM v5 vol3 | AD45: 52 | AE45: Standard outlet strip | AG45: IL TRM v5 vol3 | AH45: 52 | AI45: =ROUND(103,4) | AJ45: =ROUND(0.0115,4) | AK45: IL TRM v5 vol3 | AL45: 53 | AM45: 2020-01-01 | AN45: 2021-12-31
A46: Energy Saving Products | B46: Smart Power Strip - Wh7-Plug | C46: 312.1 | D46: All | E46: Electronics | G46: per unit | H46: 10 | I46: IL TRM v9 vol3 | J46: 63 | K46: =ROUND(73.1,4) -> 73.1 | L46: IL TRM v9 vol3 | M46: 65 | N46: =ROUND(K46/U46,4) -> 0.0103 | O46: 0.8 | P46: IL TRM v9 vol3 | Q46: 64 | R46: =ROUND(0.0082,4) -> 0.0082 | S46: IL TRM v9 vol3 | T46: 66 | U46: 7129 | V46: IL TRM v9 vol3 | W46: 65 | X46: 7 | Y46: IL TRM v9 vol3 | Z46: 63 | AA46: Smart strip | AC46: IL TRM v9 vol3 | AD46: 63 | AE46: Standard outlet strip | AG46: IL TRM v9 vol3 | AH46: 63 | AI46: =ROUND(73.1,4) | AJ46: =ROUND(0.0082,4) | AK46: IL TRM v9 vol3 | AL46: 63 | AM46: 2022-01-01 | DR46: TRM had been using DI savings, updated to TOS
A47: Energy Saving Products | B47: Smart Power Strip - Wh7-Plug- SMB | C47: 606 | D47: SMB | E47: Electronics | G47: per unit | H47: 10 | I47: IL TRM v9 vol3 | J47: 63 | K47: =ROUND(((AS47*(AW47-BA47)+BE47*(BI47-BM47))*BQ47*BU47),4) -> 115.2941 | L47: Calculated Value | M47: 675 | N47: =K47/U47 -> 0.01316142694 | O47: 0 | P47: IL TRM v9 | Q47: 674 | R47: =ROUND(($AF47-$AB47)/1000*$O47*$AW47*$BA47,4) -> 0 | S47: Calculated Value | U47: 8760 | V47: IL TRM v9 | W47: 675 | X47: 7 | Y47: IL TRM v9.0 | Z47: 674 | AA47: Smart strip | AC47: IL TRM v9 | AD47: 674 | AE47: Standard outlet strip | AG47: IL TRM v9 | AH47: 674 | AI47: =cellformula(K47) -> =ROUND(((AS47*(AW47-BA47)+BE47*(BI47-BM47))*BQ47*BU47),4) | AJ47: =cellformula(R47) -> =ROUND(($AF47-$AB47)/1000*$O47*$AW47*$BA47,4) | AK47: IL TRM v9 | AL47: 674675 | AM47: 2022-01-01 | AS47: 0.0315 | AT47: kWwkday | AU47: IL TRM v9 | AV47: 675 | AW47: 106 | AX47: hrswkday | AY47: IL TRM v9 | AZ47: 675 | BA47: 45 | BB47: hrswkday-open | BC47: IL TRM v9 | BD47: 675 | BE47: 0.00617 | BF47: kWwkend | BG47: IL TRM v9 | BH47: 675 | BI47: 62 | BJ47: hrswkend | BK47: IL TRM v9 | BL47: 675 | BM47: 4 | BN47: hrswkend-open | BO47: IL TRM v9 | BP47: 675 | BQ47: 52.2 | BR47: weeks/year | BS47: IL TRM v9 | BT47: 675 | BU47: 0.969 | BV47: ISR | BW47: IL TRM v9 | BX47: 675
A48: Energy Saving Products | B48: ENERGY STAR Refrigerators | C48: 399 | D48: All | E48: Appliances | G48: per unit | H48: 40 | I48: IL TRM v6 vol3 | J48: 28 | K48: =ROUND(AS48-AW48,4) -> 43.14 | L48: Calculated Value | R48: =ROUND(K48/U48*BE48*BI48,4) -> 0.0065 | S48: Calculated Value | U48: 8766 | V48: IL TRM v6 vol3 | W48: 30 | X48: 12 | Y48: IL TRM v6 vol3 | Z48: 28 | AA48: A refrigerator meeting the efficiency specifications of Energy Star | AC48: IL TRM v6 vol3 | AD48: 27 | AE48: A refrigerator meeting the minimum federal efficiency standard for refrigerator efficiency | AG48: IL TRM v6 vol3 | AH48: 27 | AI48: =ROUND(AS48-AW48,4) | AJ48: =ROUND(K48/U48*BE48*BI48,4) | AK48: IL TRM v6 vol3 | AL48: 28, 30 | AM48: 2020-01-01 | AN48: 2021-12-31 | AS48: =7.99*BA48+225 -> 431.142 | AT48: Federal Baseline Maximum Energy Usage in kWh/year | AU48: IL TRM v6 vol3 | AV48: 26 | AW48: =7.19*BA48+202.5 -> 388.002 | AX48: Federal Energy Star Maximum Energy Usage in kWh/YEAR | AY48: IL TRM v6 vol3 | AZ48: 26 | BA48: 25.8 | BB48: Adjusted volume | BC48: Program Tracking Data | BE48: 1.25 | BF48: Temperature Adjustment Factor | BG48: IL TRM v6 vol3 | BH48: 31 | BI48: 1.057 | BJ48: Load Shape Adjustment Factor | BK48: IL TRM v6 vol3 | BL48: 31
A49: Energy Saving Products | B49: ENERGY STAR Refrigerators | C49: 399.1 | D49: All | E49: Appliances | G49: per unit | H49: 40 | I49: IL TRM v9 vol3 | J49: 28 | K49: =ROUND(AS49-AW49,4) -> 43.14 | L49: Calculated Value | R49: =ROUND(K49/U49*BE49*BI49,4) -> 0.0065 | S49: Calculated Value | U49: 8766 | V49: IL TRM v9 vol3 | W49: 32 | X49: 17 | Y49: IL TRM v9 vol3 | Z49: 30 | AA49: A refrigerator meeting the efficiency specifications of Energy Star | AC49: IL TRM v9 vol3 | AD49: 30 | AE49: A refrigerator meeting the minimum federal efficiency standard for refrigerator efficiency | AG49: IL TRM v9 vol3 | AH49: 30 | AI49: =ROUND(AS49-AW49,4) | AJ49: =ROUND(K49/U49*BE49*BI49,4) | AK49: IL TRM v9 vol3 | AL49: 31, 32 | AM49: 2022-01-01 | AS49: =7.99*BA49+225 -> 431.142 | AT49: Federal Baseline Maximum Energy Usage in kWh/year | AU49: IL TRM v9 vol3 | AV49: 29 | AW49: =7.19*BA49+202.5 -> 388.002 | AX49: Federal Energy Star Maximum Energy Usage in kWh/YEAR | AY49: IL TRM v9 vol3 | AZ49: 29 | BA49: 25.8 | BB49: Adjusted volume | BC49: Program Tracking Data | BE49: 1.25 | BF49: Temperature Adjustment Factor | BG49: IL TRM v9 vol3 | BH49: 32 | BI49: 1.057 | BJ49: Load Shape Adjustment Factor | BK49: IL TRM v9 vol3 | BL49: 32 | DR49: Assume T1 Unit, updated EUL to align with TRM v9
A50: Energy Saving Products | B50: ENERGY STAR Freezers | C50: 400 | D50: All | E50: Appliances | G50: per unit | H50: 35 | I50: IL TRM v6 vol3 | J50: 23 | K50: =ROUND(AS50-AW50,4) -> 34.3305 | L50: Calculated Value | O50: 0.95 | P50: IL TRM v6 vol3 | Q50: 23 | R50: =ROUND(K50/U50*O50,4) -> 0.0055 | S50: Calculated Value | U50: 5890 | V50: IL TRM v6 vol3 | W50: 24 | X50: 11 | Y50: IL TRM v6 vol3 | Z50: 23 | AA50: A freezer meeting the efficiency specifications of Energy Star | AC50: IL TRM v6 vol3 | AD50: 22 | AE50: A freezer meeting the federal minimum standard efficiency | AG50: IL TRM v6 vol3 | AH50: 23 | AI50: =ROUND(AS50-AW50,4) | AJ50: =ROUND(K50/U50*O50,4) | AK50: IL TRM v6 vol3 | AL50: 23, 24 | AM50: 2020-01-01 | AN50: 2021-12-31 | AS50: =8.62*BA50+228.3 -> 343.87265 | AT50: Federal Baseline Maximum Energy Usage in kWh/year | AU50: IL TRM v6 vol3 | AV50: 22 | AW50: =7.76*BA50+205.5 -> 309.5422 | AX50: Federal Energy Star Maximum Energy Usage in kWh/YEAR | AY50: IL TRM v6 vol3 | AZ50: 22 | BA50: =1.73*7.75 -> 13.4075 | BB50: Adjusted volume | BC50: Program Tracking Data
A51: Energy Saving Products | B51: ENERGY STAR Freezers | C51: 400.1 | D51: All | E51: Appliances | G51: per unit | H51: 35 | I51: IL TRM v9 vol3 | J51: 26 | K51: =ROUND(AS51-AW51,4) -> 34.3305 | L51: Calculated Value | O51: 0.95 | P51: IL TRM v9 vol3 | Q51: 26 | R51: =ROUND(K51/U51*O51,4) -> 0.0055 | S51: Calculated Value | U51: 5890 | V51: IL TRM v9 vol3 | W51: 27 | X51: 22 | Y51: IL TRM v9 vol3 | Z51: 26 | AA51: A freezer meeting the efficiency specifications of Energy Star | AC51: IL TRM v9 vol3 | AD51: 26 | AE51: A freezer meeting the federal minimum standard efficiency | AG51: IL TRM v9 vol3 | AH51: 26 | AI51: =ROUND(AS51-AW51,4) | AJ51: =ROUND(K51/U51*O51,4) | AK51: IL TRM v9 vol3 | AL51: 26, 27 | AM51: 2022-01-01 | AS51: =8.62*BA51+228.3 -> 343.87265 | AT51: Federal Baseline Maximum Energy Usage in kWh/year | AU51: IL TRM v9 vol3 | AV51: 25 | AW51: =7.76*BA51+205.5 -> 309.5422 | AX51: Federal Energy Star Maximum Energy Usage in kWh/YEAR | AY51: IL TRM v9 vol3 | AZ51: 25 | BA51: =1.73*7.75 -> 13.4075 | BB51: Adjusted volume | BC51: Program Tracking Data | DR51: Updated EUL to align with TRM v9
A52: Energy Saving Products | B52: LED String Lights | C52: 401 | D52: All | E52: Lighting | G52: per unit | H52: 10 | I52: MN TRM v2.2 | J52: 324 | K52: =ROUND((AF52-AB52)/1000*AS52*AW52*U52,4) -> 29.7518 | L52: Calculated Value | O52: 0 | P52: MN TRM v2.2 | Q52: 324 | R52: =ROUND(0,4) -> 0 | S52: Calculated Value | U52: 150 | V52: MN TRM v2.2 | W52: 324 | X52: 8 | Y52: MN TRM v2.2 | Z52: 324 | AA52: LED string lights | AB52: =50%*0.043+25%*2+25%*0.48 -> 0.6415 | AC52: MN TRM v2.2 | AD52: 324 | AE52: Incandescent holiday light strings | AF52: =50%*0.45+25%*7+25%*6 -> 3.475 | AG52: MN TRM v2.2 | AH52: 324 | AI52: =ROUND((AF52-AB52)/1000*AS52*AW52*U52,4) | AJ52: =ROUND(0,4) | AK52: MN TRM v2.2 | AL52: 324 | AM52: 2020-01-01 | AS52: 1 | AT52: Number of light strings | AU52: MN TRM v2.2 | AV52: 324 | AW52: 70 | AX52: Number of lights in string | AY52: MN TRM v2.2 | AZ52: 324
A53: Energy Saving Products | B53: SMART Home Products (Alexa, Google Home, etc.) | C53: 402 | D53: Single Family | E53: Misc | G53: per unit | H53: 440.9629286 | I53: Navigant energy model analysis | K53: =ROUND(1305.85412860453,4) -> 1305.8541 | L53: Navigant energy model analysis | R53: =ROUND(0,4) -> 0 | S53: Navigant energy model analysis | X53: 8 | Y53: Navigant energy model analysis | AA53: Smart Home Products | AE53: No Smart Home Products | AI53: =ROUND(1305.85412860453,4) | AJ53: =ROUND(0,4) | AK53: Navigant energy model analysis | AM53: 2020-01-01
A54: Energy Saving Products | B54: ENERGY STAR Pool Pump and motor w/ auto controls - multi speed | C54: 403 | D54: All | E54: Misc | G54: per unit | H54: 235 | I54: IL TRM v6 vol3 | J54: 296 | K54: =ROUND(((AS54*AW54*60)/BA54-((BE54*BI54*60)/BM54+(BQ54*BU54*60)/BY54))/1000*CC54,4) -> 1596.0278 | L54: Calculated Value | N54: =ROUND(CG54/AS54-CK54/CO54,4) -> 1.3765 | O54: 0.831 | P54: Calculated Value | R54: =ROUND((CG54/AS54-CK54/CO54)*O54,4) -> 1.1439 | S54: Calculated Value | X54: 10 | Y54: IL TRM v6 vol3 | Z54: 296 | AA54: Two speed pool pump | AE54: Single speed residential pool pump | AI54: =ROUND(((AS54*AW54*60)/BA54-((BE54*BI54*60)/BM54+(BQ54*BU54*60)/BY54))/1000*CC54,4) | AJ54: =ROUND((CG54/AS54-CK54/CO54)*O54,4) | AK54: IL TRM v6 vol3 | AL54: 297, 298 | AM54: 2020-01-01 | AN54: 2021-12-31 | AS54: 11.4 | AT54: Hours/Daybase | AU54: IL TRM v6 vol3 | AV54: 297 | AW54: 64.4 | AX54: GPMbase | AY54: IL TRM v6 vol3 | AZ54: 297 | BA54: 2.1 | BB54: EFbase | BC54: IL TRM v6 vol3 | BD54: 297 | BE54: 2 | BF54: Hours/Day2spH | BG54: IL TRM v6 vol3 | BH54: 297 | BI54: 56 | BJ54: GPM2spH | BK54: IL TRM v6 vol3 | BL54: 297 | BM54: 2.4 | BN54: EF2spH | BO54: IL TRM v6 vol3 | BP54: 297 | BQ54: 15.7 | BR54: Hours/Day2spL | BS54: IL TRM v6 vol3 | BT54: 297 | BU54: 31 | BV54: GPM2spL | BW54: IL TRM v6 vol3 | BX54: 297 | BY54: 5.4 | BZ54: EF2spL | CA54: IL TRM v6 vol3 | CB54: 297 | CC54: 125 | CD54: Days | CE54: IL TRM v6 vol3 | CF54: 297 | CG54: 20.98 | CH54: kWh/daybase | CI54: IL TRM v6 vol3 | CJ54: 298 | CK54: 8.21 | CL54: kWh/day2sp | CM54: IL TRM v6 vol3 | CN54: 298 | CO54: 17.7 | CP54: Hours/day2sp | CQ54: IL TRM v6 vol3 | CR54: 298
A55: Energy Saving Products | B55: ENERGY STAR Pool Pump and motor w/ auto controls - multi speed | C55: 403.1 | D55: All | E55: Misc | G55: per unit | H55: 235 | I55: IL TRM v9 vol3 | J55: 365 | K55: =ROUND(((AS55*AW55*60)/BA55-((BE55*BI55*60)+(BQ55*BU55*60))/BM55)/1000*BY55,4) -> 1776.3785 | L55: Calculated Value | N55: =ROUND(CC55/AS55-CG55/CK55,4) -> 1.4584 | O55: 0.831 | P55: Calculated Value | R55: =ROUND((CC55/AS55-CG55/CK55)*O55,4) -> 1.212 | S55: Calculated Value | X55: 7 | Y55: IL TRM v9 vol3 | Z55: 364 | AA55: Two speed pool pump | AE55: Single speed residential pool pump | AI55: =ROUND(((AS55*AW55*60)/BA55-((BE55*BI55*60)+(BQ55*BU55*60))/BM55)/1000*BY55,4) | AJ55: =ROUND((CC55/AS55-CG55/CK55)*O55,4) | AK55: IL TRM v9 vol3 | AL55: 365, 366 | AM55: 2022-01-01 | AS55: 11.4 | AT55: Hours/Daybase | AU55: IL TRM v9 vol3 | AV55: 365 | AW55: 64.4 | AX55: GPMbase | AY55: IL TRM v9 vol3 | AZ55: 365 | BA55: 2.1 | BB55: EFbase | BC55: IL TRM v9 vol3 | BD55: 365 | BE55: 2 | BF55: Hours/Day2spH | BG55: IL TRM v9 vol3 | BH55: 365 | BI55: 56 | BJ55: GPM2spH | BK55: IL TRM v9 vol3 | BL55: 366 | BM55: 5.31 | BN55: WEF2sp | BO55: IL TRM v9 vol3 | BP55: 366 | BQ55: 15.7 | BR55: Hours/Day2spL | BS55: IL TRM v9 vol3 | BT55: 366 | BU55: 31 | BV55: GPM2spL | BW55: IL TRM v9 vol3 | BX55: 366 | BY55: 125 | BZ55: Days | CA55: IL TRM v9 vol3 | CB55: 366 | CC55: 20.98 | CD55: kWh/daybase | CE55: IL TRM v9 vol3 | CF55: 366 | CG55: 6.76 | CH55: kWh/day2sp | CI55: IL TRM v9 vol3 | CJ55: 367 | CK55: 17.7 | CL55: Hours/day2sp | CM55: IL TRM v9 vol3 | CN55: 367 | DR55: Updated algorithm in IL TRM v9
A56: Energy Saving Products | B56: ENERGY STAR VFDs on Residential Swimming Pool Pumps | C56: 404 | D56: All | E56: Misc | G56: per unit | H56: 549 | I56: IL TRM v6 vol3 | J56: 296 | K56: =ROUND(((AS56*AW56*60)/BA56-((BE56*BI56*60)/BM56+(BQ56*BU56*60)/BY56))/1000*CC56,4) -> 1921.6179 | L56: Calculated Value | N56: =ROUND((CG56/AS56)-(CK56/CO56),4) -> 1.5292 | O56: 0.831 | P56: Calculated Value | R56: =ROUND(((CG56/AS56)-(CK56/CO56))*O56,4) -> 1.2708 | S56: Calculated Value | X56: 10 | Y56: IL TRM v6 vol3 | Z56: 296 | AA56: Variable speed pool pump | AE56: Single speed residential pool pump | AI56: =ROUND(((AS56*AW56*60)/BA56-((BE56*BI56*60)/BM56+(BQ56*BU56*60)/BY56))/1000*CC56,4) | AJ56: =ROUND(((CG56/AS56)-(CK56/CO56))*O56,4) | AK56: IL TRM v6 vol3 | AL56: 297, 298 | AM56: 2020-01-01 | AN56: 2021-12-31 | AS56: 11.4 | AT56: Hours/Daybase | AU56: IL TRM v6 vol3 | AV56: 297 | AW56: 64.4 | AX56: GPMbase | AY56: IL TRM v6 vol3 | AZ56: 297 | BA56: 2.1 | BB56: EFbase | BC56: IL TRM v6 vol3 | BD56: 297 | BE56: 2 | BF56: Hours/DayvsH | BG56: IL TRM v6 vol3 | BH56: 297 | BI56: 50 | BJ56: GPMvsH | BK56: IL TRM v6 vol3 | BL56: 297 | BM56: 3.8 | BN56: EFvsH | BO56: IL TRM v6 vol3 | BP56: 298 | BQ56: 16 | BR56: Hours/DayvsL | BS56: IL TRM v6 vol3 | BT56: 298 | BU56: 30.6 | BV56: GPMvsL | BW56: IL TRM v6 vol3 | BX56: 298 | BY56: 7.3 | BZ56: EFvsL | CA56: IL TRM v6 vol3 | CB56: 298 | CC56: 125 | CD56: Days | CE56: IL TRM v6 vol3 | CF56: 298 | CG56: 20.98 | CH56: kWh/daybase | CI56: IL TRM v6 vol3 | CJ56: 298 | CK56: 5.6 | CL56: kWh/dayvar | CM56: IL TRM v6 vol3 | CN56: 298 | CO56: 18 | CP56: Hours/dayvar | CQ56: IL TRM v6 vol3 | CR56: 298
A57: Energy Saving Products | B57: ENERGY STAR VFDs on Residential Swimming Pool Pumps | C57: 404.1 | D57: All | E57: Misc | G57: per unit | H57: 549 | I57: IL TRM v9 vol3 | J57: 296 | K57: =ROUND(((AS57*AW57*60)/BA57-((BE57*BI57*60)+(BQ57*BU57*60))/BM57)/1000*BY57,4) -> 1952 | L57: Calculated Value | N57: =ROUND((CC57/AS57)-(CG57/CK57),4) -> 1.5426 | O57: 0.831 | P57: Calculated Value | R57: =ROUND(((CC57/AS57)-(CG57/CK57))*O57,4) -> 1.2819 | S57: Calculated Value | X57: 7 | Y57: IL TRM v9 vol3 | Z57: 364 | AA57: Variable speed pool pump | AE57: Single speed residential pool pump | AI57: =ROUND(((AS57*AW57*60)/BA57-((BE57*BI57*60)+(BQ57*BU57*60))/BM57)/1000*BY57,4) | AJ57: =ROUND(((CC57/AS57)-(CG57/CK57))*O57,4) | AK57: IL TRM v9 vol3 | AL57: 365, 366 | AM57: 2022-01-01 | AS57: 11.4 | AT57: Hours/Daybase | AU57: IL TRM v9 vol3 | AV57: 365 | AW57: 64.4 | AX57: GPMbase | AY57: IL TRM v9 vol3 | AZ57: 365 | BA57: 2.1 | BB57: EFbase | BC57: IL TRM v9 vol3 | BD57: 365 | BE57: 2 | BF57: Hours/DayvsH | BG57: IL TRM v9 vol3 | BH57: 365 | BI57: 50 | BJ57: GPMvsH | BK57: IL TRM v9 vol3 | BL57: 366 | BM57: 6.6 | BN57: WEFvs | BO57: IL TRM v9 vol3 | BP57: 366 | BQ57: 16 | BR57: Hours/DayvsL | BS57: IL TRM v9 vol3 | BT57: 366 | BU57: 30.6 | BV57: GPMvsL | BW57: IL TRM v9 vol3 | BX57: 366 | BY57: 125 | BZ57: Days | CA57: IL TRM v9 vol3 | CB57: 366 | CC57: 20.98 | CD57: kWh/daybase | CE57: IL TRM v9 vol3 | CF57: 366 | CG57: 5.36 | CH57: kWh/dayvar | CI57: IL TRM v9 vol3 | CJ57: 367 | CK57: 18 | CL57: Hours/dayvar | CM57: IL TRM v9 vol3 | CN57: 367 | DR57: Updated algorithm in IL TRM v9
A58: Heating, Cooling & Home Comfort | B58: Screw In - LEDs | C58: 8.5 | D58: Single Family | E58: Lighting | F58: Kits | G58: per lamp | H58: 1.45 | I58: Program Tracking Data | K58: =ROUND(($AF58-$AB58)/1000*$U58*$AS58*$BA58,4) -> 36.1182 | L58: Calculated Value | N58: =K58/U58 -> 0.03316639118 | O58: 0.128 | P58: IL TRM v7 vol3 | Q58: 274 | R58: =ROUND(($AF58-$AB58)/1000*O58*$AW58*$BA58,4) -> 0.0044 | S58: Calculated Value | U58: 1089 | V58: IL TRM v7 vol3 - Assumes interior installation for all standard bulbs. | W58: 271 | X58: 10 | Y58: IL TRM v7 vol3 | Z58: 268 | AA58: Screw In - LEDs | AB58: 9.5 | AC58: Program Tracking Data | AE58: 43 watts based on halogen equivalent to average of bulbs sold in program | AF58: 43 | AG58: Program Tracking Database | AI58: =ROUND(($AF58-$AB58)/1000*$U58*$AS58*$BA58,4) | AJ58: =ROUND(($AF58-$AB58)/1000*O58*$AW58*$BA58,4) | AK58: IL TRM v7 vol3 | AL58: 269, 273 | AM58: 2020-05-01 | AN58: 2021-12-31 | AS58: 1.051 | AT58: Waste Heat Factor, Energy | AU58: IL TRM v7 vol3 - blended interior/exterior value | AV58: 271 | AW58: 1.093 | AX58: Waste Heat Factor, Demand | AY58: IL TRM v7 vol3 - blended interior/exterior value | AZ58: 273, 274 | BA58: 0.942 | BB58: ISR | BC58: Navigant MEEIA Cycle 1 Research
A59: Heating, Cooling & Home Comfort | B59: Screw In - LEDs | C59: 8.6 | D59: All | E59: Lighting | F59: Kits | G59: per lamp | H59: 1.45 | I59: Program Tracking Data | K59: =ROUND(($AF59-$AB59)/1000*$U59*$AS59*$BA59,4) -> 36.4275 | L59: Calculated Value | N59: =K59/U59 -> 0.03345041322 | O59: 0.128 | P59: IL TRM v9 vol3, assumes interior | Q59: 278 | R59: =ROUND(($AF59-$AB59)/1000*O59*$AW59*$BA59,4) -> 0.0045 | S59: Calculated Value | U59: 1089 | V59: IL TRM v9 vol3 - Assumes interior installation for all standard bulbs. | W59: 275 | X59: 10 | Y59: IL TRM v9 vol3 | Z59: 272 | AA59: Screw In - LEDs | AB59: 9.5 | AC59: Program Tracking Data | AE59: 43 watts based on halogen equivalent to average of bulbs sold in program | AF59: 43 | AG59: Program Tracking Database | AI59: =ROUND(($AF59-$AB59)/1000*$U59*$AS59*$BA59,4) | AJ59: =ROUND(($AF59-$AB59)/1000*O59*$AW59*$BA59,4) | AK59: IL TRM v9 vol3 | AL59: 273, 278 | AM59: 2022-01-01 | AS59: 1.06 | AT59: Waste Heat Factor, Energy | AU59: IL TRM v9 vol3 - Assumes interior single family | AV59: 278 | AW59: 1.11 | AX59: Waste Heat Factor, Demand | AY59: IL TRM v7 vol3 - Assumes interior single family | AZ59: 274 | BA59: 0.942 | BB59: ISR | BC59: Navigant MEEIA Cycle 2 Research | DR59: HOU assumes interior, assumption maintained for other values as well
A60: Heating, Cooling & Home Comfort | B60: Low Flow Faucet Aerator-Bathroom | C60: 245.3 | D60: Single Family | E60: Hot Water | F60: Kits | G60: per unit | H60: 8 | I60: IL TRM v7 vol3 | J60: 184 | K60: =ROUND(((AF60*AS60-AB60*AS60)*BA60*365.25*BI60/AW60)*BM60*BE60,4) -> 19.0446 | L60: Calculated Value | N60: 1.360328571 | O60: 0.022 | P60: IL TRM v7 vol3 | Q60: 190193 | R60: =ROUND(((AF60*AS60-AB60*AS60)*BA60*365.25*BI60/AW60)*BM60*BE60/U60*O60,4) -> 0.0299 | S60: Calculated Value | U60: 14 | V60: IL TRM v7 vol3 | W60: 190, 197 | X60: 10 | Y60: IL TRM v7 vol3 | Z60: 184 | AA60: Low Flow (GPM) | AB60: 1 | AC60: Program Tracking Data | AE60: Standard (GPM) | AF60: 1.53 | AG60: IL TRM v7 vol3 | AH60: 185194 | AI60: =ROUND(((AF60*AS60-AB60*AS60)*BA60*365.25*BI60/AW60)*BM60*BE60,4) | AJ60: =ROUND(((AF60*AS60-AB60*AS60)*BA60*365.25*BI60/AW60)*BM60*BE60/U60*O60,4) | AK60: IL TRM v7 vol3 | AL60: 175, 179 | AM60: 2021-01-01 | AN60: 2021-12-31 | AS60: 1.6 | AT60: L_base = L_ee | AU60: IL TRM v7 vol3 | AV60: 186195 | AW60: 2.83 | AX60: FPH | AY60: IL TRM v7 vol3 | AZ60: 187 | BA60: 2.56 | BB60: Persons per household | BC60: IL TRM v7 vol3 | BD60: 187, 195 | BE60: 0.95 | BF60: Installation Rate | BG60: IL TRM v7 vol3 | BH60: 189, 196 | BI60: 0.9 | BJ60: DF | BK60: IL TRM v7 vol3 | BL60: 187 | BM60: 0.0795 | BN60: EPG_electric | BO60: IL TRM v7 vol3 | BP60: 188, 196
A61: Heating, Cooling & Home Comfort | B61: Low Flow Faucet Aerator-Bathroom | C61: 245.4 | D61: Single Family | E61: Hot Water | F61: Kits | G61: per unit | H61: 8 | I61: IL TRM v9 vol3 | J61: 207 | K61: =ROUND(((AF61*AS61-AB61*AS61)*BA61*365.25*BI61/AW61)*BM61*BE61,4) -> 19.0446 | L61: Calculated Value | N61: 1.360328571 | O61: 0.022 | P61: IL TRM v9 vol3 | Q61: 207 | R61: =ROUND(((AF61*AS61-AB61*AS61)*BA61*365.25*BI61/AW61)*BM61*BE61/U61*O61,4) -> 0.0299 | S61: Calculated Value | U61: 14 | V61: IL TRM v9 vol3 | W61: 213 | X61: 10 | Y61: IL TRM v9 vol3 | Z61: 207 | AA61: Low Flow (GPM) | AB61: 1 | AC61: Program Tracking Data | AE61: Standard (GPM) | AF61: 1.53 | AG61: IL TRM v9 vol3 | AH61: 208 | AI61: =ROUND(((AF61*AS61-AB61*AS61)*BA61*365.25*BI61/AW61)*BM61*BE61,4) | AJ61: =ROUND(((AF61*AS61-AB61*AS61)*BA61*365.25*BI61/AW61)*BM61*BE61/U61*O61,4) | AK61: IL TRM v9 vol3 | AL61: 208, 213 | AM61: 2022-01-01 | AS61: 1.6 | AT61: L_base = L_ee | AU61: IL TRM v9 vol3 | AV61: 209 | AW61: 2.83 | AX61: FPH | AY61: IL TRM v9 vol3 | AZ61: 210 | BA61: 2.56 | BB61: Persons per household | BC61: IL TRM v9 vol3 | BD61: 210 | BE61: 0.95 | BF61: Installation Rate | BG61: IL TRM v9 vol3 | BH61: 212 | BI61: 0.9 | BJ61: DF | BK61: IL TRM v9 vol3 | BL61: 210 | BM61: 0.0795 | BN61: EPG_electric | BO61: IL TRM v9 vol3 | BP61: 211 | DR61: Updated references to IL TRM v9
A62: Heating, Cooling & Home Comfort | B62: Low Flow Faucet Aerator-Kitchen | C62: 246.2 | D62: Single Family | E62: Hot Water | F62: Kits | G62: per unit | H62: 8 | I62: IL TRM v7 vol3 | J62: 184 | K62: =ROUND(((AF62*AS62-AB62*AS62)*BA62*365.25*BI62/AW62)*BM62*BE62,4) -> 37.7655 | L62: Calculated Value | N62: 0.37025 | O62: 0.022 | P62: IL TRM v7 vol3 | Q62: 190193 | R62: =ROUND(((AF62*AS62-AB62*AS62)*BA62*365.25*BI62/AW62)*BM62*BE62/U62*O62,4) -> 0.0081 | S62: Calculated Value | U62: 102 | V62: IL TRM v7 vol3 | W62: 190, 197 | X62: 10 | Y62: IL TRM v7 vol3 | Z62: 184 | AA62: Low Flow (GPM) | AB62: 1.5 | AC62: Program Tracking Data | AE62: Standard (GPM) | AF62: 1.63 | AG62: IL TRM v7 vol3 | AH62: 185194 | AI62: =ROUND(((AF62*AS62-AB62*AS62)*BA62*365.25*BI62/AW62)*BM62*BE62,4) | AJ62: =ROUND(((AF62*AS62-AB62*AS62)*BA62*365.25*BI62/AW62)*BM62*BE62/U62*O62,4) | AK62: IL TRM v7 vol3 | AL62: 175, 179 | AM62: 2021-01-01 | AN62: 2021-12-31 | AS62: 4.5 | AT62: L_base = L_ee | AU62: IL TRM v7 vol3 | AV62: 186195 | AW62: 1 | AX62: FPH | AY62: IL TRM v7 vol3 | AZ62: 187 | BA62: 2.56 | BB62: Persons per household | BC62: IL TRM v7 vol3 | BD62: 187, 195 | BE62: 0.95 | BF62: Installation Rate | BG62: IL TRM v7 vol3 | BH62: 189, 196 | BI62: 0.75 | BJ62: DF | BK62: IL TRM v7 vol3 | BL62: 187 | BM62: 0.0969 | BN62: EPG_electric | BO62: IL TRM v7 vol3 | BP62: 188, 196
A63: Heating, Cooling & Home Comfort | B63: Low Flow Faucet Aerator-Kitchen | C63: 246.3 | D63: Single Family | E63: Hot Water | F63: Kits | G63: per unit | H63: 8 | I63: IL TRM v9 vol3 | J63: 207 | K63: =ROUND(((AF63*AS63-AB63*AS63)*BA63*365.25*BI63/AW63)*BM63*BE63,4) -> 37.7655 | L63: Calculated Value | N63: =K63/U63 -> 0.37025 | O63: 0.022 | P63: IL TRM v9 vol3 | Q63: 207 | R63: =ROUND(((AF63*AS63-AB63*AS63)*BA63*365.25*BI63/AW63)*BM63*BE63/U63*O63,4) -> 0.0081 | S63: Calculated Value | U63: 102 | V63: IL TRM v9 vol3 | W63: 213 | X63: 10 | Y63: IL TRM v9 vol3 | Z63: 207 | AA63: Low Flow (GPM) | AB63: 1.5 | AC63: Program Tracking Data | AE63: Standard (GPM) | AF63: 1.63 | AG63: IL TRM v9 vol3 | AH63: 208 | AI63: =ROUND(((AF63*AS63-AB63*AS63)*BA63*365.25*BI63/AW63)*BM63*BE63,4) | AJ63: =ROUND(((AF63*AS63-AB63*AS63)*BA63*365.25*BI63/AW63)*BM63*BE63/U63*O63,4) | AK63: IL TRM v9 vol3 | AL63: 208, 213 | AM63: 2022-01-01 | AS63: 4.5 | AT63: L_base = L_ee | AU63: IL TRM v9 vol3 | AV63: 209 | AW63: 1 | AX63: FPH | AY63: IL TRM v9 vol3 | AZ63: 210 | BA63: 2.56 | BB63: Persons per household | BC63: IL TRM v9 vol3 | BD63: 210 | BE63: 0.95 | BF63: Installation Rate | BG63: IL TRM v9 vol3 | BH63: 212 | BI63: 0.75 | BJ63: DF | BK63: IL TRM v9 vol3 | BL63: 210 | BM63: 0.0969 | BN63: EPG_electric | BO63: IL TRM v9 vol3 | BP63: 211 | DR63: Updated references to IL TRM v9
A64: Heating, Cooling & Home Comfort | B64: Pipe Insulated | C64: 10.3 | D64: Single Family | E64: Hot Water | F64: Kits | G64: per unit | H64: 18 | I64: IL TRM v7 vol3 | J64: 171 | K64: =ROUND(((AS64/AF64) - (AW64/AB64))*BA64*BE64*U64/BI64/3412,4) -> 123.1628 | L64: Calculated Value | N64: =K64/8766 -> 0.01405005704 | O64: 1 | P64: Calculated Value | R64: =ROUND(K64/8766,4) -> 0.0141 | S64: Calculated Value | U64: 8766 | V64: IL TRM v7 vol3 | W64: 172 | X64: 15 | Y64: IL TRM v7 vol3 | Z64: 171 | AA64: Efficient R-Value due to added insulation (R_new) | AB64: =1+5 -> 6 | AC64: Program Tracking Data | AE64: R-Value of bare pipe (R_exist) | AF64: 1 | AG64: IL TRM v7 vol3 | AH64: 172 | AI64: =ROUND(((AS64/AF64) - (AW64/AB64))*BA64*BE64*U64/BI64/3412,4) | AJ64: =ROUND(K64/8766,4) | AK64: IL TRM v7 vol3 | AL64: 171172 | AM64: 2021-01-01 | AN64: 2021-12-31 | AS64: 0.196 | AT64: C_exist | AU64: IL TRM v7 vol3 | AV64: 172 | AW64: 0.393 | AX64: C_new | AY64: IL TRM v7 vol3 | AZ64: 172 | BA64: 6 | BB64: Length of added pipe insulation | BC64: Program Tracking Data | BE64: 60 | BF64: Temperature Difference | BG64: IL TRM v7 vol3 | BH64: 172 | BI64: 0.98 | BJ64: Water heater efficiency | BK64: IL TRM v7 vol3 | BL64: 172
A65: Heating, Cooling & Home Comfort | B65: Pipe Insulated | C65: 10.4 | D65: Single Family | E65: Hot Water | F65: Kits | G65: per unit | H65: 18 | I65: IL TRM v9 vol3 | J65: 191 | K65: =ROUND(((AS65/AF65) - (AW65/AB65))*BA65*BE65*U65/BI65/3412,4) -> 133.5443 | L65: Calculated Value | N65: =K65/8766 -> 0.01523434862 | O65: 1 | P65: IL TRM v9 vol3 | R65: =ROUND(K65/8766,4) -> 0.0152 | S65: Calculated Value | U65: 8766 | V65: IL TRM v9 vol3 | W65: 172 | X65: 15 | Y65: IL TRM v9 vol3 | Z65: 191 | AA65: Efficient R-Value due to added insulation (R_new) | AB65: =1+5 -> 6 | AC65: Program Tracking Data | AE65: R-Value of bare pipe (R_exist) | AF65: 1 | AG65: IL TRM v9 vol3 | AH65: 192 | AI65: =ROUND(((AS65/AF65) - (AW65/AB65))*BA65*BE65*U65/BI65/3412,4) | AJ65: =ROUND(K65/8766,4) | AK65: IL TRM v7 vol3 | AL65: 171172 | AM65: 2022-01-01 | AS65: 0.196 | AT65: C_exist | AU65: IL TRM v9 vol3 | AV65: 192 | AW65: 0.327 | AX65: C_new | AY65: IL TRM v9 vol3 | AZ65: 192 | BA65: 6 | BB65: Length of added pipe insulation | BC65: Program Tracking Data | BE65: 60 | BF65: Temperature Difference | BG65: IL TRM v9 vol3 | BH65: 192 | BI65: 0.98 | BJ65: Water heater efficiency | BK65: IL TRM v9 vol3 | BL65: 192 | DR65: Minor changes. Updated references to IL TRM v9. Updated Circumference to align with IL TRM (previously listed value was pipe diameter)
A66: Heating, Cooling & Home Comfort | B66: Low Flow Showerhead | C66: 11.3 | D66: Single Family | E66: Hot Water | F66: Kits | G66: per unit | H66: 7 | I66: IL TRM v7 vol3 | J66: 193 | K66: =ROUND(((AF66*AS66-AB66*AS66)*BA66*365.25*AW66/BI66)*BM66*BE66,4) -> 207.4277 | L66: Calculated Value | N66: =K66/U66 -> 0.8134419608 | O66: 0.0278 | P66: IL TRM v7 vol3 | Q66: 190, 193 | R66: =ROUND(((AF66*AS66-AB66*AS66)*BA66*365.25*AW66/BI66)*BM66*BE66/U66*O66,4) -> 0.0226 | S66: Calculated Value | U66: 255 | V66: IL TRM v7 vol3 | W66: 190, 197 | X66: 10 | Y66: IL TRM v7 vol3 | Z66: 193 | AA66: Low Flow (GPM) | AB66: 1.5 | AC66: Program Tracking Data | AE66: Standard (GPM) | AF66: 2.24 | AG66: IL TRM v7 vol3 | AH66: 185, 194 | AI66: =ROUND(((AF66*AS66-AB66*AS66)*BA66*365.25*AW66/BI66)*BM66*BE66,4) | AJ66: =ROUND(((AF66*AS66-AB66*AS66)*BA66*365.25*AW66/BI66)*BM66*BE66/U66*O66,4) | AK66: IL TRM v7 vol3 | AL66: 194,197 | AM66: 2021-01-01 | AN66: 2021-12-31 | AS66: 7.8 | AT66: L_base = L_ee | AU66: IL TRM v7 vol3 | AV66: 186195 | AW66: 0.6 | AX66: SCPD | AY66: IL TRM v7 vol3 | AZ66: 195 | BA66: 2.56 | BB66: Persons per household | BC66: IL TRM v7 vol3 | BD66: 187, 195 | BE66: 0.98 | BF66: Installation Rate | BG66: IL TRM v7 vol3 | BH66: 189, 196 | BI66: 1.79 | BJ66: SPH | BK66: IL TRM v7 vol3 | BL66: 195 | BM66: 0.117 | BN66: EPG_electric | BO66: IL TRM v7 vol3 | BP66: 188, 196
A67: Heating, Cooling & Home Comfort | B67: Low Flow Showerhead | C67: 11.4 | D67: Single Family | E67: Hot Water | F67: Kits | G67: per unit | H67: 7 | I67: IL TRM v9 vol3 | J67: 217 | K67: =ROUND(((AF67*AS67-AB67*AS67)*BA67*365.25*AW67/BI67)*BM67*BE67,4) -> 205.3111 | L67: Calculated Value | N67: =K67/U67 -> 0.8051415686 | O67: 0.0278 | P67: IL TRM v9 vol3 | Q67: 217 | R67: =ROUND(((AF67*AS67-AB67*AS67)*BA67*365.25*AW67/BI67)*BM67*BE67/U67*O67,4) -> 0.0224 | S67: Calculated Value | U67: 255 | V67: IL TRM v9 vol3 | W67: 221 | X67: 10 | Y67: IL TRM v9 vol3 | Z67: 217 | AA67: Low Flow (GPM) | AB67: 1.5 | AC67: Program Tracking Data | AE67: Standard (GPM) | AF67: 2.24 | AG67: IL TRM v9 vol3 | AH67: 218 | AI67: =ROUND(((AF67*AS67-AB67*AS67)*BA67*365.25*AW67/BI67)*BM67*BE67,4) | AJ67: =ROUND(((AF67*AS67-AB67*AS67)*BA67*365.25*AW67/BI67)*BM67*BE67/U67*O67,4) | AK67: IL TRM v9 vol3 | AL67: 218, 221 | AM67: 2022-01-01 | AS67: 7.8 | AT67: L_base = L_ee | AU67: IL TRM v9 vol3 | AV67: 219 | AW67: 0.6 | AX67: SCPD | AY67: IL TRM v9 vol3 | AZ67: 219 | BA67: 2.56 | BB67: Persons per household | BC67: IL TRM v9 vol3 | BD67: 219 | BE67: 0.97 | BF67: Installation Rate | BG67: IL TRM v9 vol3 | BH67: 220 | BI67: 1.79 | BJ67: SPH | BK67: IL TRM v9 vol3 | BL67: 219 | BM67: 0.117 | BN67: EPG_electric | BO67: IL TRM v9 vol3 | BP67: 220 | DR67: Update to IL TRM v9. Update ISR from v5 to v9 based on additional survey data.
A68: Heating, Cooling & Home Comfort | B68: Water Heater Tank Wrap | C68: 12.1 | D68: Single Family | E68: Hot Water | F68: Kits | G68: per unit | H68: 20 | I68: Program Tracking Data | K68: =ROUND((AS68/AW68-BA68/BE68)*BI68*BM68/BQ68/BU68,4) -> 134.0948 | L68: Calculated Value | N68: =ROUND(0.0153,4) -> 0.0153 | O68: 1 | P68: IL TRM v7 vol3 | Q68: 203 | R68: =ROUND(K68/U68,4) -> 0.0153 | S68: Calculated Value | U68: 8766 | V68: IL TRM v7 vol3 | W68: 204 | X68: 5 | Y68: IL TRM v7 vol3 | Z68: 203 | AA68: Water heater insulation increased from R12 to R22, 50gal | AC68: IL TRM v7 vol3 | AD68: 204 | AE68: R12, 50-gal water heater insulation (no wrap) | AG68: IL TRM v7 vol3 | AH68: 204 | AI68: =ROUND((AS68/AW68-BA68/BE68)*BI68*BM68/BQ68/BU68,4) | AJ68: =ROUND(K68/U68,4) | AK68: IL TRM v7 vol3 | AL68: 203, 205 | AM68: 2020-01-01 | AN68: 2021-12-31 | AS68: 24.99 | AT68: Abase | AU68: IL TRM v7 vol3 | AV68: 204 | AW68: 12 | AX68: Rbase | AY68: IL TRM v7 vol3 | AZ68: 204 | BA68: 27.06 | BB68: Ainsul | BC68: IL TRM v7 vol3 | BD68: 204 | BE68: 22 | BF68: Rinsul | BG68: IL TRM v7 vol3 | BH68: 204 | BI68: 60 | BJ68: deltaT | BK68: IL TRM v7 vol3 | BL68: 204 | BM68: 8766 | BN68: Hours | BO68: IL TRM v7 vol3 | BP68: 204 | BQ68: 0.98 | BR68: eta DHW | BS68: IL TRM v7 vol3 | BT68: 204 | BU68: 3412 | BV68: Conversion from BTU to kWh | BW68: IL TRM v7 vol3 | BX68: 204
A69: Heating, Cooling & Home Comfort | B69: Water Heater Tank Wrap | C69: 12.2 | D69: Single Family | E69: Hot Water | F69: Kits | G69: per unit | H69: 20 | I69: Program Tracking Data | K69: =ROUND((AS69/AW69-BA69/BE69)*BI69*BM69/BQ69/BU69,4) -> 134.0948 | L69: Calculated Value | N69: =ROUND(0.0153,4) -> 0.0153 | O69: 1 | P69: IL TRM v9 vol3 | Q69: 228 | R69: =ROUND(K69/U69,4) -> 0.0153 | S69: Calculated Value | U69: 8766 | V69: IL TRM v9 vol3 | W69: 229 | X69: 5 | Y69: IL TRM v9 vol3 | Z69: 228 | AA69: Water heater insulation increased from R12 to R22, 50gal | AC69: Measure Definition | AE69: R12, 50-gal water heater insulation (no wrap) | AG69: Measure Definition | AI69: =ROUND((AS69/AW69-BA69/BE69)*BI69*BM69/BQ69/BU69,4) | AJ69: =ROUND(K69/U69,4) | AK69: IL TRM v9 vol3 | AL69: 228, 230 | AM69: 2022-01-01 | AS69: 24.99 | AT69: Abase | AU69: IL TRM v9 vol3 | AV69: 229 | AW69: 12 | AX69: Rbase | AY69: Measure Definition | BA69: 27.06 | BB69: Ainsul | BC69: IL TRM v9 vol3 | BD69: 229 | BE69: 22 | BF69: Rinsul | BG69: Measure Definition | BI69: 60 | BJ69: deltaT | BK69: IL TRM v9 vol3 | BL69: 229 | BM69: 8766 | BN69: Hours | BO69: IL TRM v9 vol3 | BP69: 229 | BQ69: 0.98 | BR69: eta DHW | BS69: IL TRM v9 vol3 | BT69: 229 | BU69: 3412 | BV69: Conversion from BTU to kWh | BW69: IL TRM v9 vol3 | BX69: 229 | DR69: Updated references to IL TRM v9
A70: Heating, Cooling & Home Comfort | B70: Smart Power Strip - Wh7-Plug | C70: 13.2 | D70: Single Family | E70: Electronics | F70: Kits | G70: per unit | H70: 16 | I70: Program Tracking Data | K70: =ROUND(103,4) -> 103 | L70: Calculated Value | N70: =K70/U70 -> 0.01444802918 | O70: 0.8 | P70: IL TRM v7 vol3 | Q70: 59 | R70: =ROUND(0.0115,4) -> 0.0115 | S70: Calculated Value | U70: 7129 | V70: IL TRM v7 vol3 | W70: 58 | X70: 7 | Y70: IL TRM v7 vol3 | Z70: 57 | AA70: Smart strip | AC70: IL TRM v7 vol3 | AD70: 57 | AE70: Standard outlet strip | AG70: IL TRM v7 vol3 | AH70: 57 | AI70: =ROUND(103,4) | AJ70: =ROUND(0.0115,4) | AK70: IL TRM v7 vol3 | AL70: 57 | AM70: 2020-01-01 | AN70: 2021-12-31
A71: Heating, Cooling & Home Comfort | B71: Smart Power Strip - Wh7-Plug | C71: 13.3 | D71: Single Family | E71: Electronics | F71: Kits | G71: per unit | H71: 16 | I71: Program Tracking Data | K71: =ROUND(103,4) -> 103 | L71: IL TRM v9 vol3 | M71: 65 | N71: 0.01444802918 | O71: 0.8 | P71: IL TRM v9 vol3 | Q71: 64 | R71: =ROUND(0.0115,4) -> 0.0115 | S71: Calculated Value | U71: 7129 | V71: IL TRM v9 vol3 | W71: 65 | X71: 7 | Y71: IL TRM v9 vol3 | Z71: 63 | AA71: Smart strip | AC71: IL TRM v9 vol3 | AD71: 63 | AE71: Standard outlet strip | AG71: IL TRM v9 vol3 | AH71: 63 | AI71: =ROUND(103,4) | AJ71: =ROUND(0.0115,4) | AK71: IL TRM v9 vol3 | AL71: 63 | AM71: 2022-01-01 | DR71: Confirm DI savings, updated references to IL TRM v9
A72: Heating, Cooling & Home Comfort | B72: Air Sealing | C72: 14.4 | D72: Single Family | E72: HVAC - Shell | G72: per sq ft (floor area) | H72: 0.12 | I72: Program Tracking Data, with 50% co-delivery costs shared with Spire Missouri | K72: =ROUND((BQ72*BY72*((AF72-AB72)/BE72*AS72*BM72*AO72)/BA72)/BU72+(((AF72-AB72)/BI72*AS72*AP72)/AW72)/BU72,4) -> 0.3857 | L72: Calculated Value | N72: 0.0005226287263 | O72: 0.68 | P72: IL TRM v7 vol3 | Q72: 296 | R72: =ROUND(((BQ72*BY72*((AF72-AB72)/BE72*AS72*BM72*AO72)/BA72)/BU72)/U72*O72,8) -> 6.872e-05 | S72: Calculated Value | U72: 738 | V72: EFLHcool, from 2017 MO TRM | W72: 122 | X72: 20 | Y72: IL TRM v7 vol3 | Z72: 295 | AA72: Efficient CFM | AB72: 3014 | AC72: Program Tracking Data | AE72: Baseline CFM | AF72: 4134 | AG72: Program Tracking Data | AI72: =ROUND((BQ72*BY72*((AF72-AB72)/BE72*AS72*BM72*AO72)/BA72)/BU72+(((AF72-AB72)/BI72*AS72*AP72)/AW72)/BU72,4) | AJ72: =ROUND(((BQ72*BY72*((AF72-AB72)/BE72*AS72*BM72*AO72)/BA72)/BU72)/U72*O72,8) | AK72: IL TRM v7 vol3 | AL72: 296, 301 | AM72: 2021-01-01 | AN72: 2021-12-31 | AO72: 1445 | AP72: 5155 | AQ72: MO TRM and Navigant Analysis | AS72: =60*24*0.018 -> 25.92 | AT72: Air Sealing Coefficient: 60 * 24 * 0.018 | AU72: IL TRM v7 vol3 | AV72: 297 | AW72: =1.92*3412 -> 6551.04 | AX72: Heating Coefficient: COP * 3,412 COP = 1.7 for units before 2006 COP = 1.92 for units between 2006-2014 COP = 2.4 for units after 2014 | AY72: IL TRM v7 vol3 | AZ72: 299 | BA72: 13000 | BB72: Cooling Coefficient: SEER * 1,000. | BC72: IL TRM v7 vol3 SEER 10 for units before 2006 SEER 13 for units after 2006 | BD72: 296 | BE72: 35.8 | BF72: Ncool: Infiltration conversion factor | BG72: IL TRM v7 vol3 | BH72: 296 | BI72: 22.5 | BJ72: Nheat: Infiltration conversion factor | BK72: IL TRM v7 vol3 | BL72: 298 | BM72: 0.75 | BN72: DUA: Discretionary Use Adjustment | BO72: IL TRM v7 vol3 | BP72: 297 | BQ72: 3.6 | BR72: LM: Latent Cooling Multiplier | BS72: IL TRM v7 vol3 | BT72: 297 | BU72: 3263 | BV72: Square footage installed | BW72: Program tracking Data | BY72: 1 | BZ72: ADJ Air Sealing Cool | CA72: IL TRM v7 vol3 | CB72: 298
A73: Heating, Cooling & Home Comfort | B73: Air Sealing | C73: 14.5 | D73: Single Family | E73: HVAC - Shell | G73: per sq ft (floor area) | H73: 0.12 | I73: Program Tracking Data, with 50% co-delivery costs shared with Spire Missouri | K73: =ROUND((BQ73*BY73*((AF73-AB73)/BE73*AS73*BM73*AO73)/BA73)/BU73+(((AF73-AB73)/BI73*AS73*AP73)/AW73)/BU73,4) -> 0.3857 | L73: Calculated Value | N73: 0.0005226287263 | O73: 0.68 | P73: IL TRM v9 vol3 | Q73: 305 | R73: =ROUND(((BQ73*BY73*((AF73-AB73)/BE73*AS73*BM73*AO73)/BA73)/BU73)/U73*O73,8) -> 6.872e-05 | S73: Calculated Value | U73: 738 | V73: EFLHcool, from 2017 MO TRM | W73: 122 | X73: 20 | Y73: IL TRM v9 vol3 | Z73: 304 | AA73: Efficient CFM | AB73: 3014 | AC73: Program Tracking Data | AE73: Baseline CFM | AF73: 4134 | AG73: Program Tracking Data | AI73: =ROUND((BQ73*BY73*((AF73-AB73)/BE73*AS73*BM73*AO73)/BA73)/BU73+(((AF73-AB73)/BI73*AS73*AP73)/AW73)/BU73,4) | AJ73: =ROUND(((BQ73*BY73*((AF73-AB73)/BE73*AS73*BM73*AO73)/BA73)/BU73)/U73*O73,8) | AK73: IL TRM v9 vol3 | AL73: 305, 312 | AM73: 2022-01-01 | AO73: 1445 | AP73: 5155 | AQ73: MO TRM and Navigant Analysis | AS73: =60*24*0.018 -> 25.92 | AT73: Air Sealing Coefficient: 60 * 24 * 0.018 | AU73: IL TRM v9 vol3 | AV73: 305 | AW73: =1.92*3412 -> 6551.04 | AX73: Heating Coefficient: COP * 3,412 COP = 1.7 for units before 2006 COP = 1.92 for units between 2006-2014 COP = 2.4 for units after 2014 | AY73: IL TRM v9 vol3 | AZ73: 308 | BA73: 13000 | BB73: Cooling Coefficient: SEER * 1,000. | BC73: IL TRM v9 vol3 SEER 10 for units before 2006 SEER 13 for units after 2006 | BD73: 308 | BE73: 35.8 | BF73: Ncool: Infiltration conversion factor | BG73: IL TRM v9 vol3 (St. Louis MO, 1.5 stories) | BH73: 306 | BI73: 22.5 | BJ73: Nheat: Infiltration conversion factor | BK73: IL TRM v9 vol3 (St Louis MO, 1.5 stories) | BL73: 308 | BM73: 0.75 | BN73: DUA: Discretionary Use Adjustment | BO73: IL TRM v9 vol3 | BP73: 306 | BQ73: 3.6 | BR73: LM: Latent Cooling Multiplier | BS73: IL TRM v9 vol3 (St Louis) | BT73: 307 | BU73: 3263 | BV73: Square footage installed | BW73: Program tracking Data | BY73: 1 | BZ73: ADJ Air Sealing Cool (No attic insulation) | CA73: IL TRM v9 vol3 | CB73: 307 | DR73: Updated references to IL TRM v9
A74: Heating, Cooling & Home Comfort | B74: Increased Ceiling Insulation | C74: 15.4 | D74: Single Family | E74: HVAC - Shell | G74: per sq ft (ceiling area) | H74: 0.76 | I74: Program Tracking Data, with 50% co-delivery costs shared with Spire Missouri | K74: =ROUND(((((1/AF74-1/AB74)*(1-BE74)*24*AO74*BA74)/AW74)*BI74)+((((1/AF74-1/AB74)*(1-BE74)*24*AP74)/AS74)*BM74),4) -> 0.4283 | L74: Calculated Value | N74: 0.0005803523035 | O74: 0.7 | P74: IL TRM v7 vol3 | Q74: 327 | R74: =ROUND((((((1/AF74-1/AB74)*(1-BE74)*24*AO74*BA74)/AW74)*BI74)/U74)*O74,8) -> 7.152e-05 | S74: Calculated Value | U74: 738 | V74: EFLHcool, from 2017 MO TRM | W74: 122 | X74: 20 | Y74: IL TRM v7 vol3 | Z74: 327 | AA74: Final R-value | AB74: 41.03164557 | AC74: Program Tracking Data | AE74: Previous R-value | AF74: 17.28280255 | AG74: Program Tracking Data | AI74: =cellformula(K74) -> =ROUND(((((1/AF74-1/AB74)*(1-BE74)*24*AO74*BA74)/AW74)*BI74)+((((1/AF74-1/AB74)*(1-BE74)*24*AP74)/AS74)*BM74),4) | AJ74: =cellformula(R74) -> =ROUND((((((1/AF74-1/AB74)*(1-BE74)*24*AO74*BA74)/AW74)*BI74)/U74)*O74,8) | AK74: IL TRM v7 vol3 | AL74: 328331 | AM74: 2021-01-01 | AN74: 2021-12-31 | AO74: 1445 | AP74: 5155 | AQ74: MO TRM and Navigant Analysis | AS74: =1.92*3412 -> 6551.04 | AT74: Heating Coefficient: COP * 3,412 COP = 1.7 for units before 2006 COP = 1.92 for units between 2006-2014 COP = 2.4 for units after 2014 | AU74: IL TRM v7 vol3 | AV74: 330 | AW74: 13000 | AX74: Cooling Coefficient | AY74: IL TRM v7 vol3: SEER * 1,000. SEER 10 for units before 2006 SEER 13 for units after 2006 | AZ74: 329 | BA74: 0.75 | BB74: DUA: Discretionary Use Adjustment | BC74: IL TRM v7 vol3 | BD74: 329 | BE74: 0.07 | BF74: Framing Factor, Ceiling | BG74: IL TRM v7 vol3 | BH74: 328 | BI74: 1.21 | BJ74: ADJcool: adjustment for cooling savings from basement wall insulation | BK74: IL TRM v7 vol3 | BL74: 329 | BM74: 0.6 | BN74: ADJheat: adjustment for wall and attic insulation | BO74: IL TRM v7 vol3 | BP74: 330
A75: Heating, Cooling & Home Comfort | B75: Increased Ceiling Insulation | C75: 15.5 | D75: Single Family | E75: HVAC - Shell | G75: per sq ft (ceiling area) | H75: 0.76 | I75: Program Tracking Data, with 50% co-delivery costs shared with Spire Missouri | K75: =ROUND(((((1/AF75-1/AB75)*(1-BE75)*24*AO75*BA75)/AW75)*BI75)+((((1/AF75-1/AB75)*(1-BE75)*24*AP75)/AS75)*BM75),4) -> 0.4283 | L75: Calculated Value | N75: 0.0005803523035 | O75: 0.7 | P75: IL TRM v9 vol3 | Q75: 342 | R75: =ROUND((((((1/AF75-1/AB75)*(1-BE75)*24*AO75*BA75)/AW75)*BI75)/U75)*O75,8) -> 7.152e-05 | S75: Calculated Value | U75: 738 | V75: EFLHcool, from 2017 MO TRM | W75: 122 | X75: 20 | Y75: IL TRM v9 vol3 | Z75: 342 | AA75: Final R-value | AB75: 41.03164557 | AC75: Program Tracking Data | AE75: Previous R-value | AF75: 17.28280255 | AG75: Program Tracking Data | AI75: =ROUND(((((1/AF75-1/AB75)*(1-BE75)*24*AO75*BA75)/AW75)*BI75)+((((1/AF75-1/AB75)*(1-BE75)*24*AP75)/AS75)*BM75),4) | AJ75: =ROUND((((((1/AF75-1/AB75)*(1-BE75)*24*AO75*BA75)/AW75)*BI75)/U75)*O75,8) | AK75: IL TRM v9 vol3 | AL75: 328331 | AM75: 2022-01-01 | AO75: 1445 | AP75: 5155 | AQ75: MO TRM and Navigant Analysis | AS75: =1.92*3412 -> 6551.04 | AT75: Heating Coefficient: COP * 3,412 COP = 1.7 for units before 2006 COP = 1.92 for units between 2006-2014 COP = 2.4 for units after 2014 | AU75: IL TRM v9 vol3 | AV75: 345 | AW75: 13000 | AX75: Cooling Coefficient | AY75: IL TRM v9 vol3: SEER * 1,000. SEER 10 for units before 2006 SEER 13 for units after 2006 | AZ75: 344 | BA75: 0.75 | BB75: DUA: Discretionary Use Adjustment | BC75: IL TRM v9 vol3 | BD75: 344 | BE75: 0.07 | BF75: Framing Factor, Ceiling | BG75: IL TRM v9 vol3 | BH75: 344 | BI75: 1.21 | BJ75: ADJcool: adjustment for cooling savings from basement wall insulation | BK75: IL TRM v9 vol3 | BL75: 344 | BM75: 0.6 | BN75: ADJheat: adjustment for wall and attic insulation | BO75: IL TRM v9 vol3 | BP75: 346 | DR75: Updated references to IL TRM v9
A76: Heating, Cooling & Home Comfort | B76: Increased Wall Insulation | C76: 16.4 | D76: Single Family | E76: HVAC - Shell | G76: per sq ft (wall area) | H76: 1.32 | I76: Program Tracking Data, with 50% co-delivery costs shared with Spire Missouri | K76: =ROUND(((((1/AF76-1/AB76)*(1-BE76)*24*AO76*BA76)/AW76)*BI76)+((((1/AF76-1/AB76)*(1-BE76)*24*AP76)/AS76)*BM76),4) -> 0.8476 | L76: Calculated Value | N76: 0.001148509485 | O76: 0.7 | P76: IL TRM v7 vol3 | Q76: 320 | R76: =ROUND((((((1/AF76-1/AB76)*(1-BE76)*24*AO76*BA76)/AW76)*BI76)/U76)*O76,8) -> 9.951e-05 | S76: Calculated Value | U76: 738 | V76: EFLHcool, from 2017 MO TRM | W76: 122 | X76: 20 | Y76: IL TRM v7 vol3 | Z76: 320 | AA76: Final R-value | AB76: 17.23484848 | AC76: Program Tracking Data | AE76: Previous R-value | AF76: 6.876923077 | AG76: Program Tracking Data | AI76: =ROUND(((((1/AF76-1/AB76)*(1-BE76)*24*AO76*BA76)/AW76)*BI76)+((((1/AF76-1/AB76)*(1-BE76)*24*AP76)/AS76)*BM76),4) | AJ76: =ROUND((((((1/AF76-1/AB76)*(1-BE76)*24*AO76*BA76)/AW76)*BI76)/U76)*O76,8) | AK76: IL TRM v7 vol3 | AL76: 321324 | AM76: 2021-01-01 | AN76: 2021-12-31 | AO76: 1445 | AP76: 5155 | AQ76: MO TRM and Navigant Analysis | AS76: =1.92*3412 -> 6551.04 | AT76: Heating Coefficient: COP * 3,412 COP = 1.7 for units before 2006 COP = 1.92 for units between 2006-2014 COP = 2.4 for units after 2014 | AU76: IL TRM v7 vol3 | AV76: 323 | AW76: 13000 | AX76: Cooling Coefficient | AY76: IL TRM v7 vol3: SEER * 1,000. SEER 10 for units before 2006 SEER 13 for units after 2006 | AZ76: 322 | BA76: 0.75 | BB76: DUA: Discretionary Use Adjustment | BC76: IL TRM v7 vol3 | BD76: 322 | BE76: 0.25 | BF76: Framing Factor, Wall | BG76: IL TRM v7 vol3 | BH76: 321 | BI76: 0.8 | BJ76: ADJcool: adjustment for cooling savings from basement wall insulation | BK76: IL TRM v7 vol3 | BL76: 322 | BM76: 0.6 | BN76: ADJheat: adjustment for wall and attic insulation | BO76: IL TRM v7 vol3 | BP76: 323
A77: Heating, Cooling & Home Comfort | B77: Increased Wall Insulation | C77: 16.5 | D77: Single Family | E77: HVAC - Shell | G77: per sq ft (wall area) | H77: 1.32 | I77: Program Tracking Data, with 50% co-delivery costs shared with Spire Missouri | K77: =ROUND(((((1/AF77-1/AB77)*(1-BE77)*24*AO77*BA77)/AW77)*BI77)+((((1/AF77-1/AB77)*(1-BE77)*24*AP77)/AS77)*BM77),4) -> 0.8476 | L77: Calculated Value | N77: 0.001148509485 | O77: 0.7 | P77: IL TRM v9 vol3 | Q77: 334 | R77: =ROUND((((((1/AF77-1/AB77)*(1-BE77)*24*AO77*BA77)/AW77)*BI77)/U77)*O77,8) -> 9.951e-05 | S77: Calculated Value | U77: 738 | V77: EFLHcool, from 2017 MO TRM | W77: 122 | X77: 20 | Y77: IL TRM v9 vol3 | Z77: 334 | AA77: Final R-value | AB77: 17.23484848 | AC77: Program Tracking Data | AE77: Previous R-value | AF77: 6.876923077 | AG77: Program Tracking Data | AI77: =ROUND(((((1/AF77-1/AB77)*(1-BE77)*24*AO77*BA77)/AW77)*BI77)+((((1/AF77-1/AB77)*(1-BE77)*24*AP77)/AS77)*BM77),4) | AJ77: =ROUND((((((1/AF77-1/AB77)*(1-BE77)*24*AO77*BA77)/AW77)*BI77)/U77)*O77,8) | AK77: IL TRM v9 vol3 | AL77: 335, 338 | AM77: 2022-01-01 | AO77: 1445 | AP77: 5155 | AQ77: MO TRM and Navigant Analysis | AS77: =1.92*3412 -> 6551.04 | AT77: Heating Coefficient: COP * 3,412 COP = 1.7 for units before 2006 COP = 1.92 for units between 2006-2014 COP = 2.4 for units after 2014 | AU77: IL TRM v9 vol3 | AV77: 337 | AW77: 13000 | AX77: Cooling Coefficient | AY77: IL TRM v9 vol3: SEER * 1,000. SEER 10 for units before 2006 SEER 13 for units after 2006 | AZ77: 336 | BA77: 0.75 | BB77: DUA: Discretionary Use Adjustment | BC77: IL TRM v9 vol3 | BD77: 336 | BE77: 0.25 | BF77: Framing Factor, Wall | BG77: IL TRM v9 vol3 | BH77: 335 | BI77: 0.8 | BJ77: ADJcool: adjustment for cooling savings from basement wall insulation | BK77: IL TRM v9 vol3 | BL77: 335 | BM77: 0.6 | BN77: ADJheat: adjustment for wall and attic insulation | BO77: IL TRM v9 vol3 | BP77: 337 | DR77: Updated references to IL TRM v9
A78: Heating, Cooling & Home Comfort | B78: Heat Pump Ductless Mini Split | C78: 20.4 | D78: Single Family | E78: All | G78: per unit | H78: 3787.974684 | I78: IL TRM v7 vol3 | J78: 138 | K78: =ROUND((BM78*AS78*(1/AF78-1/AB78))/1000+(BQ78*AS78*(1/BA78-1/AW78)/1000),4) -> 1655.2989 | L78: Calculated Value | N78: 2.242952439 | O78: 0.43 | P78: IL TRM v7 vol3 | Q78: 139 | R78: =ROUND((AS78*(1/BI78-1/BE78)/1000)*O78,4) -> 0.0655 | S78: Calculated Value | U78: 738 | V78: MO TRM 2017 vol 3 | W78: 85 | X78: 15 | Y78: IL TRM v7 vol3 | Z78: 138 | AA78: SEER | AB78: 22.94 | AC78: per PY2018 Metadata | AE78: SEER | AF78: 13 | AG78: IL TRM v7 vol3 | AH78: 142 | AI78: =ROUND((BM78*AS78*(1/AF78-1/AB78))/1000+(BQ78*AS78*(1/BA78-1/AW78)/1000),4) | AJ78: =ROUND((AS78*(1/BI78-1/BE78)/1000)*O78,4) | AK78: IL TRM v7 vol3 | AL78: 140143 | AM78: 2020-05-01 | AN78: 2021-12-31 | AS78: 12000 | AT78: Allows for Capacity input in Tons; converts tons to BTUs | AW78: 11.12424242 | AX78: HSPFee | AY78: Calculated per PY2018 Metadata | BA78: =(8.2+3.41)/2 -> 5.805 | BB78: HSPFbase | BC78: IL TRM v7 vol3 | BD78: 141 (average of two unit types) | BE78: 12.78461538 | BF78: EERee | BG78: Calculated per PY2016 Metadata | BI78: 11 | BJ78: EERbase | BK78: IL TRM v7 vol3 | BL78: 143 | BM78: 738 | BN78: EFLHcool | BO78: 2017 MO TRM, vol 3 | BP78: 85 | BQ78: 1376 | BR78: EFLHheat | BS78: The EFLH Cooling and Heating hours are based on a EnergyStar study that was normalized (based on HDD and CDD) to Kansas City. This was for both AC and HP units.
A79: Heating, Cooling & Home Comfort | B79: Heat Pump Ductless Mini Split - Replace at fail / Time of Sale | C79: 20.5 | D79: Single Family | E79: All | G79: per ton | H79: 660 | I79: IL TRM v9 vol3 | J79: 152 | K79: =ROUND((BM79*AS79*(1/AF79-1/AB79))/1000+(BQ79*AS79*(1/BA79-1/AW79)/1000),4) -> 1655.2989 | L79: Calculated Value | N79: 2.242952439 | O79: 0.43 | P79: IL TRM v9 vol3 | Q79: 154 | R79: =ROUND((AS79*(1/BI79-1/BE79)/1000)*O79,4) -> 0.0655 | S79: Calculated Value | U79: 738 | V79: MO TRM 2017 vol 3 | W79: 85 | X79: 15 | Y79: IL TRM v9 vol3 | Z79: 153 | AA79: SEER | AB79: 22.94 | AC79: per PY2018 Metadata | AE79: SEER | AF79: 13 | AG79: IL TRM v9 vol3 | AH79: 157 | AI79: =ROUND((BM79*AS79*(1/AF79-1/AB79))/1000+(BQ79*AS79*(1/BA79-1/AW79)/1000),4) | AJ79: =ROUND((AS79*(1/BI79-1/BE79)/1000)*O79,4) | AK79: IL TRM v9 vol3 | AL79: 156, 160 | AM79: 2022-01-01 | AS79: 12000 | AT79: Allows for Capacity input in Tons; converts tons to BTUs | AW79: 11.12424242 | AX79: HSPFee | AY79: Calculated per PY2018 Metadata | BA79: =(8.2+3.41)/2 -> 5.805 | BB79: HSPFbase | BC79: IL TRM v9 vol3 | BD79: 141 (average of two unit types) | BE79: 12.78461538 | BF79: EERee | BG79: Calculated per PY2016 Metadata | BI79: 11 | BJ79: EERbase | BK79: IL TRM v9 vol3 | BL79: 161 | BM79: 738 | BN79: EFLHcool | BO79: 2017 MO TRM, vol 3 | BP79: 85 | BQ79: 1376 | BR79: EFLHheat | BS79: The EFLH Cooling and Heating hours are based on a EnergyStar study that was normalized (based on HDD and CDD) to Kansas City. This was for both AC and HP units. | DR79: Check HSPF_base
A80: Heating, Cooling & Home Comfort | B80: Heat Pump Ductless Mini Split - Early Replacement | C80: 521 | D80: Single Family | E80: All | G80: per ton | H80: 2000 | I80: IL TRM v9 vol3 | J80: 153 | K80: =ROUND((BM80*AS80*(1/AF80-1/AB80))/1000+(BQ80*AS80*(1/BA80-1/AW80)/1000),4) -> 2062.3871 | L80: Calculated Value | N80: 2.794562466 | O80: 0.43 | P80: IL TRM v9 vol3 | Q80: 154 | R80: =ROUND((AS80*(1/BI80-1/BE80)/1000)*O80,4) -> 0.2844 | S80: Calculated Value | U80: 738 | V80: MO TRM 2017 vol 3 | W80: 85 | X80: 6 | Y80: IL TRM v9 vol3 | Z80: 153 | AA80: SEER | AB80: 22.94 | AC80: per PY2018 Metadata | AE80: SEER | AF80: 9.3 | AG80: IL TRM v9 vol3 | AH80: 157 | AI80: =ROUND((BM80*AS80*(1/AF80-1/AB80))/1000+(BQ80*AS80*(1/BA80-1/AW80)/1000),4) | AJ80: =ROUND((AS80*(1/BI80-1/BE80)/1000)*O80,4) | AK80: IL TRM v9 vol3 | AL80: 156, 160 | AM80: 2022-01-01 | AS80: 12000 | AT80: Allows for Capacity input in Tons; converts tons to BTUs | AW80: 11.12424242 | AX80: HSPFee | AY80: Calculated per PY2018 Metadata | BA80: 5.54 | BB80: HSPFbase | BC80: IL TRM v9 vol3 | BD80: 141 (average of two unit types) | BE80: 12.78461538 | BF80: EERee | BG80: Calculated per PY2016 Metadata | BI80: 7.5 | BJ80: EERbase | BK80: IL TRM v9 vol3 | BL80: 161 | BM80: 738 | BN80: EFLHcool | BO80: 2017 MO TRM, vol 3 | BP80: 85 | BQ80: 1376 | BR80: EFLHheat | BS80: The EFLH Cooling and Heating hours are based on a EnergyStar study that was normalized (based on HDD and CDD) to Kansas City. This was for both AC and HP units. | DR80: Check HSPF_base
A81: Heating, Cooling & Home Comfort | B81: Heat Pump Ductless Mini Split - Early Replacement (future) | C81: 522 | D81: Single Family | E81: All | G81: per ton | H81: 0 | I81: IL TRM v9 vol3 | J81: 153 | K81: =ROUND((BM81*AS81*(1/AF81-1/AB81))/1000+(BQ81*AS81*(1/BA81-1/AW81)/1000),4) -> 824.5129 | L81: Calculated Value | N81: 1.117226152 | O81: 0.43 | P81: IL TRM v9 vol3 | Q81: 154 | R81: =ROUND((AS81*(1/BI81-1/BE81)/1000)*O81,4) -> 0.0655 | S81: Calculated Value | U81: 738 | V81: MO TRM 2017 vol 3 | W81: 85 | X81: 9 | Y81: IL TRM v9 vol3 | Z81: 153 | AA81: SEER | AB81: 22.94 | AC81: per PY2018 Metadata | AE81: SEER | AF81: 13 | AG81: IL TRM v9 vol3 | AH81: 157 | AI81: =ROUND((BM81*AS81*(1/AF81-1/AB81))/1000+(BQ81*AS81*(1/BA81-1/AW81)/1000),4) | AJ81: =ROUND((AS81*(1/BI81-1/BE81)/1000)*O81,4) | AK81: IL TRM v9 vol3 | AL81: 156, 160 | AM81: 2022-01-01 | AS81: 12000 | AT81: Allows for Capacity input in Tons; converts tons to BTUs | AW81: 11.12424242 | AX81: HSPFee | AY81: Calculated per PY2018 Metadata | BA81: 8.2 | BB81: HSPFbase | BC81: IL TRM v9 vol3 | BD81: 141 (average of two unit types) | BE81: 12.78461538 | BF81: EERee | BG81: Calculated per PY2016 Metadata | BI81: 11 | BJ81: EERbase | BK81: IL TRM v9 vol3 | BL81: 161 | BM81: 738 | BN81: EFLHcool | BO81: 2017 MO TRM, vol 3 | BP81: 85 | BQ81: 1376 | BR81: EFLHheat | BS81: The EFLH Cooling and Heating hours are based on a EnergyStar study that was normalized (based on HDD and CDD) to Kansas City. This was for both AC and HP units. | DR81: Check HSPF_base
A82: Heating, Cooling & Home Comfort | B82: CAC SEER 15 | C82: 21.4 | D82: Single Family | E82: HVAC | G82: per ton | H82: =108/3.5 -> 30.85714286 | I82: IL TRM v7 vol3 | J82: 77 | K82: =ROUND((BE82*AW82*(1/((1-BU82)*AF82)-1/((1-BY82)*(CC82)*AB82)))/1000,4) -> 122.1065 | L82: Calculated Value | N82: 0.1654559621 | O82: 0.68 | P82: IL TRM v7 vol3 | Q82: 81 | R82: =ROUND(((AW82*((1/((1-BU82)*BA82))-(1/((1-BY82)*AS82))))/1000)*O82,4) -> 0.1301 | S82: Calculated Value | U82: 738 | V82: EFLHcool, from 2017 MO TRM Vol. 3 | W82: 122 | X82: 18 | Y82: IL TRM v7 vol3 | Z82: 77 | AA82: SEERee | AB82: 15.12 | AC82: Average SEER value of equipment installed in portfolio | AE82: SEERbase | AF82: 13 | AG82: IL TRM v7 vol3 | AH82: 79 | AI82: =ROUND((BE82*AW82*(1/((1-BU82)*AF82)-1/((1-BY82)*(CC82)*AB82)))/1000,4) | AJ82: =ROUND(((AW82*((1/((1-BU82)*BA82))-(1/((1-BY82)*AS82))))/1000)*O82,4) | AK82: IL TRM v7 vol3 | AL82: 78, 80 | AM82: 2020-05-01 | AN82: 2021-12-31 | AS82: =1.12*AB82-0.02*AB82^2 -> 12.362112 | AT82: EERee | AU82: Calculated value | AW82: 12000 | AX82: Allows for Capacity input in Tons; converts tons to BTUs | BA82: 10.5 | BB82: EERbase | BC82: IL TRM v7 vol3 | BD82: 81 | BE82: 738 | BF82: EFLHcool | BG82: EFLHcool, from 2017 MO TRM Vol. 3 | BH82: 122 | BI82: 1376 | BJ82: EFLHheat | BK82: The EFLH Cooling and Heating hours are based on a EnergyStar study that was normalized (based on HDD and CDD) to Kansas City. This was for both AC and HP units. | BU82: 0.1 | BV82: DeratingCoolBase | BW82: IL TRM v7 vol3 | BX82: 80 | BY82: 0.1 | BZ82: DeratingCoolEff | CA82: IL TRM v7 vol3 | CB82: 80 | CC82: =0.805*(AS82/AB82)+0.367 -> 1.025168 | CD82: SEERadj | CE82: Caclulated value, using alhgorthim from IL TRM v7 vol3 | CF82: 79,80
A83: Heating, Cooling & Home Comfort | B83: CAC SEER 15 | C83: 21.5 | D83: Single Family | E83: HVAC | G83: per ton | H83: =108/3.5 -> 30.85714286 | I83: IL TRM v9 vol3 (assumed 3.5 Ton system) | J83: 91 | K83: =ROUND((BE83*AW83*(1/((1-BM83)*AF83)-1/((1-BQ83)*(BU83)*AB83)))/1000,4) -> 122.1065 | L83: Calculated Value | N83: 0.1654559621 | O83: 0.68 | P83: IL TRM v9 vol3 | Q83: 92 | R83: =ROUND(((AW83*((1/((1-BM83)*BA83))-(1/((1-BQ83)*AS83))))/1000)*O83,4) -> 0.1301 | S83: Calculated Value | U83: 738 | V83: EFLHcool, from 2017 MO TRM Vol. 3 | W83: 122 | X83: 18 | Y83: IL TRM v9 vol3 | Z83: 91 | AA83: SEERee | AB83: 15.12 | AC83: Average SEER value of equipment installed in portfolio | AE83: SEERbase | AF83: 13 | AG83: IL TRM v9 vol3 | AH83: 93 | AI83: =ROUND((BE83*AW83*(1/((1-BM83)*AF83)-1/((1-BQ83)*(BU83)*AB83)))/1000,4) | AJ83: =ROUND(((AW83*((1/((1-BM83)*BA83))-(1/((1-BQ83)*AS83))))/1000)*O83,4) | AK83: IL TRM v9 vol3 | AL83: 92, 94 | AM83: 2022-01-01 | AS83: =1.12*AB83-0.02*AB83^2 -> 12.362112 | AT83: EERee | AU83: Calculated value | AW83: 12000 | AX83: Allows for Capacity input in Tons; converts tons to BTUs | BA83: 10.5 | BB83: EERbase | BC83: IL TRM v9 vol3 | BD83: 95 | BE83: 738 | BF83: EFLHcool | BG83: EFLHcool, from 2017 MO TRM Vol. 3 | BH83: 122 | BI83: 1376 | BJ83: EFLHheat | BK83: The EFLH Cooling and Heating hours are based on a EnergyStar study that was normalized (based on HDD and CDD) to Kansas City. This was for both AC and HP units. | BM83: 0.1 | BN83: DeratingCoolBase | BO83: IL TRM v9 vol3 | BP83: 94 | BQ83: 0.1 | BR83: DeratingCoolEff | BS83: IL TRM v9 vol3 | BT83: 94 | BU83: =0.805*(AS83/AB83)+0.367 -> 1.025168 | BV83: SEERadj | BW83: Caclulated value, using alhgorthim from IL TRM v7 vol3 | BX83: 79,80 | DR83: Updated references to IL TRM v9
A84: Heating, Cooling & Home Comfort | B84: CAC SEER 15 - Early Replacement | C84: 22.4 | D84: Single Family | E84: HVAC | G84: per ton | H84: =DA84+DE84/DM84-DI84/DM84*(1+CW84)^(-X84) -> 231.514124 | I84: IL TRM v7 vol3 | J84: 77 | K84: =ROUND((BE84*AW84*(1/((1-BU84)*AF84)-1/((1-BY84)*(CC84)*AB84)))/1000,4) -> 424.2064 | L84: Calculated Value | N84: 0.5748054201 | O84: 0.68 | P84: IL TRM v7 vol3 | Q84: 78 | R84: =ROUND(((AW84*((1/((1-BU84)*BA84))-(1/((1-BY84)*AS84))))/1000)*O84,4) -> 0.4764 | S84: Calculated Value | U84: 738 | V84: EFLHcool, from 2017 MO TRM Vol. 3 | W84: 122 | X84: 6 | Y84: IL TRM v7 vol3 | Z84: 77 | AA84: SEERee | AB84: 15.15 | AC84: Average SEER value of equipment installed in portfolio | AE84: SEERexist | AF84: 9.3 | AG84: IL TRM v7 vol3 | AH84: 79 | AI84: =ROUND((BE84*AW84*(1/((1-BU84)*AF84)-1/((1-BY84)*(CC84)*AB84)))/1000,4) | AJ84: =ROUND(((AW84*((1/((1-BU84)*BA84))-(1/((1-BY84)*AS84))))/1000)*O84,4) | AK84: IL TRM v7 vol3 | AL84: 78, 80 | AM84: 2020-05-01 | AN84: 2021-12-31 | AS84: 12.37755 | AT84: EERee | AU84: Calculated value | AW84: 12000 | AX84: Allows for Capacity input in Tons; converts tons to BTUs | BA84: 7.5 | BB84: EERexist | BC84: IL TRM v7 vol3 | BD84: 81 | BE84: 738 | BF84: EFLHcool | BG84: EFLHcool, from 2017 MO TRM Vol. 3 | BH84: 122 | BI84: 1376 | BJ84: EFLHheat | BK84: The EFLH Cooling and Heating hours are based on a EnergyStar study that was normalized (based on HDD and CDD) to Kansas City. This was for both AC and HP units. | BU84: 0.1 | BV84: DeratingCoolBase | BW84: IL TRM v7 vol3 | BX84: 80 | BY84: 0.1 | BZ84: DeratingCoolEff | CA84: IL TRM v7 vol3 | CB84: 80 | CC84: 1.024685 | CD84: SEERadj | CE84: Caclulated value, using alhgorthim from IL TRM v7 vol3 | CF84: 79,80 | CW84: 0.03 | CX84: Societal Discount Rate | CY84: Evergy Standard | DA84: 952 | DB84: First Cost $/ton | DC84: IL TRM v7 vol3 | DD84: 77 | DE84: 108 | DF84: One-time per-system labor cost | DG84: IL TRM v7 vol3 | DH84: 77 | DI84: 3140 | DJ84: Deferred cost savings, per UNIT | DK84: IL TRM v7 vol3 | DL84: 78 | DM84: 3.5 | DN84: Assumed average system tons | DO84: Tracking Data
A85: Heating, Cooling & Home Comfort | B85: CAC SEER 15 - Early Replacement | C85: 22.5 | D85: Single Family | E85: HVAC | G85: per ton | H85: =CC85+CG85/CO85-CK85/CO85*(1+BY85)^(-X85) -> 231.514124 | I85: IL TRM v9 vol3 | J85: 91 | K85: =ROUND((BE85*AW85*(1/((1-BM85)*AF85)-1/((1-BQ85)*(BU85)*AB85)))/1000,4) -> 424.2064 | L85: Calculated Value | N85: 0.5748054201 | O85: 0.68 | P85: IL TRM v9 vol3 | Q85: 92 | R85: =ROUND(((AW85*((1/((1-BM85)*BA85))-(1/((1-BQ85)*AS85))))/1000)*O85,4) -> 0.4764 | S85: Calculated Value | U85: 738 | V85: EFLHcool, from 2017 MO TRM Vol. 3 | W85: 122 | X85: 6 | Y85: IL TRM v9 vol3 | Z85: 91 | AA85: SEERee | AB85: 15.15 | AC85: Average SEER value of equipment installed in portfolio | AE85: SEERexist | AF85: 9.3 | AG85: IL TRM v9 vol3 | AH85: 93 | AI85: =ROUND((BE85*AW85*(1/((1-BM85)*AF85)-1/((1-BQ85)*(BU85)*AB85)))/1000,4) | AJ85: =ROUND(((AW85*((1/((1-BM85)*BA85))-(1/((1-BQ85)*AS85))))/1000)*O85,4) | AK85: IL TRM v9 vol3 | AL85: 92, 94 | AM85: 2022-01-01 | AS85: =1.12*AB85-0.02*AB85^2 -> 12.37755 | AT85: EERee | AU85: Calculated value | AW85: 12000 | AX85: Allows for Capacity input in Tons; converts tons to BTUs | BA85: 7.5 | BB85: EERexist | BC85: IL TRM v9 vol3 | BD85: 95 | BE85: 738 | BF85: EFLHcool | BG85: EFLHcool, from 2017 MO TRM Vol. 3 | BH85: 122 | BI85: 1376 | BJ85: EFLHheat | BK85: The EFLH Cooling and Heating hours are based on a EnergyStar study that was normalized (based on HDD and CDD) to Kansas City. This was for both AC and HP units. | BM85: 0.1 | BN85: DeratingCoolBase | BO85: IL TRM v9 vol3 | BP85: 94 | BQ85: 0.1 | BR85: DeratingCoolEff | BS85: IL TRM v9 vol3 | BT85: 94 | BU85: =0.805*(AS85/AB85)+0.367 -> 1.024685 | BV85: SEERadj | BW85: Caclulated value, using alhgorthim from IL TRM v7 vol3 | BX85: 94 | BY85: 0.03 | BZ85: Societal Discount Rate | CA85: Evergy Standard | CC85: 952 | CD85: First Cost $/ton | CE85: IL TRM v9 vol3 | CF85: 91 | CG85: 108 | CH85: One-time per-system labor cost | CI85: IL TRM v9 vol3 | CJ85: 91 | CK85: 3140 | CL85: Deferred cost savings, per UNIT | CM85: IL TRM v9 vol3 | CN85: 91 | CO85: 3.5 | CP85: Assumed average system tons | CQ85: Tracking Data | DR85: Updated references to IL TRM v9
A86: Heating, Cooling & Home Comfort | B86: CAC SEER 15 - Early Replacement (future) | C86: 23.4 | D86: Single Family | E86: HVAC | G86: per ton | H86: 0 | I86: IL TRM v7 vol3 | J86: 77 | K86: =ROUND((BM86*AW86*(1/((1-BU86)*BE86)-1/((1-BY86)*(CC86)*AB86)))/1000,4) -> 123.0649 | L86: Calculated Value | N86: 0.166754607 | O86: 0.68 | P86: IL TRM v7 vol3 | Q86: 78 | R86: =ROUND(((AW86*((1/((1-BU86)*BI86))-(1/((1-BY86)*AS86))))/1000)*O86,4) -> 0.131 | S86: Calculated Value | U86: 738 | V86: EFLHcool, from 2017 MO TRM Vol. 3 | W86: 122 | X86: 12 | Y86: IL TRM v7 vol3 | Z86: 77 | AA86: SEERee | AB86: 15.15 | AC86: Average SEER value of equipment installed in portfolio | AE86: =BF86 -> SEERbase | AF86: =BE86 -> 13 | AG86: IL TRM v7 vol3 | AH86: 79 | AI86: =ROUND((BM86*AW86*(1/((1-BU86)*BE86)-1/((1-BY86)*(CC86)*AB86)))/1000,4) | AJ86: =ROUND(((AW86*((1/((1-BU86)*BI86))-(1/((1-BY86)*AS86))))/1000)*O86,4) | AK86: IL TRM v7 vol3 | AL86: 78, 80, 81 | AM86: 2020-05-01 | AN86: 2021-12-31 | AS86: 12.37755 | AT86: EERee | AU86: Calculated value | AW86: 12000 | AX86: Allows for Capacity input in Tons; converts tons to BTUs | BE86: 13 | BF86: SEERbase | BG86: IL TRM v7 vol3 | BH86: 79 | BI86: 10.5 | BJ86: EERbase | BK86: IL TRM v7 vol3 | BL86: 81 | BM86: 738 | BN86: EFLHcool | BO86: EFLHcool, from 2017 MO TRM Vol. 3 | BP86: 122 | BQ86: 1376 | BR86: EFLHheat | BS86: The EFLH Cooling and Heating hours are based on a EnergyStar study that was normalized (based on HDD and CDD) to Kansas City. This was for both AC and HP units. | BU86: 0.1 | BV86: DeratingCoolBase | BW86: IL TRM v7 vol3 | BX86: 80 | BY86: 0.1 | BZ86: DeratingCoolEff | CA86: IL TRM v7 vol3 | CB86: 80 | CC86: 1.024685 | CD86: SEERadj | CE86: Caclulated value, using alhgorthim from IL TRM v7 vol3 | CF86: 79,80 | CW86: 0.03 | CX86: Societal Discount Rate | CY86: Evergy Standard | DA86: 952 | DB86: First Cost $/ton | DC86: IL TRM v7 vol3 | DD86: 77 | DE86: 108 | DF86: One-time per-system labor cost | DG86: IL TRM v7 vol3 | DH86: 77 | DI86: 3140 | DJ86: Deferred cost savings, per UNIT | DK86: IL TRM v7 vol3 | DL86: 78 | DM86: 3.5 | DN86: Assumed average system tons | DO86: Tracking Data
A87: Heating, Cooling & Home Comfort | B87: CAC SEER 15 - Early Replacement (future) | C87: 23.5 | D87: Single Family | E87: HVAC | G87: per ton | H87: 0 | I87: IL TRM v9 vol3 | J87: 91 | K87: =ROUND((BE87*AW87*(1/((1-BM87)*AF87)-1/((1-BQ87)*(BU87)*AB87)))/1000,4) -> 123.0649 | L87: Calculated Value | N87: 0.166754607 | O87: 0.68 | P87: IL TRM v9 vol3 | Q87: 92 | R87: =ROUND(((AW87*((1/((1-BM87)*BA87))-(1/((1-BQ87)*AS87))))/1000)*O87,4) -> 0.131 | S87: Calculated Value | U87: 738 | V87: EFLHcool, from 2017 MO TRM Vol. 3 | W87: 122 | X87: 12 | Y87: IL TRM v9 vol3 | Z87: 91 | AA87: SEERee | AB87: 15.15 | AC87: Average SEER value of equipment installed in portfolio | AE87: SEERbase | AF87: 13 | AG87: IL TRM v9 vol3 | AH87: 93 | AI87: =ROUND((BE87*AW87*(1/((1-BM87)*AF87)-1/((1-BQ87)*(BU87)*AB87)))/1000,4) | AJ87: =ROUND(((AW87*((1/((1-BM87)*BA87))-(1/((1-BQ87)*AS87))))/1000)*O87,4) | AK87: IL TRM v9 vol3 | AL87: 92, 94 | AM87: 2022-01-01 | AS87: =1.12*AB87-0.02*AB87^2 -> 12.37755 | AT87: EERee | AU87: Calculated value | AW87: 12000 | AX87: Allows for Capacity input in Tons; converts tons to BTUs | BA87: 10.5 | BB87: EERbase | BC87: IL TRM v9 vol3 | BD87: 95 | BE87: 738 | BF87: EFLHcool | BG87: EFLHcool, from 2017 MO TRM Vol. 3 | BH87: 122 | BI87: 1376 | BJ87: EFLHheat | BK87: The EFLH Cooling and Heating hours are based on a EnergyStar study that was normalized (based on HDD and CDD) to Kansas City. This was for both AC and HP units. | BM87: 0.1 | BN87: DeratingCoolBase | BO87: IL TRM v9 vol3 | BP87: 94 | BQ87: 0.1 | BR87: DeratingCoolEff | BS87: IL TRM v9 vol3 | BT87: 94 | BU87: =0.805*(AS87/AB87)+0.367 -> 1.024685 | BV87: SEERadj | BW87: Caclulated value, using alhgorthim from IL TRM v7 vol3 | BX87: 94 | BY87: 0.03 | BZ87: Societal Discount Rate | CA87: Evergy Standard | CC87: 952 | CD87: First Cost $/ton | CE87: IL TRM v9 vol3 | CF87: 91 | CG87: 108 | CH87: One-time per-system labor cost | CI87: IL TRM v9 vol3 | CJ87: 91 | CK87: 3140 | CL87: Deferred cost savings, per UNIT | CM87: IL TRM v9 vol3 | CN87: 91 | CO87: 3.5 | CP87: Assumed average system tons | CQ87: Tracking Data | DR87: Updated references to IL TRM v9
A88: Heating, Cooling & Home Comfort | B88: CAC SEER 16 | C88: 24.4 | D88: Single Family | E88: HVAC | G88: per ton | H88: =221/3.5 -> 63.14285714 | I88: IL TRM v7 vol3 | J88: 77 | K88: =ROUND((BE88*AW88*(1/((1-BU88)*AF88)-1/((1-BY88)*(CC88)*AB88)))/1000,4) -> 162.3135 | L88: Calculated Value | N88: 0.2199369919 | O88: 0.68 | P88: IL TRM v7 vol3 | Q88: 78 | R88: =ROUND(((AW88*((1/((1-BU88)*BA88))-(1/((1-BY88)*AS88))))/1000)*O88,4) -> 0.1679 | S88: Calculated Value | U88: 738 | V88: EFLHcool, from 2017 MO TRM Vol. 3 | W88: 122 | X88: 18 | Y88: IL TRM v7 vol3 | Z88: 77 | AA88: SEERee | AB88: 16.5 | AC88: Average SEER value of equipment installed in portfolio | AE88: SEERbase | AF88: 13 | AG88: IL TRM v7 vol3 | AH88: 79 | AI88: =ROUND((BE88*AW88*(1/((1-BU88)*AF88)-1/((1-BY88)*(CC88)*AB88)))/1000,4) | AJ88: =ROUND(((AW88*((1/((1-BU88)*BA88))-(1/((1-BY88)*AS88))))/1000)*O88,4) | AK88: IL TRM v7 vol3 | AL88: 78, 80 | AM88: 2020-05-01 | AN88: 2021-12-31 | AS88: 13.035 | AT88: EERee | AU88: Calculated value | AW88: 12000 | AX88: Allows for Capacity input in Tons; converts tons to BTUs | BA88: 10.5 | BB88: EERbase | BC88: IL TRM v7 vol3 | BD88: 81 | BE88: 738 | BF88: EFLHcool | BG88: EFLHcool, from 2017 MO TRM Vol. 3 | BH88: 122 | BI88: 1376 | BJ88: EFLHheat | BK88: The EFLH Cooling and Heating hours are based on a EnergyStar study that was normalized (based on HDD and CDD) to Kansas City. This was for both AC and HP units. | BU88: 0.1 | BV88: DeratingCoolBase | BW88: IL TRM v7 vol3 | BX88: 80 | BY88: 0.1 | BZ88: DeratingCoolEff | CA88: IL TRM v7 vol3 | CB88: 80 | CC88: 1.00295 | CD88: SEERadj | CE88: Caclulated value, using alhgorthim from IL TRM v7 vol3 | CF88: 79,80
A89: Heating, Cooling & Home Comfort | B89: CAC SEER 16 | C89: 24.5 | D89: Single Family | E89: HVAC | G89: per ton | H89: =221/3.5 -> 63.14285714 | I89: IL TRM v9 vol3 (assumed 3.5 Ton system) | J89: 91 | K89: =ROUND((BE89*AW89*(1/((1-BM89)*AF89)-1/((1-BQ89)*(BU89)*AB89)))/1000,4) -> 162.3135 | L89: Calculated Value | N89: 0.2199369919 | O89: 0.68 | P89: IL TRM v9 vol3 | Q89: 92 | R89: =ROUND(((AW89*((1/((1-BM89)*BA89))-(1/((1-BQ89)*AS89))))/1000)*O89,4) -> 0.1679 | S89: Calculated Value | U89: 738 | V89: EFLHcool, from 2017 MO TRM Vol. 3 | W89: 122 | X89: 18 | Y89: IL TRM v9 vol3 | Z89: 91 | AA89: SEERee | AB89: 16.5 | AC89: Average SEER value of equipment installed in portfolio | AE89: SEERbase | AF89: 13 | AG89: IL TRM v9 vol3 | AH89: 93 | AI89: =ROUND((BE89*AW89*(1/((1-BM89)*AF89)-1/((1-BQ89)*(BU89)*AB89)))/1000,4) | AJ89: =ROUND(((AW89*((1/((1-BM89)*BA89))-(1/((1-BQ89)*AS89))))/1000)*O89,4) | AK89: IL TRM v9 vol3 | AL89: 92, 94 | AM89: 2022-01-01 | AS89: =1.12*AB89-0.02*AB89^2 -> 13.035 | AT89: EERee | AU89: Calculated value | AW89: 12000 | AX89: Allows for Capacity input in Tons; converts tons to BTUs | BA89: 10.5 | BB89: EERbase | BC89: IL TRM v9 vol3 | BD89: 95 | BE89: 738 | BF89: EFLHcool | BG89: EFLHcool, from 2017 MO TRM Vol. 3 | BH89: 122 | BI89: 1376 | BJ89: EFLHheat | BK89: The EFLH Cooling and Heating hours are based on a EnergyStar study that was normalized (based on HDD and CDD) to Kansas City. This was for both AC and HP units. | BM89: 0.1 | BN89: DeratingCoolBase | BO89: IL TRM v9 vol3 | BP89: 94 | BQ89: 0.1 | BR89: DeratingCoolEff | BS89: IL TRM v9 vol3 | BT89: 94 | BU89: =0.805*(AS89/AB89)+0.367 -> 1.00295 | BV89: SEERadj | BW89: Caclulated value, using alhgorthim from IL TRM v7 vol3 | BX89: 94 | DR89: Updated references to IL TRM v9
A90: Heating, Cooling & Home Comfort | B90: CAC SEER 16 - Early Replacement | C90: 25.4 | D90: Single Family | E90: HVAC | G90: per ton | H90: =DA90+DE90/DM90-DI90/DM90*(1+CW90)^(-X90) -> 263.7998383 | I90: IL TRM v7 vol3 | J90: 77 | K90: =ROUND((BE90*AW90*(1/((1-BU90)*AF90)-1/((1-BY90)*(CC90)*AB90)))/1000,4) -> 464.2482 | L90: Calculated Value | N90: 0.6290626016 | O90: 0.68 | P90: IL TRM v7 vol3 | Q90: 78 | R90: =ROUND(((AW90*((1/((1-BU90)*BA90))-(1/((1-BY90)*AS90))))/1000)*O90,4) -> 0.5141 | S90: Calculated Value | U90: 738 | V90: EFLHcool, from 2017 MO TRM Vol. 3 | W90: 122 | X90: 6 | Y90: IL TRM v7 vol3 | Z90: 77 | AA90: SEERee | AB90: 16.53 | AC90: Average SEER value of equipment installed in portfolio | AE90: SEERexist | AF90: 9.3 | AG90: IL TRM v7 vol3 | AH90: 79 | AI90: =ROUND((BE90*AW90*(1/((1-BU90)*AF90)-1/((1-BY90)*(CC90)*AB90)))/1000,4) | AJ90: =ROUND(((AW90*((1/((1-BU90)*BA90))-(1/((1-BY90)*AS90))))/1000)*O90,4) | AK90: IL TRM v7 vol3 | AL90: 78, 80 | AM90: 2020-05-01 | AN90: 2021-12-31 | AS90: 13.048782 | AT90: EERee | AU90: Calculated value | AW90: 12000 | AX90: Allows for Capacity input in Tons; converts tons to BTUs | BA90: 7.5 | BB90: EERexist | BC90: IL TRM v7 vol3 | BD90: 81 | BE90: 738 | BF90: EFLHcool | BG90: EFLHcool, from 2017 MO TRM Vol. 3 | BH90: 122 | BI90: 1376 | BJ90: EFLHheat | BK90: The EFLH Cooling and Heating hours are based on a EnergyStar study that was normalized (based on HDD and CDD) to Kansas City. This was for both AC and HP units. | BU90: 0.1 | BV90: DeratingCoolBase | BW90: IL TRM v7 vol3 | BX90: 80 | BY90: 0.1 | BZ90: DeratingCoolEff | CA90: IL TRM v7 vol3 | CB90: 80 | CC90: 1.002467 | CD90: SEERadj | CE90: Caclulated value, using alhgorthim from IL TRM v7 vol3 | CF90: 79,80 | CW90: 0.03 | CX90: Societal Discount Rate | CY90: Evergy Standard | DA90: 952 | DB90: First Cost $/ton | DC90: IL TRM v7 vol3 | DD90: 77 | DE90: 221 | DF90: One-time per-system labor cost | DG90: IL TRM v7 vol3 | DH90: 77 | DI90: 3140 | DJ90: Deferred cost savings, per UNIT | DK90: IL TRM v7 vol3 | DL90: 78 | DM90: 3.5 | DN90: Assumed average system tons | DO90: Tracking Data
A91: Heating, Cooling & Home Comfort | B91: CAC SEER 16 - Early Replacement | C91: 25.5 | D91: Single Family | E91: HVAC | G91: per ton | H91: =CC91+CG91/CO91-CK91/CO91*(1+BY91)^(-X91) -> 263.7998383 | I91: IL TRM v9 vol3 | J91: 91 | K91: =ROUND((BE91*AW91*(1/((1-BM91)*AF91)-1/((1-BQ91)*(BU91)*AB91)))/1000,4) -> 464.2482 | L91: Calculated Value | N91: 0.6290626016 | O91: 0.68 | P91: IL TRM v9 vol3 | Q91: 92 | R91: =ROUND(((AW91*((1/((1-BM91)*BA91))-(1/((1-BQ91)*AS91))))/1000)*O91,4) -> 0.5141 | S91: Calculated Value | U91: 738 | V91: EFLHcool, from 2017 MO TRM Vol. 3 | W91: 122 | X91: 6 | Y91: IL TRM v9 vol3 | Z91: 91 | AA91: SEERee | AB91: 16.53 | AC91: Average SEER value of equipment installed in portfolio | AE91: SEERexist | AF91: 9.3 | AG91: IL TRM v9 vol3 | AH91: 93 | AI91: =ROUND((BE91*AW91*(1/((1-BM91)*AF91)-1/((1-BQ91)*(BU91)*AB91)))/1000,4) | AJ91: =ROUND(((AW91*((1/((1-BM91)*BA91))-(1/((1-BQ91)*AS91))))/1000)*O91,4) | AK91: IL TRM v9 vol3 | AL91: 92, 94 | AM91: 2022-01-01 | AS91: =1.12*AB91-0.02*AB91^2 -> 13.048782 | AT91: EERee | AU91: Calculated value | AW91: 12000 | AX91: Allows for Capacity input in Tons; converts tons to BTUs | BA91: 7.5 | BB91: EERexist | BC91: IL TRM v9 vol3 | BD91: 95 | BE91: 738 | BF91: EFLHcool | BG91: EFLHcool, from 2017 MO TRM Vol. 3 | BH91: 122 | BI91: 1376 | BJ91: EFLHheat | BK91: The EFLH Cooling and Heating hours are based on a EnergyStar study that was normalized (based on HDD and CDD) to Kansas City. This was for both AC and HP units. | BM91: 0.1 | BN91: DeratingCoolBase | BO91: IL TRM v9 vol3 | BP91: 94 | BQ91: 0.1 | BR91: DeratingCoolEff | BS91: IL TRM v9 vol3 | BT91: 94 | BU91: =0.805*(AS91/AB91)+0.367 -> 1.002467 | BV91: SEERadj | BW91: Caclulated value, using alhgorthim from IL TRM v7 vol3 | BX91: 94 | BY91: 0.03 | BZ91: Societal Discount Rate | CA91: Evergy Standard | CC91: 952 | CD91: First Cost $/ton | CE91: IL TRM v9 vol3 | CF91: 91 | CG91: 221 | CH91: One-time per-system labor cost | CI91: IL TRM v9 vol3 | CJ91: 91 | CK91: 3140 | CL91: Deferred cost savings, per UNIT | CM91: IL TRM v9 vol3 | CN91: 91 | CO91: 3.5 | CP91: Assumed average system tons | CQ91: Tracking Data | DR91: Updated references to IL TRM v9
A92: Heating, Cooling & Home Comfort | B92: CAC SEER 16 - Early Replacement (future) | C92: 26.4 | D92: Single Family | E92: HVAC | G92: per ton | H92: 0 | I92: IL TRM v7 vol3 | J92: 77 | K92: =ROUND((BM92*AW92*(1/((1-BU92)*BE92)-1/((1-BY92)*(CC92)*AB92)))/1000,4) -> 163.1067 | L92: Calculated Value | N92: 0.2210117886 | O92: 0.68 | P92: IL TRM v7 vol3 | Q92: 78 | R92: =ROUND(((AW92*((1/((1-BU92)*BI92))-(1/((1-BY92)*AS92))))/1000)*O92,4) -> 0.1687 | S92: Calculated Value | U92: 738 | V92: EFLHcool, from 2017 MO TRM Vol. 3 | W92: 122 | X92: 12 | Y92: IL TRM v7 vol3 | Z92: 77 | AA92: SEERee | AB92: 16.53 | AC92: Average SEER value of equipment installed in portfolio | AE92: SEERbase | AF92: =BE92 -> 13 | AG92: IL TRM v7 vol3 | AH92: 79 | AI92: =ROUND((BM92*AW92*(1/((1-BU92)*BE92)-1/((1-BY92)*(CC92)*AB92)))/1000,4) | AJ92: =ROUND(((AW92*((1/((1-BU92)*BI92))-(1/((1-BY92)*AS92))))/1000)*O92,4) | AK92: IL TRM v7 vol3 | AL92: 78, 80, 81 | AM92: 2020-05-01 | AN92: 2021-12-31 | AS92: 13.048782 | AT92: EERee | AU92: Calculated value | AW92: 12000 | AX92: Allows for Capacity input in Tons; converts tons to BTUs | BE92: 13 | BF92: SEERbase | BG92: IL TRM v7 vol3 | BH92: 79 | BI92: 10.5 | BJ92: EERbase | BK92: IL TRM v7 vol3 | BL92: 81 | BM92: 738 | BN92: EFLHcool | BO92: EFLHcool, from 2017 MO TRM Vol. 3 | BP92: 122 | BQ92: 1376 | BR92: EFLHheat | BS92: The EFLH Cooling and Heating hours are based on a EnergyStar study that was normalized (based on HDD and CDD) to Kansas City. This was for both AC and HP units. | BU92: 0.1 | BV92: DeratingCoolBase | BW92: IL TRM v7 vol3 | BX92: 80 | BY92: 0.1 | BZ92: DeratingCoolEff | CA92: IL TRM v7 vol3 | CB92: 80 | CC92: 1.002467 | CD92: SEERadj | CE92: Caclulated value, using alhgorthim from IL TRM v7 vol3 | CF92: 79,80 | CW92: 0.03 | CX92: Societal Discount Rate | CY92: Evergy Standard | DA92: 952 | DB92: First Cost $/ton | DC92: IL TRM v7 vol3 | DD92: 77 | DE92: 221 | DF92: One-time per-system labor cost | DG92: IL TRM v7 vol3 | DH92: 77 | DI92: 3140 | DJ92: Deferred cost savings, per UNIT | DK92: IL TRM v7 vol3 | DL92: 78 | DM92: 3.5 | DN92: Assumed average system tons | DO92: Tracking Data
A93: Heating, Cooling & Home Comfort | B93: CAC SEER 16 - Early Replacement (future) | C93: 26.5 | D93: Single Family | E93: HVAC | G93: per ton | H93: 0 | I93: IL TRM v9 vol3 | J93: 91 | K93: =ROUND((BE93*AW93*(1/((1-BM93)*AF93)-1/((1-BQ93)*(BU93)*AB93)))/1000,4) -> 163.1067 | L93: Calculated Value | N93: 0.2210117886 | O93: 0.68 | P93: IL TRM v9 vol3 | Q93: 92 | R93: =ROUND(((AW93*((1/((1-BM93)*BA93))-(1/((1-BQ93)*AS93))))/1000)*O93,4) -> 0.1687 | S93: Calculated Value | U93: 738 | V93: EFLHcool, from 2017 MO TRM Vol. 3 | W93: 122 | X93: 12 | Y93: IL TRM v9 vol3 | Z93: 91 | AA93: SEERee | AB93: 16.53 | AC93: Average SEER value of equipment installed in portfolio | AE93: SEERbase | AF93: 13 | AG93: IL TRM v9 vol3 | AH93: 93 | AI93: =ROUND((BE93*AW93*(1/((1-BM93)*AF93)-1/((1-BQ93)*(BU93)*AB93)))/1000,4) | AJ93: =ROUND(((AW93*((1/((1-BM93)*BA93))-(1/((1-BQ93)*AS93))))/1000)*O93,4) | AK93: IL TRM v9 vol3 | AL93: 92, 94 | AM93: 2022-01-01 | AS93: =1.12*AB93-0.02*AB93^2 -> 13.048782 | AT93: EERee | AU93: Calculated value | AW93: 12000 | AX93: Allows for Capacity input in Tons; converts tons to BTUs | BA93: 10.5 | BB93: EERbase | BC93: IL TRM v9 vol3 | BD93: 95 | BE93: 738 | BF93: EFLHcool | BG93: EFLHcool, from 2017 MO TRM Vol. 3 | BH93: 122 | BI93: 1376 | BJ93: EFLHheat | BK93: The EFLH Cooling and Heating hours are based on a EnergyStar study that was normalized (based on HDD and CDD) to Kansas City. This was for both AC and HP units. | BM93: 0.1 | BN93: DeratingCoolBase | BO93: IL TRM v9 vol3 | BP93: 94 | BQ93: 0.1 | BR93: DeratingCoolEff | BS93: IL TRM v9 vol3 | BT93: 94 | BU93: =0.805*(AS93/AB93)+0.367 -> 1.002467 | BV93: SEERadj | BW93: Caclulated value, using alhgorthim from IL TRM v7 vol3 | BX93: 94 | BY93: 0.03 | BZ93: Societal Discount Rate | CA93: Evergy Standard | CC93: 952 | CD93: First Cost $/ton | CE93: IL TRM v9 vol3 | CF93: 91 | CG93: 221 | CH93: One-time per-system labor cost | CI93: IL TRM v9 vol3 | CJ93: 91 | CK93: 3140 | CL93: Deferred cost savings, per UNIT | CM93: IL TRM v9 vol3 | CN93: 91 | CO93: 3.5 | CP93: Assumed average system tons | CQ93: Tracking Data | DR93: Updated references to IL TRM v9
A94: Heating, Cooling & Home Comfort | B94: CAC SEER 17 | C94: 27.4 | D94: Single Family | E94: HVAC | G94: per ton | H94: =620/3.5 -> 177.1428571 | I94: IL TRM v7 vol3 | J94: 77 | K94: =ROUND((BE94*AW94*(1/((1-BU94)*AF94)-1/((1-BY94)*(CC94)*AB94)))/1000,4) -> 175.1324 | L94: Calculated Value | N94: 0.2373067751 | O94: 0.68 | P94: IL TRM v7 vol3 | Q94: 78 | R94: =ROUND(((AW94*((1/((1-BU94)*BA94))-(1/((1-BY94)*AS94))))/1000)*O94,4) -> 0.1797 | S94: Calculated Value | U94: 738 | V94: EFLHcool, from 2017 MO TRM Vol. 3 | W94: 122 | X94: 18 | Y94: IL TRM v7 vol3 | Z94: 77 | AA94: SEERee | AB94: 17 | AC94: Average SEER value of equipment installed in portfolio | AE94: SEERbase | AF94: 13 | AG94: IL TRM v7 vol3 | AH94: 79 | AI94: =ROUND((BE94*AW94*(1/((1-BU94)*AF94)-1/((1-BY94)*(CC94)*AB94)))/1000,4) | AJ94: =ROUND(((AW94*((1/((1-BU94)*BA94))-(1/((1-BY94)*AS94))))/1000)*O94,4) | AK94: IL TRM v7 vol3 | AL94: 78, 80 | AM94: 2020-05-01 | AN94: 2021-12-31 | AS94: 13.26 | AT94: EERee | AU94: Calculated value | AW94: 12000 | AX94: Allows for Capacity input in Tons; converts tons to BTUs | BA94: 10.5 | BB94: EERbase | BC94: IL TRM v7 vol3 | BD94: 81 | BE94: 738 | BF94: EFLHcool | BG94: EFLHcool, from 2017 MO TRM Vol. 3 | BH94: 122 | BI94: 1376 | BJ94: EFLHheat | BK94: The EFLH Cooling and Heating hours are based on a EnergyStar study that was normalized (based on HDD and CDD) to Kansas City. This was for both AC and HP units. | BU94: 0.1 | BV94: DeratingCoolBase | BW94: IL TRM v7 vol3 | BX94: 80 | BY94: 0.1 | BZ94: DeratingCoolEff | CA94: IL TRM v7 vol3 | CB94: 80 | CC94: 0.9949 | CD94: SEERadj | CE94: Caclulated value, using alhgorthim from IL TRM v7 vol3 | CF94: 79,80
A95: Heating, Cooling & Home Comfort | B95: CAC SEER 17 | C95: 27.5 | D95: Single Family | E95: HVAC | G95: per ton | H95: =620/3.5 -> 177.1428571 | I95: IL TRM v9 vol3 (assumed 3.5 Ton system) | J95: 91 | K95: =ROUND((BE95*AW95*(1/((1-BM95)*AF95)-1/((1-BQ95)*(BU95)*AB95)))/1000,4) -> 175.1324 | L95: Calculated Value | N95: 0.2373067751 | O95: 0.68 | P95: IL TRM v9 vol3 | Q95: 92 | R95: =ROUND(((AW95*((1/((1-BM95)*BA95))-(1/((1-BQ95)*AS95))))/1000)*O95,4) -> 0.1797 | S95: Calculated Value | U95: 738 | V95: EFLHcool, from 2017 MO TRM Vol. 3 | W95: 122 | X95: 18 | Y95: IL TRM v9 vol3 | Z95: 91 | AA95: SEERee | AB95: 17 | AC95: Average SEER value of equipment installed in portfolio | AE95: SEERbase | AF95: 13 | AG95: IL TRM v9 vol3 | AH95: 93 | AI95: =ROUND((BE95*AW95*(1/((1-BM95)*AF95)-1/((1-BQ95)*(BU95)*AB95)))/1000,4) | AJ95: =ROUND(((AW95*((1/((1-BM95)*BA95))-(1/((1-BQ95)*AS95))))/1000)*O95,4) | AK95: IL TRM v9 vol3 | AL95: 92, 94 | AM95: 2022-01-01 | AS95: =1.12*AB95-0.02*AB95^2 -> 13.26 | AT95: EERee | AU95: Calculated value | AW95: 12000 | AX95: Allows for Capacity input in Tons; converts tons to BTUs | BA95: 10.5 | BB95: EERbase | BC95: IL TRM v9 vol3 | BD95: 95 | BE95: 738 | BF95: EFLHcool | BG95: EFLHcool, from 2017 MO TRM Vol. 3 | BH95: 122 | BI95: 1376 | BJ95: EFLHheat | BK95: The EFLH Cooling and Heating hours are based on a EnergyStar study that was normalized (based on HDD and CDD) to Kansas City. This was for both AC and HP units. | BM95: 0.1 | BN95: DeratingCoolBase | BO95: IL TRM v9 vol3 | BP95: 94 | BQ95: 0.1 | BR95: DeratingCoolEff | BS95: IL TRM v9 vol3 | BT95: 94 | BU95: =0.805*(AS95/AB95)+0.367 -> 0.9949 | BV95: SEERadj | BW95: Caclulated value, using alhgorthim from IL TRM v7 vol3 | BX95: 94 | DR95: Updated references to IL TRM v9
A96: Heating, Cooling & Home Comfort | B96: CAC SEER 17 - Early Replacement | C96: 28.4 | D96: Single Family | E96: HVAC | G96: per ton | H96: =DA96+DE96/DM96-DI96/DM96*(1+CW96)^(-X96) -> 377.7998383 | I96: IL TRM v7 vol3 | J96: 77 | K96: =ROUND((BE96*AW96*(1/((1-BU96)*AF96)-1/((1-BY96)*(CC96)*AB96)))/1000,4) -> 476.2739 | L96: Calculated Value | N96: 0.6453575881 | O96: 0.68 | P96: IL TRM v7 vol3 | Q96: 78 | R96: =ROUND(((AW96*((1/((1-BU96)*BA96))-(1/((1-BY96)*AS96))))/1000)*O96,4) -> 0.5251 | S96: Calculated Value | U96: 738 | V96: EFLHcool, from 2017 MO TRM Vol. 3 | W96: 122 | X96: 6 | Y96: IL TRM v7 vol3 | Z96: 77 | AA96: SEERee | AB96: 17 | AC96: Average SEER value of equipment installed in portfolio | AE96: SEERexist | AF96: 9.3 | AG96: IL TRM v7 vol3 | AH96: 79 | AI96: =ROUND((BE96*AW96*(1/((1-BU96)*AF96)-1/((1-BY96)*(CC96)*AB96)))/1000,4) | AJ96: =ROUND(((AW96*((1/((1-BU96)*BA96))-(1/((1-BY96)*AS96))))/1000)*O96,4) | AK96: IL TRM v7 vol3 | AL96: 78, 80 | AM96: 2020-05-01 | AN96: 2021-12-31 | AS96: 13.26 | AT96: EERee | AU96: Calculated value | AW96: 12000 | AX96: Allows for Capacity input in Tons; converts tons to BTUs | BA96: 7.5 | BB96: EERexist | BC96: IL TRM v7 vol3 | BD96: 81 | BE96: 738 | BF96: EFLHcool | BG96: EFLHcool, from 2017 MO TRM Vol. 3 | BH96: 122 | BI96: 1376 | BJ96: EFLHheat | BK96: The EFLH Cooling and Heating hours are based on a EnergyStar study that was normalized (based on HDD and CDD) to Kansas City. This was for both AC and HP units. | BU96: 0.1 | BV96: DeratingCoolBase | BW96: IL TRM v7 vol3 | BX96: 80 | BY96: 0.1 | BZ96: DeratingCoolEff | CA96: IL TRM v7 vol3 | CB96: 80 | CC96: 0.9949 | CD96: SEERadj | CE96: Caclulated value, using alhgorthim from IL TRM v7 vol3 | CF96: 79,80 | CW96: 0.03 | CX96: Societal Discount Rate | CY96: Evergy Standard | DA96: 952 | DB96: First Cost $/ton | DC96: IL TRM v7 vol3 | DD96: 77 | DE96: 620 | DF96: One-time per-system labor cost | DG96: IL TRM v7 vol3 | DH96: 77 | DI96: 3140 | DJ96: Deferred cost savings, per UNIT | DK96: IL TRM v7 vol3 | DL96: 78 | DM96: 3.5 | DN96: Assumed average system tons | DO96: Tracking Data
A97: Heating, Cooling & Home Comfort | B97: CAC SEER 17 - Early Replacement | C97: 28.5 | D97: Single Family | E97: HVAC | G97: per ton | H97: =CC97+CG97/CO97-CK97/CO97*(1+BY97)^(-X97) -> 377.7998383 | I97: IL TRM v9 vol3 | J97: 91 | K97: =ROUND((BE97*AW97*(1/((1-BM97)*AF97)-1/((1-BQ97)*(BU97)*AB97)))/1000,4) -> 476.2739 | L97: Calculated Value | N97: 0.6453575881 | O97: 0.68 | P97: IL TRM v9 vol3 | Q97: 92 | R97: =ROUND(((AW97*((1/((1-BM97)*BA97))-(1/((1-BQ97)*AS97))))/1000)*O97,4) -> 0.5251 | S97: Calculated Value | U97: 738 | V97: EFLHcool, from 2017 MO TRM Vol. 3 | W97: 122 | X97: 6 | Y97: IL TRM v9 vol3 | Z97: 91 | AA97: SEERee | AB97: 17 | AC97: Average SEER value of equipment installed in portfolio | AE97: SEERexist | AF97: 9.3 | AG97: IL TRM v9 vol3 | AH97: 93 | AI97: =ROUND((BE97*AW97*(1/((1-BM97)*AF97)-1/((1-BQ97)*(BU97)*AB97)))/1000,4) | AJ97: =ROUND(((AW97*((1/((1-BM97)*BA97))-(1/((1-BQ97)*AS97))))/1000)*O97,4) | AK97: IL TRM v9 vol3 | AL97: 92, 94 | AM97: 2022-01-01 | AS97: =1.12*AB97-0.02*AB97^2 -> 13.26 | AT97: EERee | AU97: Calculated value | AW97: 12000 | AX97: Allows for Capacity input in Tons; converts tons to BTUs | BA97: 7.5 | BB97: EERexist | BC97: IL TRM v9 vol3 | BD97: 95 | BE97: 738 | BF97: EFLHcool | BG97: EFLHcool, from 2017 MO TRM Vol. 3 | BH97: 122 | BI97: 1376 | BJ97: EFLHheat | BK97: The EFLH Cooling and Heating hours are based on a EnergyStar study that was normalized (based on HDD and CDD) to Kansas City. This was for both AC and HP units. | BM97: 0.1 | BN97: DeratingCoolBase | BO97: IL TRM v9 vol3 | BP97: 94 | BQ97: 0.1 | BR97: DeratingCoolEff | BS97: IL TRM v9 vol3 | BT97: 94 | BU97: =0.805*(AS97/AB97)+0.367 -> 0.9949 | BV97: SEERadj | BW97: Caclulated value, using alhgorthim from IL TRM v7 vol3 | BX97: 94 | BY97: 0.03 | BZ97: Societal Discount Rate | CA97: Evergy Standard | CC97: 952 | CD97: First Cost $/ton | CE97: IL TRM v9 vol3 | CF97: 91 | CG97: 620 | CH97: One-time per-system labor cost | CI97: IL TRM v9 vol3 | CJ97: 91 | CK97: 3140 | CL97: Deferred cost savings, per UNIT | CM97: IL TRM v9 vol3 | CN97: 91 | CO97: 3.5 | CP97: Assumed average system tons | CQ97: Tracking Data | DR97: Updated references to IL TRM v9
A98: Heating, Cooling & Home Comfort | B98: CAC SEER 17 - Early Replacement (future) | C98: 29.4 | D98: Single Family | E98: HVAC | G98: per ton | H98: 0 | I98: IL TRM v7 vol3 | J98: 77 | K98: =ROUND((BM98*AW98*(1/((1-BU98)*BE98)-1/((1-BY98)*(CC98)*AB98)))/1000,4) -> 175.1324 | L98: Calculated Value | N98: 0.2373067751 | O98: 0.68 | P98: IL TRM v7 vol3 | Q98: 78 | R98: =ROUND(((AW98*((1/((1-BU98)*BI98))-(1/((1-BY98)*AS98))))/1000)*O98,4) -> 0.1797 | S98: Calculated Value | U98: 738 | V98: EFLHcool, from 2017 MO TRM Vol. 3 | W98: 122 | X98: 12 | Y98: IL TRM v7 vol3 | Z98: 77 | AA98: SEERee | AB98: 17 | AC98: Average SEER value of equipment installed in portfolio | AE98: SEERbase | AF98: =BE98 -> 13 | AG98: IL TRM v7 vol3 | AH98: 79 | AI98: =ROUND((BM98*AW98*(1/((1-BU98)*BE98)-1/((1-BY98)*(CC98)*AB98)))/1000,4) | AJ98: =ROUND(((AW98*((1/((1-BU98)*BI98))-(1/((1-BY98)*AS98))))/1000)*O98,4) | AK98: IL TRM v7 vol3 | AL98: 78, 80, 81 | AM98: 2020-05-01 | AN98: 2021-12-31 | AS98: 13.26 | AT98: EERee | AU98: Calculated value | AW98: 12000 | AX98: Allows for Capacity input in Tons; converts tons to BTUs | BE98: 13 | BF98: SEERbase | BG98: IL TRM v7 vol3 | BH98: 79 | BI98: 10.5 | BJ98: EERbase | BK98: IL TRM v7 vol3 | BL98: 81 | BM98: 738 | BN98: EFLHcool | BO98: EFLHcool, from 2017 MO TRM Vol. 3 | BP98: 122 | BQ98: 1376 | BR98: EFLHheat | BS98: The EFLH Cooling and Heating hours are based on a EnergyStar study that was normalized (based on HDD and CDD) to Kansas City. This was for both AC and HP units. | BU98: 0.1 | BV98: DeratingCoolBase | BW98: IL TRM v7 vol3 | BX98: 80 | BY98: 0.1 | BZ98: DeratingCoolEff | CA98: IL TRM v7 vol3 | CB98: 80 | CC98: 0.9949 | CD98: SEERadj | CE98: Caclulated value, using alhgorthim from IL TRM v7 vol3 | CF98: 79,80 | CW98: 0.03 | CX98: Societal Discount Rate | CY98: Evergy Standard | DA98: 952 | DB98: First Cost $/ton | DC98: IL TRM v7 vol3 | DD98: 77 | DE98: 620 | DF98: One-time per-system labor cost | DG98: IL TRM v7 vol3 | DH98: 77 | DI98: 3140 | DJ98: Deferred cost savings, per UNIT | DK98: IL TRM v7 vol3 | DL98: 78 | DM98: 3.5 | DN98: Assumed average system tons | DO98: Tracking Data
A99: Heating, Cooling & Home Comfort | B99: CAC SEER 17 - Early Replacement (future) | C99: 29.5 | D99: Single Family | E99: HVAC | G99: per ton | H99: 0 | I99: IL TRM v9 vol3 | J99: 91 | K99: =ROUND((BE99*AW99*(1/((1-BM99)*AF99)-1/((1-BQ99)*(BU99)*AB99)))/1000,4) -> 175.1324 | L99: Calculated Value | N99: 0.2373067751 | O99: 0.68 | P99: IL TRM v9 vol3 | Q99: 92 | R99: =ROUND(((AW99*((1/((1-BM99)*BA99))-(1/((1-BQ99)*AS99))))/1000)*O99,4) -> 0.1797 | S99: Calculated Value | U99: 738 | V99: EFLHcool, from 2017 MO TRM Vol. 3 | W99: 122 | X99: 12 | Y99: IL TRM v9 vol3 | Z99: 91 | AA99: SEERee | AB99: 17 | AC99: Average SEER value of equipment installed in portfolio | AE99: SEERbase | AF99: 13 | AG99: IL TRM v9 vol3 | AH99: 93 | AI99: =ROUND((BE99*AW99*(1/((1-BM99)*AF99)-1/((1-BQ99)*(BU99)*AB99)))/1000,4) | AJ99: =ROUND(((AW99*((1/((1-BM99)*BA99))-(1/((1-BQ99)*AS99))))/1000)*O99,4) | AK99: IL TRM v9 vol3 | AL99: 92, 94 | AM99: 2022-01-01 | AS99: =1.12*AB99-0.02*AB99^2 -> 13.26 | AT99: EERee | AU99: Calculated value | AW99: 12000 | AX99: Allows for Capacity input in Tons; converts tons to BTUs | BA99: 10.5 | BB99: EERbase | BC99: IL TRM v9 vol3 | BD99: 95 | BE99: 738 | BF99: EFLHcool | BG99: EFLHcool, from 2017 MO TRM Vol. 3 | BH99: 122 | BI99: 1376 | BJ99: EFLHheat | BK99: The EFLH Cooling and Heating hours are based on a EnergyStar study that was normalized (based on HDD and CDD) to Kansas City. This was for both AC and HP units. | BM99: 0.1 | BN99: DeratingCoolBase | BO99: IL TRM v9 vol3 | BP99: 94 | BQ99: 0.1 | BR99: DeratingCoolEff | BS99: IL TRM v9 vol3 | BT99: 94 | BU99: =0.805*(AS99/AB99)+0.367 -> 0.9949 | BV99: SEERadj | BW99: Caclulated value, using alhgorthim from IL TRM v7 vol3 | BX99: 94 | BY99: 0.03 | BZ99: Societal Discount Rate | CA99: Evergy Standard | CC99: 952 | CD99: First Cost $/ton | CE99: IL TRM v9 vol3 | CF99: 91 | CG99: 620 | CH99: One-time per-system labor cost | CI99: IL TRM v9 vol3 | CJ99: 91 | CK99: 3140 | CL99: Deferred cost savings, per UNIT | CM99: IL TRM v9 vol3 | CN99: 91 | CO99: 3.5 | CP99: Assumed average system tons | CQ99: Tracking Data | DR99: Updated references to IL TRM v9
A100: Heating, Cooling & Home Comfort | B100: CAC Dual-Speed Compressor | C100: 395 | D100: Single Family | E100: HVAC | G100: per ton | H100: =(952*(AW100/12000)+620)/BU100 -> 1262 | I100: IL TRM v6 vol3 | J100: 72 | K100: =ROUND((AS100*AW100*(1/BA100-1/BE100))/1000/BU100,4) -> 265.3846 | L100: Calculated Value | N100: =ROUND(R100/O100,4) -> 0.2143 | O100: 0.68 | P100: Calculated Value | R100: =ROUND((AW100*(1/BI100-1/BM100))/1000*BQ100/BU100,4) -> 0.1457 | S100: Calculated Value | U100: 1035 | V100: IL TRM v6 vol3 | W100: 74 | X100: 18 | Y100: IL TRM v6 vol3 | Z100: 72 | AA100: SEER | AB100: 18 | AC100: Daikin DX18TC Series Indoor Model Number: DV29PTCB14A | AE100: SEER | AF100: 13 | AG100: IL TRM v6 vol3 | AH100: 72 | AI100: =ROUND((AS100*AW100*(1/BA100-1/BE100))/1000/BU100,4) | AJ100: =ROUND((AW100*(1/BI100-1/BM100))/1000*BQ100/BU100,4) | AK100: IL TRM v6 vol3 | AL100: 73, 75 | AM100: 2020-01-01 | AN100: 2021-12-31 | AS100: 1035 | AT100: FLHcool | AU100: IL TRM v6 vol3 | AV100: 74 | AW100: 24000 | AX100: Capacity (Btu/hr) | AY100: Daikin DX18TC Series Indoor Model Number: DV29PTCB14A | BA100: 13 | BB100: SEERbase | BC100: IL TRM v6 vol3 | BD100: 74 | BE100: 18 | BF100: SEERee | BG100: Daikin DX18TC Series Indoor Model Number: DV29PTCB14A | BI100: 11.2 | BJ100: EERbase | BK100: IL TRM v6 vol3 | BL100: 75 | BM100: 14 | BN100: EERee | BO100: Daikin DX18TC Series Indoor Model Number: DV29PTCB14A | BQ100: 0.68 | BR100: CF | BS100: IL TRM v6 vol3 | BT100: 75 | BU100: =AW100/12000 -> 2 | BV100: Tons | BW100: IL TRM v6 vol3 | BY100: Daikin DX18TC Series Indoor Model Number: DV29PTCB14A
A101: Heating, Cooling & Home Comfort | B101: CAC Dual-Speed Compressor | C101: 395.1 | D101: Single Family | E101: HVAC | G101: per ton | H101: =(952*(AW101/12000)+620)/BU101 -> 1262 | I101: IL TRM v9 vol3 | J101: 91 | K101: =ROUND((AS101*AW101*(1/BA101-1/BE101))/1000/BU101,4) -> 189.2308 | L101: Calculated Value | N101: =ROUND(R101/O101,4) -> 0.2857 | O101: 0.68 | P101: IL TRM v9 vol3 | Q101: 92 | R101: =ROUND((AW101*(1/BI101-1/BM101))/1000*BQ101/BU101,4) -> 0.1943 | S101: Calculated Value | U101: =AS101 -> 738 | V101: EFLHcool, from 2017 MO TRM Vol. 3 | W101: 122 | X101: 18 | Y101: IL TRM v9 vol3 | Z101: 91 | AA101: SEER | AB101: 18 | AC101: Daikin DX18TC Series Indoor Model Number: DV29PTCB14A | AE101: SEER | AF101: 13 | AG101: IL TRM v9 vol3 | AH101: 93 | AI101: =ROUND((AS101*AW101*(1/BA101-1/BE101))/1000/BU101,4) | AJ101: =ROUND((AW101*(1/BI101-1/BM101))/1000*BQ101/BU101,4) | AK101: IL TRM v9 vol3 | AL101: 92, 94 | AM101: 2022-01-01 | AS101: 738 | AT101: EFLHcool | AU101: EFLHcool, from 2017 MO TRM Vol. 3 | AV101: 122 | AW101: 24000 | AX101: Capacity (Btu/hr) | AY101: Daikin DX18TC Series Indoor Model Number: DV29PTCB14A | BA101: 13 | BB101: SEERbase | BC101: IL TRM v9 vol3 | BD101: 95 | BE101: 18 | BF101: SEERee | BG101: Daikin DX18TC Series Indoor Model Number: DV29PTCB14A | BI101: 10.5 | BJ101: EERbase | BK101: IL TRM v9 vol3 | BL101: 95 | BM101: 14 | BN101: EERee | BO101: Daikin DX18TC Series Indoor Model Number: DV29PTCB14A | BQ101: 0.68 | BR101: CF | BS101: IL TRM v6 vol3 | BT101: 75 | BU101: =AW101/12000 -> 2 | BV101: Tons | BW101: IL TRM v6 vol3 | BY101: Daikin DX18TC Series Indoor Model Number: DV29PTCB14A | DR101: Updated EFLH to match CAC, update EERbase to align with IL TRM v9 and CAC. Updated references to IL TRM v9
A102: Heating, Cooling & Home Comfort | B102: CAC Variable-Speed Compressor | C102: 396 | D102: Single Family | E102: HVAC | G102: per ton | H102: =(952*(AW102/12000)+620)/BU102 -> 1278.315789 | I102: IL TRM v6 vol3 | J102: 72 | K102: =ROUND((AS102*AW102*(1/BA102-1/BE102))/1000/BU102,4) -> 415.3846 | L102: Calculated Value | N102: =ROUND(R102/O102,4) -> 0.2143 | O102: 0.68 | P102: Calculated Value | R102: =ROUND((AW102*(1/BI102-1/BM102))/1000*BQ102/BU102,4) -> 0.1457 | S102: Calculated Value | U102: 1035 | V102: IL TRM v6 vol3 | W102: 74 | X102: 18 | Y102: IL TRM v6 vol3 | Z102: 72 | AA102: SEER | AB102: 23 | AC102: Amana AVXC20 Indoor Model Number: AVPVC24C14A | AE102: SEER | AF102: 13 | AG102: IL TRM v6 vol3 | AH102: 72 | AI102: =ROUND((AS102*AW102*(1/BA102-1/BE102))/1000/BU102,4) | AJ102: =ROUND((AW102*(1/BI102-1/BM102))/1000*BQ102/BU102,4) | AK102: IL TRM v6 vol3 | AL102: 73, 75 | AM102: 2020-01-01 | AN102: 2021-12-31 | AS102: 1035 | AT102: FLHcool | AU102: IL TRM v6 vol3 | AV102: 74 | AW102: 22800 | AX102: Capacity (Btu/hr) | AY102: Amana AVXC20 Indoor Model Number: AVPVC24C14A | BA102: 13 | BB102: SEERbase | BC102: IL TRM v6 vol3 | BD102: 74 | BE102: 23 | BF102: SEERee | BG102: Amana AVXC20 Indoor Model Number: AVPVC24C14A | BI102: 11.2 | BJ102: EERbase | BK102: IL TRM v6 vol3 | BL102: 75 | BM102: 14 | BN102: EERee | BO102: Amana AVXC20 Indoor Model Number: AVPVC24C14A | BQ102: 0.68 | BR102: CF | BS102: IL TRM v6 vol3 | BT102: 75 | BU102: =AW102/12000 -> 1.9 | BV102: Tons | BW102: IL TRM v6 vol3 | BY102: Amana AVXC20 Indoor Model Number: AVPVC24C14A
A103: Heating, Cooling & Home Comfort | B103: CAC Variable-Speed Compressor | C103: 396.1 | D103: Single Family | E103: HVAC | G103: per ton | H103: =(952*(AW103/12000)+620)/BU103 -> 1278.315789 | I103: IL TRM v9 vol3 | J103: 91 | K103: =ROUND((AS103*AW103*(1/BA103-1/BE103))/1000/BU103,4) -> 296.1873 | L103: Calculated Value | N103: =ROUND(R103/O103,4) -> 0.2857 | O103: 0.68 | P103: IL TRM v9 vol3 | Q103: 92 | R103: =ROUND((AW103*(1/BI103-1/BM103))/1000*BQ103/BU103,4) -> 0.1943 | S103: Calculated Value | U103: 738 | V103: EFLHcool, from 2017 MO TRM Vol. 3 | W103: 122 | X103: 18 | Y103: IL TRM v9 vol3 | Z103: 91 | AA103: SEER | AB103: 23 | AC103: Amana AVXC20 Indoor Model Number: AVPVC24C14A | AE103: SEER | AF103: 13 | AG103: IL TRM v9 vol3 | AH103: 93 | AI103: =ROUND((AS103*AW103*(1/BA103-1/BE103))/1000/BU103,4) | AJ103: =ROUND((AW103*(1/BI103-1/BM103))/1000*BQ103/BU103,4) | AK103: IL TRM v9 vol3 | AL103: 92, 94 | AM103: 2022-01-01 | AS103: 738 | AT103: EFLHcool | AU103: EFLHcool, from 2017 MO TRM Vol. 3 | AV103: 122 | AW103: 22800 | AX103: Capacity (Btu/hr) | AY103: Amana AVXC20 Indoor Model Number: AVPVC24C14A | BA103: 13 | BB103: SEERbase | BC103: IL TRM v9 vol3 | BD103: 95 | BE103: 23 | BF103: SEERee | BG103: Amana AVXC20 Indoor Model Number: AVPVC24C14A | BI103: 10.5 | BJ103: EERbase | BK103: IL TRM v9 vol3 | BL103: 95 | BM103: 14 | BN103: EERee | BO103: Amana AVXC20 Indoor Model Number: AVPVC24C14A | BQ103: 0.68 | BR103: CF | BS103: IL TRM v6 vol3 | BT103: 75 | BU103: =AW103/12000 -> 1.9 | BV103: Tons | BW103: IL TRM v6 vol3 | BY103: Amana AVXC20 Indoor Model Number: AVPVC24C14A | DR103: Updated EFLH to match CAC, update EERbase to align with IL TRM v9 and CAC. Updated references to IL TRM v9
A104: Heating, Cooling & Home Comfort | B104: ASHP SEER 15 | C104: 30.4 | D104: Single Family | E104: HVAC | G104: per ton | H104: =303/3.5 -> 86.57142857 | I104: IL TRM v7 vol3 | J104: 64 | K104: =ROUND(((U104*AS104*(1/(AF104*(1-BY104))-1/(AB104*CC104*(1-CG104))))/1000)+((BQ104*AS104*(1/(BA104*(1-CK104))-1/(AW104*CO104*(1-CS104))))/1000),4) -> 171.6937 | L104: Calculated Value | N104: =K104/U104 -> 0.23264729 | O104: 0.72 | P104: IL TRM v7 vol3 | Q104: 65 | R104: =ROUND((AS104*(1/(BI104*(1-BY104))-1/(BE104*(1-CG104))))/1000*O104,4) -> 0.0978 | S104: Calculated Value | U104: 738 | V104: EFLHcool, from 2017 MO TRM Vol. 3 | W104: 85 | X104: 16 | Y104: IL TRM v7 vol3 | Z104: 64 | AA104: SEERee | AB104: 15.17 | AC104: per PY2018 Metadata WHE | AE104: SEERbase | AF104: 14 | AG104: IL TRM v7 vol3 | AH104: 67 | AI104: =ROUND(((U104*AS104*(1/(AF104*(1-BY104))-1/(AB104*CC104*(1-CG104))))/1000)+((BQ104*AS104*(1/(BA104*(1-CK104))-1/(AW104*CO104*(1-CS104))))/1000),4) | AJ104: =ROUND((AS104*(1/(BI104*(1-BY104))-1/(BE104*(1-CG104))))/1000*O104,4) | AK104: IL TRM v7 vol3 | AL104: 65, 66, 69 | AM104: 2020-05-01 | AN104: 2021-12-31 | AS104: 12000 | AT104: Allows for Capacity input in Tons; converts tons to BTUs | AU104: IL TRM v7 vol3 | AV104: 66 | AW104: 8.583333333 | AX104: HSPFee | AY104: per PY2018 Metadata WHE | BA104: 8.2 | BB104: HSPFbase | BC104: IL TRM v7 vol3 | BD104: 68 | BE104: =1.12*AB104-0.02*AB104^2 -> 12.387822 | BF104: EERee | BG104: Calculated value | BI104: 11 | BJ104: EERbase | BK104: IL TRM v7 vol3 | BL104: 70 | BM104: 738 | BN104: EFLHcool | BO104: EFLHcool, from 2017 MO TRM Vol. 3 | BP104: 85 | BQ104: 1376 | BR104: EFLHheat | BS104: The EFLH Cooling and Heating hours are based on a EnergyStar study that was normalized (based on HDD and CDD) to Kansas City. This was for both AC and HP units. | BU104: 8.2 | BV104: HSPFbase | BW104: IL TRM v7 vol3 | BX104: 68 | BY104: 0.1 | BZ104: Derating_Cool_Base | CA104: IL TRM v7 vol3 | CB104: 67 | CC104: =0.805*(BE104/AB104)+0.367 -> 1.024363 | CD104: SEERadj | CE104: IL TRM v7 vol3 | CF104: 69 (example) | CG104: 0.1 | CH104: Derating_Cool_Eff | CI104: IL TRM v7 vol3 | CJ104: 67 | CK104: 0.1 | CL104: Derating_Heat_Base | CM104: IL TRM v7 vol3 | CN104: 68 | CO104: 1.001 | CP104: HSPFadj | CQ104: IL TRM v7 vol3 | CR104: 69 (example) | CS104: 0.1 | CT104: Derating_Heat_Eff | CU104: IL TRM v7 vol3 | CV104: 68
A105: Heating, Cooling & Home Comfort | B105: ASHP SEER 15 | C105: 30.5 | D105: Single Family | E105: HVAC | G105: per ton | H105: =303/3.5 -> 86.57142857 | I105: IL TRM v9 vol3 | J105: 64 | K105: =ROUND(((U105*AS105*(1/(AF105*(1-BU105))-1/(AB105*BY105*(1-CC105))))/1000)+((BQ105*AS105*(1/(BA105*(1-CG105))-1/(AW105*CK105*(1-CO105))))/1000),4) -> 171.6937 | L105: Calculated Value | N105: =K105/U105 -> 0.23264729 | O105: 0.72 | P105: IL TRM v9 vol3 | Q105: 74 | R105: =ROUND((AS105*(1/(BI105*(1-BU105))-1/(BE105*(1-CC105))))/1000*O105,4) -> 0.0978 | S105: Calculated Value | U105: 738 | V105: EFLHcool, from 2017 MO TRM Vol. 3 | W105: 85 | X105: 16 | Y105: IL TRM v9 vol3 | Z105: 73 | AA105: SEERee | AB105: 15.17 | AC105: per PY2018 Metadata WHE | AE105: SEERbase | AF105: 14 | AG105: IL TRM v9 vol3 | AH105: 77 | AI105: =ROUND(((U105*AS105*(1/(AF105*(1-BU105))-1/(AB105*BY105*(1-CC105))))/1000)+((BQ105*AS105*(1/(BA105*(1-CG105))-1/(AW105*CK105*(1-CO105))))/1000),4) | AJ105: =ROUND((AS105*(1/(BI105*(1-BU105))-1/(BE105*(1-CC105))))/1000*O105,4) | AK105: IL TRM v9 vol3 | AL105: 74, 83 | AM105: 2022-01-01 | AS105: 12000 | AT105: Allows for Capacity input in Tons; converts tons to BTUs | AW105: 8.583333333 | AX105: HSPFee | AY105: per PY2018 Metadata WHE | BA105: 8.2 | BB105: HSPFbase | BC105: IL TRM v9 vol3 | BD105: 78 | BE105: 12.387822 | BF105: EERee | BG105: Calculated value | BI105: 11 | BJ105: EERbase | BK105: IL TRM v9 vol3 | BL105: 83 | BM105: 738 | BN105: EFLHcool | BO105: EFLHcool, from 2017 MO TRM Vol. 3 | BP105: 85 | BQ105: 1376 | BR105: EFLHheat | BS105: The EFLH Cooling and Heating hours are based on a EnergyStar study that was normalized (based on HDD and CDD) to Kansas City. This was for both AC and HP units. | BU105: 0.1 | BV105: Derating_Cool_Base | BW105: IL TRM v9 vol3 | BX105: 77 | BY105: =0.805*(BE105/AB105)+0.367 -> 1.024363 | BZ105: SEERadj | CA105: IL TRM v9 vol3 | CB105: 77 | CC105: 0.1 | CD105: Derating_Cool_Eff | CE105: IL TRM v9 vol3 | CF105: 77 | CG105: 0.1 | CH105: Derating_Heat_Base | CI105: IL TRM v9 vol3 | CJ105: 78 | CK105: 1.001 | CL105: HSPFadj | CM105: IL TRM v9 vol3 | CN105: 78 | CO105: 0.1 | CP105: Derating_Heat_Eff | CQ105: IL TRM v9 vol3 | CR105: 78 | DR105: Updated references to IL TRM v9
A106: Heating, Cooling & Home Comfort | B106: ASHP SEER 15 - Early Replacement | C106: 31.5 | D106: Single Family | E106: HVAC | G106: per ton | H106: =DA106+DE106/DM106-DI106*(1+CW106)^(-X106) -> 196.2703269 | I106: IL TRM v7 vol3 | J106: 64 | K106: 1632.7465 | L106: Calculated Value | N106: 2.212393631 | O106: 0.72 | P106: IL TRM v7 vol3 | Q106: 65 | R106: 0.505 | S106: Calculated Value | U106: 738 | V106: EFLHcool, from 2017 MO TRM Vol. 3 | W106: 85 | X106: 6 | Y106: IL TRM v7 vol3 | Z106: 64 | AA106: SEERee | AB106: 15.17 | AC106: per PY2018 Metadata WHE | AE106: SEERexist | AF106: 9.3 | AG106: IL TRM v7 vol3 | AH106: 66 | AI106: =ROUND(((U106*AS106*(1/(AF106*(1-BY106))-1/(AB106*CC106*(1-CG106))))/1000)+((BQ106*AS106*(1/(BA106*(1-CK106))-1/(AW106*CO106*(1-CS106))))/1000),4) | AJ106: =ROUND((AS106*(1/(BI106*(1-BY106))-1/(BE106*(1-CG106))))/1000*O106,4) | AK106: IL TRM v7 vol3 | AL106: 65, 66, 69 | AM106: 2021-01-01 | AN106: 2021-12-31 | AS106: 12000 | AT106: Allows for Capacity input in Tons; converts tons to BTUs | AU106: IL TRM v7 vol3 | AV106: 66 | AW106: 8.712142857 | AX106: HSPFee | AY106: per PY2018 Metadata WHE | BA106: 5.54 | BB106: HSPFexist | BC106: IL TRM v7 vol3 | BD106: 68 | BE106: 12.387822 | BF106: EERee | BG106: Calculated value | BI106: 7.5 | BJ106: EERexist | BK106: IL TRM v7 vol3 | BL106: 69,70 | BM106: 738 | BN106: EFLHcool | BO106: EFLHcool, from 2017 MO TRM Vol. 3 | BP106: 85 | BQ106: 1376 | BR106: EFLHheat | BS106: The EFLH Cooling and Heating hours are based on a EnergyStar study that was normalized (based on HDD and CDD) to Kansas City. This was for both AC and HP units. | BU106: 5.54 | BV106: HSPFexist | BW106: IL TRM v7 vol3 | BX106: 68 | BY106: 0.1 | BZ106: Derating_Cool_Base | CA106: IL TRM v7 vol3 | CB106: 67 | CC106: 1.024363 | CD106: SEERadj | CE106: IL TRM v7 vol3 | CF106: 69 (example) | CG106: 0.1 | CH106: Derating_Cool_Eff | CI106: IL TRM v7 vol3 | CJ106: 67 | CK106: 0.1 | CL106: Derating_Heat_Base | CM106: IL TRM v7 vol3 | CN106: 68 | CO106: 1.001 | CP106: HSPFadj | CQ106: IL TRM v7 vol3 | CR106: 69 (example) | CS106: 0.1 | CT106: Derating_Heat_Eff | CU106: IL TRM v7 vol3 | CV106: 68 | CW106: 0.03 | CX106: Societal Discount Rate | CY106: Evergy Standard | DA106: 1381 | DB106: First Cost $/ton | DC106: IL TRM v7 vol3 | DD106: 64 | DE106: 303 | DF106: One-time per-system labor cost | DG106: IL TRM v7 vol3 | DH106: 64 | DI106: 1518 | DJ106: Deferred cost savings | DK106: IL TRM v7 vol3 | DL106: 65 | DM106: 3.5 | DN106: Assumed average system tons | DO106: Tracking Data
A107: Heating, Cooling & Home Comfort | B107: ASHP SEER 15 - Early Replacement | C107: 31.6 | D107: Single Family | E107: HVAC | G107: per ton | H107: =DA107+DE107/DM107-DI107*(1+CS107)^(-X107) -> 196.2703269 | I107: IL TRM v7 vol3 | J107: 64 | K107: =ROUND(((U107*AS107*(1/(AF107*(1-BU107))-1/(AB107*BY107*(1-CC107))))/1000)+((BQ107*AS107*(1/(BA107*(1-CG107))-1/(AW107*CK107*(1-CO107))))/1000),4) -> 1632.7465 | L107: Calculated Value | N107: =K107/U107 -> 2.212393631 | O107: 0.72 | P107: IL TRM v9 vol3 | Q107: 74 | R107: =ROUND((AS107*(1/(BI107*(1-BU107))-1/(BE107*(1-CC107))))/1000*O107,4) -> 0.505 | S107: Calculated Value | U107: 738 | V107: EFLHcool, from 2017 MO TRM Vol. 3 | W107: 85 | X107: 6 | Y107: IL TRM v9 vol3 | Z107: 73 | AA107: SEERee | AB107: 15.17 | AC107: per PY2018 Metadata WHE | AE107: SEERexist | AF107: 9.3 | AG107: IL TRM v9 vol3 | AH107: 77 | AI107: =ROUND(((U107*AS107*(1/(AF107*(1-BU107))-1/(AB107*BY107*(1-CC107))))/1000)+((BQ107*AS107*(1/(BA107*(1-CG107))-1/(AW107*CK107*(1-CO107))))/1000),4) | AJ107: =ROUND((AS107*(1/(BI107*(1-BU107))-1/(BE107*(1-CC107))))/1000*O107,4) | AK107: IL TRM v9 vol3 | AL107: 74, 83 | AM107: 2022-01-01 | AS107: 12000 | AT107: Allows for Capacity input in Tons; converts tons to BTUs | AW107: 8.712142857 | AX107: HSPFee | AY107: per PY2018 Metadata WHE | BA107: 5.54 | BB107: HSPFexist | BC107: IL TRM v9 vol3 | BD107: 78 | BE107: 12.387822 | BF107: EERee | BG107: Calculated value | BI107: 7.5 | BJ107: EERexist | BK107: IL TRM v9 vol3 | BL107: 83 | BM107: 738 | BN107: EFLHcool | BO107: EFLHcool, from 2017 MO TRM Vol. 3 | BP107: 85 | BQ107: 1376 | BR107: EFLHheat | BS107: The EFLH Cooling and Heating hours are based on a EnergyStar study that was normalized (based on HDD and CDD) to Kansas City. This was for both AC and HP units. | BU107: 0.1 | BV107: Derating_Cool_Base | BW107: IL TRM v9 vol3 | BX107: 77 | BY107: =0.805*(BE107/AB107)+0.367 -> 1.024363 | BZ107: SEERadj | CA107: IL TRM v9 vol3 | CB107: 77 | CC107: 0.1 | CD107: Derating_Cool_Eff | CE107: IL TRM v9 vol3 | CF107: 77 | CG107: 0.1 | CH107: Derating_Heat_Base | CI107: IL TRM v9 vol3 | CJ107: 78 | CK107: 1.001 | CL107: HSPFadj | CM107: IL TRM v9 vol3 | CN107: 78 | CO107: 0.1 | CP107: Derating_Heat_Eff | CQ107: IL TRM v9 vol3 | CR107: 78 | CS107: 0.03 | CT107: Societal Discount Rate | CU107: Evergy Standard | DA107: 1381 | DB107: First Cost $/ton | DC107: IL TRM v7 vol3 | DD107: 64 | DE107: 303 | DF107: One-time per-system labor cost | DG107: IL TRM v7 vol3 | DH107: 64 | DI107: 1518 | DJ107: Deferred cost savings | DK107: IL TRM v7 vol3 | DL107: 65 | DM107: 3.5 | DN107: Assumed average system tons | DO107: Tracking Data | DR107: Updated references to IL TRM v9
A108: Heating, Cooling & Home Comfort | B108: ASHP SEER 15 - Early Replacement (future) | C108: 32.4 | D108: Single Family | E108: HVAC | G108: per ton | H108: 0 | I108: IL TRM v7 vol3 | J108: 64 | K108: 203.2648 | L108: Calculated Value | N108: 0.2754265583 | O108: 0.72 | P108: IL TRM v7 vol3 | Q108: 65 | R108: 0.0978 | S108: Calculated Value | U108: 738 | V108: EFLHcool, from 2017 MO TRM Vol. 3 | W108: 85 | X108: 10 | Y108: IL TRM v7 vol3 | Z108: 64 | AA108: SEERee | AB108: 15.17 | AC108: per PY2018 Metadata WHE | AE108: SEERbase | AF108: 14 | AG108: IL TRM v7 vol3 | AH108: 67 | AI108: =ROUND(((U108*AS108*(1/(AF108*(1-BY108))-1/(AB108*CC108*(1-CG108))))/1000)+((BQ108*AS108*(1/(BA108*(1-CK108))-1/(AW108*CO108*(1-CS108))))/1000),4) | AJ108: =ROUND((AS108*(1/(BI108*(1-BY108))-1/(BE108*(1-CG108))))/1000*O108,4) | AK108: IL TRM v7 vol3 | AL108: 65, 66, 69 | AM108: 2020-05-01 | AN108: 2021-12-31 | AS108: 12000 | AT108: Allows for Capacity input in Tons; converts tons to BTUs | AU108: IL TRM v7 vol3 | AV108: 66 | AW108: 8.712142857 | AX108: HSPFee | AY108: per PY2018 Metadata WHE | BA108: 8.2 | BB108: HSPFexist | BC108: IL TRM v7 vol3 | BD108: 68 | BE108: 12.387822 | BF108: EERee | BG108: Calculated value | BI108: 11 | BJ108: EERbase | BK108: IL TRM v7 vol3 | BL108: 70 | BM108: 738 | BN108: EFLHcool | BO108: EFLHcool, from 2017 MO TRM Vol. 3 | BP108: 85 | BQ108: 1376 | BR108: EFLHheat | BS108: The EFLH Cooling and Heating hours are based on a EnergyStar study that was normalized (based on HDD and CDD) to Kansas City. This was for both AC and HP units. | BU108: 8.2 | BV108: HSPFbase | BW108: IL TRM v7 vol3 | BX108: 68 | BY108: 0.1 | BZ108: Derating_Cool_Base | CA108: IL TRM v7 vol3 | CB108: 67 | CC108: 1.024363 | CD108: SEERadj | CE108: IL TRM v7 vol3 | CF108: 69 (example) | CG108: 0.1 | CH108: Derating_Cool_Eff | CI108: IL TRM v7 vol3 | CJ108: 67 | CK108: 0.1 | CL108: Derating_Heat_Base | CM108: IL TRM v7 vol3 | CN108: 68 | CO108: 1.001 | CP108: HSPFadj | CQ108: IL TRM v7 vol3 | CR108: 69 (example) | CS108: 0.1 | CT108: Derating_Heat_Eff | CU108: IL TRM v7 vol3 | CV108: 68 | CW108: 0.03 | CX108: Societal Discount Rate | CY108: Evergy Standard | DA108: 1381 | DB108: First Cost $/ton | DC108: IL TRM v7 vol3 | DD108: 64 | DE108: 303 | DF108: One-time per-system labor cost | DG108: IL TRM v7 vol3 | DH108: 64 | DI108: 1518 | DJ108: Deferred cost savings | DK108: IL TRM v7 vol3 | DL108: 65 | DM108: 3.5 | DN108: Assumed average system tons | DO108: Tracking Data
A109: Heating, Cooling & Home Comfort | B109: ASHP SEER 15 - Early Replacement (future) | C109: 32.5 | D109: Single Family | E109: HVAC | G109: per ton | H109: 0 | I109: IL TRM v7 vol3 | J109: 64 | K109: =ROUND(((U109*AS109*(1/(AF109*(1-BU109))-1/(AB109*BY109*(1-CC109))))/1000)+((BQ109*AS109*(1/(BA109*(1-CG109))-1/(AW109*CK109*(1-CO109))))/1000),4) -> 203.2648 | L109: Calculated Value | N109: =K109/U109 -> 0.2754265583 | O109: 0.72 | P109: IL TRM v9 vol3 | Q109: 74 | R109: =ROUND((AS109*(1/(BI109*(1-BU109))-1/(BE109*(1-CC109))))/1000*O109,4) -> 0.0978 | S109: Calculated Value | U109: 738 | V109: EFLHcool, from 2017 MO TRM Vol. 3 | W109: 85 | X109: 10 | Y109: IL TRM v9 vol3 | Z109: 73 | AA109: SEERee | AB109: 15.17 | AC109: per PY2018 Metadata WHE | AE109: SEERbase | AF109: 14 | AG109: IL TRM v9 vol3 | AH109: 77 | AI109: =ROUND(((U109*AS109*(1/(AF109*(1-BU109))-1/(AB109*BY109*(1-CC109))))/1000)+((BQ109*AS109*(1/(BA109*(1-CG109))-1/(AW109*CK109*(1-CO109))))/1000),4) | AJ109: =ROUND((AS109*(1/(BI109*(1-BU109))-1/(BE109*(1-CC109))))/1000*O109,4) | AK109: IL TRM v9 vol3 | AL109: 74, 83 | AM109: 2022-01-01 | AS109: 12000 | AT109: Allows for Capacity input in Tons; converts tons to BTUs | AW109: 8.712142857 | AX109: HSPFee | AY109: per PY2018 Metadata WHE | BA109: 8.2 | BB109: HSPFexist | BC109: IL TRM v9 vol3 | BD109: 78 | BE109: 12.387822 | BF109: EERee | BG109: Calculated value | BI109: 11 | BJ109: EERbase | BK109: IL TRM v9 vol3 | BL109: 83 | BM109: 738 | BN109: EFLHcool | BO109: EFLHcool, from 2017 MO TRM Vol. 3 | BP109: 85 | BQ109: 1376 | BR109: EFLHheat | BS109: The EFLH Cooling and Heating hours are based on a EnergyStar study that was normalized (based on HDD and CDD) to Kansas City. This was for both AC and HP units. | BU109: 0.1 | BV109: Derating_Cool_Base | BW109: IL TRM v9 vol3 | BX109: 77 | BY109: =0.805*(BE109/AB109)+0.367 -> 1.024363 | BZ109: SEERadj | CA109: IL TRM v9 vol3 | CB109: 77 | CC109: 0.1 | CD109: Derating_Cool_Eff | CE109: IL TRM v9 vol3 | CF109: 77 | CG109: 0.1 | CH109: Derating_Heat_Base | CI109: IL TRM v9 vol3 | CJ109: 78 | CK109: 1.001 | CL109: HSPFadj | CM109: IL TRM v9 vol3 | CN109: 78 | CO109: 0.1 | CP109: Derating_Heat_Eff | CQ109: IL TRM v9 vol3 | CR109: 78 | CS109: 0.03 | CT109: Societal Discount Rate | CU109: Evergy Standard | DA109: 1381 | DB109: First Cost $/ton | DC109: IL TRM v7 vol3 | DD109: 64 | DE109: 303 | DF109: One-time per-system labor cost | DG109: IL TRM v7 vol3 | DH109: 64 | DI109: 1518 | DJ109: Deferred cost savings | DK109: IL TRM v7 vol3 | DL109: 65 | DM109: 3.5 | DN109: Assumed average system tons | DO109: Tracking Data | DR109: Updated references to IL TRM v9
A110: Heating, Cooling & Home Comfort | B110: ASHP SEER 15 - Replace Electric Resistance Heat | C110: 33.5 | D110: Single Family | E110: HVAC | G110: per ton | H110: =303/3.5 -> 86.57142857 | I110: IL TRM v7 vol3 | J110: 64 | K110: 241.5629 | L110: Calculated Value | N110: 0.3273210027 | O110: 0.72 | P110: IL TRM v7 vol3 | Q110: 65 | R110: 0.0978 | S110: Calculated Value | U110: 738 | V110: EFLHcool, from 2017 MO TRM Vol. 3 | W110: 85 | X110: 16 | Y110: IL TRM v7 vol3 | Z110: 64 | AA110: SEERee | AB110: 15.17 | AC110: per PY2018 Metadata WHE | AE110: SEERbase | AF110: 14 | AG110: IL TRM v7 vol3 | AH110: 66 | AI110: =ROUND(((U110*AS110*(1/(AF110*(1-BY110))-1/(AB110*CC110*(1-CG110))))/1000)+((BQ110*AS110*(1/(BA110*(1-CK110))-1/(AW110*CO110*(1-CS110))))/1000),4) | AJ110: =ROUND((AS110*(1/(BI110*(1-BY110))-1/(BE110*(1-CG110))))/1000*O110,4) | AK110: IL TRM v7 vol3 | AL110: 65, 66, 69 | AM110: 2021-01-01 | AN110: 2021-12-31 | AS110: 12000 | AT110: Allows for Capacity input in Tons; converts tons to BTUs | AU110: IL TRM v7 vol3 | AV110: 66 | AW110: 8.873684211 | AX110: HSPFee | AY110: per PY2018 Metadata WHE | BA110: 8.2 | BB110: HSPFbase | BC110: IL TRM v7 vol3 | BD110: 68 | BE110: 12.387822 | BF110: EERee | BG110: Calculated value | BI110: 11 | BJ110: EERbase | BK110: IL TRM v7 vol3 | BL110: 70 | BM110: 738 | BN110: EFLHcool | BO110: EFLHcool, from 2017 MO TRM Vol. 3 | BP110: 85 | BQ110: 1376 | BR110: EFLHheat | BS110: The EFLH Cooling and Heating hours are based on a EnergyStar study that was normalized (based on HDD and CDD) to Kansas City. This was for both AC and HP units. | BU110: 8.2 | BV110: HSPFbase | BW110: IL TRM v7 vol3 | BX110: 68 | BY110: 0.1 | BZ110: Derating_Cool_Base | CA110: IL TRM v7 vol3 | CB110: 67 | CC110: 1.024363 | CD110: SEERadj | CE110: IL TRM v7 vol3 | CF110: 69 (example) | CG110: 0.1 | CH110: Derating_Cool_Eff | CI110: IL TRM v7 vol3 | CJ110: 67 | CK110: 0.1 | CL110: Derating_Heat_Base | CM110: IL TRM v7 vol3 | CN110: 68 | CO110: 1.001 | CP110: HSPFadj | CQ110: IL TRM v7 vol3 | CR110: 69 (example) | CS110: 0.1 | CT110: Derating_Heat_Eff | CU110: IL TRM v7 vol3 | CV110: 68
A111: Heating, Cooling & Home Comfort | B111: ASHP SEER 15 - Replace Electric Resistance Heat | C111: 33.6 | D111: Single Family | E111: HVAC | G111: per ton | H111: =303/3.5 -> 86.57142857 | I111: IL TRM v7 vol3 | J111: 64 | K111: =ROUND(((U111*AS111*(1/(AF111*(1-BU111))-1/(AB111*BY111*(1-CC111))))/1000)+((BQ111*AS111*(1/(BA111*(1-CG111))-1/(AW111*CK111*(1-CO111))))/1000),4) -> 3384.4187 | L111: Calculated Value | N111: =K111/U111 -> 4.585933198 | O111: 0.72 | P111: IL TRM v9 vol3 | Q111: 74 | R111: =ROUND((AS111*(1/(BI111*(1-BU111))-1/(BE111*(1-CC111))))/1000*O111,4) -> 0.0978 | S111: Calculated Value | U111: 738 | V111: EFLHcool, from 2017 MO TRM Vol. 3 | W111: 85 | X111: 16 | Y111: IL TRM v9 vol3 | Z111: 73 | AA111: SEERee | AB111: 15.17 | AC111: per PY2018 Metadata WHE | AE111: SEERbase | AF111: 14 | AG111: IL TRM v9 vol3 | AH111: 77 | AI111: =ROUND(((U111*AS111*(1/(AF111*(1-BU111))-1/(AB111*BY111*(1-CC111))))/1000)+((BQ111*AS111*(1/(BA111*(1-CG111))-1/(AW111*CK111*(1-CO111))))/1000),4) | AJ111: =ROUND((AS111*(1/(BI111*(1-BU111))-1/(BE111*(1-CC111))))/1000*O111,4) | AK111: IL TRM v9 vol3 | AL111: 74, 83 | AM111: 2022-01-01 | AS111: 12000 | AT111: Allows for Capacity input in Tons; converts tons to BTUs | AW111: 8.873684211 | AX111: HSPFee | AY111: per PY2018 Metadata WHE | BA111: 3.41 | BB111: HSPFbase | BC111: IL TRM v9 vol3 | BD111: 78 | BE111: 12.387822 | BF111: EERee | BG111: Calculated value | BI111: 11 | BJ111: EERbase | BK111: IL TRM v9 vol3 | BL111: 83 | BM111: 738 | BN111: EFLHcool | BO111: EFLHcool, from 2017 MO TRM Vol. 3 | BP111: 85 | BQ111: 1376 | BR111: EFLHheat | BS111: The EFLH Cooling and Heating hours are based on a EnergyStar study that was normalized (based on HDD and CDD) to Kansas City. This was for both AC and HP units. | BU111: 0.1 | BV111: Derating_Cool_Base | BW111: IL TRM v9 vol3 | BX111: 77 | BY111: =0.805*(BE111/AB111)+0.367 -> 1.024363 | BZ111: SEERadj | CA111: IL TRM v9 vol3 | CB111: 77 | CC111: 0.1 | CD111: Derating_Cool_Eff | CE111: IL TRM v9 vol3 | CF111: 77 | CG111: 0.1 | CH111: Derating_Heat_Base | CI111: IL TRM v9 vol3 | CJ111: 78 | CK111: 1.001 | CL111: HSPFadj | CM111: IL TRM v9 vol3 | CN111: 78 | CO111: 0.1 | CP111: Derating_Heat_Eff | CQ111: IL TRM v9 vol3 | CR111: 78 | DR111: Updated HSPFbase to Electric Resistance, updated SEERadj to calculated value, updated references to IL TRM v9
A112: Heating, Cooling & Home Comfort | B112: ASHP SEER 15 - Replace Electric Resistance Heat - Early Replacement | C112: 314.3 | D112: Single Family | E112: HVAC | G112: per ton | H112: =DA112+DE112/DM112-DI112*(1+CW112)^(-X112) -> 196.2703269 | I112: IL TRM v7 vol3 | J112: 64 | K112: 3701.3279 | L112: Calculated Value | N112: 5.015349458 | O112: 0.72 | P112: IL TRM v7 vol3 | Q112: 65 | R112: 0.505 | S112: Calculated Value | U112: 738 | V112: EFLHcool, from 2017 MO TRM | W112: 85 | X112: 6 | Y112: IL TRM v7 vol3 | Z112: 64 | AA112: SEERee | AB112: 15.17 | AC112: per PY2018 Metadata WHE | AE112: SEERexist | AF112: 9.3 | AG112: IL TRM v7 vol3 | AH112: 66 | AI112: =ROUND(((U112*AS112*(1/(AF112*(1-BY112))-1/(AB112*CC112*(1-CG112))))/1000)+((BQ112*AS112*(1/(BA112*(1-CK112))-1/(AW112*CO112*(1-CS112))))/1000),4) | AJ112: =ROUND((AS112*(1/(BI112*(1-BY112))-1/(BE112*(1-CG112))))/1000*O112,4) | AK112: IL TRM v7 vol3 | AL112: 65, 69 | AM112: 2020-05-01 | AN112: 2021-12-31 | AS112: 12000 | AT112: Allows for Capacity input in Tons; converts tons to BTUs | AW112: 8.712142857 | AX112: HSPFee | AY112: per PY2018 Metadata WHE | BA112: 3.41 | BB112: HSPFexist | BC112: IL TRM v7 vol3 | BD112: 68 | BE112: =(-0.02*AB112^2)+(1.12*AB112) -> 12.387822 | BF112: EERee | BG112: Calculated per PY2018 Metadata WHE | BI112: 7.5 | BJ112: EERexist | BK112: IL TRM v7 vol3 | BL112: 70 | BM112: 738 | BN112: EFLHcool | BO112: EFLHcool, from 2017 MO TRM | BP112: 85 | BQ112: 1376 | BR112: EFLHheat | BS112: The EFLH Cooling and Heating hours are based on a EnergyStar study that was normalized (based on HDD and CDD) to Kansas City. This was for both AC and HP units. | BU112: 3.41 | BV112: HSPFexist | BW112: IL TRM v7 vol3 | BX112: 68 | BY112: 0.1 | BZ112: Derating_Cool_Base | CA112: IL TRM v7 vol3 | CB112: 67 | CC112: 1.024363 | CD112: SEERadj | CE112: IL TRM v7 vol3 | CF112: 69 (example) | CG112: 0.1 | CH112: Derating_Cool_Eff | CI112: IL TRM v7 vol3 | CJ112: 67 | CK112: 0.1 | CL112: Derating_Heat_Base | CM112: IL TRM v7 vol3 | CN112: 68 | CO112: 1.001 | CP112: HSPFadj | CQ112: IL TRM v7 vol3 | CR112: 69 (example) | CS112: 0.1 | CT112: Derating_Heat_Eff | CU112: IL TRM v7 vol3 | CV112: 68 | CW112: 0.03 | CX112: Societal Discount Rate | CY112: Evergy Standard | DA112: 1381 | DB112: First Cost $/ton | DC112: IL TRM v7 vol3 | DD112: 64 | DE112: 303 | DF112: One-time per-system labor cost | DG112: IL TRM v7 vol3 | DH112: 64 | DI112: 1518 | DJ112: Deferred cost savings | DK112: IL TRM v7 vol3 | DL112: 65 | DM112: 3.5 | DN112: Assumed average system tons | DO112: Tracking Data
A113: Heating, Cooling & Home Comfort | B113: ASHP SEER 15 - Replace Electric Resistance Heat - Early Replacement | C113: 314.4 | D113: Single Family | E113: HVAC | G113: per ton | H113: =DA113+DE113/DM113-DI113*(1+CW113)^(-X113) -> 196.2703269 | I113: IL TRM v9 vol3 | J113: 64 | K113: =ROUND(((U113*AS113*(1/(AF113*(1-BU113))-1/(AB113*BY113*(1-CC113))))/1000)+((BQ113*AS113*(1/(BA113*(1-CG113))-1/(AW113*CK113*(1-CO113))))/1000),4) -> 3701.3279 | L113: Calculated Value | N113: =K113/U113 -> 5.015349458 | O113: 0.72 | P113: IL TRM v9 vol3 | Q113: 74 | R113: =ROUND((AS113*(1/(BI113*(1-BU113))-1/(BE113*(1-CC113))))/1000*O113,4) -> 0.505 | S113: Calculated Value | U113: 738 | V113: EFLHcool, from 2017 MO TRM Vol. 3 | W113: 85 | X113: 6 | Y113: IL TRM v9 vol3 | Z113: 73 | AA113: SEERee | AB113: 15.17 | AC113: per PY2018 Metadata WHE | AE113: SEERbase | AF113: 9.3 | AG113: IL TRM v9 vol3 | AH113: 77 | AI113: =ROUND(((U113*AS113*(1/(AF113*(1-BU113))-1/(AB113*BY113*(1-CC113))))/1000)+((BQ113*AS113*(1/(BA113*(1-CG113))-1/(AW113*CK113*(1-CO113))))/1000),4) | AJ113: =ROUND((AS113*(1/(BI113*(1-BU113))-1/(BE113*(1-CC113))))/1000*O113,4) | AK113: IL TRM v9 vol3 | AL113: 74, 83 | AM113: 2022-01-01 | AS113: 12000 | AT113: Allows for Capacity input in Tons; converts tons to BTUs | AW113: 8.712142857 | AX113: HSPFee | AY113: per PY2018 Metadata WHE | BA113: 3.41 | BB113: HSPFexist | BC113: IL TRM v9 vol3 | BD113: 78 | BE113: =(-0.02*AB113^2)+(1.12*AB113) -> 12.387822 | BF113: EERee | BG113: Calculated value | BI113: 7.5 | BJ113: EERexist | BK113: IL TRM v9 vol3 | BL113: 83 | BM113: 738 | BN113: EFLHcool | BO113: EFLHcool, from 2017 MO TRM Vol. 3 | BP113: 85 | BQ113: 1376 | BR113: EFLHheat | BS113: The EFLH Cooling and Heating hours are based on a EnergyStar study that was normalized (based on HDD and CDD) to Kansas City. This was for both AC and HP units. | BU113: 0.1 | BV113: Derating_Cool_Base | BW113: IL TRM v9 vol3 | BX113: 77 | BY113: =0.805*(BE113/AB113)+0.367 -> 1.024363 | BZ113: SEERadj | CA113: IL TRM v9 vol3 | CB113: 77 | CC113: 0.1 | CD113: Derating_Cool_Eff | CE113: IL TRM v9 vol3 | CF113: 77 | CG113: 0.1 | CH113: Derating_Heat_Base | CI113: IL TRM v9 vol3 | CJ113: 78 | CK113: 1.001 | CL113: HSPFadj | CM113: IL TRM v9 vol3 | CN113: 78 | CO113: 0.1 | CP113: Derating_Heat_Eff | CQ113: IL TRM v9 vol3 | CR113: 78 | CW113: 0.03 | CX113: Societal Discount Rate | CY113: Evergy Standard | DA113: 1381 | DB113: First Cost $/ton | DC113: IL TRM v7 vol3 | DD113: 64 | DE113: 303 | DF113: One-time per-system labor cost | DG113: IL TRM v7 vol3 | DH113: 64 | DI113: 1518 | DJ113: Deferred cost savings | DK113: IL TRM v7 vol3 | DL113: 65 | DM113: 3.5 | DN113: Assumed average system tons | DO113: Tracking Data | DR113: Updated references to IL TRM v9
A114: Heating, Cooling & Home Comfort | B114: ASHP SEER 15 - Replace Electric Resistance Heat - Early Replacement (future) | C114: 315.3 | D114: Single Family | E114: HVAC | G114: per ton | H114: 0 | I114: IL TRM v7 vol3 | J114: 64 | K114: 203.2648 | L114: Calculated Value | N114: 0.2754265583 | O114: 0.72 | P114: IL TRM v7 vol3 | Q114: 65 | R114: 0.0978 | S114: Calculated Value | U114: 738 | V114: EFLHcool, from 2017 MO TRM | W114: 85 | X114: 10 | Y114: IL TRM v7 vol3 | Z114: 64 | AA114: SEERee | AB114: 15.17 | AC114: per PY2018 Metadata WHE | AE114: SEERbase | AF114: 14 | AG114: IL TRM v7 vol3 | AH114: 67 | AI114: =ROUND(((U114*AS114*(1/(AF114*(1-BY114))-1/(AB114*CC114*(1-CG114))))/1000)+((BQ114*AS114*(1/(BA114*(1-CK114))-1/(AW114*CO114*(1-CS114))))/1000),4) | AJ114: =ROUND((AS114*(1/(BI114*(1-BY114))-1/(BE114*(1-CG114))))/1000*O114,4) | AK114: IL TRM v7 vol3 | AL114: 65, 69 | AM114: 2020-05-01 | AN114: 2021-12-31 | AS114: 12000 | AT114: Allows for Capacity input in Tons; converts tons to BTUs | AW114: 8.712142857 | AX114: HSPFee | AY114: per PY2018 Metadata WHE | BA114: 8.2 | BB114: HSPFbase | BC114: IL TRM v7 vol3 | BD114: 68 | BE114: =(-0.02*AB114^2)+(1.12*AB114) -> 12.387822 | BF114: EERee | BG114: Calculated per PY2018 Metadata WHE | BI114: 11 | BJ114: EERbase | BK114: IL TRM v7 vol3 | BL114: 70 | BM114: 738 | BN114: EFLHcool | BO114: EFLHcool, from 2017 MO TRM | BP114: 85 | BQ114: 1376 | BR114: EFLHheat | BS114: The EFLH Cooling and Heating hours are based on a EnergyStar study that was normalized (based on HDD and CDD) to Kansas City. This was for both AC and HP units. | BU114: 8.2 | BV114: HSPFbase | BW114: IL TRM v7 vol3 | BX114: 68 | BY114: 0.1 | BZ114: Derating_Cool_Base | CA114: IL TRM v7 vol3 | CB114: 67 | CC114: 1.024363 | CD114: SEERadj | CE114: IL TRM v7 vol3 | CF114: 69 (example) | CG114: 0.1 | CH114: Derating_Cool_Eff | CI114: IL TRM v7 vol3 | CJ114: 67 | CK114: 0.1 | CL114: Derating_Heat_Base | CM114: IL TRM v7 vol3 | CN114: 68 | CO114: 1.001 | CP114: HSPFadj | CQ114: IL TRM v7 vol3 | CR114: 69 (example) | CS114: 0.1 | CT114: Derating_Heat_Eff | CU114: IL TRM v7 vol3 | CV114: 68 | CW114: 0.03 | CX114: Societal Discount Rate | CY114: Evergy Standard | DA114: 1381 | DB114: First Cost $/ton | DC114: IL TRM v7 vol3 | DD114: 64 | DE114: 303 | DF114: One-time per-system labor cost | DG114: IL TRM v7 vol3 | DH114: 64 | DI114: 1518 | DJ114: Deferred cost savings | DK114: IL TRM v7 vol3 | DL114: 65 | DM114: 3.5 | DN114: Assumed average system tons | DO114: Tracking Data
A115: Heating, Cooling & Home Comfort | B115: ASHP SEER 15 - Replace Electric Resistance Heat - Early Replacement (future) | C115: 315.4 | D115: Single Family | E115: HVAC | G115: per ton | H115: 0 | I115: IL TRM v7 vol3 | J115: 64 | K115: =ROUND(((U115*AS115*(1/(AF115*(1-BU115))-1/(AB115*BY115*(1-CC115))))/1000)+((BQ115*AS115*(1/(BA115*(1-CG115))-1/(AW115*CK115*(1-CO115))))/1000),4) -> 203.2648 | L115: Calculated Value | N115: =K115/U115 -> 0.2754265583 | O115: 0.72 | P115: IL TRM v9 vol3 | Q115: 74 | R115: =ROUND((AS115*(1/(BI115*(1-BU115))-1/(BE115*(1-CC115))))/1000*O115,4) -> 0.0978 | S115: Calculated Value | U115: 738 | V115: EFLHcool, from 2017 MO TRM | W115: 85 | X115: 10 | Y115: IL TRM v9 vol3 | Z115: 73 | AA115: SEERee | AB115: 15.17 | AC115: per PY2018 Metadata WHE | AE115: SEERbase | AF115: 14 | AG115: IL TRM v9 vol3 | AH115: 77 | AI115: =ROUND(((U115*AS115*(1/(AF115*(1-BU115))-1/(AB115*BY115*(1-CC115))))/1000)+((BQ115*AS115*(1/(BA115*(1-CG115))-1/(AW115*CK115*(1-CO115))))/1000),4) | AJ115: =ROUND((AS115*(1/(BI115*(1-BU115))-1/(BE115*(1-CC115))))/1000*O115,4) | AK115: IL TRM v9 vol3 | AL115: 74, 83 | AM115: 2022-01-01 | AS115: 12000 | AT115: Allows for Capacity input in Tons; converts tons to BTUs | AW115: 8.712142857 | AX115: HSPFee | AY115: per PY2018 Metadata WHE | BA115: 8.2 | BB115: HSPFbase | BC115: IL TRM v9 vol3 | BD115: 78 | BE115: =(-0.02*AB115^2)+(1.12*AB115) -> 12.387822 | BF115: EERee | BG115: Calculated per PY2018 Metadata WHE | BI115: 11 | BJ115: EERbase | BK115: IL TRM v9 vol3 | BL115: 83 | BM115: 738 | BN115: EFLHcool | BO115: EFLHcool, from 2017 MO TRM | BP115: 85 | BQ115: 1376 | BR115: EFLHheat | BS115: The EFLH Cooling and Heating hours are based on a EnergyStar study that was normalized (based on HDD and CDD) to Kansas City. This was for both AC and HP units. | BU115: 0.1 | BV115: Derating_Cool_Base | BW115: IL TRM v9 vol3 | BX115: 77 | BY115: =0.805*(BE115/AB115)+0.367 -> 1.024363 | BZ115: SEERadj | CA115: IL TRM v9 vol3 | CB115: 77 | CC115: 0.1 | CD115: Derating_Cool_Eff | CE115: IL TRM v9 vol3 | CF115: 77 | CG115: 0.1 | CH115: Derating_Heat_Base | CI115: IL TRM v9 vol3 | CJ115: 78 | CK115: 1.001 | CL115: HSPFadj | CM115: IL TRM v9 vol3 | CN115: 78 | CO115: 0.1 | CP115: Derating_Heat_Eff | CQ115: IL TRM v9 vol3 | CR115: 78 | CS115: 0.03 | CT115: Societal Discount Rate | CU115: Evergy Standard | DA115: 1381 | DB115: First Cost $/ton | DC115: IL TRM v7 vol3 | DD115: 64 | DE115: 303 | DF115: One-time per-system labor cost | DG115: IL TRM v7 vol3 | DH115: 64 | DI115: 1518 | DJ115: Deferred cost savings | DK115: IL TRM v7 vol3 | DL115: 65 | DM115: 3.5 | DN115: Assumed average system tons | DO115: Tracking Data | DR115: Updated references to IL TRM v9
A116: Heating, Cooling & Home Comfort | B116: ASHP SEER 16 | C116: 34.4 | D116: Single Family | E116: HVAC | G116: per ton | H116: =438/3.5 -> 125.1428571 | I116: IL TRM v7 vol3 | J116: 64 | K116: 314.3524 | L116: Calculated Value | N116: =K116/U116 -> 0.4259517615 | O116: 0.72 | P116: IL TRM v7 vol3 | Q116: 65 | R116: 0.1238 | S116: Calculated Value | U116: 738 | V116: EFLHcool, from 2017 MO TRM Vol. 3 | W116: 85 | X116: 16 | Y116: IL TRM v7 vol3 | Z116: 64 | AA116: SEERee | AB116: 16.04 | AC116: per PY2018 Metadata WHE | AE116: SEERbase | AF116: 14 | AG116: IL TRM v7 vol3 | AH116: 67 | AI116: =ROUND(((U116*AS116*(1/(AF116*(1-BY116))-1/(AB116*CC116*(1-CG116))))/1000)+((BQ116*AS116*(1/(BA116*(1-CK116))-1/(AW116*CO116*(1-CS116))))/1000),4) | AJ116: =ROUND((AS116*(1/(BI116*(1-BY116))-1/(BE116*(1-CG116))))/1000*O116,4) | AK116: IL TRM v7 vol3 | AL116: 65, 66, 69 | AM116: 2020-05-01 | AN116: 2021-12-31 | AS116: 12000 | AT116: Allows for Capacity input in Tons; converts tons to BTUs | AU116: IL TRM v7 vol3 | AV116: 66 | AW116: 9.079166667 | AX116: HSPFee | AY116: per PY2018 Metadata WHE | BA116: 8.2 | BB116: HSPFbase | BC116: IL TRM v7 vol3 | BD116: 68 | BE116: =1.12*AB116-0.02*AB116^2 -> 12.819168 | BF116: EERee | BG116: Calculated value | BI116: 11 | BJ116: EERbase | BK116: IL TRM v7 vol3 | BL116: 70 | BM116: 738 | BN116: EFLHcool | BO116: EFLHcool, from 2017 MO TRM Vol. 3 | BP116: 85 | BQ116: 1376 | BR116: EFLHheat | BS116: The EFLH Cooling and Heating hours are based on a EnergyStar study that was normalized (based on HDD and CDD) to Kansas City. This was for both AC and HP units. | BU116: 8.2 | BV116: HSPFbase | BW116: IL TRM v7 vol3 | BX116: 68 | BY116: 0.1 | BZ116: Derating_Cool_Base | CA116: IL TRM v7 vol3 | CB116: 67 | CC116: 1.010356 | CD116: SEERadj | CE116: IL TRM v7 vol3 | CF116: 69 (example) | CG116: 0.1 | CH116: Derating_Cool_Eff | CI116: IL TRM v7 vol3 | CJ116: 67 | CK116: 0.1 | CL116: Derating_Heat_Base | CM116: IL TRM v7 vol3 | CN116: 68 | CO116: 1.001 | CP116: HSPFadj | CQ116: IL TRM v7 vol3 | CR116: 69 (example) | CS116: 0.1 | CT116: Derating_Heat_Eff | CU116: IL TRM v7 vol3 | CV116: 68
A117: Heating, Cooling & Home Comfort | B117: ASHP SEER 16 | C117: 34.5 | D117: Single Family | E117: HVAC | G117: per ton | H117: =438/3.5 -> 125.1428571 | I117: IL TRM v7 vol3 | J117: 64 | K117: =ROUND(((U117*AS117*(1/(AF117*(1-BU117))-1/(AB117*BY117*(1-CC117))))/1000)+((BQ117*AS117*(1/(BA117*(1-CG117))-1/(AW117*CK117*(1-CO117))))/1000),4) -> 314.3524 | L117: Calculated Value | N117: 0.4259517615 | O117: 0.72 | P117: IL TRM v9 vol3 | Q117: 74 | R117: =ROUND((AS117*(1/(BI117*(1-BU117))-1/(BE117*(1-CC117))))/1000*O117,4) -> 0.1238 | S117: Calculated Value | U117: 738 | V117: EFLHcool, from 2017 MO TRM Vol. 3 | W117: 85 | X117: 16 | Y117: IL TRM v9 vol3 | Z117: 73 | AA117: SEERee | AB117: 16.04 | AC117: per PY2018 Metadata WHE | AE117: SEERbase | AF117: 14 | AG117: IL TRM v9 vol3 | AH117: 77 | AI117: =ROUND(((U117*AS117*(1/(AF117*(1-BU117))-1/(AB117*BY117*(1-CC117))))/1000)+((BQ117*AS117*(1/(BA117*(1-CG117))-1/(AW117*CK117*(1-CO117))))/1000),4) | AJ117: =ROUND((AS117*(1/(BI117*(1-BU117))-1/(BE117*(1-CC117))))/1000*O117,4) | AK117: IL TRM v9 vol3 | AL117: 74, 83 | AM117: 2022-01-01 | AS117: 12000 | AT117: Allows for Capacity input in Tons; converts tons to BTUs | AW117: 9.079166667 | AX117: HSPFee | AY117: per PY2018 Metadata WHE | BA117: 8.2 | BB117: HSPFbase | BC117: IL TRM v9 vol3 | BD117: 78 | BE117: 12.819168 | BF117: EERee | BG117: Calculated value | BI117: 11 | BJ117: EERbase | BK117: IL TRM v9 vol3 | BL117: 83 | BM117: 738 | BN117: EFLHcool | BO117: EFLHcool, from 2017 MO TRM Vol. 3 | BP117: 85 | BQ117: 1376 | BR117: EFLHheat | BS117: The EFLH Cooling and Heating hours are based on a EnergyStar study that was normalized (based on HDD and CDD) to Kansas City. This was for both AC and HP units. | BU117: 0.1 | BV117: Derating_Cool_Base | BW117: IL TRM v9 vol3 | BX117: 77 | BY117: =0.805*(BE117/AB117)+0.367 -> 1.010356 | BZ117: SEERadj | CA117: IL TRM v9 vol3 | CB117: 77 | CC117: 0.1 | CD117: Derating_Cool_Eff | CE117: IL TRM v9 vol3 | CF117: 77 | CG117: 0.1 | CH117: Derating_Heat_Base | CI117: IL TRM v9 vol3 | CJ117: 78 | CK117: 1.001 | CL117: HSPFadj | CM117: IL TRM v9 vol3 | CN117: 78 | CO117: 0.1 | CP117: Derating_Heat_Eff | CQ117: IL TRM v9 vol3 | CR117: 78 | DR117: Updated references to IL TRM v9
A118: Heating, Cooling & Home Comfort | B118: ASHP SEER 16 - Early Replacement | C118: 35.5 | D118: Single Family | E118: HVAC | G118: per ton | H118: =DA118+DE118/DM118-DI118*(1+CW118)^(-X118) -> 196.2703269 | I118: IL TRM v7 vol3 | J118: 64 | K118: 1722.3405 | L118: Calculated Value | N118: 2.333794715 | O118: 0.72 | P118: IL TRM v7 vol3 | Q118: 65 | R118: 0.5322 | S118: Calculated Value | U118: 738 | V118: EFLHcool, from 2017 MO TRM Vol. 3 | W118: 85 | X118: 6 | Y118: IL TRM v7 vol3 | Z118: 64 | AA118: SEERee | AB118: 16.08 | AC118: per PY2018 Metadata WHE | AE118: SEERexist | AF118: 9.3 | AG118: IL TRM v7 vol3 | AH118: 66 | AI118: =ROUND(((U118*AS118*(1/(AF118*(1-BY118))-1/(AB118*CC118*(1-CG118))))/1000)+((BQ118*AS118*(1/(BA118*(1-CK118))-1/(AW118*CO118*(1-CS118))))/1000),4) | AJ118: =ROUND((AS118*(1/(BI118*(1-BY118))-1/(BE118*(1-CG118))))/1000*O118,4) | AK118: IL TRM v7 vol3 | AL118: 65, 66, 69 | AM118: 2021-01-01 | AN118: 2021-12-31 | AS118: 12000 | AT118: Allows for Capacity input in Tons; converts tons to BTUs | AU118: IL TRM v7 vol3 | AV118: 66 | AW118: 8.978571429 | AX118: HSPFee | AY118: per PY2018 Metadata WHE | BA118: 5.54 | BB118: HSPFbase | BC118: IL TRM v7 vol3 | BD118: 68 | BE118: 12.838272 | BF118: EERee | BG118: Calculated value | BI118: 7.5 | BJ118: EERexist | BK118: IL TRM v7 vol3 | BL118: 69,70 | BM118: 738 | BN118: EFLHcool | BO118: EFLHcool, from 2017 MO TRM Vol. 3 | BP118: 85 | BQ118: 1376 | BR118: EFLHheat | BS118: The EFLH Cooling and Heating hours are based on a EnergyStar study that was normalized (based on HDD and CDD) to Kansas City. This was for both AC and HP units. | BU118: 5.54 | BV118: HSPFexist | BW118: IL TRM v7 vol3 | BX118: 68 | BY118: 0.1 | BZ118: Derating_Cool_Base | CA118: IL TRM v7 vol3 | CB118: 67 | CC118: 1.009712 | CD118: SEERadj | CE118: IL TRM v7 vol3 | CF118: 69 (example) | CG118: 0.1 | CH118: Derating_Cool_Eff | CI118: IL TRM v7 vol3 | CJ118: 67 | CK118: 0.1 | CL118: Derating_Heat_Base | CM118: IL TRM v7 vol3 | CN118: 68 | CO118: 1.001 | CP118: HSPFadj | CQ118: IL TRM v7 vol3 | CR118: 69 (example) | CS118: 0.1 | CT118: Derating_Heat_Eff | CU118: IL TRM v7 vol3 | CV118: 68 | CW118: 0.03 | CX118: Societal Discount Rate | CY118: Evergy Standard | DA118: 1381 | DB118: First Cost $/ton | DC118: IL TRM v7 vol3 | DD118: 64 | DE118: 303 | DF118: One-time per-system labor cost | DG118: IL TRM v7 vol3 | DH118: 64 | DI118: 1518 | DJ118: Deferred cost savings | DK118: IL TRM v7 vol3 | DL118: 65 | DM118: 3.5 | DN118: Assumed average system tons | DO118: Tracking Data
A119: Heating, Cooling & Home Comfort | B119: ASHP SEER 16 - Early Replacement | C119: 35.6 | D119: Single Family | E119: HVAC | G119: per ton | H119: =DA119+DE119/DM119-DI119*(1+CS119)^(-X119) -> 196.2703269 | I119: IL TRM v7 vol3 | J119: 64 | K119: =ROUND(((U119*AS119*(1/(AF119*(1-BU119))-1/(AB119*BY119*(1-CC119))))/1000)+((BQ119*AS119*(1/(BA119*(1-CG119))-1/(AW119*CK119*(1-CO119))))/1000),4) -> 1722.3405 | L119: Calculated Value | N119: 2.333794715 | O119: 0.72 | P119: IL TRM v9 vol3 | Q119: 74 | R119: =ROUND((AS119*(1/(BI119*(1-BU119))-1/(BE119*(1-CC119))))/1000*O119,4) -> 0.5322 | S119: Calculated Value | U119: 738 | V119: EFLHcool, from 2017 MO TRM Vol. 3 | W119: 85 | X119: 6 | Y119: IL TRM v9 vol3 | Z119: 73 | AA119: SEERee | AB119: 16.08 | AC119: per PY2018 Metadata WHE | AE119: SEERexist | AF119: 9.3 | AG119: IL TRM v9 vol3 | AH119: 77 | AI119: =ROUND(((U119*AS119*(1/(AF119*(1-BU119))-1/(AB119*BY119*(1-CC119))))/1000)+((BQ119*AS119*(1/(BA119*(1-CG119))-1/(AW119*CK119*(1-CO119))))/1000),4) | AJ119: =ROUND((AS119*(1/(BI119*(1-BU119))-1/(BE119*(1-CC119))))/1000*O119,4) | AK119: IL TRM v9 vol3 | AL119: 74, 83 | AM119: 2022-01-01 | AS119: 12000 | AT119: Allows for Capacity input in Tons; converts tons to BTUs | AW119: 8.978571429 | AX119: HSPFee | AY119: per PY2018 Metadata WHE | BA119: 5.54 | BB119: HSPFbase | BC119: IL TRM v9 vol3 | BD119: 78 | BE119: 12.838272 | BF119: EERee | BG119: Calculated value | BI119: 7.5 | BJ119: EERexist | BK119: IL TRM v9 vol3 | BL119: 83 | BM119: 738 | BN119: EFLHcool | BO119: EFLHcool, from 2017 MO TRM Vol. 3 | BP119: 85 | BQ119: 1376 | BR119: EFLHheat | BS119: The EFLH Cooling and Heating hours are based on a EnergyStar study that was normalized (based on HDD and CDD) to Kansas City. This was for both AC and HP units. | BU119: 0.1 | BV119: Derating_Cool_Base | BW119: IL TRM v9 vol3 | BX119: 77 | BY119: =0.805*(BE119/AB119)+0.367 -> 1.009712 | BZ119: SEERadj | CA119: IL TRM v9 vol3 | CB119: 77 | CC119: 0.1 | CD119: Derating_Cool_Eff | CE119: IL TRM v9 vol3 | CF119: 77 | CG119: 0.1 | CH119: Derating_Heat_Base | CI119: IL TRM v9 vol3 | CJ119: 78 | CK119: 1.001 | CL119: HSPFadj | CM119: IL TRM v9 vol3 | CN119: 78 | CO119: 0.1 | CP119: Derating_Heat_Eff | CQ119: IL TRM v9 vol3 | CR119: 78 | CS119: 0.03 | CT119: Societal Discount Rate | CU119: Evergy Standard | DA119: 1381 | DB119: First Cost $/ton | DC119: IL TRM v7 vol3 | DD119: 64 | DE119: 303 | DF119: One-time per-system labor cost | DG119: IL TRM v7 vol3 | DH119: 64 | DI119: 1518 | DJ119: Deferred cost savings | DK119: IL TRM v7 vol3 | DL119: 65 | DM119: 3.5 | DN119: Assumed average system tons | DO119: Tracking Data | DR119: Updated references to IL TRM v9
A120: Heating, Cooling & Home Comfort | B120: ASHP SEER 16 - Early Replacement (future) | C120: 36.5 | D120: Single Family | E120: HVAC | G120: per ton | H120: 0 | I120: IL TRM v7 vol3 | J120: 64 | K120: 106.9581 | L120: Calculated Value | N120: 0.1449296748 | O120: 0.72 | P120: IL TRM v7 vol3 | Q120: 65 | R120: 0.125 | S120: Calculated Value | U120: 738 | V120: EFLHcool, from 2017 MO TRM Vol. 3 | W120: 85 | X120: 10 | Y120: IL TRM v7 vol3 | Z120: 64 | AA120: SEERee | AB120: 16.08 | AC120: per PY2018 Metadata WHE | AE120: =BN120 -> SEERbase | AF120: =BM120 -> 14 | AG120: IL TRM v7 vol3 | AH120: 67 | AI120: =ROUND(((U120*AS120*(1/(AF120*(1-BY120))-1/(AB120*CC120*(1-CG120))))/1000)+((BQ120*AS120*(1/(BA120*(1-CK120))-1/(AW120*CO120*(1-CS120))))/1000),4) | AJ120: =ROUND((AS120*(1/(BI120*(1-BY120))-1/(BE120*(1-CG120))))/1000*O120,4) | AK120: IL TRM v7 vol3 | AL120: 65, 66, 69 | AM120: 2021-01-01 | AN120: 2021-12-31 | AS120: 12000 | AT120: Allows for Capacity input in Tons; converts tons to BTUs | AU120: IL TRM v7 vol3 | AV120: 66 | AW120: 8.978571429 | AX120: HSPFee | AY120: per PY2018 Metadata WHE | BA120: 5.54 | BB120: HSPFexist | BC120: IL TRM v7 vol3 | BD120: 68 | BE120: 12.838272 | BF120: EERee | BG120: Calculated value | BI120: 11 | BJ120: EERbase | BK120: IL TRM v7 vol3 | BL120: 70 | BM120: 14 | BN120: SEERbase | BO120: IL TRM v7 vol3 | BP120: 67 | BQ120: 11 | BR120: EERbase | BS120: IL TRM v7 vol3 | BT120: 70 | BU120: 8.2 | BV120: HSPFbase | BW120: IL TRM v7 vol3 | BX120: 68 | BY120: 0.1 | BZ120: Derating_Cool_Base | CA120: IL TRM v7 vol3 | CB120: 67 | CC120: 1.009712 | CD120: SEERadj | CE120: IL TRM v7 vol3 | CF120: 69 (example) | CG120: 0.1 | CH120: Derating_Cool_Eff | CI120: IL TRM v7 vol3 | CJ120: 67 | CK120: 0.1 | CL120: Derating_Heat_Base | CM120: IL TRM v7 vol3 | CN120: 68 | CO120: 1.001 | CP120: HSPFadj | CQ120: IL TRM v7 vol3 | CR120: 69 (example) | CS120: 0.1 | CT120: Derating_Heat_Eff | CU120: IL TRM v7 vol3 | CV120: 68 | CW120: 0.03 | CX120: Societal Discount Rate | CY120: Evergy Standard | DA120: 1381 | DB120: First Cost $/ton | DC120: IL TRM v7 vol3 | DD120: 64 | DE120: 303 | DF120: One-time per-system labor cost | DG120: IL TRM v7 vol3 | DH120: 64 | DI120: 1518 | DJ120: Deferred cost savings | DK120: IL TRM v7 vol3 | DL120: 65 | DM120: 3.5 | DN120: Assumed average system tons | DO120: Tracking Data
A121: Heating, Cooling & Home Comfort | B121: ASHP SEER 16 - Early Replacement (future) | C121: 36.6 | D121: Single Family | E121: HVAC | G121: per ton | H121: 0 | I121: IL TRM v9 vol3 | J121: 64 | K121: =ROUND(((U121*AS121*(1/(AF121*(1-BU121))-1/(AB121*BY121*(1-CC121))))/1000)+((BQ121*AS121*(1/(BA121*(1-CG121))-1/(AW121*CK121*(1-CO121))))/1000),4) -> 292.8588 | L121: Calculated Value | N121: 0.3968276423 | O121: 0.72 | P121: IL TRM v9 vol3 | Q121: 74 | R121: =ROUND((AS121*(1/(BI121*(1-BU121))-1/(BE121*(1-CC121))))/1000*O121,4) -> 0.125 | S121: Calculated Value | U121: 738 | V121: EFLHcool, from 2017 MO TRM Vol. 3 | W121: 85 | X121: 10 | Y121: IL TRM v9 vol3 | Z121: 73 | AA121: SEERee | AB121: 16.08 | AC121: per PY2018 Metadata WHE | AE121: SEERbase | AF121: 14 | AG121: IL TRM v9 vol3 | AH121: 77 | AI121: =ROUND(((U121*AS121*(1/(AF121*(1-BU121))-1/(AB121*BY121*(1-CC121))))/1000)+((BQ121*AS121*(1/(BA121*(1-CG121))-1/(AW121*CK121*(1-CO121))))/1000),4) | AJ121: =ROUND((AS121*(1/(BI121*(1-BU121))-1/(BE121*(1-CC121))))/1000*O121,4) | AK121: IL TRM v9 vol3 | AL121: 74, 83 | AM121: 2022-01-01 | AS121: 12000 | AT121: Allows for Capacity input in Tons; converts tons to BTUs | AW121: 8.978571429 | AX121: HSPFee | AY121: per PY2018 Metadata WHE | BA121: 8.2 | BB121: HSPFexist | BC121: IL TRM v9 vol3 | BD121: 78 | BE121: 12.838272 | BF121: EERee | BG121: Calculated value | BI121: 11 | BJ121: EERbase | BK121: IL TRM v9 vol3 | BL121: 83 | BM121: 738 | BN121: EFLHcool | BO121: EFLHcool, from 2017 MO TRM Vol. 3 | BP121: 85 | BQ121: 1376 | BR121: EFLHheat | BS121: The EFLH Cooling and Heating hours are based on a EnergyStar study that was normalized (based on HDD and CDD) to Kansas City. This was for both AC and HP units. | BU121: 0.1 | BV121: Derating_Cool_Base | BW121: IL TRM v9 vol3 | BX121: 77 | BY121: =0.805*(BE121/AB121)+0.367 -> 1.009712 | BZ121: SEERadj | CA121: IL TRM v9 vol3 | CB121: 77 | CC121: 0.1 | CD121: Derating_Cool_Eff | CE121: IL TRM v9 vol3 | CF121: 77 | CG121: 0.1 | CH121: Derating_Heat_Base | CI121: IL TRM v9 vol3 | CJ121: 78 | CK121: 1.001 | CL121: HSPFadj | CM121: IL TRM v9 vol3 | CN121: 78 | CO121: 0.1 | CP121: Derating_Heat_Eff | CQ121: IL TRM v9 vol3 | CR121: 78 | CS121: 0.03 | CT121: Societal Discount Rate | CU121: Evergy Standard | DA121: 1381 | DB121: First Cost $/ton | DC121: IL TRM v7 vol3 | DD121: 64 | DE121: 303 | DF121: One-time per-system labor cost | DG121: IL TRM v7 vol3 | DH121: 64 | DI121: 1518 | DJ121: Deferred cost savings | DK121: IL TRM v7 vol3 | DL121: 65 | DM121: 3.5 | DN121: Assumed average system tons | DO121: Tracking Data | DR121: Updated HSPFexist for early replacement (future), corrected issue with EFLH, updated references to IL TRM v9
A122: Heating, Cooling & Home Comfort | B122: ASHP SEER 16 - Replace Electric Resistance Heat | C122: 37.5 | D122: Single Family | E122: HVAC | G122: per ton | H122: =438/3.5 -> 125.1428571 | I122: IL TRM v7 vol3 | J122: 64 | K122: =ROUND((BM122*AS122*(1/((1-BU122)*AF122)-1/((1-CC122)*(BY122)*AB122)))/1000+(BQ122*AS122*(1/((1-CG122)*BA122)-1/((1-CO122)*(CK122)*AW122))/1000),4) -> 311.2679 | L122: Calculated Value | N122: 0.4217722222 | O122: 0.72 | P122: IL TRM v7 vol3 | Q122: 65 | R122: =ROUND((AS122*(1/((1-BU122)*BI122)-1/((1-CC122)*BE122))/1000)*O122,4) -> 0.1258 | S122: Calculated Value | U122: 738 | V122: EFLHcool, from 2017 MO TRM Vol. 3 | W122: 85 | X122: 16 | Y122: IL TRM v7 vol3 | Z122: 64 | AA122: SEERee | AB122: 16.11 | AC122: per PY2018 Metadata WHE | AE122: SEERbase | AF122: 14 | AG122: IL TRM v7 vol3 | AH122: 66 | AI122: =ROUND((BM122*AS122*(1/((1-BU122)*AF122)-1/((1-CC122)*(BY122)*AB122)))/1000+(BQ122*AS122*(1/((1-CG122)*BA122)-1/((1-CO122)*(CK122)*AW122))/1000),4) | AJ122: =ROUND((AS122*(1/((1-BU122)*BI122)-1/((1-CC122)*BE122))/1000)*O122,4) | AK122: IL TRM v7 vol3 | AL122: 65, 66, 69 | AM122: 2021-01-01 | AN122: 2021-12-31 | AS122: 12000 | AT122: Allows for Capacity input in Tons; converts tons to BTUs | AU122: IL TRM v7 vol3 | AV122: 66 | AW122: 9.056521739 | AX122: HSPFee | AY122: per PY2018 Metadata WHE | BA122: 8.2 | BB122: HSPFbase | BC122: IL TRM v5 vol3 | BD122: 68 | BE122: 12.852558 | BF122: EERee | BG122: Calculated value | BI122: 11 | BJ122: EERbase | BK122: IL TRM v7 vol3 | BL122: 70 | BM122: 738 | BN122: EFLHcool | BO122: EFLHcool, from 2017 MO TRM Vol. 3 | BP122: 85 | BQ122: 1376 | BR122: EFLHheat | BS122: The EFLH Cooling and Heating hours are based on a EnergyStar study that was normalized (based on HDD and CDD) to Kansas City. This was for both AC and HP units. | BU122: 0.1 | BV122: Derating_Cool_Base | BW122: IL TRM v7 vol3 | BX122: 67 | BY122: =0.805*(BE122/AB122)+0.367 -> 1.009229 | BZ122: SEERadj | CA122: IL TRM v7 vol3 | CB122: 69 (example) | CC122: 0.1 | CD122: Derating_Cool_Eff | CE122: IL TRM v7 vol3 | CF122: 67 | CG122: 0.1 | CH122: Derating_Heat_Base | CI122: IL TRM v7 vol3 | CJ122: 68 | CK122: 1.001 | CL122: HSPFadj | CM122: IL TRM v7 vol3 | CN122: 69 (example) | CO122: 0.1 | CP122: Derating_Heat_Eff | CQ122: IL TRM v7 vol3 | CR122: 68
A123: Heating, Cooling & Home Comfort | B123: ASHP SEER 16 - Replace Electric Resistance Heat | C123: 37.6 | D123: Single Family | E123: HVAC | G123: per ton | H123: =438/3.5 -> 125.1428571 | I123: IL TRM v7 vol3 | J123: 64 | K123: =ROUND(((U123*AS123*(1/(AF123*(1-BU123))-1/(AB123*BY123*(1-CC123))))/1000)+((BQ123*AS123*(1/(BA123*(1-CG123))-1/(AW123*CK123*(1-CO123)))/1000)),4) -> 3454.1237 | L123: Calculated Value | N123: 4.680384417 | O123: 0.72 | P123: IL TRM v9 vol3 | Q123: 74 | R123: =ROUND((AS123*(1/(BI123*(1-BU123))-1/(BE123*(1-CC123))))/1000*O123,4) -> 0.1258 | S123: Calculated Value | U123: 738 | V123: EFLHcool, from 2017 MO TRM Vol. 3 | W123: 85 | X123: 16 | Y123: IL TRM v9 vol3 | Z123: 73 | AA123: SEERee | AB123: 16.11 | AC123: per PY2018 Metadata WHE | AE123: SEERbase | AF123: 14 | AG123: IL TRM v9 vol3 | AH123: 77 | AI123: =ROUND(((U123*AS123*(1/(AF123*(1-BU123))-1/(AB123*BY123*(1-CC123))))/1000)+((BQ123*AS123*(1/(BA123*(1-CG123))-1/(AW123*CK123*(1-CO123)))/1000)),4) | AJ123: =ROUND((AS123*(1/(BI123*(1-BU123))-1/(BE123*(1-CC123))))/1000*O123,4) | AK123: IL TRM v9 vol3 | AL123: 74, 83 | AM123: 2022-01-01 | AS123: 12000 | AT123: Allows for Capacity input in Tons; converts tons to BTUs | AW123: 9.056521739 | AX123: HSPFee | AY123: per PY2018 Metadata WHE | BA123: 3.41 | BB123: HSPFbase | BC123: IL TRM v9 vol3 | BD123: 78 | BE123: 12.852558 | BF123: EERee | BG123: Calculated value | BI123: 11 | BJ123: EERbase | BK123: IL TRM v9 vol3 | BL123: 83 | BM123: 738 | BN123: EFLHcool | BO123: EFLHcool, from 2017 MO TRM Vol. 3 | BP123: 85 | BQ123: 1376 | BR123: EFLHheat | BS123: The EFLH Cooling and Heating hours are based on a EnergyStar study that was normalized (based on HDD and CDD) to Kansas City. This was for both AC and HP units. | BU123: 0.1 | BV123: Derating_Cool_Base | BW123: IL TRM v9 vol3 | BX123: 77 | BY123: =0.805*(BE123/AB123)+0.367 -> 1.009229 | BZ123: SEERadj | CA123: IL TRM v9 vol3 | CB123: 77 | CC123: 0.1 | CD123: Derating_Cool_Eff | CE123: IL TRM v9 vol3 | CF123: 77 | CG123: 0.1 | CH123: Derating_Heat_Base | CI123: IL TRM v9 vol3 | CJ123: 78 | CK123: 1.001 | CL123: HSPFadj | CM123: IL TRM v9 vol3 | CN123: 78 | CO123: 0.1 | CP123: Derating_Heat_Eff | CQ123: IL TRM v9 vol3 | CR123: 78 | DR123: Updated HSPFbase to Electric Resistance, updated SEERadj to calculated value, updated references to IL TRM v9
A124: Heating, Cooling & Home Comfort | B124: ASHP SEER 16 - Replace Electric Resistance Heat - Early Replacement | C124: 316.2 | D124: Single Family | E124: HVAC | G124: per ton | H124: =DA124+DE124/DM124-DI124*(1+CW124)^(-X124) -> 234.8417555 | I124: IL TRM v7 vol3 | J124: 64 | K124: =ROUND(((U124*AS124*(1/(AF124*(1-BY124))-1/(AB124*CC124*(1-CG124))))/1000)+((BQ124*AS124*(1/(BA124*(1-CK124))-1/(AW124*CO124*(1-CS124))))/1000),4) -> 3791.6941 | L124: Calculated Value | N124: =R124 -> 0.5322 | O124: 0.72 | P124: IL TRM v7 vol3 | Q124: 65 | R124: =ROUND((AS124*(1/(BI124*(1-BY124))-1/(BE124*(1-CG124))))/1000*O124,4) -> 0.5322 | S124: Calculated Value | U124: 738 | V124: EFLHcool, from 2017 MO TRM | W124: 85 | X124: 6 | Y124: IL TRM v7 vol3 | Z124: 64 | AA124: SEERee | AB124: 16.08 | AC124: per PY2018 Metadata WHE | AE124: SEERexist | AF124: 9.3 | AG124: IL TRM v7 vol3 | AH124: 66 | AI124: =ROUND(((U124*AS124*(1/(AF124*(1-BY124))-1/(AB124*CC124*(1-CG124))))/1000)+((BQ124*AS124*(1/(BA124*(1-CK124))-1/(AW124*CO124*(1-CS124))))/1000),4) | AJ124: =ROUND((AS124*(1/(BI124*(1-BY124))-1/(BE124*(1-CG124))))/1000*O124,4) | AK124: IL TRM v7 vol3 | AL124: 65, 69 | AM124: 2020-01-01 | AN124: 2021-12-31 | AS124: 12000 | AT124: Allows for Capacity input in Tons; converts tons to BTUs | AW124: 8.978571429 | AX124: HSPFee | AY124: per PY2018 Metadata WHE | BA124: 3.41 | BB124: HSPFexist | BC124: IL TRM v7 vol3 | BD124: 68 | BE124: =(-0.02*AB124^2)+(1.12*AB124) -> 12.838272 | BF124: EERee | BG124: Calculated per PY2018 Metadata WHE | BI124: 7.5 | BJ124: EERexist | BK124: IL TRM v7 vol3 | BL124: 70 | BM124: 738 | BN124: EFLHcool | BO124: EFLHcool, from 2017 MO TRM | BP124: 85 | BQ124: 1376 | BR124: EFLHheat | BS124: The EFLH Cooling and Heating hours are based on a EnergyStar study that was normalized (based on HDD and CDD) to Kansas City. This was for both AC and HP units. | BU124: 3.41 | BV124: HSPFexist | BW124: IL TRM v7 vol3 | BX124: 68 | BY124: 0.1 | BZ124: Derating_Cool_Base | CA124: IL TRM v7 vol3 | CB124: 67 | CC124: 1.011 | CD124: SEERadj | CE124: IL TRM v7 vol3 | CF124: 69 (example) | CG124: 0.1 | CH124: Derating_Cool_Eff | CI124: IL TRM v7 vol3 | CJ124: 67 | CK124: 0.1 | CL124: Derating_Heat_Base | CM124: IL TRM v7 vol3 | CN124: 68 | CO124: 1.001 | CP124: HSPFadj | CQ124: IL TRM v7 vol3 | CR124: 69 (example) | CS124: 0.1 | CT124: Derating_Heat_Eff | CU124: IL TRM v7 vol3 | CV124: 68 | CW124: 0.03 | CX124: Societal Discount Rate | CY124: Evergy Standard | DA124: 1381 | DB124: First Cost $/ton | DC124: IL TRM v7 vol3 | DD124: 64 | DE124: 438 | DF124: One-time per-system labor cost | DG124: IL TRM v7 vol3 | DH124: 64 | DI124: 1518 | DJ124: Deferred cost savings | DK124: IL TRM v7 vol3 | DL124: 65 | DM124: 3.5 | DN124: Assumed average system tons | DO124: Tracking Data
A125: Heating, Cooling & Home Comfort | B125: ASHP SEER 16 - Replace Electric Resistance Heat - Early Replacement | C125: 316.3 | D125: Single Family | E125: HVAC | G125: per ton | H125: =DA125+DE125/DM125-DI125*(1+CW125)^(-X125) -> 234.8417555 | I125: IL TRM v7 vol3 | J125: 64 | K125: =ROUND(((U125*AS125*(1/(AF125*(1-BY125))-1/(AB125*CC125*(1-CG125))))/1000)+((BQ125*AS125*(1/(BA125*(1-CK125))-1/(AW125*CO125*(1-CS125))))/1000),4) -> 3791.6941 | L125: Calculated Value | N125: =R125 -> 0.5322 | O125: 0.72 | P125: IL TRM v7 vol3 | Q125: 65 | R125: =ROUND((AS125*(1/(BI125*(1-BY125))-1/(BE125*(1-CG125))))/1000*O125,4) -> 0.5322 | S125: Calculated Value | U125: 738 | V125: EFLHcool, from 2017 MO TRM | W125: 85 | X125: 6 | Y125: IL TRM v7 vol3 | Z125: 64 | AA125: SEERee | AB125: 16.08 | AC125: per PY2018 Metadata WHE | AE125: SEERexist | AF125: 9.3 | AG125: IL TRM v7 vol3 | AH125: 66 | AI125: =ROUND(((U125*AS125*(1/(AF125*(1-BY125))-1/(AB125*CC125*(1-CG125))))/1000)+((BQ125*AS125*(1/(BA125*(1-CK125))-1/(AW125*CO125*(1-CS125))))/1000),4) | AJ125: =ROUND((AS125*(1/(BI125*(1-BY125))-1/(BE125*(1-CG125))))/1000*O125,4) | AK125: IL TRM v7 vol3 | AL125: 65, 69 | AM125: 2022-01-01 | AS125: 12000 | AT125: Allows for Capacity input in Tons; converts tons to BTUs | AW125: 8.978571429 | AX125: HSPFee | AY125: per PY2018 Metadata WHE | BA125: 3.41 | BB125: HSPFexist | BC125: IL TRM v7 vol3 | BD125: 68 | BE125: =(-0.02*AB125^2)+(1.12*AB125) -> 12.838272 | BF125: EERee | BG125: Calculated per PY2018 Metadata WHE | BI125: 7.5 | BJ125: EERexist | BK125: IL TRM v7 vol3 | BL125: 70 | BM125: 738 | BN125: EFLHcool | BO125: EFLHcool, from 2017 MO TRM | BP125: 85 | BQ125: 1376 | BR125: EFLHheat | BS125: The EFLH Cooling and Heating hours are based on a EnergyStar study that was normalized (based on HDD and CDD) to Kansas City. This was for both AC and HP units. | BU125: 3.41 | BV125: HSPFexist | BW125: IL TRM v7 vol3 | BX125: 68 | BY125: 0.1 | BZ125: Derating_Cool_Base | CA125: IL TRM v7 vol3 | CB125: 67 | CC125: 1.011 | CD125: SEERadj | CE125: IL TRM v7 vol3 | CF125: 69 (example) | CG125: 0.1 | CH125: Derating_Cool_Eff | CI125: IL TRM v7 vol3 | CJ125: 67 | CK125: 0.1 | CL125: Derating_Heat_Base | CM125: IL TRM v7 vol3 | CN125: 68 | CO125: 1.001 | CP125: HSPFadj | CQ125: IL TRM v7 vol3 | CR125: 69 (example) | CS125: 0.1 | CT125: Derating_Heat_Eff | CU125: IL TRM v7 vol3 | CV125: 68 | CW125: 0.03 | CX125: Societal Discount Rate | CY125: Evergy Standard | DA125: 1381 | DB125: First Cost $/ton | DC125: IL TRM v7 vol3 | DD125: 64 | DE125: 438 | DF125: One-time per-system labor cost | DG125: IL TRM v7 vol3 | DH125: 64 | DI125: 1518 | DJ125: Deferred cost savings | DK125: IL TRM v7 vol3 | DL125: 65 | DM125: 3.5 | DN125: Assumed average system tons | DO125: Tracking Data | DR125: Updated references to IL TRM v9
A126: Heating, Cooling & Home Comfort | B126: ASHP SEER 16 - Replace Electric Resistance Heat - Early Replacement (future) | C126: 317.2 | D126: Single Family | E126: HVAC | G126: per ton | H126: 0 | I126: IL TRM v7 vol3 | J126: 65 | K126: =ROUND(((U126*AS126*(1/(AF126*(1-BY126))-1/(AB126*CC126*(1-CG126))))/1000)+((BQ126*AS126*(1/(BA126*(1-CK126))-1/(AW126*CO126*(1-CS126))))/1000),4) -> 293.6309 | L126: Calculated Value | N126: =R126 -> 0.125 | O126: 0.72 | P126: IL TRM v7 vol3 | Q126: 65 | R126: =ROUND((AS126*(1/(BI126*(1-BY126))-1/(BE126*(1-CG126))))/1000*O126,4) -> 0.125 | S126: Calculated Value | U126: 738 | V126: EFLHcool, from 2017 MO TRM | W126: 85 | X126: 10 | Y126: IL TRM v7 vol3 | Z126: 64 | AA126: SEERee | AB126: 16.08 | AC126: per PY2018 Metadata WHE | AE126: SEERbase | AF126: 14 | AG126: IL TRM v7 vol3 | AH126: 67 | AI126: =ROUND(((U126*AS126*(1/(AF126*(1-BY126))-1/(AB126*CC126*(1-CG126))))/1000)+((BQ126*AS126*(1/(BA126*(1-CK126))-1/(AW126*CO126*(1-CS126))))/1000),4) | AJ126: =ROUND((AS126*(1/(BI126*(1-BY126))-1/(BE126*(1-CG126))))/1000*O126,4) | AK126: IL TRM v7 vol3 | AL126: 65, 69 | AM126: 2020-01-01 | AN126: 2021-12-31 | AS126: 12000 | AT126: Allows for Capacity input in Tons; converts tons to BTUs | AW126: 8.978571429 | AX126: HSPFee | AY126: per PY2018 Metadata WHE | BA126: 8.2 | BB126: HSPFbase | BC126: IL TRM v7 vol3 | BD126: 68 | BE126: =(-0.02*AB126^2)+(1.12*AB126) -> 12.838272 | BF126: EERee | BG126: Calculated per PY2018 Metadata WHE | BI126: 11 | BJ126: EERbase | BK126: IL TRM v7 vol3 | BL126: 70 | BM126: 738 | BN126: EFLHcool | BO126: EFLHcool, from 2017 MO TRM | BP126: 85 | BQ126: 1376 | BR126: EFLHheat | BS126: The EFLH Cooling and Heating hours are based on a EnergyStar study that was normalized (based on HDD and CDD) to Kansas City. This was for both AC and HP units. | BU126: 8.2 | BV126: HSPFbase | BW126: IL TRM v7 vol3 | BX126: 68 | BY126: 0.1 | BZ126: Derating_Cool_Base | CA126: IL TRM v7 vol3 | CB126: 67 | CC126: 1.011 | CD126: SEERadj | CE126: IL TRM v7 vol3 | CF126: 69 (example) | CG126: 0.1 | CH126: Derating_Cool_Eff | CI126: IL TRM v7 vol3 | CJ126: 67 | CK126: 0.1 | CL126: Derating_Heat_Base | CM126: IL TRM v7 vol3 | CN126: 68 | CO126: 1.001 | CP126: HSPFadj | CQ126: IL TRM v7 vol3 | CR126: 69 (example) | CS126: 0.1 | CT126: Derating_Heat_Eff | CU126: IL TRM v7 vol3 | CV126: 68 | CW126: 0.03 | CX126: Societal Discount Rate | CY126: Evergy Standard | DA126: 1381 | DB126: First Cost $/ton | DC126: IL TRM v7 vol3 | DD126: 64 | DE126: 438 | DF126: One-time per-system labor cost | DG126: IL TRM v7 vol3 | DH126: 64 | DI126: 1518 | DJ126: Deferred cost savings | DK126: IL TRM v7 vol3 | DL126: 65 | DM126: 3.5 | DN126: Assumed average system tons | DO126: Tracking Data
A127: Heating, Cooling & Home Comfort | B127: ASHP SEER 16 - Replace Electric Resistance Heat - Early Replacement (future) | C127: 317.3 | D127: Single Family | E127: HVAC | G127: per ton | H127: 0 | I127: IL TRM v7 vol3 | J127: 65 | K127: =ROUND(((U127*AS127*(1/(AF127*(1-BU127))-1/(AB127*BY127*(1-CC127))))/1000)+((BQ127*AS127*(1/(BA127*(1-CG127))-1/(AW127*CK127*(1-CO127))))/1000),4) -> 292.8588 | L127: Calculated Value | N127: =R127 -> 0.125 | O127: 0.72 | P127: IL TRM v9 vol3 | Q127: 74 | R127: =ROUND((AS127*(1/(BI127*(1-BU127))-1/(BE127*(1-CC127))))/1000*O127,4) -> 0.125 | S127: Calculated Value | U127: 738 | V127: EFLHcool, from 2017 MO TRM | W127: 85 | X127: 10 | Y127: IL TRM v9 vol3 | Z127: 73 | AA127: SEERee | AB127: 16.08 | AC127: per PY2018 Metadata WHE | AE127: SEERbase | AF127: 14 | AG127: IL TRM v9 vol3 | AH127: 77 | AI127: =ROUND(((U127*AS127*(1/(AF127*(1-BU127))-1/(AB127*BY127*(1-CC127))))/1000)+((BQ127*AS127*(1/(BA127*(1-CG127))-1/(AW127*CK127*(1-CO127))))/1000),4) | AJ127: =ROUND((AS127*(1/(BI127*(1-BU127))-1/(BE127*(1-CC127))))/1000*O127,4) | AK127: IL TRM v9 vol3 | AL127: 74, 83 | AM127: 2022-01-01 | AS127: 12000 | AT127: Allows for Capacity input in Tons; converts tons to BTUs | AW127: 8.978571429 | AX127: HSPFee | AY127: per PY2018 Metadata WHE | BA127: 8.2 | BB127: HSPFbase | BC127: IL TRM v9 vol3 | BD127: 78 | BE127: =(-0.02*AB127^2)+(1.12*AB127) -> 12.838272 | BF127: EERee | BG127: Calculated per PY2018 Metadata WHE | BI127: 11 | BJ127: EERbase | BK127: IL TRM v9 vol3 | BL127: 83 | BM127: 738 | BN127: EFLHcool | BO127: EFLHcool, from 2017 MO TRM | BP127: 85 | BQ127: 1376 | BR127: EFLHheat | BS127: The EFLH Cooling and Heating hours are based on a EnergyStar study that was normalized (based on HDD and CDD) to Kansas City. This was for both AC and HP units. | BU127: 0.1 | BV127: Derating_Cool_Base | BW127: IL TRM v9 vol3 | BX127: 77 | BY127: =0.805*(BE127/AB127)+0.367 -> 1.009712 | BZ127: SEERadj | CA127: IL TRM v9 vol3 | CB127: 77 | CC127: 0.1 | CD127: Derating_Cool_Eff | CE127: IL TRM v9 vol3 | CF127: 77 | CG127: 0.1 | CH127: Derating_Heat_Base | CI127: IL TRM v9 vol3 | CJ127: 78 | CK127: 1.001 | CL127: HSPFadj | CM127: IL TRM v9 vol3 | CN127: 78 | CO127: 0.1 | CP127: Derating_Heat_Eff | CQ127: IL TRM v9 vol3 | CR127: 78 | CS127: 0.03 | CT127: Societal Discount Rate | CU127: Evergy Standard | DA127: 1381 | DB127: First Cost $/ton | DC127: IL TRM v7 vol3 | DD127: 64 | DE127: 438 | DF127: One-time per-system labor cost | DG127: IL TRM v7 vol3 | DH127: 64 | DI127: 1518 | DJ127: Deferred cost savings | DK127: IL TRM v7 vol3 | DL127: 65 | DM127: 3.5 | DN127: Assumed average system tons | DO127: Tracking Data | DR127: Updated SEERadj to calculated value, updated references to IL TRM v9
A128: Heating, Cooling & Home Comfort | B128: ASHP SEER 17 | C128: 38.4 | D128: Single Family | E128: HVAC | G128: per ton | H128: =724/3.5 -> 206.8571429 | I128: IL TRM v7 vol3 | J128: 64 | K128: =ROUND((BM128*AS128*(1/((1-BU128)*AF128)-1/((1-CC128)*(BY128)*AB128)))/1000+(BQ128*AS128*(1/((1-CG128)*BA128)-1/((1-CO128)*(CK128)*AW128))/1000),4) -> 350.4645 | L128: Calculated Value | N128: =K128/U128 -> 0.4748841463 | O128: 0.72 | P128: IL TRM v7 vol3 | Q128: 65 | R128: =ROUND((AS128*(1/((1-BU128)*BI128)-1/((1-CC128)*BE128))/1000)*O128,4) -> 0.1546 | S128: Calculated Value | U128: 738 | V128: EFLHcool, from 2017 MO TRM Vol. 3 | W128: 85 | X128: 16 | Y128: IL TRM v7 vol3 | Z128: 64 | AA128: SEERee | AB128: 17.25 | AC128: per PY2018 Metadata WHE | AE128: SEERbase | AF128: 14 | AG128: IL TRM v7 vol3 | AH128: 67 | AI128: =ROUND((BM128*AS128*(1/((1-BU128)*AF128)-1/((1-CC128)*(BY128)*AB128)))/1000+(BQ128*AS128*(1/((1-CG128)*BA128)-1/((1-CO128)*(CK128)*AW128))/1000),4) | AJ128: =ROUND((AS128*(1/((1-BU128)*BI128)-1/((1-CC128)*BE128))/1000)*O128,4) | AK128: IL TRM v7 vol3 | AL128: 65, 66, 69 | AM128: 2020-05-01 | AN128: 2021-12-31 | AS128: 12000 | AT128: Allows for Capacity input in Tons; converts tons to BTUs | AU128: IL TRM v7 vol3 | AV128: 66 | AW128: 9.1 | AX128: HSPFee | AY128: per PY2018 Metadata WHE | BA128: 8.2 | BB128: HSPFbase | BC128: IL TRM v7 vol3 | BD128: 68 | BE128: =1.12*AB128-0.02*AB128^2 -> 13.36875 | BF128: EERee | BG128: Calculated value | BI128: 11 | BJ128: EERbase | BK128: IL TRM v7 vol3 | BL128: 70 | BM128: 738 | BN128: EFLHcool | BO128: EFLHcool, from 2017 MO TRM Vol. 3 | BP128: 85 | BQ128: 1376 | BR128: EFLHheat | BS128: The EFLH Cooling and Heating hours are based on a EnergyStar study that was normalized (based on HDD and CDD) to Kansas City. This was for both AC and HP units. | BU128: 0.1 | BV128: Derating_Cool_Base | BW128: IL TRM v7 vol3 | BX128: 67 | BY128: =0.805*(BE128/AB128)+0.367 -> 0.990875 | BZ128: SEERadj | CA128: IL TRM v7 vol3 | CB128: 69 (example) | CC128: 0.1 | CD128: Derating_Cool_Eff | CE128: IL TRM v7 vol3 | CF128: 67 | CG128: 0.1 | CH128: Derating_Heat_Base | CI128: IL TRM v7 vol3 | CJ128: 68 | CK128: 1.001 | CL128: HSPFadj | CM128: IL TRM v7 vol3 | CN128: 69 (example) | CO128: 0.1 | CP128: Derating_Heat_Eff | CQ128: IL TRM v7 vol3 | CR128: 68
A129: Heating, Cooling & Home Comfort | B129: ASHP SEER 17 | C129: 38.5 | D129: Single Family | E129: HVAC | G129: per ton | H129: =724/3.5 -> 206.8571429 | I129: IL TRM v7 vol3 | J129: 64 | K129: =ROUND(((U129*AS129*(1/(AF129*(1-BU129))-1/(AB129*BY129*(1-CC129))))/1000)+((BQ129*AS129*(1/(BA129*(1-CG129))-1/(AW129*CK129*(1-CO129)))/1000)),4) -> 350.4645 | L129: Calculated Value | N129: 0.4748841463 | O129: 0.72 | P129: IL TRM v9 vol3 | Q129: 74 | R129: =ROUND((AS129*(1/(BI129*(1-BU129))-1/(BE129*(1-CC129))))/1000*O129,4) -> 0.1546 | S129: Calculated Value | U129: 738 | V129: EFLHcool, from 2017 MO TRM Vol. 3 | W129: 85 | X129: 16 | Y129: IL TRM v9 vol3 | Z129: 73 | AA129: SEERee | AB129: 17.25 | AC129: per PY2018 Metadata WHE | AE129: SEERbase | AF129: 14 | AG129: IL TRM v9 vol3 | AH129: 77 | AI129: =ROUND(((U129*AS129*(1/(AF129*(1-BU129))-1/(AB129*BY129*(1-CC129))))/1000)+((BQ129*AS129*(1/(BA129*(1-CG129))-1/(AW129*CK129*(1-CO129)))/1000)),4) | AJ129: =ROUND((AS129*(1/(BI129*(1-BU129))-1/(BE129*(1-CC129))))/1000*O129,4) | AK129: IL TRM v9 vol3 | AL129: 74, 83 | AM129: 2022-01-01 | AS129: 12000 | AT129: Allows for Capacity input in Tons; converts tons to BTUs | AW129: 9.1 | AX129: HSPFee | AY129: per PY2018 Metadata WHE | BA129: 8.2 | BB129: HSPFbase | BC129: IL TRM v9 vol3 | BD129: 78 | BE129: 13.36875 | BF129: EERee | BG129: Calculated value | BI129: 11 | BJ129: EERbase | BK129: IL TRM v9 vol3 | BL129: 83 | BM129: 738 | BN129: EFLHcool | BO129: EFLHcool, from 2017 MO TRM Vol. 3 | BP129: 85 | BQ129: 1376 | BR129: EFLHheat | BS129: The EFLH Cooling and Heating hours are based on a EnergyStar study that was normalized (based on HDD and CDD) to Kansas City. This was for both AC and HP units. | BU129: 0.1 | BV129: Derating_Cool_Base | BW129: IL TRM v9 vol3 | BX129: 77 | BY129: =0.805*(BE129/AB129)+0.367 -> 0.990875 | BZ129: SEERadj | CA129: IL TRM v9 vol3 | CB129: 77 | CC129: 0.1 | CD129: Derating_Cool_Eff | CE129: IL TRM v9 vol3 | CF129: 77 | CG129: 0.1 | CH129: Derating_Heat_Base | CI129: IL TRM v9 vol3 | CJ129: 78 | CK129: 1.001 | CL129: HSPFadj | CM129: IL TRM v9 vol3 | CN129: 78 | CO129: 0.1 | CP129: Derating_Heat_Eff | CQ129: IL TRM v9 vol3 | CR129: 78 | DR129: Updated references to IL TRM v9
A130: Heating, Cooling & Home Comfort | B130: ASHP SEER 17 - Early Replacement | C130: 39.5 | D130: Single Family | E130: HVAC | G130: per ton | H130: =DA130+DE130/DM130-DI130*(1+CW130)^(-X130) -> 196.2703269 | I130: IL TRM v7 vol3 | J130: 64 | K130: =ROUND(((U130*AS130*(1/(AF130*(1-BY130))-1/(AB130*CC130*(1-CG130))))/1000)+((BQ130*AS130*(1/(BA130*(1-CK130))-1/(AW130*CO130*(1-CS130))))/1000),4) -> 1901.4327 | L130: Calculated Value | N130: 2.576467073 | O130: 0.72 | P130: IL TRM v7 vol3 | Q130: 65 | R130: =ROUND((AS130*(1/(BI130*(1-BY130))-1/(BE130*(1-CG130))))/1000*O130,4) -> 0.585 | S130: Calculated Value | U130: 738 | V130: EFLHcool, from 2017 MO TRM Vol. 3 | W130: 85 | X130: 6 | Y130: IL TRM v7 vol3 | Z130: 64 | AA130: SEERee | AB130: 18.34 | AC130: per PY2018 Metadata WHE | AE130: SEERexist | AF130: 9.3 | AG130: IL TRM v7 vol3 | AH130: 66 | AI130: =ROUND(((U130*AS130*(1/(AF130*(1-BY130))-1/(AB130*CC130*(1-CG130))))/1000)+((BQ130*AS130*(1/(BA130*(1-CK130))-1/(AW130*CO130*(1-CS130))))/1000),4) | AJ130: =ROUND((AS130*(1/(BI130*(1-BY130))-1/(BE130*(1-CG130))))/1000*O130,4) | AK130: IL TRM v7 vol3 | AL130: 65, 66, 69 | AM130: 2021-01-01 | AN130: 2021-12-31 | AS130: 12000 | AT130: Allows for Capacity input in Tons; converts tons to BTUs | AU130: IL TRM v7 vol3 | AV130: 66 | AW130: 9.560606061 | AX130: HSPFee | AY130: per PY2018 Metadata WHE | BA130: 5.54 | BB130: HSPFbase | BC130: IL TRM v7 vol3 | BD130: 68 | BE130: 13.813688 | BF130: EERee | BG130: Calculated value | BI130: 7.5 | BJ130: EERexist | BK130: IL TRM v7 vol3 | BL130: 69,70 | BM130: 738 | BN130: EFLHcool | BO130: EFLHcool, from 2017 MO TRM Vol. 3 | BP130: 85 | BQ130: 1376 | BR130: EFLHheat | BS130: The EFLH Cooling and Heating hours are based on a EnergyStar study that was normalized (based on HDD and CDD) to Kansas City. This was for both AC and HP units. | BU130: 5.54 | BV130: HSPFexist | BW130: IL TRM v7 vol3 | BX130: 68 | BY130: 0.1 | BZ130: Derating_Cool_Base | CA130: IL TRM v7 vol3 | CB130: 67 | CC130: =0.805*(BE130/AB130)+0.367 -> 0.973326 | CD130: SEERadj | CE130: IL TRM v7 vol3 | CF130: 69 (example) | CG130: 0.1 | CH130: Derating_Cool_Eff | CI130: IL TRM v7 vol3 | CJ130: 67 | CK130: 0.1 | CL130: Derating_Heat_Base | CM130: IL TRM v7 vol3 | CN130: 68 | CO130: 1.001 | CP130: HSPFadj | CQ130: IL TRM v7 vol3 | CR130: 69 (example) | CS130: 0.1 | CT130: Derating_Heat_Eff | CU130: IL TRM v7 vol3 | CV130: 68 | CW130: 0.03 | CX130: Societal Discount Rate | CY130: Evergy Standard | DA130: 1381 | DB130: First Cost $/ton | DC130: IL TRM v7 vol3 | DD130: 64 | DE130: 303 | DF130: One-time per-system labor cost | DG130: IL TRM v7 vol3 | DH130: 64 | DI130: 1518 | DJ130: Deferred cost savings | DK130: IL TRM v7 vol3 | DL130: 65 | DM130: 3.5 | DN130: Assumed average system tons | DO130: Tracking Data
A131: Heating, Cooling & Home Comfort | B131: ASHP SEER 17 - Early Replacement | C131: 39.6 | D131: Single Family | E131: HVAC | G131: per ton | H131: =DA131+DE131/DM131-DI131*(1+CS131)^(-X131) -> 196.2703269 | I131: IL TRM v7 vol3 | J131: 64 | K131: =ROUND(((U131*AS131*(1/(AF131*(1-BU131))-1/(AB131*BY131*(1-CC131))))/1000)+((BQ131*AS131*(1/(BA131*(1-CG131))-1/(AW131*CK131*(1-CO131))))/1000),4) -> 1901.4327 | L131: Calculated Value | N131: 2.576467073 | O131: 0.72 | P131: IL TRM v9 vol3 | Q131: 74 | R131: =ROUND((AS131*(1/(BI131*(1-BU131))-1/(BE131*(1-CC131))))/1000*O131,4) -> 0.585 | S131: Calculated Value | U131: 738 | V131: EFLHcool, from 2017 MO TRM Vol. 3 | W131: 85 | X131: 6 | Y131: IL TRM v9 vol3 | Z131: 73 | AA131: SEERee | AB131: 18.34 | AC131: per PY2018 Metadata WHE | AE131: SEERexist | AF131: 9.3 | AG131: IL TRM v9 vol3 | AH131: 77 | AI131: =ROUND(((U131*AS131*(1/(AF131*(1-BU131))-1/(AB131*BY131*(1-CC131))))/1000)+((BQ131*AS131*(1/(BA131*(1-CG131))-1/(AW131*CK131*(1-CO131))))/1000),4) | AJ131: =ROUND((AS131*(1/(BI131*(1-BU131))-1/(BE131*(1-CC131))))/1000*O131,4) | AK131: IL TRM v9 vol3 | AL131: 74, 83 | AM131: 2022-01-01 | AS131: 12000 | AT131: Allows for Capacity input in Tons; converts tons to BTUs | AW131: 9.560606061 | AX131: HSPFee | AY131: per PY2018 Metadata WHE | BA131: 5.54 | BB131: HSPFbase | BC131: IL TRM v9 vol3 | BD131: 78 | BE131: 13.813688 | BF131: EERee | BG131: Calculated value | BI131: 7.5 | BJ131: EERexist | BK131: IL TRM v9 vol3 | BL131: 83 | BM131: 738 | BN131: EFLHcool | BO131: EFLHcool, from 2017 MO TRM Vol. 3 | BP131: 85 | BQ131: 1376 | BR131: EFLHheat | BS131: The EFLH Cooling and Heating hours are based on a EnergyStar study that was normalized (based on HDD and CDD) to Kansas City. This was for both AC and HP units. | BU131: 0.1 | BV131: Derating_Cool_Base | BW131: IL TRM v9 vol3 | BX131: 77 | BY131: =0.805*(BE131/AB131)+0.367 -> 0.973326 | BZ131: SEERadj | CA131: IL TRM v9 vol3 | CB131: 77 | CC131: 0.1 | CD131: Derating_Cool_Eff | CE131: IL TRM v9 vol3 | CF131: 77 | CG131: 0.1 | CH131: Derating_Heat_Base | CI131: IL TRM v9 vol3 | CJ131: 78 | CK131: 1.001 | CL131: HSPFadj | CM131: IL TRM v9 vol3 | CN131: 78 | CO131: 0.1 | CP131: Derating_Heat_Eff | CQ131: IL TRM v9 vol3 | CR131: 78 | CS131: 0.03 | CT131: Societal Discount Rate | CU131: Evergy Standard | DA131: 1381 | DB131: First Cost $/ton | DC131: IL TRM v7 vol3 | DD131: 64 | DE131: 303 | DF131: One-time per-system labor cost | DG131: IL TRM v7 vol3 | DH131: 64 | DI131: 1518 | DJ131: Deferred cost savings | DK131: IL TRM v7 vol3 | DL131: 65 | DM131: 3.5 | DN131: Assumed average system tons | DO131: Tracking Data | DR131: Updated references to IL TRM v9
A132: Heating, Cooling & Home Comfort | B132: ASHP SEER 17 - Early Replacement (future) | C132: 40.5 | D132: Single Family | E132: HVAC | G132: per ton | H132: 0 | I132: IL TRM v7 vol3 | J132: 64 | K132: 162.77 | L132: Calculated Value | N132: 0.2205555556 | O132: 0.72 | P132: IL TRM v7 vol3 | Q132: 65 | R132: 0.1778 | S132: Calculated Value | U132: 738 | V132: EFLHcool, from 2017 MO TRM Vol. 3 | W132: 85 | X132: 10 | Y132: IL TRM v7 vol3 | Z132: 64 | AA132: SEERee | AB132: 18.34 | AC132: per PY2018 Metadata WHE | AE132: =BN132 -> SEERbase | AF132: =BM132 -> 14 | AG132: IL TRM v7 vol3 | AH132: 67 | AI132: =ROUND(((U132*AS132*(1/(AF132*(1-BY132))-1/(AB132*CC132*(1-CG132))))/1000)+((BQ132*AS132*(1/(BA132*(1-CK132))-1/(AW132*CO132*(1-CS132))))/1000),4) | AJ132: =ROUND((AS132*(1/(BI132*(1-BY132))-1/(BE132*(1-CG132))))/1000*O132,4) | AK132: IL TRM v7 vol3 | AL132: 65, 66, 69 | AM132: 2021-01-01 | AN132: 2021-12-31 | AS132: 12000 | AT132: Allows for Capacity input in Tons; converts tons to BTUs | AU132: IL TRM v7 vol3 | AV132: 66 | AW132: 9.560606061 | AX132: HSPFee | AY132: per PY2018 Metadata WHE | BA132: 5.54 | BB132: HSPFexist | BC132: IL TRM v7 vol3 | BD132: 68 | BE132: 13.813688 | BF132: EERee | BG132: Calculated value | BI132: 11 | BJ132: EERbase | BK132: IL TRM v7 vol3 | BL132: 70 | BM132: 14 | BN132: SEERbase | BO132: IL TRM v7 vol3 | BP132: 67 | BQ132: 11 | BR132: EERbase | BS132: IL TRM v7 vol3 | BT132: 70 | BU132: 8.2 | BV132: HSPFbase | BW132: IL TRM v7 vol3 | BX132: 68 | BY132: 0.1 | BZ132: Derating_Cool_Base | CA132: IL TRM v7 vol3 | CB132: 67 | CC132: =0.805*(BE132/AB132)+0.367 -> 0.973326 | CD132: SEERadj | CE132: IL TRM v7 vol3 | CF132: 69 (example) | CG132: 0.1 | CH132: Derating_Cool_Eff | CI132: IL TRM v7 vol3 | CJ132: 67 | CK132: 0.1 | CL132: Derating_Heat_Base | CM132: IL TRM v7 vol3 | CN132: 68 | CO132: 1.001 | CP132: HSPFadj | CQ132: IL TRM v7 vol3 | CR132: 69 (example) | CS132: 0.1 | CT132: Derating_Heat_Eff | CU132: IL TRM v7 vol3 | CV132: 68 | CW132: 0.03 | CX132: Societal Discount Rate | CY132: Evergy Standard | DA132: 1381 | DB132: First Cost $/ton | DC132: IL TRM v7 vol3 | DD132: 64 | DE132: 303 | DF132: One-time per-system labor cost | DG132: IL TRM v7 vol3 | DH132: 64 | DI132: 1518 | DJ132: Deferred cost savings | DK132: IL TRM v7 vol3 | DL132: 65 | DM132: 3.5 | DN132: Assumed average system tons | DO132: Tracking Data
A133: Heating, Cooling & Home Comfort | B133: ASHP SEER 17 - Early Replacement (future) | C133: 40.6 | D133: Single Family | E133: HVAC | G133: per ton | H133: 0 | I133: IL TRM v7 vol3 | J133: 64 | K133: =ROUND(((U133*AS133*(1/(AF133*(1-BU133))-1/(AB133*BY133*(1-CC133))))/1000)+((BQ133*AS133*(1/(BA133*(1-CG133))-1/(AW133*CK133*(1-CO133))))/1000),4) -> 471.951 | L133: Calculated Value | N133: 0.6395 | O133: 0.72 | P133: IL TRM v9 vol3 | Q133: 74 | R133: =ROUND((AS133*(1/(BI133*(1-BU133))-1/(BE133*(1-CC133))))/1000*O133,4) -> 0.1778 | S133: Calculated Value | U133: 738 | V133: EFLHcool, from 2017 MO TRM Vol. 3 | W133: 85 | X133: 10 | Y133: IL TRM v9 vol3 | Z133: 73 | AA133: SEERee | AB133: 18.34 | AC133: per PY2018 Metadata WHE | AE133: SEERbase | AF133: 14 | AG133: IL TRM v9 vol3 | AH133: 77 | AI133: =ROUND(((U133*AS133*(1/(AF133*(1-BU133))-1/(AB133*BY133*(1-CC133))))/1000)+((BQ133*AS133*(1/(BA133*(1-CG133))-1/(AW133*CK133*(1-CO133))))/1000),4) | AJ133: =ROUND((AS133*(1/(BI133*(1-BU133))-1/(BE133*(1-CC133))))/1000*O133,4) | AK133: IL TRM v9 vol3 | AL133: 74, 83 | AM133: 2022-01-01 | AS133: 12000 | AT133: Allows for Capacity input in Tons; converts tons to BTUs | AW133: 9.560606061 | AX133: HSPFee | AY133: per PY2018 Metadata WHE | BA133: 8.2 | BB133: HSPFexist | BC133: IL TRM v9 vol3 | BD133: 78 | BE133: 13.813688 | BF133: EERee | BG133: Calculated value | BI133: 11 | BJ133: EERbase | BK133: IL TRM v9 vol3 | BL133: 83 | BM133: 738 | BN133: EFLHcool | BO133: EFLHcool, from 2017 MO TRM Vol. 3 | BP133: 85 | BQ133: 1376 | BR133: EFLHheat | BS133: The EFLH Cooling and Heating hours are based on a EnergyStar study that was normalized (based on HDD and CDD) to Kansas City. This was for both AC and HP units. | BU133: 0.1 | BV133: Derating_Cool_Base | BW133: IL TRM v9 vol3 | BX133: 77 | BY133: =0.805*(BE133/AB133)+0.367 -> 0.973326 | BZ133: SEERadj | CA133: IL TRM v9 vol3 | CB133: 77 | CC133: 0.1 | CD133: Derating_Cool_Eff | CE133: IL TRM v9 vol3 | CF133: 77 | CG133: 0.1 | CH133: Derating_Heat_Base | CI133: IL TRM v9 vol3 | CJ133: 78 | CK133: 1.001 | CL133: HSPFadj | CM133: IL TRM v9 vol3 | CN133: 78 | CO133: 0.1 | CP133: Derating_Heat_Eff | CQ133: IL TRM v9 vol3 | CR133: 78 | CS133: 0.03 | CT133: Societal Discount Rate | CU133: Evergy Standard | DA133: 1381 | DB133: First Cost $/ton | DC133: IL TRM v7 vol3 | DD133: 64 | DE133: 303 | DF133: One-time per-system labor cost | DG133: IL TRM v7 vol3 | DH133: 64 | DI133: 1518 | DJ133: Deferred cost savings | DK133: IL TRM v7 vol3 | DL133: 65 | DM133: 3.5 | DN133: Assumed average system tons | DO133: Tracking Data | DR133: Updated HSPFexist for early replacement (future), corrected issue with EFLH, updated references to IL TRM v9
A134: Heating, Cooling & Home Comfort | B134: ASHP SEER 17 - Replace Electric Resistance Heat | C134: 41.5 | D134: Single Family | E134: HVAC | G134: per ton | H134: =724/3.5 -> 206.8571429 | I134: IL TRM v7 vol3 | J134: 64 | K134: 484.011 | L134: Calculated Value | N134: =R134 -> 0.1764 | O134: 0.72 | P134: IL TRM v7 vol3 | Q134: 65 | R134: 0.1764 | S134: Calculated Value | U134: 738 | V134: EFLHcool, from 2017 MO TRM Vol. 3 | W134: 85 | X134: 16 | Y134: IL TRM v7 vol3 | Z134: 64 | AA134: SEERee | AB134: 18.27 | AC134: per PY2018 Metadata WHE | AE134: SEERbase | AF134: 14 | AG134: IL TRM v7 vol3 | AH134: 66 | AI134: =ROUND(((U134*AS134*(1/(AF134*(1-BY134))-1/(AB134*CC134*(1-CG134))))/1000)+((BQ134*AS134*(1/(BA134*(1-CK134))-1/(AW134*CO134*(1-CS134))))/1000),4) | AJ134: =ROUND((AS134*(1/(BI134*(1-BY134))-1/(BE134*(1-CG134))))/1000*O134,4) | AK134: IL TRM v7 vol3 | AL134: 65, 66, 69 | AM134: 2021-01-01 | AN134: 2021-12-31 | AS134: 12000 | AT134: Allows for Capacity input in Tons; converts tons to BTUs | AU134: IL TRM v7 vol3 | AV134: 66 | AW134: 9.628571429 | AX134: HSPFee | AY134: per PY2018 Metadata WHE | BA134: 8.2 | BB134: HSPFbase | BC134: IL TRM v7 vol3 | BD134: 68 | BE134: 13.786542 | BF134: EERee | BG134: Calculated value | BI134: 11 | BJ134: EERbase | BK134: IL TRM v7 vol3 | BL134: 70 | BM134: 738 | BN134: EFLHcool | BO134: EFLHcool, from 2017 MO TRM Vol. 3 | BP134: 85 | BQ134: 1376 | BR134: EFLHheat | BS134: The EFLH Cooling and Heating hours are based on a EnergyStar study that was normalized (based on HDD and CDD) to Kansas City. This was for both AC and HP units. | BU134: 8.2 | BV134: HSPFbase | BW134: IL TRM v7 vol3 | BX134: 68 | BY134: 0.1 | BZ134: Derating_Cool_Base | CA134: IL TRM v7 vol3 | CB134: 67 | CC134: =0.805*(BE134/AB134)+0.367 -> 0.974453 | CD134: SEERadj | CE134: IL TRM v7 vol3 | CF134: 69 (example) | CG134: 0.1 | CH134: Derating_Cool_Eff | CI134: IL TRM v7 vol3 | CJ134: 67 | CK134: 0.1 | CL134: Derating_Heat_Base | CM134: IL TRM v7 vol3 | CN134: 68 | CO134: 1.001 | CP134: HSPFadj | CQ134: IL TRM v7 vol3 | CR134: 69 (example) | CS134: 0.1 | CT134: Derating_Heat_Eff | CU134: IL TRM v7 vol3 | CV134: 68
A135: Heating, Cooling & Home Comfort | B135: ASHP SEER 17 - Replace Electric Resistance Heat | C135: 41.6 | D135: Single Family | E135: HVAC | G135: per ton | H135: =724/3.5 -> 206.8571429 | I135: IL TRM v7 vol3 | J135: 64 | K135: =ROUND(((U135*AS135*(1/(AF135*(1-BU135))-1/(AB135*BY135*(1-CC135))))/1000)+((BQ135*AS135*(1/(BA135*(1-CG135))-1/(AW135*CK135*(1-CO135))))/1000),4) -> 484.011 | L135: Calculated Value | N135: =R135 -> 0.1764 | O135: 0.72 | P135: IL TRM v9 vol3 | Q135: 74 | R135: =ROUND((AS135*(1/(BI135*(1-BU135))-1/(BE135*(1-CC135))))/1000*O135,4) -> 0.1764 | S135: Calculated Value | U135: 738 | V135: EFLHcool, from 2017 MO TRM Vol. 3 | W135: 85 | X135: 16 | Y135: IL TRM v9 vol3 | Z135: 73 | AA135: SEERee | AB135: 18.27 | AC135: per PY2018 Metadata WHE | AE135: SEERbase | AF135: 14 | AG135: IL TRM v9 vol3 | AH135: 77 | AI135: =ROUND(((U135*AS135*(1/(AF135*(1-BU135))-1/(AB135*BY135*(1-CC135))))/1000)+((BQ135*AS135*(1/(BA135*(1-CG135))-1/(AW135*CK135*(1-CO135))))/1000),4) | AJ135: =ROUND((AS135*(1/(BI135*(1-BU135))-1/(BE135*(1-CC135))))/1000*O135,4) | AK135: IL TRM v9 vol3 | AL135: 74, 83 | AM135: 2022-01-01 | AS135: 12000 | AT135: Allows for Capacity input in Tons; converts tons to BTUs | AW135: 9.628571429 | AX135: HSPFee | AY135: per PY2018 Metadata WHE | BA135: 8.2 | BB135: HSPFbase | BC135: IL TRM v9 vol3 | BD135: 78 | BE135: 13.786542 | BF135: EERee | BG135: Calculated value | BI135: 11 | BJ135: EERbase | BK135: IL TRM v9 vol3 | BL135: 83 | BM135: 738 | BN135: EFLHcool | BO135: EFLHcool, from 2017 MO TRM Vol. 3 | BP135: 85 | BQ135: 1376 | BR135: EFLHheat | BS135: The EFLH Cooling and Heating hours are based on a EnergyStar study that was normalized (based on HDD and CDD) to Kansas City. This was for both AC and HP units. | BU135: 0.1 | BV135: Derating_Cool_Base | BW135: IL TRM v9 vol3 | BX135: 77 | BY135: =0.805*(BE135/AB135)+0.367 -> 0.974453 | BZ135: SEERadj | CA135: IL TRM v9 vol3 | CB135: 77 | CC135: 0.1 | CD135: Derating_Cool_Eff | CE135: IL TRM v9 vol3 | CF135: 77 | CG135: 0.1 | CH135: Derating_Heat_Base | CI135: IL TRM v9 vol3 | CJ135: 78 | CK135: 1.001 | CL135: HSPFadj | CM135: IL TRM v9 vol3 | CN135: 78 | CO135: 0.1 | CP135: Derating_Heat_Eff | CQ135: IL TRM v9 vol3 | CR135: 78 | DR135: Updated references to IL TRM v9
A136: Heating, Cooling & Home Comfort | B136: ASHP SEER 17 - Replace Electric Resistance Heat - Early Replacement | C136: 318.2 | D136: Single Family | E136: HVAC | G136: per ton | H136: =DA136+DE136/DM136-DI136*(1+CW136)^(-X136) -> 316.5560412 | I136: IL TRM v7 vol3 | J136: 64 | K136: 3990.5555 | L136: Calculated Value | N136: =R136 -> 0.585 | O136: 0.72 | P136: IL TRM v7 vol3 | Q136: 65 | R136: 0.585 | S136: Calculated Value | U136: 738 | V136: EFLHcool, from 2017 MO TRM | W136: 85 | X136: 6 | Y136: IL TRM v7 vol3 | Z136: 64 | AA136: SEERee | AB136: 18.34 | AC136: per PY2018 Metadata WHE | AE136: SEERexist | AF136: 9.3 | AG136: IL TRM v7 vol3 | AH136: 66 | AI136: =ROUND(((U136*AS136*(1/(AF136*(1-BY136))-1/(AB136*CC136*(1-CG136))))/1000)+((BQ136*AS136*(1/(BA136*(1-CK136))-1/(AW136*CO136*(1-CS136))))/1000),4) | AJ136: =ROUND((AS136*(1/(BI136*(1-BY136))-1/(BE136*(1-CG136))))/1000*O136,4) | AK136: IL TRM v7 vol3 | AL136: 65, 69 | AM136: 2020-01-01 | AN136: 2021-12-31 | AS136: 12000 | AT136: Allows for Capacity input in Tons; converts tons to BTUs | AW136: 9.560606061 | AX136: HSPFee | AY136: per PY2018 Metadata WHE | BA136: 3.41 | BB136: HSPFexist | BC136: IL TRM v7 vol3 | BD136: 68 | BE136: =(-0.02*AB136^2)+(1.12*AB136) -> 13.813688 | BF136: EERee | BG136: Calculated per PY2018 Metadata WHE | BI136: 7.5 | BJ136: EERexist | BK136: IL TRM v7 vol3 | BL136: 70 | BM136: 738 | BN136: EFLHcool | BO136: EFLHcool, from 2017 MO TRM | BP136: 85 | BQ136: 1376 | BR136: EFLHheat | BS136: The EFLH Cooling and Heating hours are based on a EnergyStar study that was normalized (based on HDD and CDD) to Kansas City. This was for both AC and HP units. | BU136: 3.41 | BV136: HSPFexist | BW136: IL TRM v7 vol3 | BX136: 68 | BY136: 0.1 | BZ136: Derating_Cool_Base | CA136: IL TRM v7 vol3 | CB136: 67 | CC136: 1.011 | CD136: SEERadj | CE136: IL TRM v7 vol3 | CF136: 69 (example) | CG136: 0.1 | CH136: Derating_Cool_Eff | CI136: IL TRM v7 vol3 | CJ136: 67 | CK136: 0.1 | CL136: Derating_Heat_Base | CM136: IL TRM v7 vol3 | CN136: 68 | CO136: 1.001 | CP136: HSPFadj | CQ136: IL TRM v7 vol3 | CR136: 69 (example) | CS136: 0.1 | CT136: Derating_Heat_Eff | CU136: IL TRM v7 vol3 | CV136: 68 | CW136: 0.03 | CX136: Societal Discount Rate | CY136: Evergy Standard | DA136: 1381 | DB136: First Cost $/ton | DC136: IL TRM v7 vol3 | DD136: 64 | DE136: 724 | DF136: One-time per-system labor cost | DG136: IL TRM v7 vol3 | DH136: 64 | DI136: 1518 | DJ136: Deferred cost savings | DK136: IL TRM v7 vol3 | DL136: 65 | DM136: 3.5 | DN136: Assumed average system tons | DO136: Tracking Data
A137: Heating, Cooling & Home Comfort | B137: ASHP SEER 17 - Replace Electric Resistance Heat - Early Replacement | C137: 318.3 | D137: Single Family | E137: HVAC | G137: per ton | H137: =DA137+DE137/DM137-DI137*(1+CS137)^(-X137) -> 316.5560412 | I137: IL TRM v7 vol3 | J137: 64 | K137: =ROUND(((U137*AS137*(1/(AF137*(1-BU137))-1/(AB137*BY137*(1-CC137))))/1000)+((BQ137*AS137*(1/(BA137*(1-CG137))-1/(AW137*CK137*(1-CO137))))/1000),4) -> 3970.0142 | L137: Calculated Value | N137: =R137 -> 0.585 | O137: 0.72 | P137: IL TRM v9 vol3 | Q137: 74 | R137: =ROUND((AS137*(1/(BI137*(1-BU137))-1/(BE137*(1-CC137))))/1000*O137,4) -> 0.585 | S137: Calculated Value | U137: 738 | V137: EFLHcool, from 2017 MO TRM | W137: 85 | X137: 6 | Y137: IL TRM v9 vol3 | Z137: 73 | AA137: SEERee | AB137: 18.34 | AC137: per PY2018 Metadata WHE | AE137: SEERexist | AF137: 9.3 | AG137: IL TRM v9 vol3 | AH137: 77 | AI137: =ROUND(((U137*AS137*(1/(AF137*(1-BU137))-1/(AB137*BY137*(1-CC137))))/1000)+((BQ137*AS137*(1/(BA137*(1-CG137))-1/(AW137*CK137*(1-CO137))))/1000),4) | AJ137: =ROUND((AS137*(1/(BI137*(1-BU137))-1/(BE137*(1-CC137))))/1000*O137,4) | AK137: IL TRM v9 vol3 | AL137: 74, 83 | AM137: 2022-01-01 | AS137: 12000 | AT137: Allows for Capacity input in Tons; converts tons to BTUs | AW137: 9.560606061 | AX137: HSPFee | AY137: per PY2018 Metadata WHE | BA137: 3.41 | BB137: HSPFexist | BC137: IL TRM v9 vol3 | BD137: 78 | BE137: =(-0.02*AB137^2)+(1.12*AB137) -> 13.813688 | BF137: EERee | BG137: Calculated per PY2018 Metadata WHE | BI137: 7.5 | BJ137: EERexist | BK137: IL TRM v9 vol3 | BL137: 83 | BM137: 738 | BN137: EFLHcool | BO137: EFLHcool, from 2017 MO TRM | BP137: 85 | BQ137: 1376 | BR137: EFLHheat | BS137: The EFLH Cooling and Heating hours are based on a EnergyStar study that was normalized (based on HDD and CDD) to Kansas City. This was for both AC and HP units. | BU137: 0.1 | BV137: Derating_Cool_Base | BW137: IL TRM v9 vol3 | BX137: 77 | BY137: =0.805*(BE137/AB137)+0.367 -> 0.973326 | BZ137: SEERadj | CA137: IL TRM v9 vol3 | CB137: 77 | CC137: 0.1 | CD137: Derating_Cool_Eff | CE137: IL TRM v9 vol3 | CF137: 77 | CG137: 0.1 | CH137: Derating_Heat_Base | CI137: IL TRM v9 vol3 | CJ137: 78 | CK137: 1.001 | CL137: HSPFadj | CM137: IL TRM v9 vol3 | CN137: 78 | CO137: 0.1 | CP137: Derating_Heat_Eff | CQ137: IL TRM v9 vol3 | CR137: 78 | CS137: 0.03 | CT137: Societal Discount Rate | CU137: Evergy Standard | DA137: 1381 | DB137: First Cost $/ton | DC137: IL TRM v7 vol3 | DD137: 64 | DE137: 724 | DF137: One-time per-system labor cost | DG137: IL TRM v7 vol3 | DH137: 64 | DI137: 1518 | DJ137: Deferred cost savings | DK137: IL TRM v7 vol3 | DL137: 65 | DM137: 3.5 | DN137: Assumed average system tons | DO137: Tracking Data | DR137: Updated SEERadj to calculated value, updated references to IL TRM v9
A138: Heating, Cooling & Home Comfort | B138: ASHP SEER 17 - Replace Electric Resistance Heat - Early Replacement (future) | C138: 319.2 | D138: Single Family | E138: HVAC | G138: per ton | H138: 0 | I138: IL TRM v7 vol3 | J138: 65 | K138: 492.4923 | L138: Calculated Value | N138: =R138 -> 0.1778 | O138: 0.72 | P138: IL TRM v7 vol3 | Q138: 65 | R138: 0.1778 | S138: Calculated Value | U138: 738 | V138: EFLHcool, from 2017 MO TRM | W138: 85 | X138: 10 | Y138: IL TRM v7 vol3 | Z138: 64 | AA138: SEERee | AB138: 18.34 | AC138: per PY2018 Metadata WHE | AE138: SEERbase | AF138: 14 | AG138: IL TRM v7 vol3 | AH138: 67 | AI138: =cellformula(K138) -> =ROUND(((U138*AS138*(1/(AF138*(1-BY138))-1/(AB138*CC138*(1-CG138))))/1000)+((BQ138*AS138*(1/(BA138*(1-CK138))-1/(AW138*CO138*(1-CS138))))/1000),4) | AJ138: =cellformula(R138) -> =ROUND((AS138*(1/(BI138*(1-BY138))-1/(BE138*(1-CG138))))/1000*O138,4) | AK138: IL TRM v7 vol3 | AL138: 65, 69 | AM138: 2020-01-01 | AN138: 2021-12-31 | AS138: 12000 | AT138: Allows for Capacity input in Tons; converts tons to BTUs | AW138: 9.560606061 | AX138: HSPFee | AY138: per PY2018 Metadata WHE | BA138: 8.2 | BB138: HSPFbase | BC138: IL TRM v7 vol3 | BD138: 68 | BE138: =(-0.02*AB138^2)+(1.12*AB138) -> 13.813688 | BF138: EERee | BG138: Calculated per PY2018 Metadata WHE | BI138: 11 | BJ138: EERbase | BK138: IL TRM v7 vol3 | BL138: 70 | BM138: 738 | BN138: EFLHcool | BO138: EFLHcool, from 2017 MO TRM | BP138: 85 | BQ138: 1376 | BR138: EFLHheat | BS138: The EFLH Cooling and Heating hours are based on a EnergyStar study that was normalized (based on HDD and CDD) to Kansas City. This was for both AC and HP units. | BU138: 8.2 | BV138: HSPFbase | BW138: IL TRM v7 vol3 | BX138: 68 | BY138: 0.1 | BZ138: Derating_Cool_Base | CA138: IL TRM v7 vol3 | CB138: 67 | CC138: 1.011 | CD138: SEERadj | CE138: IL TRM v7 vol3 | CF138: 69 (example) | CG138: 0.1 | CH138: Derating_Cool_Eff | CI138: IL TRM v7 vol3 | CJ138: 67 | CK138: 0.1 | CL138: Derating_Heat_Base | CM138: IL TRM v7 vol3 | CN138: 68 | CO138: 1.001 | CP138: HSPFadj | CQ138: IL TRM v7 vol3 | CR138: 69 (example) | CS138: 0.1 | CT138: Derating_Heat_Eff | CU138: IL TRM v7 vol3 | CV138: 68 | CW138: 0.03 | CX138: Societal Discount Rate | CY138: Evergy Standard | DA138: 1381 | DB138: First Cost $/ton | DC138: IL TRM v7 vol3 | DD138: 64 | DE138: 724 | DF138: One-time per-system labor cost | DG138: IL TRM v7 vol3 | DH138: 64 | DI138: 1518 | DJ138: Deferred cost savings | DK138: IL TRM v7 vol3 | DL138: 65 | DM138: 3.5 | DN138: Assumed average system tons | DO138: Tracking Data
A139: Heating, Cooling & Home Comfort | B139: ASHP SEER 17 - Replace Electric Resistance Heat - Early Replacement (future) | C139: 319.3 | D139: Single Family | E139: HVAC | G139: per ton | H139: 0 | I139: IL TRM v7 vol3 | J139: 65 | K139: =ROUND(((U139*AS139*(1/(AF139*(1-BU139))-1/(AB139*BY139*(1-CC139))))/1000)+((BQ139*AS139*(1/(BA139*(1-CG139))-1/(AW139*CK139*(1-CO139))))/1000),4) -> 471.951 | L139: Calculated Value | N139: =R139 -> 0.1778 | O139: 0.72 | P139: IL TRM v9 vol3 | Q139: 74 | R139: =ROUND((AS139*(1/(BI139*(1-BU139))-1/(BE139*(1-CC139))))/1000*O139,4) -> 0.1778 | S139: Calculated Value | U139: 738 | V139: EFLHcool, from 2017 MO TRM | W139: 85 | X139: 10 | Y139: IL TRM v9 vol3 | Z139: 73 | AA139: SEERee | AB139: 18.34 | AC139: per PY2018 Metadata WHE | AE139: SEERbase | AF139: 14 | AG139: IL TRM v9 vol3 | AH139: 77 | AI139: =ROUND(((U139*AS139*(1/(AF139*(1-BU139))-1/(AB139*BY139*(1-CC139))))/1000)+((BQ139*AS139*(1/(BA139*(1-CG139))-1/(AW139*CK139*(1-CO139))))/1000),4) | AJ139: =ROUND((AS139*(1/(BI139*(1-BU139))-1/(BE139*(1-CC139))))/1000*O139,4) | AK139: IL TRM v9 vol3 | AL139: 74, 83 | AM139: 2022-01-01 | AS139: 12000 | AT139: Allows for Capacity input in Tons; converts tons to BTUs | AW139: 9.560606061 | AX139: HSPFee | AY139: per PY2018 Metadata WHE | BA139: 8.2 | BB139: HSPFbase | BC139: IL TRM v9 vol3 | BD139: 78 | BE139: =(-0.02*AB139^2)+(1.12*AB139) -> 13.813688 | BF139: EERee | BG139: Calculated per PY2018 Metadata WHE | BI139: 11 | BJ139: EERbase | BK139: IL TRM v9 vol3 | BL139: 83 | BM139: 738 | BN139: EFLHcool | BO139: EFLHcool, from 2017 MO TRM | BP139: 85 | BQ139: 1376 | BR139: EFLHheat | BS139: The EFLH Cooling and Heating hours are based on a EnergyStar study that was normalized (based on HDD and CDD) to Kansas City. This was for both AC and HP units. | BU139: 0.1 | BV139: Derating_Cool_Base | BW139: IL TRM v9 vol3 | BX139: 77 | BY139: =0.805*(BE139/AB139)+0.367 -> 0.973326 | BZ139: SEERadj | CA139: IL TRM v9 vol3 | CB139: 77 | CC139: 0.1 | CD139: Derating_Cool_Eff | CE139: IL TRM v9 vol3 | CF139: 77 | CG139: 0.1 | CH139: Derating_Heat_Base | CI139: IL TRM v9 vol3 | CJ139: 78 | CK139: 1.001 | CL139: HSPFadj | CM139: IL TRM v9 vol3 | CN139: 78 | CO139: 0.1 | CP139: Derating_Heat_Eff | CQ139: IL TRM v9 vol3 | CR139: 78 | CS139: 0.03 | CT139: Societal Discount Rate | CU139: Evergy Standard | DA139: 1381 | DB139: First Cost $/ton | DC139: IL TRM v7 vol3 | DD139: 64 | DE139: 724 | DF139: One-time per-system labor cost | DG139: IL TRM v7 vol3 | DH139: 64 | DI139: 1518 | DJ139: Deferred cost savings | DK139: IL TRM v7 vol3 | DL139: 65 | DM139: 3.5 | DN139: Assumed average system tons | DO139: Tracking Data | DR139: Updated SEERadj to calculated value, updated references to IL TRM v9
A140: Heating, Cooling & Home Comfort | B140: ASHP Dual-Speed Compressor | C140: 397 | D140: Single Family | E140: HVAC | G140: per ton | H140: =(1381*(AW140/12000)+438)/CK140 -> 1603.711864 | I140: IL TRM v6 vol3 | J140: 61 | K140: =ROUND(((AS140*AW140*(1/BA140-1/BE140))/1000/CK140)+((BI140*BM140*(1/BQ140-1/BU140))/1000/CO140),4) -> 275.5758 | L140: Calculated Value | N140: =R140/O140 -> 0.09388888889 | O140: 0.72 | P140: Calculated Value | R140: =ROUND((AW140*(1/BY140-1/CC140))/1000*CG140/CK140,4) -> 0.0676 | S140: Calculated Value | X140: 18 | Y140: IL TRM v6 vol3 | Z140: 61 | AA140: SEER | AB140: 16 | AC140: Goodman GSZC16 Indoor Units: CA*F3137*6A*+MBVC1200**-1A*+TX, G*VC80603B*C* | AE140: SEER | AF140: 14 | AG140: IL TRM v6 vol3 | AH140: 63 | AI140: =ROUND(((AS140*AW140*(1/BA140-1/BE140))/1000/CK140)+((BI140*BM140*(1/BQ140-1/BU140))/1000/CO140),4) | AJ140: =ROUND((AW140*(1/BY140-1/CC140))/1000*CG140/CK140,4) | AK140: IL TRM v6 vol3 | AL140: 62, 65 | AM140: 2020-01-01 | AN140: 2021-12-31 | AS140: 1035 | AT140: FLH_cooling | AU140: IL TRM v6 vol3 | AV140: 63 | AW140: 23600 | AX140: Capacity_cooling | AY140: Goodman GSZC16 Indoor Units: CA*F3137*6A*+MBVC1200**-1A*+TX, G*VC80603B*C* | BA140: 14 | BB140: SEER_base | BC140: IL TRM v6 vol3 | BD140: 63 | BE140: 16 | BF140: SEER_ee | BG140: Goodman GSZC16 Indoor Units: CA*F3137*6A*+MBVC1200**-1A*+TX, G*VC80603B*C* | BI140: 1266 | BJ140: FLH_heat | BK140: IL TRM v6 vol3 | BL140: 64 | BM140: 22800 | BN140: Capacity_heating | BO140: Goodman GSZC16 Indoor Units: CA*F3137*6A*+MBVC1200**-1A*+TX, G*VC80603B*C* | BQ140: 8.2 | BR140: HSPF_base | BS140: IL TRM v6 vol3 | BT140: 64 | BU140: 9 | BV140: HSPF_ee | BW140: Goodman GSZC16 Indoor Units: CA*F3137*6A*+MBVC1200**-1A*+TX, G*VC80603B*C* | BY140: 11.8 | BZ140: EER_base | CA140: IL TRM v6 vol3 | CB140: 66 | CC140: 13 | CD140: EER_ee | CE140: Goodman GSZC16 Indoor Units: CA*F3137*6A*+MBVC1200**-1A*+TX, G*VC80603B*C* | CG140: 0.72 | CH140: CF | CI140: IL TRM v6 vol3 | CJ140: 66 | CK140: =AW140/12000 -> 1.966666667 | CL140: Cooling Capacity Tons | CM140: Goodman GSZC16 Indoor Units: CA*F3137*6A*+MBVC1200**-1A*+TX, G*VC80603B*C* | CO140: =BM140/12000 -> 1.9 | CP140: Heating Capacity Tons | CQ140: Goodman GSZC16 Indoor Units: CA*F3137*6A*+MBVC1200**-1A*+TX, G*VC80603B*C*
A141: Heating, Cooling & Home Comfort | B141: ASHP Dual-Speed Compressor | C141: 397.1 | D141: Single Family | E141: HVAC | G141: per ton | H141: =(1381*(AW141/12000)+438)/CK141 -> 1603.711864 | I141: IL TRM v9 vol3 | J141: 61 | K141: =ROUND(((AS141*AW141*(1/BA141-1/BE141))/1000/CK141)+((BI141*BM141*(1/BQ141-1/BU141))/1000/CO141),4) -> 258.0633 | L141: Calculated Value | N141: =R141/O141 -> 0.1677777778 | O141: 0.72 | P141: IL TRM v9 vol3 | Q141: 74 | R141: =ROUND((AW141*(1/BY141-1/CC141))/1000*CG141/CK141,4) -> 0.1208 | S141: Calculated Value | U141: 738 | V141: EFLHcool, from 2017 MO TRM | W141: 85 | X141: 18 | Y141: IL TRM v9 vol3 | Z141: 73 | AA141: SEER | AB141: 16 | AC141: Goodman GSZC16 Indoor Units: CA*F3137*6A*+MBVC1200**-1A*+TX, G*VC80603B*C* | AE141: SEERbase | AF141: 14 | AG141: IL TRM v9 vol3 | AH141: 77 | AI141: =ROUND(((AS141*AW141*(1/BA141-1/BE141))/1000/CK141)+((BI141*BM141*(1/BQ141-1/BU141))/1000/CO141),4) | AJ141: =ROUND((AW141*(1/BY141-1/CC141))/1000*CG141/CK141,4) | AK141: IL TRM v9 vol3 | AL141: 74, 83 | AM141: 2022-01-01 | AS141: 738 | AT141: FLH_cooling | AU141: EFLHcool, from 2017 MO TRM Vol. 3 | AV141: 85 | AW141: 23600 | AX141: Capacity_cooling | AY141: Goodman GSZC16 Indoor Units: CA*F3137*6A*+MBVC1200**-1A*+TX, G*VC80603B*C* | BA141: 14 | BB141: SEER_base | BC141: IL TRM v9 vol3 | BD141: 77 | BE141: 16 | BF141: SEER_ee | BG141: Goodman GSZC16 Indoor Units: CA*F3137*6A*+MBVC1200**-1A*+TX, G*VC80603B*C* | BI141: 1376 | BJ141: FLH_heat | BK141: The EFLH Cooling and Heating hours are based on a EnergyStar study that was normalized (based on HDD and CDD) to Kansas City. This was for both AC and HP units. | BM141: 22800 | BN141: Capacity_heating | BO141: Goodman GSZC16 Indoor Units: CA*F3137*6A*+MBVC1200**-1A*+TX, G*VC80603B*C* | BQ141: 8.2 | BR141: HSPF_base | BS141: IL TRM v9 vol3 | BT141: 78 | BU141: 9 | BV141: HSPF_ee | BW141: Goodman GSZC16 Indoor Units: CA*F3137*6A*+MBVC1200**-1A*+TX, G*VC80603B*C* | BY141: 11 | BZ141: EER_base | CA141: IL TRM v9 vol3 | CB141: 83 | CC141: 13 | CD141: EER_ee | CE141: Goodman GSZC16 Indoor Units: CA*F3137*6A*+MBVC1200**-1A*+TX, G*VC80603B*C* | CG141: 0.72 | CH141: CF | CI141: IL TRM v9 vol3 | CJ141: 74 | CK141: =AW141/12000 -> 1.966666667 | CL141: Cooling Capacity Tons | CM141: Goodman GSZC16 Indoor Units: CA*F3137*6A*+MBVC1200**-1A*+TX, G*VC80603B*C* | CO141: =BM141/12000 -> 1.9 | CP141: Heating Capacity Tons | CQ141: Goodman GSZC16 Indoor Units: CA*F3137*6A*+MBVC1200**-1A*+TX, G*VC80603B*C* | DR141: Update EFLH, and baseline characteristics to align with ASHP
A142: Heating, Cooling & Home Comfort | B142: ASHP Variable-Speed Compressor | C142: 398 | D142: Single Family | E142: HVAC | G142: per ton | H142: =(1381*(AW142/12000)+724)/CK142 -> 1752.282051 | I142: IL TRM v6 vol3 | J142: 61 | K142: =ROUND(((AS142*AW142*(1/BA142-1/BE142))/1000/CK142)+((BI142*BM142*(1/BQ142-1/BU142))/1000/CO142),4) -> 629.1972 | L142: Calculated Value | N142: =R142/O142 -> 0.09388888889 | O142: 0.72 | P142: Calculated Value | R142: =ROUND((AW142*(1/BY142-1/CC142))/1000*CG142/CK142,4) -> 0.0676 | S142: Calculated Value | X142: 18 | Y142: IL TRM v6 vol3 | Z142: 61 | AA142: SEER | AB142: 21 | AC142: Daikin DZ20VC Inddor Units: CA*F3642*6D*+MBVC1200**-1A*+TXV | AE142: SEER | AF142: 14 | AG142: IL TRM v6 vol3 | AH142: 63 | AI142: =ROUND(((AS142*AW142*(1/BA142-1/BE142))/1000/CK142)+((BI142*BM142*(1/BQ142-1/BU142))/1000/CO142),4) | AJ142: =ROUND((AW142*(1/BY142-1/CC142))/1000*CG142/CK142,4) | AK142: IL TRM v6 vol3 | AL142: 62, 65 | AM142: 2020-01-01 | AN142: 2021-12-31 | AS142: 1035 | AT142: FLH_cooling | AU142: IL TRM v6 vol3 | AV142: 63 | AW142: 23400 | AX142: Capacity_cooling | AY142: Daikin DZ20VC Inddor Units: CA*F3642*6D*+MBVC1200**-1A*+TXV | BA142: 14 | BB142: SEER_base | BC142: IL TRM v6 vol3 | BD142: 63 | BE142: 21 | BF142: SEER_ee | BG142: Daikin DZ20VC Inddor Units: CA*F3642*6D*+MBVC1200**-1A*+TXV | BI142: 1266 | BJ142: FLH_heat | BK142: IL TRM v6 vol3 | BL142: 64 | BM142: 23600 | BN142: Capacity_heating | BO142: Daikin DZ20VC Inddor Units: CA*F3642*6D*+MBVC1200**-1A*+TXV | BQ142: 8.2 | BR142: HSPF_base | BS142: IL TRM v6 vol3 | BT142: 64 | BU142: 10 | BV142: HSPF_ee | BW142: Daikin DZ20VC Inddor Units: CA*F3642*6D*+MBVC1200**-1A*+TXV | BY142: 11.8 | BZ142: EER_base | CA142: IL TRM v6 vol3 | CB142: 66 | CC142: 13 | CD142: EER_ee | CE142: Daikin DZ20VC Inddor Units: CA*F3642*6D*+MBVC1200**-1A*+TXV | CG142: 0.72 | CH142: CF | CI142: IL TRM v6 vol3 | CJ142: 66 | CK142: =AW142/12000 -> 1.95 | CL142: Cooling Capacity Tons | CM142: Daikin DZ20VC Inddor Units: CA*F3642*6D*+MBVC1200**-1A*+TXV | CO142: =BM142/12000 -> 1.966666667 | CP142: Heating Capacity Tons | CQ142: Daikin DZ20VC Inddor Units: CA*F3642*6D*+MBVC1200**-1A*+TXV
A143: Heating, Cooling & Home Comfort | B143: ASHP Variable-Speed Compressor | C143: 398.1 | D143: Single Family | E143: HVAC | G143: per ton | H143: =(1381*(AW143/12000)+724)/CK143 -> 1752.282051 | I143: IL TRM v9 vol3 | J143: 61 | K143: =ROUND(((AS143*AW143*(1/BA143-1/BE143))/1000/CK143)+((BI143*BM143*(1/BQ143-1/BU143))/1000/CO143),4) -> 573.3157 | L143: Calculated Value | N143: =R143/O143 -> 0.1677777778 | O143: 0.72 | P143: IL TRM v9 vol3 | Q143: 74 | R143: =ROUND((AW143*(1/BY143-1/CC143))/1000*CG143/CK143,4) -> 0.1208 | S143: Calculated Value | U143: 738 | V143: EFLHcool, from 2017 MO TRM | W143: 85 | X143: 18 | Y143: IL TRM v9 vol3 | Z143: 73 | AA143: SEER | AB143: 21 | AC143: Daikin DZ20VC Inddor Units: CA*F3642*6D*+MBVC1200**-1A*+TXV | AE143: SEERbase | AF143: 14 | AG143: IL TRM v9 vol3 | AH143: 77 | AI143: =ROUND(((AS143*AW143*(1/BA143-1/BE143))/1000/CK143)+((BI143*BM143*(1/BQ143-1/BU143))/1000/CO143),4) | AJ143: =ROUND((AW143*(1/BY143-1/CC143))/1000*CG143/CK143,4) | AK143: IL TRM v9 vol3 | AL143: 74, 83 | AM143: 2022-01-01 | AS143: 738 | AT143: FLH_cooling | AU143: EFLHcool, from 2017 MO TRM Vol. 3 | AV143: 85 | AW143: 23400 | AX143: Capacity_cooling | AY143: Daikin DZ20VC Inddor Units: CA*F3642*6D*+MBVC1200**-1A*+TXV | BA143: 14 | BB143: SEER_base | BC143: IL TRM v9 vol3 | BD143: 77 | BE143: 21 | BF143: SEER_ee | BG143: Daikin DZ20VC Inddor Units: CA*F3642*6D*+MBVC1200**-1A*+TXV | BI143: 1376 | BJ143: FLH_heat | BK143: The EFLH Cooling and Heating hours are based on a EnergyStar study that was normalized (based on HDD and CDD) to Kansas City. This was for both AC and HP units. | BM143: 23600 | BN143: Capacity_heating | BO143: Daikin DZ20VC Inddor Units: CA*F3642*6D*+MBVC1200**-1A*+TXV | BQ143: 8.2 | BR143: HSPF_base | BS143: IL TRM v9 vol3 | BT143: 78 | BU143: 10 | BV143: HSPF_ee | BW143: Daikin DZ20VC Inddor Units: CA*F3642*6D*+MBVC1200**-1A*+TXV | BY143: 11 | BZ143: EER_base | CA143: IL TRM v9 vol3 | CB143: 83 | CC143: 13 | CD143: EER_ee | CE143: Daikin DZ20VC Inddor Units: CA*F3642*6D*+MBVC1200**-1A*+TXV | CG143: 0.72 | CH143: CF | CI143: IL TRM v9 vol3 | CJ143: 74 | CK143: =AW143/12000 -> 1.95 | CL143: Cooling Capacity Tons | CM143: Daikin DZ20VC Inddor Units: CA*F3642*6D*+MBVC1200**-1A*+TXV | CO143: =BM143/12000 -> 1.966666667 | CP143: Heating Capacity Tons | CQ143: Daikin DZ20VC Inddor Units: CA*F3642*6D*+MBVC1200**-1A*+TXV | DR143: Update EFLH, and baseline characteristics to align with ASHP
A144: Heating, Cooling & Home Comfort | B144: Furnace Filter Alarm | C144: 234.3 | D144: Single Family | E144: HVAC | F144: Kits | G144: per unit | H144: 2.8 | I144: Program Tracking Data | K144: =ROUND((AS144*BI144*AW144*BA144)+(AS144*BE144*AW144*BA144),4) -> 75.1527 | L144: Calculated Value | N144: =K144/U144 -> 0.04551950333 | O144: 0.647 | P144: PA TRM 2016 | Q144: 74 | R144: =ROUND(((AS144*BE144*AW144*BA144)/BE144)*O144,4) -> 0.023 | S144: Calculated Value | U144: 1651 | V144: MO TRM 2017 vol 3 | W144: 85 | X144: 14 | Y144: PA TRM 2016 | Z144: 73 | AA144: Furnace Filter Alarm | AE144: No Filter | AI144: =ROUND((AS144*BI144*AW144*BA144)+(AS144*BE144*AW144*BA144),4) | AJ144: =ROUND(((AS144*BE144*AW144*BA144)/BE144)*O144,4) | AK144: PA TRM 2016 | AL144: 73 | AM144: 2020-01-01 | AS144: 0.5 | AT144: Average motor full load electric demand | AU144: PA TRM 2016 | AV144: 74 | AW144: 0.15 | AX144: Efficiency Improvement | AY144: PA TRM 2016 | AZ144: 74 | BA144: 0.474 | BB144: ISR | BC144: PA TRM 2016 | BD144: 74 | BE144: 738 | BF144: EFLHcool | BG144: MO TRM | BH144: 85 | BI144: 1376 | BJ144: EFLHheat | BK144: The EFLH Cooling and Heating hours are based on a EnergyStar study that was normalized (based on HDD and CDD) to Kansas City. This was for both AC and HP units.
A145: Heating, Cooling & Home Comfort | B145: Indoor Coil Cleaning_SF:CAC | C145: 262.3 | D145: Single Family | E145: HVAC | G145: per measure | H145: 35 | I145: WI TRM 2017 | J145: 143 | K145: =ROUND(AW145*BA145/1000*(1/(BI145)*BM145),4) -> 132.84 | L145: Calculated Value | N145: =BA145/1000*(1/(BE145*BM145)-1/BE145) -> 74.34782609 | O145: 0.68 | P145: IL TRM v7 vol3 | Q145: 127 | R145: =ROUND(BA145/1000*(1/(BE145)*BY145),4) -> 0.0783 | S145: Calculated Value | X145: 2 | Y145: IL TRM v7 vol3 | Z145: 127 | AA145: Coil cleaning of packaged air conditioning unit. | AC145: IL TRM v7 vol3 | AD145: 127 | AE145: The baseline condition is an AC system with fouled condenser coils. | AG145: IL TRM v7 vol3 | AH145: 127 | AI145: =ROUND(AW145*BA145/1000*(1/(BI145)*BM145),4) | AJ145: =ROUND(BA145/1000*(1/(BE145)*BY145),4) | AK145: IL TRM v7 vol3 | AL145: 128+ | AM145: 2021-01-01 | AN145: 2021-12-31 | AW145: 738 | AX145: Equivalent Full Load Hours for Mechanical Cooling | AY145: MO TRM | AZ145: 122 | BA145: 36000 | BB145: Unit Cooling Capacity in Btu/hour | BC145: Installed Equipment; actual value | BE145: =-0.02*BI145^2+1.12*BI145 -> 9.2 | BF145: EER | BG145: IL TRM v7 vol3 | BH145: 130 | BI145: 10 | BJ145: SEER | BK145: IL TRM v7 vol3 | BL145: 128 | BM145: 0.05 | BN145: Mfe | BO145: IL TRM v7 vol3 | BP145: 128 | BY145: 0.02 | BZ145: MFD | CA145: IL TRM v7 vol3 | CB145: 130
A146: Heating, Cooling & Home Comfort | B146: Indoor Coil Cleaning_SF:CAC | C146: 262.4 | D146: Single Family | E146: HVAC | G146: per measure | H146: 35 | I146: WI TRM 2017 | J146: 143 | K146: =ROUND(AW146*BA146/1000*(1/(BI146)*BM146),4) -> 132.84 | L146: Calculated Value | N146: =R146/O146 -> 0.07823529412 | O146: 0.68 | P146: IL TRM v9 vol3 | Q146: 143 | R146: =ROUND(BA146/1000*(1/(BE146)*BQ146*O146),4) -> 0.0532 | S146: Calculated Value | X146: 3 | Y146: IL TRM v9 vol3 | Z146: 143 | AA146: Coil cleaning of packaged air conditioning unit. | AC146: IL TRM v9 vol3 | AD146: 142 | AE146: The baseline condition is an AC system with fouled condenser coils. | AG146: IL TRM v9 vol3 | AH146: 142 | AI146: =ROUND(AW146*BA146/1000*(1/(BI146)*BM146),4) | AJ146: =ROUND(BA146/1000*(1/(BE146)*BQ146*O146),4) | AK146: IL TRM v9 vol3 | AL146: 143, 144 | AM146: 2022-01-01 | AW146: 738 | AX146: Equivalent Full Load Hours for Mechanical Cooling | AY146: MO TRM | AZ146: 122 | BA146: 36000 | BB146: Unit Cooling Capacity in Btu/hour | BC146: Installed Equipment; actual value | BE146: 9.2 | BF146: EER | BG146: IL TRM v9 vol3 | BH146: 144 | BI146: 10 | BJ146: SEER | BK146: IL TRM v9 vol3 | BL146: 143 | BM146: 0.05 | BN146: Mfe | BO146: IL TRM v9 vol3 | BP146: 143 | BQ146: 0.02 | BR146: MFD | BS146: IL TRM v9 vol3 | BT146: 145 | DR146: Updated to include CF in demand savings, updated references to IL TRM v9
A147: Heating, Cooling & Home Comfort | B147: Indoor Coil Cleaning_SF:ASHP | C147: 263.3 | D147: Single Family | E147: HVAC | G147: per measure | H147: 35 | I147: WI TRM 2017 | J147: 143 | K147: =ROUND(AW147*BA147/1000*(1/(BI147)*BM147)+BU147*BA147/1000*(1/(BQ147)*BM147),4) -> 497.0753 | L147: Calculated Value | N147: =BA147/1000*(1/(BE147*BM147)-1/BE147) -> 74.34782609 | O147: 0.7 | P147: IL TRM v7 vol3 | Q147: 127 | R147: 0.0783 | S147: Calculated Value | X147: 2 | Y147: IL TRM v7 vol3 | Z147: 127 | AA147: Coil cleaning of packaged air conditioning unit. | AC147: IL TRM v7 vol3 | AD147: 127 | AE147: The baseline condition is an AC system with fouled condenser coils. | AG147: IL TRM v7 vol3 | AH147: 127 | AI147: =ROUND(AW147*BA147/1000*(1/(BI147)*BM147)+BU147*BA147/1000*(1/(BQ147)*BM147),4) | AJ147: =ROUND(BA147/1000*(1/(BE147)*BY147),4) | AK147: IL TRM v7 vol3 | AL147: 128+ | AM147: 2021-01-01 | AN147: 2021-12-31 | AW147: 738 | AX147: Equivalent Full Load Hours for Mechanical Cooling | AY147: MO TRM | AZ147: 122 | BA147: 36000 | BB147: Unit Cooling Capacity in Btu/hour | BC147: Installed Equipment; actual value | BE147: =-0.02*BI147^2+1.12*BI147 -> 9.2 | BF147: EER | BG147: IL TRM v7 vol3 | BH147: 130 | BI147: 10 | BJ147: SEER | BK147: IL TRM v7 vol3 | BL147: 128 | BM147: 0.05 | BN147: Mfe | BO147: IL TRM v7 vol3 | BP147: 128 | BQ147: 6.8 | BR147: HSPF_heating | BS147: IL TRM v7 vol3 | BU147: 1376 | BV147: EFLH_heating | BW147: Calculated based on Degree Day Conversion from IL TRM | BY147: 0.02 | BZ147: MFD | CA147: IL TRM v7 vol3 | CB147: 130
A148: Heating, Cooling & Home Comfort | B148: Indoor Coil Cleaning_SF:ASHP | C148: 263.4 | D148: Single Family | E148: HVAC | G148: per measure | H148: 35 | I148: WI TRM 2017 | J148: 143 | K148: =ROUND((AW148*BA148/1000*(1/(BI148)*BM148))+(BY148*BA148/1000*(1/(BU148)*BM148)),4) -> 497.0753 | L148: Calculated Value | N148: =R148/O148 -> 0.07819444444 | O148: 0.72 | P148: IL TRM v9 vol3 | Q148: 143 | R148: =ROUND(BA148/1000*(1/(BE148)*BQ148*O148),4) -> 0.0563 | S148: Calculated Value | X148: 3 | Y148: IL TRM v9 vol3 | Z148: 143 | AA148: Coil cleaning of packaged air conditioning unit. | AC148: IL TRM v9 vol3 | AD148: 142 | AE148: The baseline condition is an AC system with fouled condenser coils. | AG148: IL TRM v9 vol3 | AH148: 142 | AI148: =ROUND((AW148*BA148/1000*(1/(BI148)*BM148))+(BY148*BA148/1000*(1/(BU148)*BM148)),4) | AJ148: =ROUND(BA148/1000*(1/(BE148)*BQ148*O148),4) | AK148: IL TRM v9 vol3 | AL148: 143, 144 | AM148: 2022-01-01 | AW148: 738 | AX148: Equivalent Full Load Hours for Mechanical Cooling | AY148: MO TRM | AZ148: 122 | BA148: 36000 | BB148: Unit Cooling Capacity in Btu/hour | BC148: Installed Equipment; actual value | BE148: 9.2 | BF148: EER | BG148: IL TRM v9 vol3 | BH148: 144 | BI148: 10 | BJ148: SEER | BK148: IL TRM v9 vol3 | BL148: 143 | BM148: 0.05 | BN148: Mfe | BO148: IL TRM v9 vol3 | BP148: 143 | BQ148: 0.02 | BR148: MFD | BS148: IL TRM v9 vol3 | BT148: 145 | BU148: 6.8 | BV148: HSPF_heating | BW148: IL TRM v9 vol3 | BX148: 145 | BY148: 1376 | BZ148: EFLH_heating | CA148: Calculated based on Degree Day Conversion from IL TRM | DR148: Updated to include CF in demand savings, update CF to align with TRM updated references to IL TRM v9
A149: Heating, Cooling & Home Comfort | B149: Outdoor Coil Cleaning_SF:CAC | C149: 264.3 | D149: Single Family | E149: HVAC | G149: per measure | H149: 35 | I149: WI TRM 2017 | J149: 143 | K149: =ROUND(AW149*BA149/1000*(1/(BI149)*BM149),4) -> 132.84 | L149: Calculated Value | N149: =BA149/1000*(1/(BE149*BM149)-1/BE149) -> 74.34782609 | O149: 0.68 | P149: IL TRM v7 vol3 | Q149: 127 | R149: 0.0783 | S149: Calculated Value | X149: 2 | Y149: IL TRM v7 vol3 | Z149: 127 | AA149: Coil cleaning of packaged air conditioning unit. | AC149: IL TRM v7 vol3 | AD149: 127 | AE149: The baseline condition is an AC system with fouled condenser coils. | AG149: IL TRM v7 vol3 | AH149: 127 | AI149: =ROUND(AW149*BA149/1000*(1/(BI149)*BM149),4) | AJ149: =ROUND(BA149/1000*(1/(BE149)*BY149),4) | AK149: IL TRM v7 vol3 | AL149: 128+ | AM149: 2021-01-01 | AN149: 2021-12-31 | AW149: 738 | AX149: Equivalent Full Load Hours for Mechanical Cooling | AY149: MO TRM | AZ149: 122 | BA149: 36000 | BB149: Unit Cooling Capacity in Btu/hour | BC149: Installed Equipment; actual value | BE149: =-0.02*BI149^2+1.12*BI149 -> 9.2 | BF149: EER | BG149: IL TRM v7 vol3 | BH149: 130 | BI149: 10 | BJ149: SEER | BK149: IL TRM v7 vol3 | BL149: 128 | BM149: 0.05 | BN149: Mfe | BO149: IL TRM v7 vol3 | BP149: 128 | BY149: 0.02 | BZ149: MFD | CA149: IL TRM v7 vol3 | CB149: 130
A150: Heating, Cooling & Home Comfort | B150: Outdoor Coil Cleaning_SF:CAC | C150: 264.4 | D150: Single Family | E150: HVAC | G150: per measure | H150: 35 | I150: WI TRM 2017 | J150: 143 | K150: =ROUND(AW150*BA150/1000*(1/(BI150)*BM150),4) -> 132.84 | L150: Calculated Value | N150: =R150/O150 -> 0.07823529412 | O150: 0.68 | P150: IL TRM v9 vol3 | Q150: 143 | R150: =ROUND(BA150/1000*(1/(BE150)*BQ150*O150),4) -> 0.0532 | S150: Calculated Value | X150: 3 | Y150: IL TRM v9 vol3 | Z150: 143 | AA150: Coil cleaning of packaged air conditioning unit. | AC150: IL TRM v9 vol3 | AD150: 142 | AE150: The baseline condition is an AC system with fouled condenser coils. | AG150: IL TRM v9 vol3 | AH150: 142 | AI150: =ROUND(AW150*BA150/1000*(1/(BI150)*BM150),4) | AJ150: =ROUND(BA150/1000*(1/(BE150)*BQ150*O150),4) | AK150: IL TRM v9 vol3 | AL150: 143, 144 | AM150: 2022-01-01 | AW150: 738 | AX150: Equivalent Full Load Hours for Mechanical Cooling | AY150: MO TRM | AZ150: 122 | BA150: 36000 | BB150: Unit Cooling Capacity in Btu/hour | BC150: Installed Equipment; actual value | BE150: 9.2 | BF150: EER | BG150: IL TRM v9 vol3 | BH150: 144 | BI150: 10 | BJ150: SEER | BK150: IL TRM v9 vol3 | BL150: 143 | BM150: 0.05 | BN150: Mfe | BO150: IL TRM v9 vol3 | BP150: 143 | BQ150: 0.02 | BR150: MFD | BS150: IL TRM v9 vol3 | BT150: 145 | DR150: Updated to include CF in demand savings, updated references to IL TRM v9
A151: Heating, Cooling & Home Comfort | B151: Outdoor Coil Cleaning_SF:ASHP | C151: 265.3 | D151: Single Family | E151: HVAC | G151: per measure | H151: 35 | I151: WI TRM 2017 | J151: 143 | K151: =ROUND(AW151*BA151/1000*(1/(BI151)*BM151)+BU151*BA151/1000*(1/(BQ151)*BM151),4) -> 497.0753 | L151: Calculated Value | N151: =BA151/1000*(1/(BE151*BM151)-1/BE151) -> 74.34782609 | O151: 0.7 | P151: IL TRM v7 vol3 | Q151: 127 | R151: 0.0783 | S151: Calculated Value | X151: 2 | Y151: IL TRM v7 vol3 | Z151: 127 | AA151: Coil cleaning of packaged air conditioning unit. | AC151: IL TRM v7 vol3 | AD151: 127 | AE151: The baseline condition is an AC system with fouled condenser coils. | AG151: IL TRM v7 vol3 | AH151: 127 | AI151: =ROUND(AW151*BA151/1000*(1/(BI151)*BM151)+BU151*BA151/1000*(1/(BQ151)*BM151),4) | AJ151: =ROUND(BA151/1000*(1/(BE151)*BY151),4) | AK151: IL TRM v7 vol3 | AL151: 128+ | AM151: 2021-01-01 | AN151: 2021-12-31 | AW151: 738 | AX151: Equivalent Full Load Hours for Mechanical Cooling | AY151: MO TRM | AZ151: 122 | BA151: 36000 | BB151: Unit Cooling Capacity in Btu/hour | BC151: Installed Equipment; actual value | BE151: =-0.02*BI151^2+1.12*BI151 -> 9.2 | BF151: EER | BG151: IL TRM v7 vol3 | BH151: 130 | BI151: 10 | BJ151: SEER | BK151: IL TRM v7 vol3 | BL151: 128 | BM151: 0.05 | BN151: Mfe | BO151: IL TRM v7 vol3 | BP151: 128 | BQ151: 6.8 | BR151: HSPF_heating | BS151: IL TRM v7 vol3 | BU151: 1376 | BV151: EFLH_heating | BW151: Calculated based on Degree Day Conversion from IL TRM | BY151: 0.02 | BZ151: MFD | CA151: IL TRM v7 vol3 | CB151: 130
A152: Heating, Cooling & Home Comfort | B152: Outdoor Coil Cleaning_SF:ASHP | C152: 265.4 | D152: Single Family | E152: HVAC | G152: per measure | H152: 35 | I152: WI TRM 2017 | J152: 143 | K152: =ROUND(AW152*BA152/1000*(1/(BI152)*BM152)+BY152*BA152/1000*(1/(BU152)*BM152),4) -> 497.0753 | L152: Calculated Value | N152: =R152/O152 -> 0.07819444444 | O152: 0.72 | P152: IL TRM v9 vol3 | Q152: 143 | R152: =ROUND(BA152/1000*(1/(BE152)*BQ152*O152),4) -> 0.0563 | S152: Calculated Value | X152: 3 | Y152: IL TRM v9 vol3 | Z152: 143 | AA152: Coil cleaning of packaged air conditioning unit. | AC152: IL TRM v9 vol3 | AD152: 142 | AE152: The baseline condition is an AC system with fouled condenser coils. | AG152: IL TRM v9 vol3 | AH152: 142 | AI152: =ROUND(AW152*BA152/1000*(1/(BI152)*BM152)+BY152*BA152/1000*(1/(BU152)*BM152),4) | AJ152: =ROUND(BA152/1000*(1/(BE152)*BQ152*O152),4) | AK152: IL TRM v9 vol3 | AL152: 143, 144 | AM152: 2022-01-01 | AW152: 738 | AX152: Equivalent Full Load Hours for Mechanical Cooling | AY152: MO TRM | AZ152: 122 | BA152: 36000 | BB152: Unit Cooling Capacity in Btu/hour | BC152: Installed Equipment; actual value | BE152: 9.2 | BF152: EER | BG152: IL TRM v9 vol3 | BH152: 144 | BI152: 10 | BJ152: SEER | BK152: IL TRM v9 vol3 | BL152: 143 | BM152: 0.05 | BN152: Mfe | BO152: IL TRM v9 vol3 | BP152: 143 | BQ152: 0.02 | BR152: MFD | BS152: IL TRM v9 vol3 | BT152: 145 | BU152: 6.8 | BV152: HSPF_heating | BW152: IL TRM v9 vol3 | BX152: 145 | BY152: 1376 | BZ152: EFLH_heating | CA152: Calculated based on Degree Day Conversion from IL TRM | DR152: Updated to include CF in demand savings, update CF to align with TRM updated references to IL TRM v9
A153: Heating, Cooling & Home Comfort | B153: Refrigerant Charge Adjustment (RCA)_SF: CAC | C153: 266.3 | D153: Single Family | E153: HVAC | G153: per measure | H153: 175 | I153: IL TRM v7 vol3 | J153: 127 | K153: =ROUND(AW153*BA153/1000*(1/(BI153)*BM153),4) -> 132.84 | L153: Calculated Value | N153: =BA153/1000*(1/(BE153*BM153)-1/BE153) -> 74.34782609 | O153: 0.68 | P153: IL TRM v7 vol3 | Q153: 127 | R153: 0.0783 | S153: Calculated Value | X153: 2 | Y153: IL TRM v7 vol3 | Z153: 127 | AA153: Coil cleaning of packaged air conditioning unit. | AC153: IL TRM v7 vol3 | AD153: 127 | AE153: The baseline condition is an AC system with fouled condenser coils. | AG153: IL TRM v7 vol3 | AH153: 127 | AI153: =ROUND(AW153*BA153/1000*(1/(BI153)*BM153),4) | AJ153: =ROUND(BA153/1000*(1/(BE153)*BY153),4) | AK153: IL TRM v7 vol3 | AL153: 128+ | AM153: 2021-01-01 | AN153: 2021-12-31 | AW153: 738 | AX153: Equivalent Full Load Hours for Mechanical Cooling | AY153: MO TRM | AZ153: 122 | BA153: 36000 | BB153: Unit Cooling Capacity in Btu/hour | BC153: Installed Equipment; actual value | BE153: =-0.02*BI153^2+1.12*BI153 -> 9.2 | BF153: EER | BG153: IL TRM v7 vol3 | BH153: 130 | BI153: 10 | BJ153: SEER | BK153: IL TRM v7 vol3 | BL153: 128 | BM153: 0.05 | BN153: Mfe | BO153: IL TRM v7 vol3 | BP153: 128 | BY153: 0.02 | BZ153: MFD | CA153: IL TRM v7 vol3 | CB153: 130
A154: Heating, Cooling & Home Comfort | B154: Refrigerant Charge Adjustment (RCA)_SF: CAC | C154: 266.4 | D154: Single Family | E154: HVAC | G154: per measure | H154: 175 | I154: WI TRM 2017 | J154: 143 | K154: =ROUND(AW154*BA154/1000*(1/(BI154)*BM154),4) -> 132.84 | L154: Calculated Value | N154: =R154/O154 -> 0.07823529412 | O154: 0.68 | P154: IL TRM v9 vol3 | Q154: 127 | R154: =ROUND(BA154/1000*(1/(BE154)*BQ154*O154),4) -> 0.0532 | S154: Calculated Value | X154: 3 | Y154: IL TRM v7 vol3 | Z154: 142 | AA154: Coil cleaning of packaged air conditioning unit. | AC154: IL TRM v9 vol3 | AD154: 142 | AE154: The baseline condition is an AC system with high/low refrigerant | AG154: IL TRM v9 vol3 | AH154: 142 | AI154: =ROUND(AW154*BA154/1000*(1/(BI154)*BM154),4) | AJ154: =ROUND(BA154/1000*(1/(BE154)*BQ154*O154),4) | AK154: IL TRM v9 vol3 | AL154: 143, 144 | AM154: 2022-01-01 | AW154: 738 | AX154: Equivalent Full Load Hours for Mechanical Cooling | AY154: MO TRM | AZ154: 122 | BA154: 36000 | BB154: Unit Cooling Capacity in Btu/hour | BC154: Installed Equipment; actual value | BE154: =-0.02*BI154^2+1.12*BI154 -> 9.2 | BF154: EER | BG154: IL TRM v9 vol3 | BH154: 144 | BI154: 10 | BJ154: SEER | BK154: IL TRM v9 vol3 | BL154: 143 | BM154: 0.05 | BN154: Mfe | BO154: IL TRM v9 vol3 | BP154: 143 | BQ154: 0.02 | BR154: MFD | BS154: IL TRM v7 vol3 | BT154: 130 | DR154: Updated to include CF in demand savings, updated references to IL TRM v9
A155: Heating, Cooling & Home Comfort | B155: Refrigerant Charge Adjustment (RCA)_SF: ASHP | C155: 267.3 | D155: Single Family | E155: HVAC | G155: per measure | H155: 175 | I155: IL TRM v7 vol3 | J155: 127 | K155: =ROUND(AW155*BA155/1000*(1/(BI155)*BM155)+BU155*BA155/1000*(1/(BQ155)*BM155),4) -> 497.0753 | L155: Calculated Value | N155: =BA155/1000*(1/(BE155*BM155)-1/BE155) -> 74.34782609 | O155: 0.7 | P155: IL TRM v7 vol3 | Q155: 127 | R155: 0.0783 | S155: Calculated Value | X155: 2 | Y155: IL TRM v7 vol3 | Z155: 127 | AA155: Coil cleaning of packaged air conditioning unit. | AC155: IL TRM v7 vol3 | AD155: 127 | AE155: The baseline condition is an AC system with fouled condenser coils. | AG155: IL TRM v7 vol3 | AH155: 127 | AI155: =ROUND(AW155*BA155/1000*(1/(BI155)*BM155)+BU155*BA155/1000*(1/(BQ155)*BM155),4) | AJ155: =ROUND(BA155/1000*(1/(BE155)*BY155),4) | AK155: IL TRM v7 vol3 | AL155: 128+ | AM155: 2021-01-01 | AN155: 2021-12-31 | AW155: 738 | AX155: Equivalent Full Load Hours for Mechanical Cooling | AY155: MO TRM | AZ155: 122 | BA155: 36000 | BB155: Unit Cooling Capacity in Btu/hour | BC155: Installed Equipment; actual value | BE155: =-0.02*BI155^2+1.12*BI155 -> 9.2 | BF155: EER | BG155: IL TRM v7 vol3 | BH155: 130 | BI155: 10 | BJ155: SEER | BK155: IL TRM v7 vol3 | BL155: 128 | BM155: 0.05 | BN155: Mfe | BO155: IL TRM v7 vol3 | BP155: 128 | BQ155: 6.8 | BR155: HSPF_heating | BS155: IL TRM v7 vol3 | BU155: 1376 | BV155: EFLH_heating | BW155: Calculated based on Degree Day Conversion from IL TRM | BY155: 0.02 | BZ155: MFD | CA155: IL TRM v7 vol3 | CB155: 130
A156: Heating, Cooling & Home Comfort | B156: Refrigerant Charge Adjustment (RCA)_SF: ASHP | C156: 267.4 | D156: Single Family | E156: HVAC | G156: per measure | H156: 175 | I156: WI TRM 2017 | J156: 143 | K156: =ROUND(AW156*BA156/1000*(1/(BI156)*BM156)+BY156*BA156/1000*(1/(BU156)*BM156),4) -> 497.0753 | L156: Calculated Value | N156: =R156/O156 -> 0.07819444444 | O156: 0.72 | P156: IL TRM v9 vol3 | Q156: 127 | R156: =ROUND(BA156/1000*(1/(BE156)*BQ156*O156),4) -> 0.0563 | S156: Calculated Value | X156: 3 | Y156: IL TRM v7 vol3 | Z156: 142 | AA156: Coil cleaning of packaged air conditioning unit. | AC156: IL TRM v9 vol3 | AD156: 142 | AE156: The baseline condition is an AC system with fouled condenser coils. | AG156: IL TRM v9 vol3 | AH156: 142 | AI156: =ROUND(AW156*BA156/1000*(1/(BI156)*BM156)+BY156*BA156/1000*(1/(BU156)*BM156),4) | AJ156: =ROUND(BA156/1000*(1/(BE156)*BQ156*O156),4) | AK156: IL TRM v7 vol3 | AL156: 143, 144 | AM156: 2022-01-01 | AW156: 738 | AX156: Equivalent Full Load Hours for Mechanical Cooling | AY156: MO TRM | AZ156: 122 | BA156: 36000 | BB156: Unit Cooling Capacity in Btu/hour | BC156: Installed Equipment; actual value | BE156: =-0.02*BI156^2+1.12*BI156 -> 9.2 | BF156: EER | BG156: IL TRM v9 vol3 | BH156: 144 | BI156: 10 | BJ156: SEER | BK156: IL TRM v9 vol3 | BL156: 143 | BM156: 0.05 | BN156: Mfe | BO156: IL TRM v9 vol3 | BP156: 143 | BQ156: 0.02 | BR156: MFD | BS156: IL TRM v7 vol3 | BT156: 130 | BU156: 6.8 | BV156: HSPF_heating | BW156: IL TRM v7 vol3 | BY156: 1376 | BZ156: EFLH_heating | CA156: Calculated based on Degree Day Conversion from IL TRM | DR156: Updated to include CF in demand savings, update CF to align with TRM updated references to IL TRM v9
A157: Heating, Cooling & Home Comfort | B157: HVAC Maintenance and Tune-up_SF: CAC | C157: 238.3 | D157: Single Family | E157: HVAC | G157: per measure | H157: 175 | I157: IL TRM v7 vol3 | J157: 127 | K157: =ROUND(AW157*BA157/1000*(1/(BI157)*BM157),4) -> 132.84 | L157: Calculated Value | N157: =BA157/1000*(1/(BE157*BM157)-1/BE157) -> 74.34782609 | O157: 0.68 | P157: IL TRM v7 vol3 | Q157: 127 | R157: 0.0783 | S157: Calculated Value | X157: 2 | Y157: IL TRM v7 vol3 | Z157: 127 | AA157: Coil cleaning of packaged air conditioning unit. | AC157: IL TRM v7 vol3 | AD157: 127 | AE157: The baseline condition is an AC system with fouled condenser coils. | AG157: IL TRM v7 vol3 | AH157: 127 | AI157: =ROUND(AW157*BA157/1000*(1/(BI157)*BM157),4) | AJ157: =ROUND(BA157/1000*(1/(BE157)*BY157),4) | AK157: IL TRM v7 vol3 | AL157: 128+ | AM157: 2021-01-01 | AN157: 2021-12-31 | AW157: 738 | AX157: Equivalent Full Load Hours for Mechanical Cooling | AY157: MO TRM | AZ157: 122 | BA157: 36000 | BB157: Unit Cooling Capacity in Btu/hour | BC157: Installed Equipment; actual value | BE157: =-0.02*BI157^2+1.12*BI157 -> 9.2 | BF157: EER | BG157: IL TRM v7 vol3 | BH157: 130 | BI157: 10 | BJ157: SEER | BK157: IL TRM v7 vol3 | BL157: 128 | BM157: 0.05 | BN157: Mfe | BO157: IL TRM v7 vol3 | BP157: 128 | BY157: 0.02 | BZ157: MFD | CA157: IL TRM v7 vol3 | CB157: 130
A158: Heating, Cooling & Home Comfort | B158: Refrigerant Charge Adjustment (RCA)_SF: CAC | C158: 238.4 | D158: Single Family | E158: HVAC | G158: per measure | H158: 175 | I158: IL TRM v7 vol3 | J158: 143 | K158: =ROUND(AW158*BA158/1000*(1/(BI158)*BM158),4) -> 132.84 | L158: Calculated Value | N158: =R158/O158 -> 0.07823529412 | O158: 0.68 | P158: IL TRM v9 vol3 | Q158: 127 | R158: =ROUND(BA158/1000*(1/(BE158)*BQ158*O158),4) -> 0.0532 | S158: Calculated Value | X158: 3 | Y158: IL TRM v7 vol3 | Z158: 142 | AA158: Coil cleaning of packaged air conditioning unit. | AC158: IL TRM v9 vol3 | AD158: 142 | AE158: The baseline condition is an AC system with high/low refrigerant | AG158: IL TRM v9 vol3 | AH158: 142 | AI158: =ROUND(AW158*BA158/1000*(1/(BI158)*BM158),4) | AJ158: =ROUND(BA158/1000*(1/(BE158)*BQ158*O158),4) | AK158: IL TRM v9 vol3 | AL158: 143, 144 | AM158: 2022-01-01 | AW158: 738 | AX158: Equivalent Full Load Hours for Mechanical Cooling | AY158: MO TRM | AZ158: 122 | BA158: 36000 | BB158: Unit Cooling Capacity in Btu/hour | BC158: Installed Equipment; actual value | BE158: =-0.02*BI158^2+1.12*BI158 -> 9.2 | BF158: EER | BG158: IL TRM v9 vol3 | BH158: 144 | BI158: 10 | BJ158: SEER | BK158: IL TRM v9 vol3 | BL158: 143 | BM158: 0.05 | BN158: Mfe | BO158: IL TRM v9 vol3 | BP158: 143 | BQ158: 0.02 | BR158: MFD | BS158: IL TRM v7 vol3 | BT158: 130 | DR158: Updated to include CF in demand savings, updated references to IL TRM v9
A159: Heating, Cooling & Home Comfort | B159: GSHP - EER 23 Early Retirement GSHP_SF: HVAC | C159: 239.5 | D159: Single Family | E159: HVAC | G159: per ton | H159: 5064 | I159: Program Tracking Data | K159: =ROUND(((BY159*AS159*(1/AF159-1/AB159))/1000)+((CC159*AS159*(1/AW159-1/(BA159*3.412)))/1000)+((BE159*BI159*(1/BM159)*CG159*CK159*CO159*CS159*(CW159-DA159)*DE159)/BQ159),4) -> 2907.9654 | L159: Calculated Value | N159: =K159/U159 -> 3.94033252 | O159: 0.72 | P159: IL TRM v7 vol3 | Q159: 111 | R159: =ROUND(((AS159*(1/BU159)-(1/AB159))/1000)*O159,4) -> 1.152 | S159: Calculated Value | U159: 738 | V159: EFLHcool, from 2017 MO TRM Vol. 3 | W159: 85 | X159: 25 | Y159: IL TRM v7 vol3 | Z159: 110 | AA159: Part Load EER Efficiency of efficient GSHP unit | AB159: =3.412*BA159 -> 15.354 | AC159: IL TRM v7 vol3 | AD159: 111 | AE159: SEER Efficiency of existing cooling unit = Actual, if available | AF159: 9.3 | AG159: IL TRM v7 vol3 | AH159: 113 | AI159: =ROUND(((BY159*AS159*(1/AF159-1/AB159))/1000)+((CC159*AS159*(1/AW159-1/(BA159*3.412)))/1000)+((BE159*BI159*(1/BM159)*CG159*CK159*CO159*CS159*(CW159-DA159)*DE159)/BQ159),4) | AJ159: =ROUND(((AS159*(1/BU159)-(1/AB159))/1000)*O159,4) | AK159: IL TRM v7 vol3 | AL159: 111116 | AM159: 2021-01-01 | AN159: 2021-12-31 | AS159: 12000 | AT159: Allows for Capacity input in Tons; converts tons to BTUs | AW159: 5.54 | AX159: HSPFexist = Heating System Performance Factor of existing heating system 5.44 for replacing ASHP 3.41 for replacing Electric Resistance Heat | AY159: IL TRM v7 vol3 | AZ159: 114 | BA159: 4.5 | BB159: COPpl = Part Load Coefficient of Performance, Actual installed value | BC159: This example value is the mean of values listed in ENERGY STAR criteria here: https://www.energystar.gov/index.cfm?c=most_efficient.me_geothermal_heat_pumps , https://data.energystar.gov/Active-Specifications/ENERGY-STAR-Most-Efficient-Geothermal-Heat-Pumps/4c82-7ysy . Ideally this value would come from the specs of the actual unit installed. | BD159: 114 | BE159: 1 | BF159: ElecDHW: = 1 if HW system is electric = 0 if HW system is not electric | BG159: IL TRM v7 vol3 | BH159: 113 | BI159: 0.44 | BJ159: %DHWdisplaced = Percentage of total DHW load the GSHP will provide. = Actual, if known = 0% if no desuperheater installed = 44% if desuperheater installed and actual is unknown | BK159: IL TRM v7 vol3 | BL159: 114 | BM159: =2.057-0.00113*50 -> 2.0005 | BN159: Efelec = Energy Factor of electric WH. = Actual, if known = 0.96 – (0.0003 * rated volume in gallons) for 55+ gallon DHW = 2.057 – (0.00113 * rated volume in gallons) for < 55 gallon DHW | BO159: IL TRM v7 vol3 | BP159: 115 | BQ159: 3412 | BR159: Conversion from BTU to kWh | BS159: IL TRM v7 vol3 | BT159: 115 | BU159: 7.5 | BV159: Energy Efficiency Ratio of existing/baseline cooling unit | BW159: IL TRM v7 vol3 | BX159: 116 | BY159: 738 | BZ159: EFLHcool | CA159: MO TRM 2017 Vol 3 | CB159: 85 | CC159: 1376 | CD159: EFLHheat | CE159: The EFLH Cooling and Heating hours are based on a EnergyStar study that was normalized (based on HDD and CDD) to Kansas City. This was for both AC and HP units. | CG159: 17.6 | CH159: GPD | CI159: IL TRM v7 vol3 | CJ159: 115 | CK159: 2.56 | CL159: Household | CM159: IL TRM v7 vol3 | CN159: 115 | CO159: 365.25 | CP159: Days per year | CQ159: IL TRM v7 vol3 | CR159: 115 | CS159: 8.33 | CT159: Specific weight of water | CU159: IL TRM v7 vol3 | CV159: 115 | CW159: 125 | CX159: Tout | CY159: IL TRM v7 vol3 | CZ159: 115 | DA159: 54 | DB159: Tin | DC159: IL TRM v7 vol3 | DD159: 115 | DE159: 1 | DF159: Heat Capacity of Water | DG159: IL TRM v7 vol3 | DH159: 115
A160: Heating, Cooling & Home Comfort | B160: GSHP - EER 23 Early Retirement GSHP_SF: HVAC | C160: 239.6 | D160: Single Family | E160: HVAC | G160: per ton | H160: 5064 | I160: Program Tracking Data | K160: 3590.0322 | L160: Calculated Value | N160: 4.864542276 | O160: 0.72 | P160: IL TRM v9 vol3 | Q160: 128 | R160: 1.152 | S160: Calculated Value | U160: 738 | V160: EFLHcool, from 2017 MO TRM Vol. 3 | W160: 85 | X160: 25 | Y160: IL TRM v9 vol3 | Z160: 127 | AA160: Part Load EER Efficiency of efficient GSHP unit | AB160: 15.354 | AC160: IL TRM v7 vol3 | AD160: 111 | AE160: SEER Efficiency of existing cooling unit = Actual, if available | AF160: 9.3 | AG160: IL TRM v9 vol3 | AH160: 130 | AI160: =ROUND(((BY160*AS160*(1/AF160-1/AB160))/1000)+((CC160*AS160*(1/AW160-1/(BA160*3.412)))/1000)+((BE160*BI160*(1/BM160)*CG160*CK160*CO160*CS160*(CW160-DA160)*DE160)/BQ160),4) | AJ160: =ROUND(((AS160*(1/BU160)-(1/AB160))/1000)*O160,4) | AK160: IL TRM v9 vol3 | AL160: 128, 135 | AM160: 2022-01-01 | AS160: 12000 | AT160: Allows for Capacity input in Tons; converts tons to BTUs | AW160: 5.54 | AX160: HSPFexist = Heating System Performance Factor of existing heating system 5.44 for replacing ASHP 3.41 for replacing Electric Resistance Heat | AY160: IL TRM v7 vol3 | AZ160: 114 | BA160: 4.5 | BB160: COPpl = Part Load Coefficient of Performance, Actual installed value | BC160: This example value is the mean of values listed in ENERGY STAR criteria here: https://www.energystar.gov/index.cfm?c=most_efficient.me_geothermal_heat_pumps , https://data.energystar.gov/Active-Specifications/ENERGY-STAR-Most-Efficient-Geothermal-Heat-Pumps/4c82-7ysy . Ideally this value would come from the specs of the actual unit installed. | BD160: 114 | BE160: 1 | BF160: ElecDHW: = 1 if HW system is electric = 0 if HW system is not electric | BG160: IL TRM v9 vol3 | BH160: 131 | BI160: 0.44 | BJ160: %DHWdisplaced = Percentage of total DHW load the GSHP will provide. = Actual, if known = 0% if no desuperheater installed = 44% if desuperheater installed and actual is unknown | BK160: IL TRM v9 vol3 | BL160: 132 | BM160: =0.96-0.00003*50 -> 0.9585 | BN160: Efelec = Energy Factor of electric WH. = Actual, if known = 0.96 – (0.0003 * rated volume in gallons) for 55+ gallon DHW = 2.057 – (0.00113 * rated volume in gallons) for < 55 gallon DHW | BO160: IL TRM v9 vol3 | BP160: 132 | BQ160: 3412 | BR160: Conversion from BTU to kWh | BS160: IL TRM v9 vol3 | BT160: 128 | BU160: 7.5 | BV160: EER of existing/baseline cooling unit | BW160: IL TRM v9 vol3 | BX160: 136 | BY160: 738 | BZ160: EFLHcool | CA160: MO TRM 2017 Vol 3 | CB160: 85 | CC160: 1376 | CD160: EFLHheat | CE160: The EFLH Cooling and Heating hours are based on a EnergyStar study that was normalized (based on HDD and CDD) to Kansas City. This was for both AC and HP units. | CG160: 17.6 | CH160: GPD | CI160: IL TRM v9 vol3 | CJ160: 131 | CK160: 2.56 | CL160: Household | CM160: IL TRM v9 vol3 | CN160: 132 | CO160: 365.25 | CP160: Days per year | CS160: 8.33 | CT160: Specific weight of water | CU160: IL TRM v9 vol3 | CV160: 132 | CW160: 125 | CX160: Tout | CY160: IL TRM v9 vol3 | CZ160: 132 | DA160: 54 | DB160: Tin | DC160: IL TRM v9 vol3 | DD160: 132 | DE160: 1 | DF160: Heat Capacity of Water | DG160: IL TRM v9 vol3 | DH160: 132 | DR160: Updated assumptions for EERbase in IL TRM v9, Corrected Efelec formula, updated references to IL TRM, baseline efficiency, Update measure life
A161: Heating, Cooling & Home Comfort | B161: GSHP - EER 23_Replace at Fail / Time of Sale_SF: HVAC | C161: 240.5 | D161: Single Family | E161: HVAC | G161: per ton | H161: 1841 | I161: Program Tracking Data | K161: 1621.4319 | L161: Calculated Value | N161: 2.197062195 | O161: 0.72 | P161: IL TRM v7 vol3 | Q161: 111 | R161: 0.7322 | S161: Calculated Value | U161: 738 | V161: EFLHcool, from 2017 MO TRM Vol. 3 | W161: 85 | X161: 25 | Y161: IL TRM v7 vol3 | Z161: 110 | AA161: Part Load EER Efficiency of efficient GSHP unit | AB161: 15.354 | AC161: IL TRM v7 vol3 | AD161: 111 | AE161: GSHP replacing Failed GSHP – 23 EER minimum (EER) | AF161: 14 | AG161: IL TRM v7 vol3 | AH161: 113 | AI161: =ROUND(((BY161*AS161*(1/AF161-1/AB161))/1000)+((CC161*AS161*(1/AW161-1/(BA161*3.412)))/1000)+((BE161*BI161*(1/BM161)*CG161*CK161*CO161*CS161*(CW161-DA161)*DE161)/BQ161),4) | AJ161: =ROUND(((AS161*(1/BU161)-(1/AB161))/1000)*O161,4) | AK161: IL TRM v7 vol3 | AL161: 111116 | AM161: 2021-01-01 | AN161: 2021-12-31 | AS161: 12000 | AT161: Allows for Capacity input in Tons; converts tons to BTUs | AW161: 8.2 | AX161: HSPFbase = Heating System Performance Factor of new replacement baseline heating system 8.2 for replacing ASHP 3.41 for replacing Electric Resistance Heat | AY161: IL TRM v7 vol3 | AZ161: 114 | BA161: 4.5 | BB161: COPpl = Part Load Coefficient of Performance, Actual installed value | BC161: This example value is the mean of values listed in ENERGY STAR criteria here: https://www.energystar.gov/index.cfm?c=most_efficient.me_geothermal_heat_pumps , https://data.energystar.gov/Active-Specifications/ENERGY-STAR-Most-Efficient-Geothermal-Heat-Pumps/4c82-7ysy . Ideally this value would come from the specs of the actual unit installed. | BD161: 114 | BE161: 1 | BF161: ElecDHW: = 1 if HW system is electric = 0 if HW system is not electric | BG161: IL TRM v7 vol3 | BH161: 113 | BI161: 0.44 | BJ161: %DHWdisplaced = Percentage of total DHW load the GSHP will provide. = Actual, if known = 0% if no desuperheater installed = 44% if desuperheater installed and actual is unknown | BK161: IL TRM v7 vol3 | BL161: 114 | BM161: =2.057-0.00113*50 -> 2.0005 | BN161: Efelec = Energy Factor of electric WH. = Actual, if known = 0.96 – (0.0003 * rated volume in gallons) for 55+ gallon DHW = 2.057 – (0.00113 * rated volume in gallons) for < 55 gallon DHW | BO161: IL TRM v7 vol3 | BP161: 115 | BQ161: 3412 | BR161: Conversion from BTU to kWh | BS161: IL TRM v7 vol3 | BT161: 115 | BU161: 11.8 | BV161: Energy Efficiency Ratio of existing/baseline cooling unit | BW161: IL TRM v7 vol3 | BX161: 116 | BY161: 738 | BZ161: EFLHcool | CA161: MO TRM 2017 Vol 3 | CB161: 85 | CC161: 1376 | CD161: EFLHheat | CE161: The EFLH Cooling and Heating hours are based on a EnergyStar study that was normalized (based on HDD and CDD) to Kansas City. This was for both AC and HP units. | CG161: 17.6 | CH161: GPD | CI161: IL TRM v7 vol3 | CJ161: 115 | CK161: 2.56 | CL161: Household | CM161: IL TRM v7 vol3 | CN161: 115 | CO161: 365.25 | CP161: Days per year | CQ161: IL TRM v7 vol3 | CR161: 115 | CS161: 8.33 | CT161: Specific weight of water | CU161: IL TRM v7 vol3 | CV161: 115 | CW161: 125 | CX161: Tout | CY161: IL TRM v7 vol3 | CZ161: 115 | DA161: 54 | DB161: Tin | DC161: IL TRM v7 vol3 | DD161: 115 | DE161: 1 | DF161: Heat Capacity of Water | DG161: IL TRM v7 vol3 | DH161: 115
A162: Heating, Cooling & Home Comfort | B162: GSHP - EER 23_Replace at Fail / Time of Sale_SF: HVAC | C162: 240.6 | D162: Single Family | E162: HVAC | G162: per ton | H162: 1841 | I162: Program Tracking Data | K162: 2303.4987 | L162: Calculated Value | N162: 3.121271951 | O162: 0.72 | P162: IL TRM v9 vol3 | Q162: 128 | R162: 0.7854 | S162: Calculated Value | U162: 738 | V162: EFLHcool, from 2017 MO TRM Vol. 3 | W162: 85 | X162: 25 | Y162: IL TRM v9 vol3 | Z162: 127 | AA162: Part Load EER Efficiency of efficient GSHP unit | AB162: 15.354 | AC162: IL TRM v7 vol3 | AD162: 111 | AE162: GSHP replacing Failed GSHP – 23 EER minimum (EER) | AF162: 14 | AG162: IL TRM v9 vol3 | AH162: 130 | AI162: =ROUND(((BY162*AS162*(1/AF162-1/AB162))/1000)+((CC162*AS162*(1/AW162-1/(BA162*3.412)))/1000)+((BE162*BI162*(1/BM162)*CG162*CK162*CO162*CS162*(CW162-DA162)*DE162)/BQ162),4) | AJ162: =ROUND(((AS162*(1/BU162)-(1/AB162))/1000)*O162,4) | AK162: IL TRM v9 vol3 | AL162: 128, 135 | AM162: 2022-01-01 | AS162: 12000 | AT162: Allows for Capacity input in Tons; converts tons to BTUs | AW162: 8.2 | AX162: HSPFbase = Heating System Performance Factor of new replacement baseline heating system 8.2 for replacing ASHP 3.41 for replacing Electric Resistance Heat | AY162: IL TRM v7 vol3 | AZ162: 114 | BA162: 4.5 | BB162: COPpl = Part Load Coefficient of Performance, Actual installed value | BC162: This example value is the mean of values listed in ENERGY STAR criteria here: https://www.energystar.gov/index.cfm?c=most_efficient.me_geothermal_heat_pumps , https://data.energystar.gov/Active-Specifications/ENERGY-STAR-Most-Efficient-Geothermal-Heat-Pumps/4c82-7ysy . Ideally this value would come from the specs of the actual unit installed. | BD162: 114 | BE162: 1 | BF162: ElecDHW: = 1 if HW system is electric = 0 if HW system is not electric | BG162: IL TRM v9 vol3 | BH162: 131 | BI162: 0.44 | BJ162: %DHWdisplaced = Percentage of total DHW load the GSHP will provide. = Actual, if known = 0% if no desuperheater installed = 44% if desuperheater installed and actual is unknown | BK162: IL TRM v9 vol3 | BL162: 132 | BM162: =0.96-0.00003*50 -> 0.9585 | BN162: Efelec = Energy Factor of electric WH. = Actual, if known = 0.96 – (0.0003 * rated volume in gallons) for 55+ gallon DHW = 2.057 – (0.00113 * rated volume in gallons) for < 55 gallon DHW | BO162: IL TRM v9 vol3 | BP162: 132 | BQ162: 3412 | BR162: Conversion from BTU to kWh | BS162: IL TRM v9 vol3 | BT162: 128 | BU162: 11 | BV162: EER of existing/baseline cooling unit | BW162: IL TRM v9 vol3 | BX162: 136 | BY162: 738 | BZ162: EFLHcool | CA162: MO TRM 2017 Vol 3 | CB162: 85 | CC162: 1376 | CD162: EFLHheat | CE162: The EFLH Cooling and Heating hours are based on a EnergyStar study that was normalized (based on HDD and CDD) to Kansas City. This was for both AC and HP units. | CG162: 17.6 | CH162: GPD | CI162: IL TRM v9 vol3 | CJ162: 131 | CK162: 2.56 | CL162: Household | CM162: IL TRM v9 vol3 | CN162: 132 | CO162: 365.25 | CP162: Days per year | CS162: 8.33 | CT162: Specific weight of water | CU162: IL TRM v9 vol3 | CV162: 132 | CW162: 125 | CX162: Tout | CY162: IL TRM v9 vol3 | CZ162: 132 | DA162: 54 | DB162: Tin | DC162: IL TRM v9 vol3 | DD162: 132 | DE162: 1 | DF162: Heat Capacity of Water | DG162: IL TRM v9 vol3 | DH162: 132 | DR162: Updated assumptions for EERbase in IL TRM v9, Corrected Efelec formula, updated references to IL TRM, baseline efficiency, Update measure life
A163: Heating, Cooling & Home Comfort | B163: GSHP - EER 23_Early Retirement AC/Electric Furnace_SF: HVAC | C163: 241.5 | D163: Single Family | E163: HVAC | G163: per ton | H163: 5064 | I163: Program Tracking Data | K163: 4769.6887 | L163: Calculated Value | N163: 6.462992818 | O163: 0.72 | P163: IL TRM v7 vol3 | Q163: 111 | R163: 1.152 | S163: Calculated Value | U163: 738 | V163: EFLHcool, from 2017 MO TRM Vol. 3 | W163: 85 | X163: 25 | Y163: IL TRM v7 vol3 | Z163: 110 | AA163: Part Load EER Efficiency of efficient GSHP unit | AB163: 15.354 | AC163: IL TRM v7 vol3 | AD163: 111 | AE163: SEER Efficiency of existing cooling unit = Actual, if available | AF163: 9.3 | AG163: IL TRM v7 vol3 | AH163: 113 | AI163: =ROUND(((BY163*AS163*(1/AF163-1/AB163))/1000)+((CC163*AS163*(1/AW163-1/(BA163*3.412)))/1000)+((BE163*BI163*(1/BM163)*CG163*CK163*CO163*CS163*(CW163-DA163)*DE163)/BQ163),4) | AJ163: =ROUND(((AS163*(1/BU163)-(1/AB163))/1000)*O163,4) | AK163: IL TRM v7 vol3 | AL163: 111116 | AM163: 2021-01-01 | AN163: 2021-12-31 | AS163: 12000 | AT163: Allows for Capacity input in Tons; converts tons to BTUs | AW163: 3.41 | AX163: HSPFexist = Heating System Performance Factor of existing heating system 5.44 for replacing ASHP 3.41 for replacing Electric Resistance Heat | AY163: IL TRM v7 vol3 | AZ163: 114 | BA163: 4.5 | BB163: COPpl = Part Load Coefficient of Performance, Actual installed value | BC163: This example value is the mean of values listed in ENERGY STAR criteria here: https://www.energystar.gov/index.cfm?c=most_efficient.me_geothermal_heat_pumps , https://data.energystar.gov/Active-Specifications/ENERGY-STAR-Most-Efficient-Geothermal-Heat-Pumps/4c82-7ysy . Ideally this value would come from the specs of the actual unit installed. | BD163: 114 | BE163: 1 | BF163: ElecDHW: = 1 if HW system is electric = 0 if HW system is not electric | BG163: IL TRM v7 vol3 | BH163: 113 | BI163: 0.44 | BJ163: %DHWdisplaced = Percentage of total DHW load the GSHP will provide. = Actual, if known = 0% if no desuperheater installed = 44% if desuperheater installed and actual is unknown | BK163: IL TRM v7 vol3 | BL163: 114 | BM163: =2.057-0.00113*50 -> 2.0005 | BN163: Efelec = Energy Factor of electric WH. = Actual, if known = 0.96 – (0.0003 * rated volume in gallons) for 55+ gallon DHW = 2.057 – (0.00113 * rated volume in gallons) for < 55 gallon DHW | BO163: IL TRM v7 vol3 | BP163: 115 | BQ163: 3412 | BR163: Conversion from BTU to kWh | BS163: IL TRM v7 vol3 | BT163: 115 | BU163: 7.5 | BV163: Energy Efficiency Ratio of existing/baseline cooling unit | BW163: IL TRM v7 vol3 | BX163: 116 | BY163: 738 | BZ163: EFLHcool | CA163: MO TRM 2017 Vol 3 | CB163: 85 | CC163: 1376 | CD163: EFLHheat | CE163: The EFLH Cooling and Heating hours are based on a EnergyStar study that was normalized (based on HDD and CDD) to Kansas City. This was for both AC and HP units. | CG163: 17.6 | CH163: GPD | CI163: IL TRM v7 vol3 | CJ163: 115 | CK163: 2.56 | CL163: Household | CM163: IL TRM v7 vol3 | CN163: 115 | CO163: 365.25 | CP163: Days per year | CQ163: IL TRM v7 vol3 | CR163: 115 | CS163: 8.33 | CT163: Specific weight of water | CU163: IL TRM v7 vol3 | CV163: 115 | CW163: 125 | CX163: Tout | CY163: IL TRM v7 vol3 | CZ163: 115 | DA163: 54 | DB163: Tin | DC163: IL TRM v7 vol3 | DD163: 115 | DE163: 1 | DF163: Heat Capacity of Water | DG163: IL TRM v7 vol3 | DH163: 115
A164: Heating, Cooling & Home Comfort | B164: GSHP - EER 23_Early Retirement AC/Electric Furnace_SF: HVAC | C164: 241.6 | D164: Single Family | E164: HVAC | G164: per ton | H164: 5064 | I164: Program Tracking Data | K164: 5451.7555 | L164: Calculated Value | N164: 7.387202575 | O164: 0.72 | P164: IL TRM v9 vol3 | Q164: 128 | R164: 1.152 | S164: Calculated Value | U164: 738 | V164: EFLHcool, from 2017 MO TRM Vol. 3 | W164: 85 | X164: 25 | Y164: IL TRM v9 vol3 | Z164: 127 | AA164: Part Load EER Efficiency of efficient GSHP unit | AB164: 15.354 | AC164: IL TRM v7 vol3 | AD164: 111 | AE164: SEER Efficiency of existing cooling unit = Actual, if available | AF164: 9.3 | AG164: IL TRM v9 vol3 | AH164: 130 | AI164: =ROUND(((BY164*AS164*(1/AF164-1/AB164))/1000)+((CC164*AS164*(1/AW164-1/(BA164*3.412)))/1000)+((BE164*BI164*(1/BM164)*CG164*CK164*CO164*CS164*(CW164-DA164)*DE164)/BQ164),4) | AJ164: =ROUND(((AS164*(1/BU164)-(1/AB164))/1000)*O164,4) | AK164: IL TRM v9 vol3 | AL164: 128, 135 | AM164: 2022-01-01 | AS164: 12000 | AT164: Allows for Capacity input in Tons; converts tons to BTUs | AW164: 3.41 | AX164: HSPFexist = Heating System Performance Factor of existing heating system 5.44 for replacing ASHP 3.41 for replacing Electric Resistance Heat | AY164: IL TRM v7 vol3 | AZ164: 114 | BA164: 4.5 | BB164: COPpl = Part Load Coefficient of Performance, Actual installed value | BC164: This example value is the mean of values listed in ENERGY STAR criteria here: https://www.energystar.gov/index.cfm?c=most_efficient.me_geothermal_heat_pumps , https://data.energystar.gov/Active-Specifications/ENERGY-STAR-Most-Efficient-Geothermal-Heat-Pumps/4c82-7ysy . Ideally this value would come from the specs of the actual unit installed. | BD164: 114 | BE164: 1 | BF164: ElecDHW: = 1 if HW system is electric = 0 if HW system is not electric | BG164: IL TRM v9 vol3 | BH164: 131 | BI164: 0.44 | BJ164: %DHWdisplaced = Percentage of total DHW load the GSHP will provide. = Actual, if known = 0% if no desuperheater installed = 44% if desuperheater installed and actual is unknown | BK164: IL TRM v9 vol3 | BL164: 132 | BM164: =0.96-0.00003*50 -> 0.9585 | BN164: Efelec = Energy Factor of electric WH. = Actual, if known = 0.96 – (0.0003 * rated volume in gallons) for 55+ gallon DHW = 2.057 – (0.00113 * rated volume in gallons) for < 55 gallon DHW | BO164: IL TRM v9 vol3 | BP164: 132 | BQ164: 3412 | BR164: Conversion from BTU to kWh | BS164: IL TRM v9 vol3 | BT164: 128 | BU164: 7.5 | BV164: EER of existing/baseline cooling unit | BW164: IL TRM v9 vol3 | BX164: 136 | BY164: 738 | BZ164: EFLHcool | CA164: MO TRM 2017 Vol 3 | CB164: 85 | CC164: 1376 | CD164: EFLHheat | CE164: The EFLH Cooling and Heating hours are based on a EnergyStar study that was normalized (based on HDD and CDD) to Kansas City. This was for both AC and HP units. | CG164: 17.6 | CH164: GPD | CI164: IL TRM v9 vol3 | CJ164: 131 | CK164: 2.56 | CL164: Household | CM164: IL TRM v9 vol3 | CN164: 132 | CO164: 365.25 | CP164: Days per year | CS164: 8.33 | CT164: Specific weight of water | CU164: IL TRM v9 vol3 | CV164: 132 | CW164: 125 | CX164: Tout | CY164: IL TRM v9 vol3 | CZ164: 132 | DA164: 54 | DB164: Tin | DC164: IL TRM v9 vol3 | DD164: 132 | DE164: 1 | DF164: Heat Capacity of Water | DG164: IL TRM v9 vol3 | DH164: 132 | DR164: Updated assumptions for EERbase in IL TRM v9, Corrected Efelec formula, updated references to IL TRM, baseline efficiency, Update measure life
A165: Heating, Cooling & Home Comfort | B165: GSHP - EER 23_Early Retirement ASHP_SF: HVAC | C165: 243.5 | D165: Single Family | E165: HVAC | G165: per ton | H165: 5064 | I165: Program Tracking Data | K165: =ROUND(((BY165*AS165*(1/AF165-1/AB165))/1000)+((CC165*AS165*(1/AW165-1/(BA165*3.412)))/1000)+((BE165*BI165*(1/BM165)*CG165*CK165*CO165*CS165*(CW165-DA165)*DE165)/BQ165),4) -> 2907.9654 | L165: Calculated Value | N165: 3.94033252 | O165: 0.72 | P165: IL TRM v7 vol3 | Q165: 111 | R165: 1.152 | S165: Calculated Value | U165: 738 | V165: EFLHcool, from 2017 MO TRM Vol. 3 | W165: 85 | X165: 25 | Y165: IL TRM v7 vol3 | Z165: 110 | AA165: Part Load EER Efficiency of efficient GSHP unit | AB165: =3.412*BA165 -> 15.354 | AC165: IL TRM v7 vol3 | AD165: 111 | AE165: SEER Efficiency of existing cooling unit = Actual, if available | AF165: 9.3 | AG165: IL TRM v7 vol3 | AH165: 113 | AI165: =ROUND(((BY165*AS165*(1/AF165-1/AB165))/1000)+((CC165*AS165*(1/AW165-1/(BA165*3.412)))/1000)+((BE165*BI165*(1/BM165)*CG165*CK165*CO165*CS165*(CW165-DA165)*DE165)/BQ165),4) | AJ165: =ROUND(((AS165*(1/BU165)-(1/AB165))/1000)*O165,4) | AK165: IL TRM v7 vol3 | AL165: 111116 | AM165: 2021-01-01 | AN165: 2021-12-31 | AS165: 12000 | AT165: Allows for Capacity input in Tons; converts tons to BTUs | AW165: 5.54 | AX165: HSPFexist = Heating System Performance Factor of existing heating system 5.44 for replacing ASHP 3.41 for replacing Electric Resistance Heat | AY165: IL TRM v7 vol3 | AZ165: 114 | BA165: 4.5 | BB165: COPpl = Part Load Coefficient of Performance, Actual installed value | BC165: This example value is the mean of values listed in ENERGY STAR criteria here: https://www.energystar.gov/index.cfm?c=most_efficient.me_geothermal_heat_pumps , https://data.energystar.gov/Active-Specifications/ENERGY-STAR-Most-Efficient-Geothermal-Heat-Pumps/4c82-7ysy . Ideally this value would come from the specs of the actual unit installed. | BD165: 114 | BE165: 1 | BF165: ElecDHW: = 1 if HW system is electric = 0 if HW system is not electric | BG165: IL TRM v7 vol3 | BH165: 113 | BI165: 0.44 | BJ165: %DHWdisplaced = Percentage of total DHW load the GSHP will provide. = Actual, if known = 0% if no desuperheater installed = 44% if desuperheater installed and actual is unknown | BK165: IL TRM v7 vol3 | BL165: 114 | BM165: =2.057-0.00113*50 -> 2.0005 | BN165: Efelec = Energy Factor of electric WH. = Actual, if known = 0.96 – (0.0003 * rated volume in gallons) for 55+ gallon DHW = 2.057 – (0.00113 * rated volume in gallons) for < 55 gallon DHW | BO165: IL TRM v7 vol3 | BP165: 115 | BQ165: 3412 | BR165: Conversion from BTU to kWh | BS165: IL TRM v7 vol3 | BT165: 115 | BU165: 7.5 | BV165: Energy Efficiency Ratio of existing/baseline cooling unit | BW165: IL TRM v7 vol3 | BX165: 116 | BY165: 738 | BZ165: EFLHcool | CA165: MO TRM 2017 Vol 3 | CB165: 85 | CC165: 1376 | CD165: EFLHheat | CE165: The EFLH Cooling and Heating hours are based on a EnergyStar study that was normalized (based on HDD and CDD) to Kansas City. This was for both AC and HP units. | CG165: 17.6 | CH165: GPD | CI165: IL TRM v7 vol3 | CJ165: 115 | CK165: 2.56 | CL165: Household | CM165: IL TRM v7 vol3 | CN165: 115 | CO165: 365.25 | CP165: Days per year | CQ165: IL TRM v7 vol3 | CR165: 115 | CS165: 8.33 | CT165: Specific weight of water | CU165: IL TRM v7 vol3 | CV165: 115 | CW165: 125 | CX165: Tout | CY165: IL TRM v7 vol3 | CZ165: 115 | DA165: 54 | DB165: Tin | DC165: IL TRM v7 vol3 | DD165: 115 | DE165: 1 | DF165: Heat Capacity of Water | DG165: IL TRM v7 vol3 | DH165: 115
A166: Heating, Cooling & Home Comfort | B166: GSHP - EER 23_Early Retirement ASHP_SF: HVAC | C166: 243.6 | D166: Single Family | E166: HVAC | G166: per ton | H166: 5064 | I166: Program Tracking Data | K166: =ROUND(((BY166*AS166*(1/AF166-1/AB166))/1000)+((CC166*AS166*(1/AW166-1/(BA166*3.412)))/1000)+((BE166*BI166*(1/BM166)*CG166*CK166*CO166*CS166*(CW166-DA166)*DE166)/BQ166),4) -> 3590.0322 | L166: Calculated Value | N166: 4.864542276 | O166: 0.72 | P166: IL TRM v9 vol3 | Q166: 128 | R166: 1.152 | S166: Calculated Value | U166: 738 | V166: EFLHcool, from 2017 MO TRM Vol. 3 | W166: 85 | X166: 25 | Y166: IL TRM v9 vol3 | Z166: 127 | AA166: Part Load EER Efficiency of efficient GSHP unit | AB166: =3.412*BA166 -> 15.354 | AC166: IL TRM v7 vol3 | AD166: 111 | AE166: SEER Efficiency of existing cooling unit = Actual, if available | AF166: 9.3 | AG166: IL TRM v9 vol3 | AH166: 130 | AI166: =ROUND(((BY166*AS166*(1/AF166-1/AB166))/1000)+((CC166*AS166*(1/AW166-1/(BA166*3.412)))/1000)+((BE166*BI166*(1/BM166)*CG166*CK166*CO166*CS166*(CW166-DA166)*DE166)/BQ166),4) | AJ166: =ROUND(((AS166*(1/BU166)-(1/AB166))/1000)*O166,4) | AK166: IL TRM v9 vol3 | AL166: 128, 135 | AM166: 2022-01-01 | AS166: 12000 | AT166: Allows for Capacity input in Tons; converts tons to BTUs | AW166: 5.54 | AX166: HSPFexist = Heating System Performance Factor of existing heating system 5.44 for replacing ASHP 3.41 for replacing Electric Resistance Heat | AY166: IL TRM v7 vol3 | AZ166: 114 | BA166: 4.5 | BB166: COPpl = Part Load Coefficient of Performance, Actual installed value | BC166: This example value is the mean of values listed in ENERGY STAR criteria here: https://www.energystar.gov/index.cfm?c=most_efficient.me_geothermal_heat_pumps , https://data.energystar.gov/Active-Specifications/ENERGY-STAR-Most-Efficient-Geothermal-Heat-Pumps/4c82-7ysy . Ideally this value would come from the specs of the actual unit installed. | BD166: 114 | BE166: 1 | BF166: ElecDHW: = 1 if HW system is electric = 0 if HW system is not electric | BG166: IL TRM v9 vol3 | BH166: 131 | BI166: 0.44 | BJ166: %DHWdisplaced = Percentage of total DHW load the GSHP will provide. = Actual, if known = 0% if no desuperheater installed = 44% if desuperheater installed and actual is unknown | BK166: IL TRM v9 vol3 | BL166: 132 | BM166: =0.96-0.00003*50 -> 0.9585 | BN166: Efelec = Energy Factor of electric WH. = Actual, if known = 0.96 – (0.0003 * rated volume in gallons) for 55+ gallon DHW = 2.057 – (0.00113 * rated volume in gallons) for < 55 gallon DHW | BO166: IL TRM v9 vol3 | BP166: 132 | BQ166: 3412 | BR166: Conversion from BTU to kWh | BS166: IL TRM v9 vol3 | BT166: 128 | BU166: 7.5 | BV166: EER of existing/baseline cooling unit | BW166: IL TRM v9 vol3 | BX166: 136 | BY166: 738 | BZ166: EFLHcool | CA166: MO TRM 2017 Vol 3 | CB166: 85 | CC166: 1376 | CD166: EFLHheat | CE166: The EFLH Cooling and Heating hours are based on a EnergyStar study that was normalized (based on HDD and CDD) to Kansas City. This was for both AC and HP units. | CG166: 17.6 | CH166: GPD | CI166: IL TRM v9 vol3 | CJ166: 131 | CK166: 2.56 | CL166: Household | CM166: IL TRM v9 vol3 | CN166: 132 | CO166: 365.25 | CP166: Days per year | CS166: 8.33 | CT166: Specific weight of water | CU166: IL TRM v9 vol3 | CV166: 132 | CW166: 125 | CX166: Tout | CY166: IL TRM v9 vol3 | CZ166: 132 | DA166: 54 | DB166: Tin | DC166: IL TRM v9 vol3 | DD166: 132 | DE166: 1 | DF166: Heat Capacity of Water | DG166: IL TRM v9 vol3 | DH166: 132 | DR166: Updated assumptions for EERbase in IL TRM v9, Corrected Efelec formula, updated references to IL TRM, baseline efficiency, Update measure life
A167: Heating, Cooling & Home Comfort | B167: A/C Minisplit SEER 16: Replace at Fail / Time of Sale_SF: HVAC | C167: 523 | D167: Single Family | E167: HVAC | G167: per ton | H167: =2500*(BE167/AW167) -> 4479.166667 | I167: MN TRM v3.0 | J167: 90 | K167: =ROUND(((BE167/AW167)*BI167*U167*(1/AF167-1/AB167)),4) -> 228.851 | L167: Calculated Value | N167: =K167/U167 -> 0.310096206 | O167: 0.9 | P167: MN TRM v3.0 | Q167: 92 | R167: =ROUND(((BE167/AW167)*BI167*(1/BA167-1/AS167)*O167),4) -> 0.319 | S167: Calculated Value | U167: 738 | V167: EFLHcool, from 2017 MO TRM Vol. 3 | W167: 122 | X167: 18 | Y167: MN TRM v3.0 | Z167: 90 | AA167: SEERee | AB167: 16 | AC167: Based on SEER value of efficient equipment | AE167: SEERbase | AF167: 13 | AG167: IL TRM v9 vol3 | AH167: 79 | AI167: =ROUND(((BE167/AW167)*BI167*U167*(1/AF167-1/AB167)),4) | AJ167: =ROUND(((BE167/AW167)*BI167*(1/BA167-1/AS167)*O167),4) | AK167: MN TRM v3.0 | AL167: 91 | AM167: 2022-01-01 | AS167: =AB167*0.875 -> 14 | AT167: EERee | AU167: Based on calculation from SEER of installed equipment | AW167: 12000 | AX167: Allows for Capacity input in Tons; converts tons to BTUs | BA167: =AF167*0.875 -> 11.375 | BB167: EERbase | BC167: Based on calculation from SEER of installed equipment | BE167: 21500 | BF167: CapacityCool | BG167: Based on capacity of efficient equipment | BI167: 12 | BJ167: Unit conversion, EER to kW/ton | BK167: MN TRM v3.0 | BL167: 91 | DR167: New
